Workbook

Sheet Bygg 1
A1: X
D2: Byggeår; | E2: 0 | F2: Oppr grunnflate; | G2: 0 | I2: Befaring år; | J2: =YEAR(TODAY()) -> 2022
C3: Tilbygg; | D3: År; | E3: 0 | F3: Grunnflate tilbygg; | G3: 0
C4: Ombygd | D4: År; | E4: 0 | H4: Korrigert pga oppgradering; | J4: 0
J5: tak max 10 %
B7: Areal
A8: =IF($B$46=1,Faktorer_bolig!A4,Faktorer_andre!A4) -> Kjeller: | B8: 0 | C8: =IF($B$46=1,Faktorer_bolig!B4,Faktorer_andre!B4) -> Arealbruk i %; | D8: =IF($B$46=1,Faktorer_bolig!C4,Faktorer_andre!C4) -> svak/uinnr. | E8: 0 | F8: =IF($B$46=1,Faktorer_bolig!E4,Faktorer_andre!E4) -> enkel lagerkjeller | G8: 0 | H8: =IF($B$46=1,Faktorer_bolig!G4,Faktorer_andre!G4) -> vanl. bruksareal | I8: 0 | J8: =IF($B$46=1,Faktorer_bolig!I4,Faktorer_andre!I4) -> 0 | K8: 0 | L8: =IF(areal_k>0,100-SUM(E8:K8),0) -> 0 | M8: =IF(L8>0," % mangler",IF(L8=0,0,"----Over 100% blir feil!!!")) -> 0
A9: =IF($B$46=1,Faktorer_bolig!A5,Faktorer_andre!A5) -> 0 | B9: =IF(AND(B8=0,SUM(E8:E10,G8:G10,I8:I10,K9:K10)>0),"Har du glemt arealet ?","") ->  | C9: =IF($B$46=1,Faktorer_bolig!B5,Faktorer_andre!B5) -> Etasjestd i %; | D9: =IF($B$46=1,Faktorer_bolig!C5,Faktorer_andre!C5) -> svak/gråstein | E9: 0 | F9: =IF($B$46=1,Faktorer_bolig!E5,Faktorer_andre!E5) -> enkelt lager | G9: 0 | H9: =IF($B$46=1,Faktorer_bolig!G5,Faktorer_andre!G5) -> bra lagerareal | I9: 0 | J9: =IF($B$46=1,Faktorer_bolig!I5,Faktorer_andre!I5) -> godt bruksareal | K9: 0 | L9: =IF(areal_k>0,100-SUM(E9:K9),0) -> 0 | M9: 0 | N9: 0 | O9: 0 | P9: 0 | Q9: 0 | R9: 0 | S9: 0 | T9: 0 | U9: 0 | V9: 0 | W9: 0 | X9: 0 | Y9: 0 | Z9: 0 | AA9: 0 | AB9: 0 | AC9: 0 | AD9: 0 | AE9: 0 | AF9: 0 | AG9: 0 | AH9: 0 | AI9: 0 | AJ9: 0 | AK9: 0 | AL9: 0 | AM9: 0 | AN9: 0 | AO9: 0 | AP9: 0 | AQ9: 0 | AR9: 0 | AS9: 0 | AT9: 0 | AU9: 0 | AV9: 0 | AW9: 0 | AX9: 0 | AY9: 0 | AZ9: 0 | BA9: 0 | BB9: 0 | BC9: 0 | BD9: 0 | BE9: 0 | BF9: 0 | BG9: 0 | BH9: 0 | BI9: 0 | BJ9: 0 | BK9: 0 | BL9: 0 | BM9: 0 | BN9: 0 | BO9: 0 | BP9: 0 | BQ9: 0 | BR9: 0 | BS9: 0 | BT9: 0 | BU9: 0 | BV9: 0 | BW9: 0 | BX9: 0 | BY9: 0 | BZ9: 0 | CA9: 0 | CB9: 0 | CC9: 0 | CD9: 0 | CE9: 0 | CF9: 0 | CG9: 0 | CH9: 0 | CI9: 0 | CJ9: 0 | CK9: 0 | CL9: 0 | CM9: 0 | CN9: 0 | CO9: 0 | CP9: 0 | CQ9: 0 | CR9: 0 | CS9: 0 | CT9: 0 | CU9: 0 | CV9: 0 | CW9: 0 | CX9: 0 | CY9: 0 | CZ9: 0 | DA9: 0 | DB9: 0 | DC9: 0 | DD9: 0 | DE9: 0 | DF9: 0 | DG9: 0 | DH9: 0 | DI9: 0 | DJ9: 0 | DK9: 0 | DL9: 0 | DM9: 0 | DN9: 0 | DO9: 0 | DP9: 0 | DQ9: 0 | DR9: 0 | DS9: 0 | DT9: 0 | DU9: 0 | DV9: 0 | DW9: 0 | DX9: 0 | DY9: 0 | DZ9: 0 | EA9: 0 | EB9: 0 | EC9: 0 | ED9: 0 | EE9: 0 | EF9: 0 | EG9: 0 | EH9: 0 | EI9: 0 | EJ9: 0 | EK9: 0 | EL9: 0 | EM9: 0 | EN9: 0 | EO9: 0 | EP9: 0 | EQ9: 0 | ER9: 0 | ES9: 0 | ET9: 0 | EU9: 0 | EV9: 0 | EW9: 0 | EX9: 0 | EY9: 0 | EZ9: 0 | FA9: 0 | FB9: 0 | FC9: 0 | FD9: 0 | FE9: 0 | FF9: 0 | FG9: 0 | FH9: 0 | FI9: 0 | FJ9: 0 | FK9: 0 | FL9: 0 | FM9: 0 | FN9: 0 | FO9: 0 | FP9: 0 | FQ9: 0 | FR9: 0 | FS9: 0 | FT9: 0 | FU9: 0 | FV9: 0 | FW9: 0 | FX9: 0 | FY9: 0 | FZ9: 0 | GA9: 0 | GB9: 0 | GC9: 0 | GD9: 0 | GE9: 0 | GF9: 0 | GG9: 0 | GH9: 0 | GI9: 0 | GJ9: 0 | GK9: 0 | GL9: 0 | GM9: 0 | GN9: 0 | GO9: 0 | GP9: 0 | GQ9: 0 | GR9: 0 | GS9: 0 | GT9: 0 | GU9: 0 | GV9: 0 | GW9: 0 | GX9: 0 | GY9: 0 | GZ9: 0 | HA9: 0 | HB9: 0 | HC9: 0 | HD9: 0 | HE9: 0 | HF9: 0 | HG9: 0 | HH9: 0 | HI9: 0 | HJ9: 0 | HK9: 0 | HL9: 0 | HM9: 0 | HN9: 0 | HO9: 0 | HP9: 0 | HQ9: 0 | HR9: 0 | HS9: 0 | HT9: 0 | HU9: 0 | HV9: 0 | HW9: 0 | HX9: 0 | HY9: 0 | HZ9: 0 | IA9: 0 | IB9: 0 | IC9: 0 | ID9: 0 | IE9: 0 | IF9: 0 | IG9: 0 | IH9: 0 | II9: 0 | IJ9: 0 | IK9: 0 | IL9: 0 | IM9: 0 | IN9: 0 | IO9: 0 | IP9: 0 | IQ9: 0 | IR9: 0 | IS9: 0 | IT9: 0 | IU9: 0 | IV9: 0 | IW9: 0 | IX9: 0 | IY9: 0 | IZ9: 0
A10: =IF($B$46=1,Faktorer_bolig!A6,Faktorer_andre!A6) -> 0 | C10: =IF($B$46=1,Faktorer_bolig!B6,Faktorer_andre!B6) -> Tilst/egnethet; | D10: =IF($B$46=1,Faktorer_bolig!C6,Faktorer_andre!C6) -> slitt/dårlig | E10: 0 | F10: =IF($B$46=1,Faktorer_bolig!E6,Faktorer_andre!E6) -> brukbar | G10: 0 | H10: =IF($B$46=1,Faktorer_bolig!G6,Faktorer_andre!G6) -> bra | I10: 0 | J10: =IF($B$46=1,Faktorer_bolig!I6,Faktorer_andre!I6) -> svært god | K10: 0 | L10: =IF(areal_k>0,100-SUM(E10:K10),0) -> 0 | M10: 0 | N10: 0 | O10: 0 | P10: 0 | Q10: 0 | R10: 0 | S10: 0 | T10: 0 | U10: 0 | V10: 0 | W10: 0 | X10: 0 | Y10: 0 | Z10: 0 | AA10: 0 | AB10: 0 | AC10: 0 | AD10: 0 | AE10: 0 | AF10: 0 | AG10: 0 | AH10: 0 | AI10: 0 | AJ10: 0 | AK10: 0 | AL10: 0 | AM10: 0 | AN10: 0 | AO10: 0 | AP10: 0 | AQ10: 0 | AR10: 0 | AS10: 0 | AT10: 0 | AU10: 0 | AV10: 0 | AW10: 0 | AX10: 0 | AY10: 0 | AZ10: 0 | BA10: 0 | BB10: 0 | BC10: 0 | BD10: 0 | BE10: 0 | BF10: 0 | BG10: 0 | BH10: 0 | BI10: 0 | BJ10: 0 | BK10: 0 | BL10: 0 | BM10: 0 | BN10: 0 | BO10: 0 | BP10: 0 | BQ10: 0 | BR10: 0 | BS10: 0 | BT10: 0 | BU10: 0 | BV10: 0 | BW10: 0 | BX10: 0 | BY10: 0 | BZ10: 0 | CA10: 0 | CB10: 0 | CC10: 0 | CD10: 0 | CE10: 0 | CF10: 0 | CG10: 0 | CH10: 0 | CI10: 0 | CJ10: 0 | CK10: 0 | CL10: 0 | CM10: 0 | CN10: 0 | CO10: 0 | CP10: 0 | CQ10: 0 | CR10: 0 | CS10: 0 | CT10: 0 | CU10: 0 | CV10: 0 | CW10: 0 | CX10: 0 | CY10: 0 | CZ10: 0 | DA10: 0 | DB10: 0 | DC10: 0 | DD10: 0 | DE10: 0 | DF10: 0 | DG10: 0 | DH10: 0 | DI10: 0 | DJ10: 0 | DK10: 0 | DL10: 0 | DM10: 0 | DN10: 0 | DO10: 0 | DP10: 0 | DQ10: 0 | DR10: 0 | DS10: 0 | DT10: 0 | DU10: 0 | DV10: 0 | DW10: 0 | DX10: 0 | DY10: 0 | DZ10: 0 | EA10: 0 | EB10: 0 | EC10: 0 | ED10: 0 | EE10: 0 | EF10: 0 | EG10: 0 | EH10: 0 | EI10: 0 | EJ10: 0 | EK10: 0 | EL10: 0 | EM10: 0 | EN10: 0 | EO10: 0 | EP10: 0 | EQ10: 0 | ER10: 0 | ES10: 0 | ET10: 0 | EU10: 0 | EV10: 0 | EW10: 0 | EX10: 0 | EY10: 0 | EZ10: 0 | FA10: 0 | FB10: 0 | FC10: 0 | FD10: 0 | FE10: 0 | FF10: 0 | FG10: 0 | FH10: 0 | FI10: 0 | FJ10: 0 | FK10: 0 | FL10: 0 | FM10: 0 | FN10: 0 | FO10: 0 | FP10: 0 | FQ10: 0 | FR10: 0 | FS10: 0 | FT10: 0 | FU10: 0 | FV10: 0 | FW10: 0 | FX10: 0 | FY10: 0 | FZ10: 0 | GA10: 0 | GB10: 0 | GC10: 0 | GD10: 0 | GE10: 0 | GF10: 0 | GG10: 0 | GH10: 0 | GI10: 0 | GJ10: 0 | GK10: 0 | GL10: 0 | GM10: 0 | GN10: 0 | GO10: 0 | GP10: 0 | GQ10: 0 | GR10: 0 | GS10: 0 | GT10: 0 | GU10: 0 | GV10: 0 | GW10: 0 | GX10: 0 | GY10: 0 | GZ10: 0 | HA10: 0 | HB10: 0 | HC10: 0 | HD10: 0 | HE10: 0 | HF10: 0 | HG10: 0 | HH10: 0 | HI10: 0 | HJ10: 0 | HK10: 0 | HL10: 0 | HM10: 0 | HN10: 0 | HO10: 0 | HP10: 0 | HQ10: 0 | HR10: 0 | HS10: 0 | HT10: 0 | HU10: 0 | HV10: 0 | HW10: 0 | HX10: 0 | HY10: 0 | HZ10: 0 | IA10: 0 | IB10: 0 | IC10: 0 | ID10: 0 | IE10: 0 | IF10: 0 | IG10: 0 | IH10: 0 | II10: 0 | IJ10: 0 | IK10: 0 | IL10: 0 | IM10: 0 | IN10: 0 | IO10: 0 | IP10: 0 | IQ10: 0 | IR10: 0 | IS10: 0 | IT10: 0 | IU10: 0 | IV10: 0 | IW10: 0 | IX10: 0 | IY10: 0 | IZ10: 0
A11: =IF($B$46=1,Faktorer_bolig!A7,Faktorer_andre!A7) -> Sokkel/underetg: | B11: 0 | C11: =IF($B$46=1,Faktorer_bolig!B7,Faktorer_andre!B7) -> Arealbruk i %; | D11: =IF($B$46=1,Faktorer_bolig!C7,Faktorer_andre!C7) -> svak/uegnet | E11: 0 | F11: =IF($B$46=1,Faktorer_bolig!E7,Faktorer_andre!E7) -> enkelt lagerareal | G11: 0 | H11: =IF($B$46=1,Faktorer_bolig!G7,Faktorer_andre!G7) -> vanl. bruksareal | I11: 0 | J11: =IF($B$46=1,Faktorer_bolig!I7,Faktorer_andre!I7) -> 0 | K11: 0 | L11: =IF(areal_u>0,100-SUM(E11:K11),0) -> 0 | M11: 0 | N11: 0 | O11: 0 | P11: 0 | Q11: 0 | R11: 0 | S11: 0 | T11: 0 | U11: 0 | V11: 0 | W11: 0 | X11: 0 | Y11: 0 | Z11: 0 | AA11: 0 | AB11: 0 | AC11: 0 | AD11: 0 | AE11: 0 | AF11: 0 | AG11: 0 | AH11: 0 | AI11: 0 | AJ11: 0 | AK11: 0 | AL11: 0 | AM11: 0 | AN11: 0 | AO11: 0 | AP11: 0 | AQ11: 0 | AR11: 0 | AS11: 0 | AT11: 0 | AU11: 0 | AV11: 0 | AW11: 0 | AX11: 0 | AY11: 0 | AZ11: 0 | BA11: 0 | BB11: 0 | BC11: 0 | BD11: 0 | BE11: 0 | BF11: 0 | BG11: 0 | BH11: 0 | BI11: 0 | BJ11: 0 | BK11: 0 | BL11: 0 | BM11: 0 | BN11: 0 | BO11: 0 | BP11: 0 | BQ11: 0 | BR11: 0 | BS11: 0 | BT11: 0 | BU11: 0 | BV11: 0 | BW11: 0 | BX11: 0 | BY11: 0 | BZ11: 0 | CA11: 0 | CB11: 0 | CC11: 0 | CD11: 0 | CE11: 0 | CF11: 0 | CG11: 0 | CH11: 0 | CI11: 0 | CJ11: 0 | CK11: 0 | CL11: 0 | CM11: 0 | CN11: 0 | CO11: 0 | CP11: 0 | CQ11: 0 | CR11: 0 | CS11: 0 | CT11: 0 | CU11: 0 | CV11: 0 | CW11: 0 | CX11: 0 | CY11: 0 | CZ11: 0 | DA11: 0 | DB11: 0 | DC11: 0 | DD11: 0 | DE11: 0 | DF11: 0 | DG11: 0 | DH11: 0 | DI11: 0 | DJ11: 0 | DK11: 0 | DL11: 0 | DM11: 0 | DN11: 0 | DO11: 0 | DP11: 0 | DQ11: 0 | DR11: 0 | DS11: 0 | DT11: 0 | DU11: 0 | DV11: 0 | DW11: 0 | DX11: 0 | DY11: 0 | DZ11: 0 | EA11: 0 | EB11: 0 | EC11: 0 | ED11: 0 | EE11: 0 | EF11: 0 | EG11: 0 | EH11: 0 | EI11: 0 | EJ11: 0 | EK11: 0 | EL11: 0 | EM11: 0 | EN11: 0 | EO11: 0 | EP11: 0 | EQ11: 0 | ER11: 0 | ES11: 0 | ET11: 0 | EU11: 0 | EV11: 0 | EW11: 0 | EX11: 0 | EY11: 0 | EZ11: 0 | FA11: 0 | FB11: 0 | FC11: 0 | FD11: 0 | FE11: 0 | FF11: 0 | FG11: 0 | FH11: 0 | FI11: 0 | FJ11: 0 | FK11: 0 | FL11: 0 | FM11: 0 | FN11: 0 | FO11: 0 | FP11: 0 | FQ11: 0 | FR11: 0 | FS11: 0 | FT11: 0 | FU11: 0 | FV11: 0 | FW11: 0 | FX11: 0 | FY11: 0 | FZ11: 0 | GA11: 0 | GB11: 0 | GC11: 0 | GD11: 0 | GE11: 0 | GF11: 0 | GG11: 0 | GH11: 0 | GI11: 0 | GJ11: 0 | GK11: 0 | GL11: 0 | GM11: 0 | GN11: 0 | GO11: 0 | GP11: 0 | GQ11: 0 | GR11: 0 | GS11: 0 | GT11: 0 | GU11: 0 | GV11: 0 | GW11: 0 | GX11: 0 | GY11: 0 | GZ11: 0 | HA11: 0 | HB11: 0 | HC11: 0 | HD11: 0 | HE11: 0 | HF11: 0 | HG11: 0 | HH11: 0 | HI11: 0 | HJ11: 0 | HK11: 0 | HL11: 0 | HM11: 0 | HN11: 0 | HO11: 0 | HP11: 0 | HQ11: 0 | HR11: 0 | HS11: 0 | HT11: 0 | HU11: 0 | HV11: 0 | HW11: 0 | HX11: 0 | HY11: 0 | HZ11: 0 | IA11: 0 | IB11: 0 | IC11: 0 | ID11: 0 | IE11: 0 | IF11: 0 | IG11: 0 | IH11: 0 | II11: 0 | IJ11: 0 | IK11: 0 | IL11: 0 | IM11: 0 | IN11: 0 | IO11: 0 | IP11: 0 | IQ11: 0 | IR11: 0 | IS11: 0 | IT11: 0 | IU11: 0 | IV11: 0 | IW11: 0 | IX11: 0 | IY11: 0 | IZ11: 0
A12: =IF($B$46=1,Faktorer_bolig!A8,Faktorer_andre!A8) -> 0 | B12: =IF(AND(A11=0,SUM(E11:E13,G11:G13,I11:I13,K12:K13)>0),"Har du glemt arealet ?","") ->  | C12: =IF($B$46=1,Faktorer_bolig!B8,Faktorer_andre!B8) -> Etasjestd i %; | D12: =IF($B$46=1,Faktorer_bolig!C8,Faktorer_andre!C8) -> lav/uinnredet | E12: 0 | F12: =IF($B$46=1,Faktorer_bolig!E8,Faktorer_andre!E8) -> enkel | G12: 0 | H12: =IF($B$46=1,Faktorer_bolig!G8,Faktorer_andre!G8) -> bra | I12: 0 | J12: =IF($B$46=1,Faktorer_bolig!I8,Faktorer_andre!I8) -> god | K12: 0 | L12: =IF(areal_u>0,100-SUM(E12:K12),0) -> 0 | M12: 0 | N12: 0 | O12: 0 | P12: 0 | Q12: 0 | R12: 0 | S12: 0 | T12: 0 | U12: 0 | V12: 0 | W12: 0 | X12: 0 | Y12: 0 | Z12: 0 | AA12: 0 | AB12: 0 | AC12: 0 | AD12: 0 | AE12: 0 | AF12: 0 | AG12: 0 | AH12: 0 | AI12: 0 | AJ12: 0 | AK12: 0 | AL12: 0 | AM12: 0 | AN12: 0 | AO12: 0 | AP12: 0 | AQ12: 0 | AR12: 0 | AS12: 0 | AT12: 0 | AU12: 0 | AV12: 0 | AW12: 0 | AX12: 0 | AY12: 0 | AZ12: 0 | BA12: 0 | BB12: 0 | BC12: 0 | BD12: 0 | BE12: 0 | BF12: 0 | BG12: 0 | BH12: 0 | BI12: 0 | BJ12: 0 | BK12: 0 | BL12: 0 | BM12: 0 | BN12: 0 | BO12: 0 | BP12: 0 | BQ12: 0 | BR12: 0 | BS12: 0 | BT12: 0 | BU12: 0 | BV12: 0 | BW12: 0 | BX12: 0 | BY12: 0 | BZ12: 0 | CA12: 0 | CB12: 0 | CC12: 0 | CD12: 0 | CE12: 0 | CF12: 0 | CG12: 0 | CH12: 0 | CI12: 0 | CJ12: 0 | CK12: 0 | CL12: 0 | CM12: 0 | CN12: 0 | CO12: 0 | CP12: 0 | CQ12: 0 | CR12: 0 | CS12: 0 | CT12: 0 | CU12: 0 | CV12: 0 | CW12: 0 | CX12: 0 | CY12: 0 | CZ12: 0 | DA12: 0 | DB12: 0 | DC12: 0 | DD12: 0 | DE12: 0 | DF12: 0 | DG12: 0 | DH12: 0 | DI12: 0 | DJ12: 0 | DK12: 0 | DL12: 0 | DM12: 0 | DN12: 0 | DO12: 0 | DP12: 0 | DQ12: 0 | DR12: 0 | DS12: 0 | DT12: 0 | DU12: 0 | DV12: 0 | DW12: 0 | DX12: 0 | DY12: 0 | DZ12: 0 | EA12: 0 | EB12: 0 | EC12: 0 | ED12: 0 | EE12: 0 | EF12: 0 | EG12: 0 | EH12: 0 | EI12: 0 | EJ12: 0 | EK12: 0 | EL12: 0 | EM12: 0 | EN12: 0 | EO12: 0 | EP12: 0 | EQ12: 0 | ER12: 0 | ES12: 0 | ET12: 0 | EU12: 0 | EV12: 0 | EW12: 0 | EX12: 0 | EY12: 0 | EZ12: 0 | FA12: 0 | FB12: 0 | FC12: 0 | FD12: 0 | FE12: 0 | FF12: 0 | FG12: 0 | FH12: 0 | FI12: 0 | FJ12: 0 | FK12: 0 | FL12: 0 | FM12: 0 | FN12: 0 | FO12: 0 | FP12: 0 | FQ12: 0 | FR12: 0 | FS12: 0 | FT12: 0 | FU12: 0 | FV12: 0 | FW12: 0 | FX12: 0 | FY12: 0 | FZ12: 0 | GA12: 0 | GB12: 0 | GC12: 0 | GD12: 0 | GE12: 0 | GF12: 0 | GG12: 0 | GH12: 0 | GI12: 0 | GJ12: 0 | GK12: 0 | GL12: 0 | GM12: 0 | GN12: 0 | GO12: 0 | GP12: 0 | GQ12: 0 | GR12: 0 | GS12: 0 | GT12: 0 | GU12: 0 | GV12: 0 | GW12: 0 | GX12: 0 | GY12: 0 | GZ12: 0 | HA12: 0 | HB12: 0 | HC12: 0 | HD12: 0 | HE12: 0 | HF12: 0 | HG12: 0 | HH12: 0 | HI12: 0 | HJ12: 0 | HK12: 0 | HL12: 0 | HM12: 0 | HN12: 0 | HO12: 0 | HP12: 0 | HQ12: 0 | HR12: 0 | HS12: 0 | HT12: 0 | HU12: 0 | HV12: 0 | HW12: 0 | HX12: 0 | HY12: 0 | HZ12: 0 | IA12: 0 | IB12: 0 | IC12: 0 | ID12: 0 | IE12: 0 | IF12: 0 | IG12: 0 | IH12: 0 | II12: 0 | IJ12: 0 | IK12: 0 | IL12: 0 | IM12: 0 | IN12: 0 | IO12: 0 | IP12: 0 | IQ12: 0 | IR12: 0 | IS12: 0 | IT12: 0 | IU12: 0 | IV12: 0 | IW12: 0 | IX12: 0 | IY12: 0 | IZ12: 0
A13: =IF($B$46=1,Faktorer_bolig!A9,Faktorer_andre!A9) -> 0 | C13: =IF($B$46=1,Faktorer_bolig!B9,Faktorer_andre!B9) -> Tilst/egnethet; | D13: =IF($B$46=1,Faktorer_bolig!C9,Faktorer_andre!C9) -> slitt/dårl | E13: 0 | F13: =IF($B$46=1,Faktorer_bolig!E9,Faktorer_andre!E9) -> brukbar | G13: 0 | H13: =IF($B$46=1,Faktorer_bolig!G9,Faktorer_andre!G9) -> bra | I13: 0 | J13: =IF($B$46=1,Faktorer_bolig!I9,Faktorer_andre!I9) -> svært god | K13: 0 | L13: =IF(areal_u>0,100-SUM(E13:K13),0) -> 0 | M13: 0 | N13: 0 | O13: 0 | P13: 0 | Q13: 0 | R13: 0 | S13: 0 | T13: 0 | U13: 0 | V13: 0 | W13: 0 | X13: 0 | Y13: 0 | Z13: 0 | AA13: 0 | AB13: 0 | AC13: 0 | AD13: 0 | AE13: 0 | AF13: 0 | AG13: 0 | AH13: 0 | AI13: 0 | AJ13: 0 | AK13: 0 | AL13: 0 | AM13: 0 | AN13: 0 | AO13: 0 | AP13: 0 | AQ13: 0 | AR13: 0 | AS13: 0 | AT13: 0 | AU13: 0 | AV13: 0 | AW13: 0 | AX13: 0 | AY13: 0 | AZ13: 0 | BA13: 0 | BB13: 0 | BC13: 0 | BD13: 0 | BE13: 0 | BF13: 0 | BG13: 0 | BH13: 0 | BI13: 0 | BJ13: 0 | BK13: 0 | BL13: 0 | BM13: 0 | BN13: 0 | BO13: 0 | BP13: 0 | BQ13: 0 | BR13: 0 | BS13: 0 | BT13: 0 | BU13: 0 | BV13: 0 | BW13: 0 | BX13: 0 | BY13: 0 | BZ13: 0 | CA13: 0 | CB13: 0 | CC13: 0 | CD13: 0 | CE13: 0 | CF13: 0 | CG13: 0 | CH13: 0 | CI13: 0 | CJ13: 0 | CK13: 0 | CL13: 0 | CM13: 0 | CN13: 0 | CO13: 0 | CP13: 0 | CQ13: 0 | CR13: 0 | CS13: 0 | CT13: 0 | CU13: 0 | CV13: 0 | CW13: 0 | CX13: 0 | CY13: 0 | CZ13: 0 | DA13: 0 | DB13: 0 | DC13: 0 | DD13: 0 | DE13: 0 | DF13: 0 | DG13: 0 | DH13: 0 | DI13: 0 | DJ13: 0 | DK13: 0 | DL13: 0 | DM13: 0 | DN13: 0 | DO13: 0 | DP13: 0 | DQ13: 0 | DR13: 0 | DS13: 0 | DT13: 0 | DU13: 0 | DV13: 0 | DW13: 0 | DX13: 0 | DY13: 0 | DZ13: 0 | EA13: 0 | EB13: 0 | EC13: 0 | ED13: 0 | EE13: 0 | EF13: 0 | EG13: 0 | EH13: 0 | EI13: 0 | EJ13: 0 | EK13: 0 | EL13: 0 | EM13: 0 | EN13: 0 | EO13: 0 | EP13: 0 | EQ13: 0 | ER13: 0 | ES13: 0 | ET13: 0 | EU13: 0 | EV13: 0 | EW13: 0 | EX13: 0 | EY13: 0 | EZ13: 0 | FA13: 0 | FB13: 0 | FC13: 0 | FD13: 0 | FE13: 0 | FF13: 0 | FG13: 0 | FH13: 0 | FI13: 0 | FJ13: 0 | FK13: 0 | FL13: 0 | FM13: 0 | FN13: 0 | FO13: 0 | FP13: 0 | FQ13: 0 | FR13: 0 | FS13: 0 | FT13: 0 | FU13: 0 | FV13: 0 | FW13: 0 | FX13: 0 | FY13: 0 | FZ13: 0 | GA13: 0 | GB13: 0 | GC13: 0 | GD13: 0 | GE13: 0 | GF13: 0 | GG13: 0 | GH13: 0 | GI13: 0 | GJ13: 0 | GK13: 0 | GL13: 0 | GM13: 0 | GN13: 0 | GO13: 0 | GP13: 0 | GQ13: 0 | GR13: 0 | GS13: 0 | GT13: 0 | GU13: 0 | GV13: 0 | GW13: 0 | GX13: 0 | GY13: 0 | GZ13: 0 | HA13: 0 | HB13: 0 | HC13: 0 | HD13: 0 | HE13: 0 | HF13: 0 | HG13: 0 | HH13: 0 | HI13: 0 | HJ13: 0 | HK13: 0 | HL13: 0 | HM13: 0 | HN13: 0 | HO13: 0 | HP13: 0 | HQ13: 0 | HR13: 0 | HS13: 0 | HT13: 0 | HU13: 0 | HV13: 0 | HW13: 0 | HX13: 0 | HY13: 0 | HZ13: 0 | IA13: 0 | IB13: 0 | IC13: 0 | ID13: 0 | IE13: 0 | IF13: 0 | IG13: 0 | IH13: 0 | II13: 0 | IJ13: 0 | IK13: 0 | IL13: 0 | IM13: 0 | IN13: 0 | IO13: 0 | IP13: 0 | IQ13: 0 | IR13: 0 | IS13: 0 | IT13: 0 | IU13: 0 | IV13: 0 | IW13: 0 | IX13: 0 | IY13: 0 | IZ13: 0
A14: =IF($B$46=1,Faktorer_bolig!A10,Faktorer_andre!A10) -> 1. etg: | B14: 0 | C14: =IF($B$46=1,Faktorer_bolig!B10,Faktorer_andre!B10) -> Arealbruk i %; | D14: =IF($B$46=1,Faktorer_bolig!C10,Faktorer_andre!C10) -> svak/uegnet. | E14: 0 | F14: =IF($B$46=1,Faktorer_bolig!E10,Faktorer_andre!E10) -> enkelt bruksareal | G14: 0 | H14: =IF($B$46=1,Faktorer_bolig!G10,Faktorer_andre!G10) -> vanl. bruksareal | I14: 0 | J14: =IF($B$46=1,Faktorer_bolig!I10,Faktorer_andre!I10) -> 0 | L14: =IF(areal_1>0,100-SUM(E14:K14),0) -> 0 | M14: 0 | N14: 0 | O14: 0 | P14: 0 | Q14: 0 | R14: 0 | S14: 0 | T14: 0 | U14: 0 | V14: 0 | W14: 0 | X14: 0 | Y14: 0 | Z14: 0 | AA14: 0 | AB14: 0 | AC14: 0 | AD14: 0 | AE14: 0 | AF14: 0 | AG14: 0 | AH14: 0 | AI14: 0 | AJ14: 0 | AK14: 0 | AL14: 0 | AM14: 0 | AN14: 0 | AO14: 0 | AP14: 0 | AQ14: 0 | AR14: 0 | AS14: 0 | AT14: 0 | AU14: 0 | AV14: 0 | AW14: 0 | AX14: 0 | AY14: 0 | AZ14: 0 | BA14: 0 | BB14: 0 | BC14: 0 | BD14: 0 | BE14: 0 | BF14: 0 | BG14: 0 | BH14: 0 | BI14: 0 | BJ14: 0 | BK14: 0 | BL14: 0 | BM14: 0 | BN14: 0 | BO14: 0 | BP14: 0 | BQ14: 0 | BR14: 0 | BS14: 0 | BT14: 0 | BU14: 0 | BV14: 0 | BW14: 0 | BX14: 0 | BY14: 0 | BZ14: 0 | CA14: 0 | CB14: 0 | CC14: 0 | CD14: 0 | CE14: 0 | CF14: 0 | CG14: 0 | CH14: 0 | CI14: 0 | CJ14: 0 | CK14: 0 | CL14: 0 | CM14: 0 | CN14: 0 | CO14: 0 | CP14: 0 | CQ14: 0 | CR14: 0 | CS14: 0 | CT14: 0 | CU14: 0 | CV14: 0 | CW14: 0 | CX14: 0 | CY14: 0 | CZ14: 0 | DA14: 0 | DB14: 0 | DC14: 0 | DD14: 0 | DE14: 0 | DF14: 0 | DG14: 0 | DH14: 0 | DI14: 0 | DJ14: 0 | DK14: 0 | DL14: 0 | DM14: 0 | DN14: 0 | DO14: 0 | DP14: 0 | DQ14: 0 | DR14: 0 | DS14: 0 | DT14: 0 | DU14: 0 | DV14: 0 | DW14: 0 | DX14: 0 | DY14: 0 | DZ14: 0 | EA14: 0 | EB14: 0 | EC14: 0 | ED14: 0 | EE14: 0 | EF14: 0 | EG14: 0 | EH14: 0 | EI14: 0 | EJ14: 0 | EK14: 0 | EL14: 0 | EM14: 0 | EN14: 0 | EO14: 0 | EP14: 0 | EQ14: 0 | ER14: 0 | ES14: 0 | ET14: 0 | EU14: 0 | EV14: 0 | EW14: 0 | EX14: 0 | EY14: 0 | EZ14: 0 | FA14: 0 | FB14: 0 | FC14: 0 | FD14: 0 | FE14: 0 | FF14: 0 | FG14: 0 | FH14: 0 | FI14: 0 | FJ14: 0 | FK14: 0 | FL14: 0 | FM14: 0 | FN14: 0 | FO14: 0 | FP14: 0 | FQ14: 0 | FR14: 0 | FS14: 0 | FT14: 0 | FU14: 0 | FV14: 0 | FW14: 0 | FX14: 0 | FY14: 0 | FZ14: 0 | GA14: 0 | GB14: 0 | GC14: 0 | GD14: 0 | GE14: 0 | GF14: 0 | GG14: 0 | GH14: 0 | GI14: 0 | GJ14: 0 | GK14: 0 | GL14: 0 | GM14: 0 | GN14: 0 | GO14: 0 | GP14: 0 | GQ14: 0 | GR14: 0 | GS14: 0 | GT14: 0 | GU14: 0 | GV14: 0 | GW14: 0 | GX14: 0 | GY14: 0 | GZ14: 0 | HA14: 0 | HB14: 0 | HC14: 0 | HD14: 0 | HE14: 0 | HF14: 0 | HG14: 0 | HH14: 0 | HI14: 0 | HJ14: 0 | HK14: 0 | HL14: 0 | HM14: 0 | HN14: 0 | HO14: 0 | HP14: 0 | HQ14: 0 | HR14: 0 | HS14: 0 | HT14: 0 | HU14: 0 | HV14: 0 | HW14: 0 | HX14: 0 | HY14: 0 | HZ14: 0 | IA14: 0 | IB14: 0 | IC14: 0 | ID14: 0 | IE14: 0 | IF14: 0 | IG14: 0 | IH14: 0 | II14: 0 | IJ14: 0 | IK14: 0 | IL14: 0 | IM14: 0 | IN14: 0 | IO14: 0 | IP14: 0 | IQ14: 0 | IR14: 0 | IS14: 0 | IT14: 0 | IU14: 0 | IV14: 0 | IW14: 0 | IX14: 0 | IY14: 0 | IZ14: 0
A15: =IF($B$46=1,Faktorer_bolig!A11,Faktorer_andre!A11) -> 0 | B15: =IF(AND(A14=0,SUM(E14:E16,G14:G16,I14:I16,K15:K16)>0),"Har du glemt arealet ?","") ->  | C15: =IF($B$46=1,Faktorer_bolig!B11,Faktorer_andre!B11) -> Etasjestd i %; | D15: =IF($B$46=1,Faktorer_bolig!C11,Faktorer_andre!C11) -> lav | E15: 0 | F15: =IF($B$46=1,Faktorer_bolig!E11,Faktorer_andre!E11) -> enkel | G15: 0 | H15: =IF($B$46=1,Faktorer_bolig!G11,Faktorer_andre!G11) -> bra | I15: 0 | J15: =IF($B$46=1,Faktorer_bolig!I11,Faktorer_andre!I11) -> god | K15: 0 | L15: =IF(areal_1>0,100-SUM(E15:K15),0) -> 0 | M15: 0 | N15: 0 | O15: 0 | P15: 0 | Q15: 0 | R15: 0 | S15: 0 | T15: 0 | U15: 0 | V15: 0 | W15: 0 | X15: 0 | Y15: 0 | Z15: 0 | AA15: 0 | AB15: 0 | AC15: 0 | AD15: 0 | AE15: 0 | AF15: 0 | AG15: 0 | AH15: 0 | AI15: 0 | AJ15: 0 | AK15: 0 | AL15: 0 | AM15: 0 | AN15: 0 | AO15: 0 | AP15: 0 | AQ15: 0 | AR15: 0 | AS15: 0 | AT15: 0 | AU15: 0 | AV15: 0 | AW15: 0 | AX15: 0 | AY15: 0 | AZ15: 0 | BA15: 0 | BB15: 0 | BC15: 0 | BD15: 0 | BE15: 0 | BF15: 0 | BG15: 0 | BH15: 0 | BI15: 0 | BJ15: 0 | BK15: 0 | BL15: 0 | BM15: 0 | BN15: 0 | BO15: 0 | BP15: 0 | BQ15: 0 | BR15: 0 | BS15: 0 | BT15: 0 | BU15: 0 | BV15: 0 | BW15: 0 | BX15: 0 | BY15: 0 | BZ15: 0 | CA15: 0 | CB15: 0 | CC15: 0 | CD15: 0 | CE15: 0 | CF15: 0 | CG15: 0 | CH15: 0 | CI15: 0 | CJ15: 0 | CK15: 0 | CL15: 0 | CM15: 0 | CN15: 0 | CO15: 0 | CP15: 0 | CQ15: 0 | CR15: 0 | CS15: 0 | CT15: 0 | CU15: 0 | CV15: 0 | CW15: 0 | CX15: 0 | CY15: 0 | CZ15: 0 | DA15: 0 | DB15: 0 | DC15: 0 | DD15: 0 | DE15: 0 | DF15: 0 | DG15: 0 | DH15: 0 | DI15: 0 | DJ15: 0 | DK15: 0 | DL15: 0 | DM15: 0 | DN15: 0 | DO15: 0 | DP15: 0 | DQ15: 0 | DR15: 0 | DS15: 0 | DT15: 0 | DU15: 0 | DV15: 0 | DW15: 0 | DX15: 0 | DY15: 0 | DZ15: 0 | EA15: 0 | EB15: 0 | EC15: 0 | ED15: 0 | EE15: 0 | EF15: 0 | EG15: 0 | EH15: 0 | EI15: 0 | EJ15: 0 | EK15: 0 | EL15: 0 | EM15: 0 | EN15: 0 | EO15: 0 | EP15: 0 | EQ15: 0 | ER15: 0 | ES15: 0 | ET15: 0 | EU15: 0 | EV15: 0 | EW15: 0 | EX15: 0 | EY15: 0 | EZ15: 0 | FA15: 0 | FB15: 0 | FC15: 0 | FD15: 0 | FE15: 0 | FF15: 0 | FG15: 0 | FH15: 0 | FI15: 0 | FJ15: 0 | FK15: 0 | FL15: 0 | FM15: 0 | FN15: 0 | FO15: 0 | FP15: 0 | FQ15: 0 | FR15: 0 | FS15: 0 | FT15: 0 | FU15: 0 | FV15: 0 | FW15: 0 | FX15: 0 | FY15: 0 | FZ15: 0 | GA15: 0 | GB15: 0 | GC15: 0 | GD15: 0 | GE15: 0 | GF15: 0 | GG15: 0 | GH15: 0 | GI15: 0 | GJ15: 0 | GK15: 0 | GL15: 0 | GM15: 0 | GN15: 0 | GO15: 0 | GP15: 0 | GQ15: 0 | GR15: 0 | GS15: 0 | GT15: 0 | GU15: 0 | GV15: 0 | GW15: 0 | GX15: 0 | GY15: 0 | GZ15: 0 | HA15: 0 | HB15: 0 | HC15: 0 | HD15: 0 | HE15: 0 | HF15: 0 | HG15: 0 | HH15: 0 | HI15: 0 | HJ15: 0 | HK15: 0 | HL15: 0 | HM15: 0 | HN15: 0 | HO15: 0 | HP15: 0 | HQ15: 0 | HR15: 0 | HS15: 0 | HT15: 0 | HU15: 0 | HV15: 0 | HW15: 0 | HX15: 0 | HY15: 0 | HZ15: 0 | IA15: 0 | IB15: 0 | IC15: 0 | ID15: 0 | IE15: 0 | IF15: 0 | IG15: 0 | IH15: 0 | II15: 0 | IJ15: 0 | IK15: 0 | IL15: 0 | IM15: 0 | IN15: 0 | IO15: 0 | IP15: 0 | IQ15: 0 | IR15: 0 | IS15: 0 | IT15: 0 | IU15: 0 | IV15: 0 | IW15: 0 | IX15: 0 | IY15: 0 | IZ15: 0
A16: =IF($B$46=1,Faktorer_bolig!A12,Faktorer_andre!A12) -> 0 | C16: =IF($B$46=1,Faktorer_bolig!B12,Faktorer_andre!B12) -> Tilst/egnethet; | D16: =IF($B$46=1,Faktorer_bolig!C12,Faktorer_andre!C12) -> slitt/dårl | E16: 0 | F16: =IF($B$46=1,Faktorer_bolig!E12,Faktorer_andre!E12) -> brukbar | G16: 0 | H16: =IF($B$46=1,Faktorer_bolig!G12,Faktorer_andre!G12) -> bra | I16: 0 | J16: =IF($B$46=1,Faktorer_bolig!I12,Faktorer_andre!I12) -> svært god | K16: 0 | L16: =IF(areal_1>0,100-SUM(E16:K16),0) -> 0 | M16: 0 | N16: 0 | O16: 0 | P16: 0 | Q16: 0 | R16: 0 | S16: 0 | T16: 0 | U16: 0 | V16: 0 | W16: 0 | X16: 0 | Y16: 0 | Z16: 0 | AA16: 0 | AB16: 0 | AC16: 0 | AD16: 0 | AE16: 0 | AF16: 0 | AG16: 0 | AH16: 0 | AI16: 0 | AJ16: 0 | AK16: 0 | AL16: 0 | AM16: 0 | AN16: 0 | AO16: 0 | AP16: 0 | AQ16: 0 | AR16: 0 | AS16: 0 | AT16: 0 | AU16: 0 | AV16: 0 | AW16: 0 | AX16: 0 | AY16: 0 | AZ16: 0 | BA16: 0 | BB16: 0 | BC16: 0 | BD16: 0 | BE16: 0 | BF16: 0 | BG16: 0 | BH16: 0 | BI16: 0 | BJ16: 0 | BK16: 0 | BL16: 0 | BM16: 0 | BN16: 0 | BO16: 0 | BP16: 0 | BQ16: 0 | BR16: 0 | BS16: 0 | BT16: 0 | BU16: 0 | BV16: 0 | BW16: 0 | BX16: 0 | BY16: 0 | BZ16: 0 | CA16: 0 | CB16: 0 | CC16: 0 | CD16: 0 | CE16: 0 | CF16: 0 | CG16: 0 | CH16: 0 | CI16: 0 | CJ16: 0 | CK16: 0 | CL16: 0 | CM16: 0 | CN16: 0 | CO16: 0 | CP16: 0 | CQ16: 0 | CR16: 0 | CS16: 0 | CT16: 0 | CU16: 0 | CV16: 0 | CW16: 0 | CX16: 0 | CY16: 0 | CZ16: 0 | DA16: 0 | DB16: 0 | DC16: 0 | DD16: 0 | DE16: 0 | DF16: 0 | DG16: 0 | DH16: 0 | DI16: 0 | DJ16: 0 | DK16: 0 | DL16: 0 | DM16: 0 | DN16: 0 | DO16: 0 | DP16: 0 | DQ16: 0 | DR16: 0 | DS16: 0 | DT16: 0 | DU16: 0 | DV16: 0 | DW16: 0 | DX16: 0 | DY16: 0 | DZ16: 0 | EA16: 0 | EB16: 0 | EC16: 0 | ED16: 0 | EE16: 0 | EF16: 0 | EG16: 0 | EH16: 0 | EI16: 0 | EJ16: 0 | EK16: 0 | EL16: 0 | EM16: 0 | EN16: 0 | EO16: 0 | EP16: 0 | EQ16: 0 | ER16: 0 | ES16: 0 | ET16: 0 | EU16: 0 | EV16: 0 | EW16: 0 | EX16: 0 | EY16: 0 | EZ16: 0 | FA16: 0 | FB16: 0 | FC16: 0 | FD16: 0 | FE16: 0 | FF16: 0 | FG16: 0 | FH16: 0 | FI16: 0 | FJ16: 0 | FK16: 0 | FL16: 0 | FM16: 0 | FN16: 0 | FO16: 0 | FP16: 0 | FQ16: 0 | FR16: 0 | FS16: 0 | FT16: 0 | FU16: 0 | FV16: 0 | FW16: 0 | FX16: 0 | FY16: 0 | FZ16: 0 | GA16: 0 | GB16: 0 | GC16: 0 | GD16: 0 | GE16: 0 | GF16: 0 | GG16: 0 | GH16: 0 | GI16: 0 | GJ16: 0 | GK16: 0 | GL16: 0 | GM16: 0 | GN16: 0 | GO16: 0 | GP16: 0 | GQ16: 0 | GR16: 0 | GS16: 0 | GT16: 0 | GU16: 0 | GV16: 0 | GW16: 0 | GX16: 0 | GY16: 0 | GZ16: 0 | HA16: 0 | HB16: 0 | HC16: 0 | HD16: 0 | HE16: 0 | HF16: 0 | HG16: 0 | HH16: 0 | HI16: 0 | HJ16: 0 | HK16: 0 | HL16: 0 | HM16: 0 | HN16: 0 | HO16: 0 | HP16: 0 | HQ16: 0 | HR16: 0 | HS16: 0 | HT16: 0 | HU16: 0 | HV16: 0 | HW16: 0 | HX16: 0 | HY16: 0 | HZ16: 0 | IA16: 0 | IB16: 0 | IC16: 0 | ID16: 0 | IE16: 0 | IF16: 0 | IG16: 0 | IH16: 0 | II16: 0 | IJ16: 0 | IK16: 0 | IL16: 0 | IM16: 0 | IN16: 0 | IO16: 0 | IP16: 0 | IQ16: 0 | IR16: 0 | IS16: 0 | IT16: 0 | IU16: 0 | IV16: 0 | IW16: 0 | IX16: 0 | IY16: 0 | IZ16: 0
A17: =IF($B$46=1,Faktorer_bolig!A13,Faktorer_andre!A13) -> 2. etg: | B17: 0 | C17: =IF($B$46=1,Faktorer_bolig!B13,Faktorer_andre!B13) -> Arealbruk i %; | D17: =IF($B$46=1,Faktorer_bolig!C13,Faktorer_andre!C13) -> svak/uegnet | E17: 0 | F17: =IF($B$46=1,Faktorer_bolig!E13,Faktorer_andre!E13) -> enkelt bruksareal | G17: 0 | H17: =IF($B$46=1,Faktorer_bolig!G13,Faktorer_andre!G13) -> vanl. bruksareal | I17: 0 | J17: =IF($B$46=1,Faktorer_bolig!I13,Faktorer_andre!I13) -> 0 | K17: 0 | L17: =IF(areal_2>0,100-SUM(E17:K17),0) -> 0 | M17: 0 | N17: 0 | O17: 0 | P17: 0 | Q17: 0 | R17: 0 | S17: 0 | T17: 0 | U17: 0 | V17: 0 | W17: 0 | X17: 0 | Y17: 0 | Z17: 0 | AA17: 0 | AB17: 0 | AC17: 0 | AD17: 0 | AE17: 0 | AF17: 0 | AG17: 0 | AH17: 0 | AI17: 0 | AJ17: 0 | AK17: 0 | AL17: 0 | AM17: 0 | AN17: 0 | AO17: 0 | AP17: 0 | AQ17: 0 | AR17: 0 | AS17: 0 | AT17: 0 | AU17: 0 | AV17: 0 | AW17: 0 | AX17: 0 | AY17: 0 | AZ17: 0 | BA17: 0 | BB17: 0 | BC17: 0 | BD17: 0 | BE17: 0 | BF17: 0 | BG17: 0 | BH17: 0 | BI17: 0 | BJ17: 0 | BK17: 0 | BL17: 0 | BM17: 0 | BN17: 0 | BO17: 0 | BP17: 0 | BQ17: 0 | BR17: 0 | BS17: 0 | BT17: 0 | BU17: 0 | BV17: 0 | BW17: 0 | BX17: 0 | BY17: 0 | BZ17: 0 | CA17: 0 | CB17: 0 | CC17: 0 | CD17: 0 | CE17: 0 | CF17: 0 | CG17: 0 | CH17: 0 | CI17: 0 | CJ17: 0 | CK17: 0 | CL17: 0 | CM17: 0 | CN17: 0 | CO17: 0 | CP17: 0 | CQ17: 0 | CR17: 0 | CS17: 0 | CT17: 0 | CU17: 0 | CV17: 0 | CW17: 0 | CX17: 0 | CY17: 0 | CZ17: 0 | DA17: 0 | DB17: 0 | DC17: 0 | DD17: 0 | DE17: 0 | DF17: 0 | DG17: 0 | DH17: 0 | DI17: 0 | DJ17: 0 | DK17: 0 | DL17: 0 | DM17: 0 | DN17: 0 | DO17: 0 | DP17: 0 | DQ17: 0 | DR17: 0 | DS17: 0 | DT17: 0 | DU17: 0 | DV17: 0 | DW17: 0 | DX17: 0 | DY17: 0 | DZ17: 0 | EA17: 0 | EB17: 0 | EC17: 0 | ED17: 0 | EE17: 0 | EF17: 0 | EG17: 0 | EH17: 0 | EI17: 0 | EJ17: 0 | EK17: 0 | EL17: 0 | EM17: 0 | EN17: 0 | EO17: 0 | EP17: 0 | EQ17: 0 | ER17: 0 | ES17: 0 | ET17: 0 | EU17: 0 | EV17: 0 | EW17: 0 | EX17: 0 | EY17: 0 | EZ17: 0 | FA17: 0 | FB17: 0 | FC17: 0 | FD17: 0 | FE17: 0 | FF17: 0 | FG17: 0 | FH17: 0 | FI17: 0 | FJ17: 0 | FK17: 0 | FL17: 0 | FM17: 0 | FN17: 0 | FO17: 0 | FP17: 0 | FQ17: 0 | FR17: 0 | FS17: 0 | FT17: 0 | FU17: 0 | FV17: 0 | FW17: 0 | FX17: 0 | FY17: 0 | FZ17: 0 | GA17: 0 | GB17: 0 | GC17: 0 | GD17: 0 | GE17: 0 | GF17: 0 | GG17: 0 | GH17: 0 | GI17: 0 | GJ17: 0 | GK17: 0 | GL17: 0 | GM17: 0 | GN17: 0 | GO17: 0 | GP17: 0 | GQ17: 0 | GR17: 0 | GS17: 0 | GT17: 0 | GU17: 0 | GV17: 0 | GW17: 0 | GX17: 0 | GY17: 0 | GZ17: 0 | HA17: 0 | HB17: 0 | HC17: 0 | HD17: 0 | HE17: 0 | HF17: 0 | HG17: 0 | HH17: 0 | HI17: 0 | HJ17: 0 | HK17: 0 | HL17: 0 | HM17: 0 | HN17: 0 | HO17: 0 | HP17: 0 | HQ17: 0 | HR17: 0 | HS17: 0 | HT17: 0 | HU17: 0 | HV17: 0 | HW17: 0 | HX17: 0 | HY17: 0 | HZ17: 0 | IA17: 0 | IB17: 0 | IC17: 0 | ID17: 0 | IE17: 0 | IF17: 0 | IG17: 0 | IH17: 0 | II17: 0 | IJ17: 0 | IK17: 0 | IL17: 0 | IM17: 0 | IN17: 0 | IO17: 0 | IP17: 0 | IQ17: 0 | IR17: 0 | IS17: 0 | IT17: 0 | IU17: 0 | IV17: 0 | IW17: 0 | IX17: 0 | IY17: 0 | IZ17: 0
A18: =IF($B$46=1,Faktorer_bolig!A14,Faktorer_andre!A14) -> 0 | B18: =IF(AND(A17=0,SUM(E17:E19,G17:G19,I17:I19,K18:K19)>0),"Har du glemt arealet ?","") ->  | C18: =IF($B$46=1,Faktorer_bolig!B14,Faktorer_andre!B14) -> Etasjestd i %; | D18: =IF($B$46=1,Faktorer_bolig!C14,Faktorer_andre!C14) -> lav | E18: 0 | F18: =IF($B$46=1,Faktorer_bolig!E14,Faktorer_andre!E14) -> enkel | G18: 0 | H18: =IF($B$46=1,Faktorer_bolig!G14,Faktorer_andre!G14) -> bra | I18: 0 | J18: =IF($B$46=1,Faktorer_bolig!I14,Faktorer_andre!I14) -> god | K18: 0 | L18: =IF(areal_2>0,100-SUM(E18:K18),0) -> 0 | M18: =IF(L18>0," % mangler",IF(L18=0,0,"----Over 100% blir feil!!!")) -> 0
A19: =IF($B$46=1,Faktorer_bolig!A15,Faktorer_andre!A15) -> 0 | C19: =IF($B$46=1,Faktorer_bolig!B15,Faktorer_andre!B15) -> Tilst/egnethet; | D19: =IF($B$46=1,Faktorer_bolig!C15,Faktorer_andre!C15) -> slitt/dårl | E19: 0 | F19: =IF($B$46=1,Faktorer_bolig!E15,Faktorer_andre!E15) -> brukbar | G19: 0 | H19: =IF($B$46=1,Faktorer_bolig!G15,Faktorer_andre!G15) -> bra | I19: 0 | J19: =IF($B$46=1,Faktorer_bolig!I15,Faktorer_andre!I15) -> svært god | K19: 0 | L19: =IF(areal_2>0,100-SUM(E19:K19),0) -> 0 | M19: 0
A20: =IF($B$46=1,Faktorer_bolig!A16,Faktorer_andre!A16) -> Kjørebro/ mesanin | B20: 0 | C20: =IF($B$46=1,Faktorer_bolig!B16,Faktorer_andre!B16) -> Arealbruk i %; | D20: =IF($B$46=1,Faktorer_bolig!C16,Faktorer_andre!C16) -> svak/uegnet | E20: 0 | F20: =IF($B$46=1,Faktorer_bolig!E16,Faktorer_andre!E16) -> lettlager | G20: 0 | H20: =IF($B$46=1,Faktorer_bolig!G16,Faktorer_andre!G16) -> vanl. bruksareal | I20: 0 | J20: =IF($B$46=1,Faktorer_bolig!I16,Faktorer_andre!I16) -> 0 | K20: 0 | L20: =IF($B$20>0,100-SUM(E20:K20),0) -> 0 | M20: =IF(L20>0," % mangler",IF(L20=0,0,"----Over 100% blir feil!!!")) -> 0
A21: =IF($B$46=1,Faktorer_bolig!A17,Faktorer_andre!A17) -> 0 | B21: =IF(AND(B20=0,SUM(E20:E22,G20:G22,I20:I22,K21:K22)>0),"Har du glemt arealet ?","") ->  | C21: =IF($B$46=1,Faktorer_bolig!B17,Faktorer_andre!B17) -> Etasjestd i %; | D21: =IF($B$46=1,Faktorer_bolig!C17,Faktorer_andre!C17) -> lav | E21: 0 | F21: =IF($B$46=1,Faktorer_bolig!E17,Faktorer_andre!E17) -> enkel | G21: 0 | H21: =IF($B$46=1,Faktorer_bolig!G17,Faktorer_andre!G17) -> bra | I21: 0 | J21: =IF($B$46=1,Faktorer_bolig!I17,Faktorer_andre!I17) -> god | K21: 0 | L21: =IF($B$20>0,100-SUM(E21:K21),0) -> 0 | M21: 0
A22: =IF($B$46=1,Faktorer_bolig!A18,Faktorer_andre!A18) -> 0 | C22: =IF($B$46=1,Faktorer_bolig!B18,Faktorer_andre!B18) -> Tilst/egnethet; | D22: =IF($B$46=1,Faktorer_bolig!C18,Faktorer_andre!C18) -> slitt/dårl | E22: 0 | F22: =IF($B$46=1,Faktorer_bolig!E18,Faktorer_andre!E18) -> brukbar | G22: 0 | H22: =IF($B$46=1,Faktorer_bolig!G18,Faktorer_andre!G18) -> bra | I22: 0 | J22: =IF($B$46=1,Faktorer_bolig!I18,Faktorer_andre!I18) -> svært god | K22: 0 | L22: 0 | M22: 0
A23: =Faktorer_bolig!A19 -> Enkel bolig | B23: 0 | C23: =Faktorer_bolig!A19 -> Enkel bolig | D23: =Faktorer_bolig!C19 -> svak/uinnr. | E23: 0 | F23: =Faktorer_bolig!E19 -> enkel | G23: 0 | H23: =Faktorer_bolig!G19 -> vanlig | I23: 0 | J23: =Faktorer_bolig!I19 -> 0 | K23: 0 | L23: =IF($B$23>0,100-SUM(E23:K23),0) -> 0 | M23: =IF(L23>0," % mangler","") -> 
A24: =Faktorer_bolig!A20 -> Enkel bolig | C24: =Faktorer_bolig!B20 -> Etasjestd %; | D24: =Faktorer_bolig!C20 -> lav | E24: 0 | F24: =Faktorer_bolig!E20 -> bra | G24: 0 | H24: =Faktorer_bolig!G20 -> god | I24: 0 | J24: =Faktorer_bolig!I20 -> topp | K24: 0 | L24: =IF($B$23>0,100-SUM(E24:K24),0) -> 0 | M24: =IF(L24>0," % mangler","") -> 
A25: =Faktorer_bolig!A21 -> Enkel bolig | C25: =Faktorer_bolig!B21 -> Tilst/egn; | D25: =Faktorer_bolig!C21 -> slitt/dårl | E25: 0 | F25: =Faktorer_bolig!E21 -> brukbar | G25: 0 | H25: =Faktorer_bolig!G21 -> bra | I25: 0 | J25: =Faktorer_bolig!I21 -> sv. god | K25: 0 | L25: =IF($B$23>0,100-SUM(E25:K25),0) -> 0 | M25: =IF(L25>0," % mangler","") -> 
A29: Tomt | B29: =VLOOKUP(A1,'Priser nybygg'!B3:G26,6,FALSE) -> 0 | C29: Verdi for opparbeidet gårdstun og hage | K29: 0
A30: Tomt | C30: Tomt | D30: =Registreringsskjema!B23 -> Vann; | E30: =Registreringsskjema!C23 -> Svært god = 4, god = 3, middels = 2, dårlig = 1 | J30: 0
A31: Tomt | C31: vann og | D31: =Registreringsskjema!B24 -> Avløp; | E31: =Registreringsskjema!C24 -> Svært god = 4, god = 3, middels = 2, dårlig = 1 | J31: 0
A32: Tomt | C32: avløp | D32: =Registreringsskjema!B25 -> Have/tun; | E32: =Registreringsskjema!C25 -> velholdt have/tun = 8, funksjonell beplantet have= 5, alminnelig bra = 3, enkel = 1 | J32: 0 | K32: =SUM(J30:J32) -> 0
A33: Tomt | D33: =Registreringsskjema!B26 -> 0 | E33: =Registreringsskjema!C26 -> 0 | F33: =Registreringsskjema!D26 -> 0 | G33: =Registreringsskjema!E26 -> 0 | H33: =Registreringsskjema!F26 -> 0 | I33: =Registreringsskjema!G26 -> 0 | J33: Ukorrigert verdi | K33: 0
A34: Tomt
A44: =CONCATENATE("Verdiberegning ",'Bygg 1'!A1) -> Verdiberegning X
C45: =IF($B$46=1,"Faktorer_bolig","Faktorer_andre") -> Faktorer_andre
A46: Valgt faktor_ark | B46: =VLOOKUP(A1,'Priser nybygg'!B3:G26,3,FALSE) -> 2
B47: Etasje | D47: Faktor_1 | E47: Andel % | F47: Faktor_2 | G47: Andel % | H47: Faktor_3 | I47: Andel % | J47: Faktor_4 | K47: Andel % | L47: Beregnet faktor
A48: Hustype | B48: Kjeller | C48: Arealtype %; | D48: =IF($B$46=1,Faktorer_bolig!D4,Faktorer_andre!D4) -> 0.1 | E48: ='Bygg 1'!E8 -> 0 | F48: =IF($B$46=1,Faktorer_bolig!F4,Faktorer_andre!F4) -> 0.2 | G48: ='Bygg 1'!G8 -> 0 | H48: =IF($B$46=1,Faktorer_bolig!H4,Faktorer_andre!H4) -> 0.3 | I48: ='Bygg 1'!I8 -> 0 | J48: =IF($B$46=1,Faktorer_bolig!J4,Faktorer_andre!J4) -> 0 | L48: =K48*J48+I48*H48+G48*F48+E48*D48 -> 0
A49: =$A$1 -> X | B49: Kjeller | C49: Etasjestd %; | D49: =IF($B$46=1,Faktorer_bolig!D5,Faktorer_andre!D5) -> 0.4 | E49: ='Bygg 1'!E9 -> 0 | F49: =IF($B$46=1,Faktorer_bolig!F5,Faktorer_andre!F5) -> 0.6 | G49: ='Bygg 1'!G9 -> 0 | H49: =IF($B$46=1,Faktorer_bolig!H5,Faktorer_andre!H5) -> 0.8 | I49: ='Bygg 1'!I9 -> 0 | J49: =IF($B$46=1,Faktorer_bolig!J5,Faktorer_andre!J5) -> 1 | K49: ='Bygg 1'!K9 -> 0 | L49: 0
B50: Kjeller | C50: Tilst/egn; | D50: =IF($B$46=1,Faktorer_bolig!D6,Faktorer_andre!D6) -> 0.4 | E50: ='Bygg 1'!E10 -> 0 | F50: =IF($B$46=1,Faktorer_bolig!F6,Faktorer_andre!F6) -> 0.6 | G50: ='Bygg 1'!G10 -> 0 | H50: =IF($B$46=1,Faktorer_bolig!H6,Faktorer_andre!H6) -> 0.8 | I50: ='Bygg 1'!I10 -> 0 | J50: =IF($B$46=1,Faktorer_bolig!J6,Faktorer_andre!J6) -> 1 | K50: ='Bygg 1'!K10 -> 0 | L50: 0
B51: Sokkel/underetasje | C51: Arealtype %; | D51: =IF($B$46=1,Faktorer_bolig!D7,Faktorer_andre!D7) -> 0.2 | E51: ='Bygg 1'!E11 -> 0 | F51: =IF($B$46=1,Faktorer_bolig!F7,Faktorer_andre!F7) -> 0.35 | G51: ='Bygg 1'!G11 -> 0 | H51: =IF($B$46=1,Faktorer_bolig!H7,Faktorer_andre!H7) -> 0.5 | I51: ='Bygg 1'!I11 -> 0 | J51: =IF($B$46=1,Faktorer_bolig!J7,Faktorer_andre!J7) -> 0 | L51: 0
B52: Sokkel/underetasje | C52: Etasjestd %; | D52: =IF($B$46=1,Faktorer_bolig!D8,Faktorer_andre!D8) -> 0.56 | E52: ='Bygg 1'!E12 -> 0 | F52: =IF($B$46=1,Faktorer_bolig!F8,Faktorer_andre!F8) -> 0.75 | G52: ='Bygg 1'!G12 -> 0 | H52: =IF($B$46=1,Faktorer_bolig!H8,Faktorer_andre!H8) -> 0.87 | I52: ='Bygg 1'!I12 -> 0 | J52: =IF($B$46=1,Faktorer_bolig!J8,Faktorer_andre!J8) -> 1 | K52: ='Bygg 1'!K12 -> 0 | L52: 0
B53: Sokkel/underetasje | C53: Tilst/egn; | D53: =IF($B$46=1,Faktorer_bolig!D9,Faktorer_andre!D9) -> 0.5 | E53: ='Bygg 1'!E13 -> 0 | F53: =IF($B$46=1,Faktorer_bolig!F9,Faktorer_andre!F9) -> 0.65 | G53: ='Bygg 1'!G13 -> 0 | H53: =IF($B$46=1,Faktorer_bolig!H9,Faktorer_andre!H9) -> 0.8 | I53: ='Bygg 1'!I13 -> 0 | J53: =IF($B$46=1,Faktorer_bolig!J9,Faktorer_andre!J9) -> 1 | K53: ='Bygg 1'!K13 -> 0 | L53: 0
B54: 1. etg | C54: Arealtype %; | D54: =IF($B$46=1,Faktorer_bolig!D10,Faktorer_andre!D10) -> 0.4 | E54: ='Bygg 1'!E14 -> 0 | F54: =IF($B$46=1,Faktorer_bolig!F10,Faktorer_andre!F10) -> 0.7 | G54: ='Bygg 1'!G14 -> 0 | H54: =IF($B$46=1,Faktorer_bolig!H10,Faktorer_andre!H10) -> 1 | I54: ='Bygg 1'!I14 -> 0 | J54: =IF($B$46=1,Faktorer_bolig!J10,Faktorer_andre!J10) -> 0 | L54: 0
B55: 1. etg | C55: Etasjestd %; | D55: =IF($B$46=1,Faktorer_bolig!D11,Faktorer_andre!D11) -> 0.56 | E55: ='Bygg 1'!E15 -> 0 | F55: =IF($B$46=1,Faktorer_bolig!F11,Faktorer_andre!F11) -> 0.75 | G55: ='Bygg 1'!G15 -> 0 | H55: =IF($B$46=1,Faktorer_bolig!H11,Faktorer_andre!H11) -> 0.87 | I55: ='Bygg 1'!I15 -> 0 | J55: =IF($B$46=1,Faktorer_bolig!J11,Faktorer_andre!J11) -> 1 | K55: ='Bygg 1'!K15 -> 0 | L55: 0 | M55: Faktorer for etasjestandard brukes til å korrigere verdi i Takst 1! F3
B56: 1. etg | C56: Tilst/egn; | D56: =IF($B$46=1,Faktorer_bolig!D12,Faktorer_andre!D12) -> 0.5 | E56: ='Bygg 1'!E16 -> 0 | F56: =IF($B$46=1,Faktorer_bolig!F12,Faktorer_andre!F12) -> 0.65 | G56: ='Bygg 1'!G16 -> 0 | H56: =IF($B$46=1,Faktorer_bolig!H12,Faktorer_andre!H12) -> 0.8 | I56: ='Bygg 1'!I16 -> 0 | J56: =IF($B$46=1,Faktorer_bolig!J12,Faktorer_andre!J12) -> 1 | K56: ='Bygg 1'!K16 -> 0 | L56: 0
B57: 2.etg | C57: Arealtype %; | D57: =IF($B$46=1,Faktorer_bolig!D13,Faktorer_andre!D13) -> 0.2 | E57: ='Bygg 1'!E17 -> 0 | F57: =IF($B$46=1,Faktorer_bolig!F13,Faktorer_andre!F13) -> 0.4 | G57: ='Bygg 1'!G17 -> 0 | H57: =IF($B$46=1,Faktorer_bolig!H13,Faktorer_andre!H13) -> 0.6 | I57: ='Bygg 1'!I17 -> 0 | J57: =IF($B$46=1,Faktorer_bolig!J13,Faktorer_andre!J13) -> 0 | L57: =I57*H57+G57*F57+E57*D57 -> 0
B58: 2.etg | C58: Etasjestd %; | D58: =IF($B$46=1,Faktorer_bolig!D14,Faktorer_andre!D14) -> 0.56 | E58: ='Bygg 1'!E18 -> 0 | F58: =IF($B$46=1,Faktorer_bolig!F14,Faktorer_andre!F14) -> 0.75 | G58: ='Bygg 1'!G18 -> 0 | H58: =IF($B$46=1,Faktorer_bolig!H14,Faktorer_andre!H14) -> 0.87 | I58: ='Bygg 1'!I18 -> 0 | J58: =IF($B$46=1,Faktorer_bolig!J14,Faktorer_andre!J14) -> 1 | K58: ='Bygg 1'!K18 -> 0 | L58: =K58*J58+I58*H58+G58*F58+E58*D58 -> 0
B59: 2.etg | C59: Tilst/egn; | D59: =IF($B$46=1,Faktorer_bolig!D15,Faktorer_andre!D15) -> 0.5 | E59: ='Bygg 1'!E19 -> 0 | F59: =IF($B$46=1,Faktorer_bolig!F15,Faktorer_andre!F15) -> 0.65 | G59: ='Bygg 1'!G19 -> 0 | H59: =IF($B$46=1,Faktorer_bolig!H15,Faktorer_andre!H15) -> 0.8 | I59: ='Bygg 1'!I19 -> 0 | J59: =IF($B$46=1,Faktorer_bolig!J15,Faktorer_andre!J15) -> 1 | K59: ='Bygg 1'!K19 -> 0 | L59: =K59*J59+I59*H59+G59*F59+E59*D59 -> 0
B60: Mesanin/kjørebro | C60: =IF(ISTEXT(B60),C57,"") -> Arealtype %; | D60: =IF($B$46=1,Faktorer_bolig!D16,Faktorer_andre!D16) -> 0.1 | E60: ='Bygg 1'!E20 -> 0 | F60: =IF($B$46=1,Faktorer_bolig!F16,Faktorer_andre!F16) -> 0.2 | G60: ='Bygg 1'!G20 -> 0 | H60: =IF($B$46=1,Faktorer_bolig!H16,Faktorer_andre!H16) -> 0.3 | I60: ='Bygg 1'!I20 -> 0 | J60: =IF($B$46=1,Faktorer_bolig!J16,Faktorer_andre!J16) -> 0 | L60: =I60*H60+G60*F60+E60*D60 -> 0
B61: Mesanin/kjørebro | C61: Etasjestd %; | D61: =IF($B$46=1,Faktorer_bolig!D17,Faktorer_andre!D17) -> 0.4 | E61: ='Bygg 1'!E21 -> 0 | F61: =IF($B$46=1,Faktorer_bolig!F17,Faktorer_andre!F17) -> 0.6 | G61: ='Bygg 1'!G21 -> 0 | H61: =IF($B$46=1,Faktorer_bolig!H17,Faktorer_andre!H17) -> 0.8 | I61: ='Bygg 1'!I21 -> 0 | J61: =IF($B$46=1,Faktorer_bolig!J17,Faktorer_andre!J17) -> 1 | K61: ='Bygg 1'!K21 -> 0 | L61: =K61*J61+I61*H61+G61*F61+E61*D61 -> 0
B62: Mesanin/kjørebro | C62: Tilst/egn; | D62: =IF($B$46=1,Faktorer_bolig!D18,Faktorer_andre!D18) -> 0.4 | E62: ='Bygg 1'!E22 -> 0 | F62: =IF($B$46=1,Faktorer_bolig!F18,Faktorer_andre!F18) -> 0.6 | G62: ='Bygg 1'!G22 -> 0 | H62: =IF($B$46=1,Faktorer_bolig!H18,Faktorer_andre!H18) -> 0.8 | I62: ='Bygg 1'!I22 -> 0 | J62: =IF($B$46=1,Faktorer_bolig!J18,Faktorer_andre!J18) -> 1 | K62: ='Bygg 1'!K22 -> 0 | L62: =K62*J62+I62*H62+G62*F62+E62*D62 -> 0
B63: Enkel Bolig | C63: Arealtype %; | D63: =IF(A64="Bolig",Faktorer_bolig!D19,Faktorer_andre!D19) -> 0 | E63: ='Bygg 1'!E23 -> 0 | F63: =IF($A64="Bolig",Faktorer_bolig!F19,Faktorer_andre!F19) -> 0 | G63: ='Bygg 1'!G23 -> 0 | H63: =IF($A64="Bolig",Faktorer_bolig!H19,Faktorer_andre!H19) -> 0 | I63: ='Bygg 1'!I23 -> 0 | J63: =IF($B$46=1,Faktorer_bolig!J19,Faktorer_andre!J19) -> 0 | L63: =I63*H63+G63*F63+E63*D63 -> 0
B64: Enkel Bolig | C64: Etasjestd %; | D64: =IF(A65="Bolig",Faktorer_bolig!D20,Faktorer_andre!E20) -> 0 | E64: ='Bygg 1'!E24 -> 0 | F64: =IF($A65="Bolig",Faktorer_bolig!F20,Faktorer_andre!G20) -> 0 | G64: ='Bygg 1'!G24 -> 0 | H64: =IF($A65="Bolig",Faktorer_bolig!H20,Faktorer_andre!I20) -> 0 | I64: ='Bygg 1'!I24 -> 0 | J64: =IF($B$46=1,Faktorer_bolig!J20,Faktorer_andre!K20) -> 0 | K64: ='Bygg 1'!K24 -> 0 | L64: =K64*J64+I64*H64+G64*F64+E64*D64 -> 0
B65: Enkel Bolig | C65: Tilst/egn; | D65: =IF(A66="Bolig",Faktorer_bolig!D21,Faktorer_andre!E21) -> 0 | E65: ='Bygg 1'!E25 -> 0 | F65: =IF($A66="Bolig",Faktorer_bolig!F21,Faktorer_andre!G21) -> 0 | G65: ='Bygg 1'!G25 -> 0 | H65: =IF($A66="Bolig",Faktorer_bolig!H21,Faktorer_andre!I21) -> 0 | I65: ='Bygg 1'!I25 -> 0 | J65: =IF($B$46=1,Faktorer_bolig!J21,Faktorer_andre!K21) -> 0 | K65: ='Bygg 1'!K25 -> 0 | L65: =K65*J65+I65*H65+G65*F65+E65*D65 -> 0
C67: Pris nytt bygg | D67: =IF(A68="Bolig",Faktorer_bolig!D22,Faktorer_andre!D19) -> 0 | F67: =IF(C67="Bolig",Faktorer_bolig!F22,Faktorer_andre!F19) -> 0 | H67: =IF('Takst 1'!E3="Bolig",Faktorer_bolig!H22,Faktorer_andre!H19) -> 0 | L67: =VLOOKUP(A1,Pris_tabell_nytt,2,FALSE) -> 0
A68: =$A$1 -> X | D68: =Faktorer_bolig!N3 -> Kjeller | E68: =Faktorer_bolig!O3 -> undertasje | F68: =Faktorer_bolig!P3 -> 1 etg | G68: =Faktorer_bolig!Q3 -> 2.etg | H68: =Faktorer_bolig!S3 -> 0 | I68: =Faktorer_bolig!T3 -> 0
C69: Vektet etasjeareal | D69: =IF($B$46=1,Faktorer_bolig!N4,Faktorer_andre!M4) -> 0.3 | E69: =IF($B$46=1,Faktorer_bolig!O4,Faktorer_andre!N4) -> 0.5 | F69: =IF($B$46=1,Faktorer_bolig!P4,Faktorer_andre!O4) -> 1 | G69: =IF($B$46=1,Faktorer_bolig!Q4,Faktorer_andre!P4) -> 0.6 | H69: =IF($B$46=1,Faktorer_bolig!R4,Faktorer_andre!I25) -> 0 | I69: =IF($B$46=1,Faktorer_bolig!S4,Faktorer_andre!J25) -> 0 | L69: =areal_k*D69+areal_u*E69+areal_1*F69+areal_2*G69+B20*H69+B23*I69 -> 0
A70: =$A$1 -> X | C70: Korreksjon for størrelse | G70: fra | H70: =IF($B$46=1,Faktorer_bolig!N15,Faktorer_andre!M18) -> 3000 | I70: m2 til | J70: =IF($B$46=1,Faktorer_bolig!P15,Faktorer_andre!O18) -> 4000 | K70: =IF($B$46=1,Max_areal_korr_1,Max_areal_korr_2) -> 100 | L70: =MAX(MIN(100-(L69-H70)/(J70-H70)*(100-K70),100),K70) -> 100 | M70: Brukes som utgangspunkt for korreksjon av størrelse
A71: X
A72: X | C72: Nedskrevet verdi etter påkostning i %; min 50% | J72: Korr pga alder/restverdi | K72: =IF(År_siden_ombygg>0,1,0) -> 0 | L72: =MAX(Faktor_alder,faktor_Minste_restverdi) ->  | M72: Brukes til å beregne trekk for alder i "Takst" celle G44
A73: X | C73: Korr. vedl.h/egnet. Grunnlag "Normale byggekostnader" fra "Teknisk verdiberegning" | I73: Korrigert restverdi pga tilstand egnethet | L73: =(areal_k*L50+areal_u*L53+areal_1*L56+areal_2*L59+B20*L62+B23*L65)/(areal_k+areal_u+areal_1+areal_2+B20+B23) -> 
A74: X | C74: Tomt | K74: Ekstra tomteverdi /bostedstillegg | L74: =K33*K32/16 -> 0
A75: X
K77: Bygg type | L77: =A1 -> X
K78: Valgt avskrivningskurvve | L78: =VLOOKUP(L77,'Priser nybygg'!B3:F38,4,FALSE) -> 3
K79: Valgt sats | L79: =HLOOKUP($L$78,Nedskriving!$J$1:$L$4,3) -> 2.25
K80: Minste restverdi | L80: =HLOOKUP($L$78,Nedskriving!$J$1:$L$4,4) -> 20
L81: m2 | M81: år | N81: Faktor | O81: Faktor x m2
K82: Areal av opprinnelig del som ikke er pusset opp | L82: =G2*(1-prosent_oppgradering_1/100) -> 0 | M82: =MIN(J2-E2,397) -> 397 | N82: =VLOOKUP(M82,Nedskriving!$A$4:$G$400,$L$78+4,FALSE) -> 20 | O82: =L82*N82 -> 0
K83: Opprinnelig hus pusset opp | L83: =IF(E3>E4,G2*prosent_oppgradering_1/100,G2*prosent_oppgradering_1/100) -> 0 | M83: =IF(E4>0,J2-E4,0) -> 0 | N83: =IF(M83>0,VLOOKUP(M83,Nedskriving!$A$4:$G$119,$L$78+4,FALSE),0) -> 0 | O83: =L83*N83 -> 0
K84: Areal av TILBYGG som er pusset opp | L84: =IF(E4>E3,G3*prosent_oppgradering_1/100,0) -> 0 | M84: =IF(E3=0,0,IF(L84>0,J2-E4,J2-E3)) -> 0 | N84: =IF(M84>0,VLOOKUP(M84,Nedskriving!$A$4:$G$119,$L$78+4,FALSE),0) -> 0 | O84: =L84*N84 -> 0
K85: Tilbygg ikke pusset opp | L85: =G3-L84 -> 0 | M85: =IF(E3=0,0,(J2-E3)) -> 0 | N85: =IF(M85>0,VLOOKUP(M85,Nedskriving!$A$4:$G$119,$L$78+4,FALSE),0) -> 0 | O85: =L85*N85 -> 0
K86: Sum | L86: =SUM(L82:L85) -> 0 | O86: =SUM(O82:O85) -> 0
K87: Beregnet veid faktor for nedskriving pga alder | L87: =O86/L86 -> 
C91: Bygningens alder | D91: =J2-E2 -> 2022
C94: =A1 -> X | D94: ='Takst 1'!L32 -> 0
C95: Sum takst | D95: ='SUM pr bygg'!G11 -> 0

Sheet Bygg 2
A1: X
D2: Byggeår; | E2: 0 | F2: Grunnflate; | G2: 0 | I2: Befaring år; | J2: =YEAR(TODAY()) -> 2022
C3: Tilbygg; | D3: År; | E3: 0 | G3: 0
C4: Ombygd | D4: År; | E4: 0 | H4: Korrigert pga oppgradering; | J4: 0
J5: tak max 10 %
B7: Areal
A8: =IF($B$45=1,Faktorer_bolig!A4,Faktorer_andre!A4) -> Kjeller: | B8: 0 | C8: =IF($B$45=1,Faktorer_bolig!B4,Faktorer_andre!B4) -> Arealbruk i %; | D8: =IF($B$45=1,Faktorer_bolig!C4,Faktorer_andre!C4) -> svak/uinnr. | E8: 0 | F8: =IF($B$45=1,Faktorer_bolig!E4,Faktorer_andre!E4) -> enkel lagerkjeller | G8: 0 | H8: =IF($B$45=1,Faktorer_bolig!G4,Faktorer_andre!G4) -> vanl. bruksareal | I8: 0 | J8: =IF($B$45=1,Faktorer_bolig!I4,Faktorer_andre!I4) -> 0 | K8: 0 | L8: =IF(areal_k>0,100-SUM(E8:K8),0) -> 0 | M8: =IF(L8>0," % mangler",IF(L8=0,0,"Over 100% blir feil!!!")) -> 0
A9: =IF($B$45=1,Faktorer_bolig!A5,Faktorer_andre!A5) -> 0 | B9: =IF(AND(B8=0,SUM(E8:E10,G8:G10,I8:I10,K9:K10)>0),"Har du glemt arealet ?","") ->  | C9: =IF($B$45=1,Faktorer_bolig!B5,Faktorer_andre!B5) -> Etasjestd i %; | D9: =IF($B$45=1,Faktorer_bolig!C5,Faktorer_andre!C5) -> svak/gråstein | E9: 0 | F9: =IF($B$45=1,Faktorer_bolig!E5,Faktorer_andre!E5) -> enkelt lager | G9: 0 | H9: =IF($B$45=1,Faktorer_bolig!G5,Faktorer_andre!G5) -> bra lagerareal | I9: 0 | J9: =IF($B$45=1,Faktorer_bolig!I5,Faktorer_andre!I5) -> godt bruksareal | K9: 0 | L9: =IF(areal_k>0,100-SUM(E9:K9),0) -> 0 | M9: =IF(L9>0," % mangler",IF(L9=0,0,"Over 100% blir feil!!!")) -> 0 | N9: 0 | O9: 0 | P9: 0 | Q9: 0 | R9: 0 | S9: 0 | T9: 0 | U9: 0 | V9: 0 | W9: 0 | X9: 0 | Y9: 0 | Z9: 0 | AA9: 0 | AB9: 0 | AC9: 0 | AD9: 0 | AE9: 0 | AF9: 0 | AG9: 0 | AH9: 0 | AI9: 0 | AJ9: 0 | AK9: 0 | AL9: 0 | AM9: 0 | AN9: 0 | AO9: 0 | AP9: 0 | AQ9: 0 | AR9: 0 | AS9: 0 | AT9: 0 | AU9: 0 | AV9: 0 | AW9: 0 | AX9: 0 | AY9: 0 | AZ9: 0 | BA9: 0 | BB9: 0 | BC9: 0 | BD9: 0 | BE9: 0 | BF9: 0 | BG9: 0 | BH9: 0 | BI9: 0 | BJ9: 0 | BK9: 0 | BL9: 0 | BM9: 0 | BN9: 0 | BO9: 0 | BP9: 0 | BQ9: 0 | BR9: 0 | BS9: 0 | BT9: 0 | BU9: 0 | BV9: 0 | BW9: 0 | BX9: 0 | BY9: 0 | BZ9: 0 | CA9: 0 | CB9: 0 | CC9: 0 | CD9: 0 | CE9: 0 | CF9: 0 | CG9: 0 | CH9: 0 | CI9: 0 | CJ9: 0 | CK9: 0 | CL9: 0 | CM9: 0 | CN9: 0 | CO9: 0 | CP9: 0 | CQ9: 0 | CR9: 0 | CS9: 0 | CT9: 0 | CU9: 0 | CV9: 0 | CW9: 0 | CX9: 0 | CY9: 0 | CZ9: 0 | DA9: 0 | DB9: 0 | DC9: 0 | DD9: 0 | DE9: 0 | DF9: 0 | DG9: 0 | DH9: 0 | DI9: 0 | DJ9: 0 | DK9: 0 | DL9: 0 | DM9: 0 | DN9: 0 | DO9: 0 | DP9: 0 | DQ9: 0 | DR9: 0 | DS9: 0 | DT9: 0 | DU9: 0 | DV9: 0 | DW9: 0 | DX9: 0 | DY9: 0 | DZ9: 0 | EA9: 0 | EB9: 0 | EC9: 0 | ED9: 0 | EE9: 0 | EF9: 0 | EG9: 0 | EH9: 0 | EI9: 0 | EJ9: 0 | EK9: 0 | EL9: 0 | EM9: 0 | EN9: 0 | EO9: 0 | EP9: 0 | EQ9: 0 | ER9: 0 | ES9: 0 | ET9: 0 | EU9: 0 | EV9: 0 | EW9: 0 | EX9: 0 | EY9: 0 | EZ9: 0 | FA9: 0 | FB9: 0 | FC9: 0 | FD9: 0 | FE9: 0 | FF9: 0 | FG9: 0 | FH9: 0 | FI9: 0 | FJ9: 0 | FK9: 0 | FL9: 0 | FM9: 0 | FN9: 0 | FO9: 0 | FP9: 0 | FQ9: 0 | FR9: 0 | FS9: 0 | FT9: 0 | FU9: 0 | FV9: 0 | FW9: 0 | FX9: 0 | FY9: 0 | FZ9: 0 | GA9: 0 | GB9: 0 | GC9: 0 | GD9: 0 | GE9: 0 | GF9: 0 | GG9: 0 | GH9: 0 | GI9: 0 | GJ9: 0 | GK9: 0 | GL9: 0 | GM9: 0 | GN9: 0 | GO9: 0 | GP9: 0 | GQ9: 0 | GR9: 0 | GS9: 0 | GT9: 0 | GU9: 0 | GV9: 0 | GW9: 0 | GX9: 0 | GY9: 0 | GZ9: 0 | HA9: 0 | HB9: 0 | HC9: 0 | HD9: 0 | HE9: 0 | HF9: 0 | HG9: 0 | HH9: 0 | HI9: 0 | HJ9: 0 | HK9: 0 | HL9: 0 | HM9: 0 | HN9: 0 | HO9: 0 | HP9: 0 | HQ9: 0 | HR9: 0 | HS9: 0 | HT9: 0 | HU9: 0 | HV9: 0 | HW9: 0 | HX9: 0 | HY9: 0 | HZ9: 0 | IA9: 0 | IB9: 0 | IC9: 0 | ID9: 0 | IE9: 0 | IF9: 0 | IG9: 0 | IH9: 0 | II9: 0 | IJ9: 0 | IK9: 0 | IL9: 0 | IM9: 0 | IN9: 0 | IO9: 0 | IP9: 0 | IQ9: 0 | IR9: 0 | IS9: 0 | IT9: 0 | IU9: 0 | IV9: 0 | IW9: 0 | IX9: 0 | IY9: 0 | IZ9: 0
A10: =IF($B$45=1,Faktorer_bolig!A6,Faktorer_andre!A6) -> 0 | C10: =IF($B$45=1,Faktorer_bolig!B6,Faktorer_andre!B6) -> Tilst/egnethet; | D10: =IF($B$45=1,Faktorer_bolig!C6,Faktorer_andre!C6) -> slitt/dårlig | E10: 0 | F10: =IF($B$45=1,Faktorer_bolig!E6,Faktorer_andre!E6) -> brukbar | G10: 0 | H10: =IF($B$45=1,Faktorer_bolig!G6,Faktorer_andre!G6) -> bra | I10: 0 | J10: =IF($B$45=1,Faktorer_bolig!I6,Faktorer_andre!I6) -> svært god | K10: 0 | L10: =IF(areal_k>0,100-SUM(E10:K10),0) -> 0 | M10: =IF(L10>0," % mangler",IF(L10=0,0,"----Over 100% blir feil!!!")) -> 0 | N10: 0 | O10: 0 | P10: 0 | Q10: 0 | R10: 0 | S10: 0 | T10: 0 | U10: 0 | V10: 0 | W10: 0 | X10: 0 | Y10: 0 | Z10: 0 | AA10: 0 | AB10: 0 | AC10: 0 | AD10: 0 | AE10: 0 | AF10: 0 | AG10: 0 | AH10: 0 | AI10: 0 | AJ10: 0 | AK10: 0 | AL10: 0 | AM10: 0 | AN10: 0 | AO10: 0 | AP10: 0 | AQ10: 0 | AR10: 0 | AS10: 0 | AT10: 0 | AU10: 0 | AV10: 0 | AW10: 0 | AX10: 0 | AY10: 0 | AZ10: 0 | BA10: 0 | BB10: 0 | BC10: 0 | BD10: 0 | BE10: 0 | BF10: 0 | BG10: 0 | BH10: 0 | BI10: 0 | BJ10: 0 | BK10: 0 | BL10: 0 | BM10: 0 | BN10: 0 | BO10: 0 | BP10: 0 | BQ10: 0 | BR10: 0 | BS10: 0 | BT10: 0 | BU10: 0 | BV10: 0 | BW10: 0 | BX10: 0 | BY10: 0 | BZ10: 0 | CA10: 0 | CB10: 0 | CC10: 0 | CD10: 0 | CE10: 0 | CF10: 0 | CG10: 0 | CH10: 0 | CI10: 0 | CJ10: 0 | CK10: 0 | CL10: 0 | CM10: 0 | CN10: 0 | CO10: 0 | CP10: 0 | CQ10: 0 | CR10: 0 | CS10: 0 | CT10: 0 | CU10: 0 | CV10: 0 | CW10: 0 | CX10: 0 | CY10: 0 | CZ10: 0 | DA10: 0 | DB10: 0 | DC10: 0 | DD10: 0 | DE10: 0 | DF10: 0 | DG10: 0 | DH10: 0 | DI10: 0 | DJ10: 0 | DK10: 0 | DL10: 0 | DM10: 0 | DN10: 0 | DO10: 0 | DP10: 0 | DQ10: 0 | DR10: 0 | DS10: 0 | DT10: 0 | DU10: 0 | DV10: 0 | DW10: 0 | DX10: 0 | DY10: 0 | DZ10: 0 | EA10: 0 | EB10: 0 | EC10: 0 | ED10: 0 | EE10: 0 | EF10: 0 | EG10: 0 | EH10: 0 | EI10: 0 | EJ10: 0 | EK10: 0 | EL10: 0 | EM10: 0 | EN10: 0 | EO10: 0 | EP10: 0 | EQ10: 0 | ER10: 0 | ES10: 0 | ET10: 0 | EU10: 0 | EV10: 0 | EW10: 0 | EX10: 0 | EY10: 0 | EZ10: 0 | FA10: 0 | FB10: 0 | FC10: 0 | FD10: 0 | FE10: 0 | FF10: 0 | FG10: 0 | FH10: 0 | FI10: 0 | FJ10: 0 | FK10: 0 | FL10: 0 | FM10: 0 | FN10: 0 | FO10: 0 | FP10: 0 | FQ10: 0 | FR10: 0 | FS10: 0 | FT10: 0 | FU10: 0 | FV10: 0 | FW10: 0 | FX10: 0 | FY10: 0 | FZ10: 0 | GA10: 0 | GB10: 0 | GC10: 0 | GD10: 0 | GE10: 0 | GF10: 0 | GG10: 0 | GH10: 0 | GI10: 0 | GJ10: 0 | GK10: 0 | GL10: 0 | GM10: 0 | GN10: 0 | GO10: 0 | GP10: 0 | GQ10: 0 | GR10: 0 | GS10: 0 | GT10: 0 | GU10: 0 | GV10: 0 | GW10: 0 | GX10: 0 | GY10: 0 | GZ10: 0 | HA10: 0 | HB10: 0 | HC10: 0 | HD10: 0 | HE10: 0 | HF10: 0 | HG10: 0 | HH10: 0 | HI10: 0 | HJ10: 0 | HK10: 0 | HL10: 0 | HM10: 0 | HN10: 0 | HO10: 0 | HP10: 0 | HQ10: 0 | HR10: 0 | HS10: 0 | HT10: 0 | HU10: 0 | HV10: 0 | HW10: 0 | HX10: 0 | HY10: 0 | HZ10: 0 | IA10: 0 | IB10: 0 | IC10: 0 | ID10: 0 | IE10: 0 | IF10: 0 | IG10: 0 | IH10: 0 | II10: 0 | IJ10: 0 | IK10: 0 | IL10: 0 | IM10: 0 | IN10: 0 | IO10: 0 | IP10: 0 | IQ10: 0 | IR10: 0 | IS10: 0 | IT10: 0 | IU10: 0 | IV10: 0 | IW10: 0 | IX10: 0 | IY10: 0 | IZ10: 0
A11: =IF($B$45=1,Faktorer_bolig!A7,Faktorer_andre!A7) -> Sokkel/underetg: | B11: 0 | C11: =IF($B$45=1,Faktorer_bolig!B7,Faktorer_andre!B7) -> Arealbruk i %; | D11: =IF($B$45=1,Faktorer_bolig!C7,Faktorer_andre!C7) -> svak/uegnet | E11: 0 | F11: =IF($B$45=1,Faktorer_bolig!E7,Faktorer_andre!E7) -> enkelt lagerareal | G11: 0 | H11: =IF($B$45=1,Faktorer_bolig!G7,Faktorer_andre!G7) -> vanl. bruksareal | I11: 0 | J11: =IF($B$45=1,Faktorer_bolig!I7,Faktorer_andre!I7) -> 0 | K11: 0 | L11: =IF(areal_u>0,100-SUM(E11:K11),0) -> 0 | M11: =IF(L11>0," % mangler",IF(L11=0,0,"----Over 100% blir feil!!!")) -> 0 | N11: 0 | O11: 0 | P11: 0 | Q11: 0 | R11: 0 | S11: 0 | T11: 0 | U11: 0 | V11: 0 | W11: 0 | X11: 0 | Y11: 0 | Z11: 0 | AA11: 0 | AB11: 0 | AC11: 0 | AD11: 0 | AE11: 0 | AF11: 0 | AG11: 0 | AH11: 0 | AI11: 0 | AJ11: 0 | AK11: 0 | AL11: 0 | AM11: 0 | AN11: 0 | AO11: 0 | AP11: 0 | AQ11: 0 | AR11: 0 | AS11: 0 | AT11: 0 | AU11: 0 | AV11: 0 | AW11: 0 | AX11: 0 | AY11: 0 | AZ11: 0 | BA11: 0 | BB11: 0 | BC11: 0 | BD11: 0 | BE11: 0 | BF11: 0 | BG11: 0 | BH11: 0 | BI11: 0 | BJ11: 0 | BK11: 0 | BL11: 0 | BM11: 0 | BN11: 0 | BO11: 0 | BP11: 0 | BQ11: 0 | BR11: 0 | BS11: 0 | BT11: 0 | BU11: 0 | BV11: 0 | BW11: 0 | BX11: 0 | BY11: 0 | BZ11: 0 | CA11: 0 | CB11: 0 | CC11: 0 | CD11: 0 | CE11: 0 | CF11: 0 | CG11: 0 | CH11: 0 | CI11: 0 | CJ11: 0 | CK11: 0 | CL11: 0 | CM11: 0 | CN11: 0 | CO11: 0 | CP11: 0 | CQ11: 0 | CR11: 0 | CS11: 0 | CT11: 0 | CU11: 0 | CV11: 0 | CW11: 0 | CX11: 0 | CY11: 0 | CZ11: 0 | DA11: 0 | DB11: 0 | DC11: 0 | DD11: 0 | DE11: 0 | DF11: 0 | DG11: 0 | DH11: 0 | DI11: 0 | DJ11: 0 | DK11: 0 | DL11: 0 | DM11: 0 | DN11: 0 | DO11: 0 | DP11: 0 | DQ11: 0 | DR11: 0 | DS11: 0 | DT11: 0 | DU11: 0 | DV11: 0 | DW11: 0 | DX11: 0 | DY11: 0 | DZ11: 0 | EA11: 0 | EB11: 0 | EC11: 0 | ED11: 0 | EE11: 0 | EF11: 0 | EG11: 0 | EH11: 0 | EI11: 0 | EJ11: 0 | EK11: 0 | EL11: 0 | EM11: 0 | EN11: 0 | EO11: 0 | EP11: 0 | EQ11: 0 | ER11: 0 | ES11: 0 | ET11: 0 | EU11: 0 | EV11: 0 | EW11: 0 | EX11: 0 | EY11: 0 | EZ11: 0 | FA11: 0 | FB11: 0 | FC11: 0 | FD11: 0 | FE11: 0 | FF11: 0 | FG11: 0 | FH11: 0 | FI11: 0 | FJ11: 0 | FK11: 0 | FL11: 0 | FM11: 0 | FN11: 0 | FO11: 0 | FP11: 0 | FQ11: 0 | FR11: 0 | FS11: 0 | FT11: 0 | FU11: 0 | FV11: 0 | FW11: 0 | FX11: 0 | FY11: 0 | FZ11: 0 | GA11: 0 | GB11: 0 | GC11: 0 | GD11: 0 | GE11: 0 | GF11: 0 | GG11: 0 | GH11: 0 | GI11: 0 | GJ11: 0 | GK11: 0 | GL11: 0 | GM11: 0 | GN11: 0 | GO11: 0 | GP11: 0 | GQ11: 0 | GR11: 0 | GS11: 0 | GT11: 0 | GU11: 0 | GV11: 0 | GW11: 0 | GX11: 0 | GY11: 0 | GZ11: 0 | HA11: 0 | HB11: 0 | HC11: 0 | HD11: 0 | HE11: 0 | HF11: 0 | HG11: 0 | HH11: 0 | HI11: 0 | HJ11: 0 | HK11: 0 | HL11: 0 | HM11: 0 | HN11: 0 | HO11: 0 | HP11: 0 | HQ11: 0 | HR11: 0 | HS11: 0 | HT11: 0 | HU11: 0 | HV11: 0 | HW11: 0 | HX11: 0 | HY11: 0 | HZ11: 0 | IA11: 0 | IB11: 0 | IC11: 0 | ID11: 0 | IE11: 0 | IF11: 0 | IG11: 0 | IH11: 0 | II11: 0 | IJ11: 0 | IK11: 0 | IL11: 0 | IM11: 0 | IN11: 0 | IO11: 0 | IP11: 0 | IQ11: 0 | IR11: 0 | IS11: 0 | IT11: 0 | IU11: 0 | IV11: 0 | IW11: 0 | IX11: 0 | IY11: 0 | IZ11: 0
A12: =IF($B$45=1,Faktorer_bolig!A8,Faktorer_andre!A8) -> 0 | B12: =IF(AND(A11=0,SUM(E11:E13,G11:G13,I11:I13,K12:K13)>0),"Har du glemt arealet ?","") ->  | C12: =IF($B$45=1,Faktorer_bolig!B8,Faktorer_andre!B8) -> Etasjestd i %; | D12: =IF($B$45=1,Faktorer_bolig!C8,Faktorer_andre!C8) -> lav/uinnredet | E12: 0 | F12: =IF($B$45=1,Faktorer_bolig!E8,Faktorer_andre!E8) -> enkel | G12: 0 | H12: =IF($B$45=1,Faktorer_bolig!G8,Faktorer_andre!G8) -> bra | I12: 0 | J12: =IF($B$45=1,Faktorer_bolig!I8,Faktorer_andre!I8) -> god | K12: 0 | L12: =IF(areal_u>0,100-SUM(E12:K12),0) -> 0 | M12: 0 | N12: 0 | O12: 0 | P12: 0 | Q12: 0 | R12: 0 | S12: 0 | T12: 0 | U12: 0 | V12: 0 | W12: 0 | X12: 0 | Y12: 0 | Z12: 0 | AA12: 0 | AB12: 0 | AC12: 0 | AD12: 0 | AE12: 0 | AF12: 0 | AG12: 0 | AH12: 0 | AI12: 0 | AJ12: 0 | AK12: 0 | AL12: 0 | AM12: 0 | AN12: 0 | AO12: 0 | AP12: 0 | AQ12: 0 | AR12: 0 | AS12: 0 | AT12: 0 | AU12: 0 | AV12: 0 | AW12: 0 | AX12: 0 | AY12: 0 | AZ12: 0 | BA12: 0 | BB12: 0 | BC12: 0 | BD12: 0 | BE12: 0 | BF12: 0 | BG12: 0 | BH12: 0 | BI12: 0 | BJ12: 0 | BK12: 0 | BL12: 0 | BM12: 0 | BN12: 0 | BO12: 0 | BP12: 0 | BQ12: 0 | BR12: 0 | BS12: 0 | BT12: 0 | BU12: 0 | BV12: 0 | BW12: 0 | BX12: 0 | BY12: 0 | BZ12: 0 | CA12: 0 | CB12: 0 | CC12: 0 | CD12: 0 | CE12: 0 | CF12: 0 | CG12: 0 | CH12: 0 | CI12: 0 | CJ12: 0 | CK12: 0 | CL12: 0 | CM12: 0 | CN12: 0 | CO12: 0 | CP12: 0 | CQ12: 0 | CR12: 0 | CS12: 0 | CT12: 0 | CU12: 0 | CV12: 0 | CW12: 0 | CX12: 0 | CY12: 0 | CZ12: 0 | DA12: 0 | DB12: 0 | DC12: 0 | DD12: 0 | DE12: 0 | DF12: 0 | DG12: 0 | DH12: 0 | DI12: 0 | DJ12: 0 | DK12: 0 | DL12: 0 | DM12: 0 | DN12: 0 | DO12: 0 | DP12: 0 | DQ12: 0 | DR12: 0 | DS12: 0 | DT12: 0 | DU12: 0 | DV12: 0 | DW12: 0 | DX12: 0 | DY12: 0 | DZ12: 0 | EA12: 0 | EB12: 0 | EC12: 0 | ED12: 0 | EE12: 0 | EF12: 0 | EG12: 0 | EH12: 0 | EI12: 0 | EJ12: 0 | EK12: 0 | EL12: 0 | EM12: 0 | EN12: 0 | EO12: 0 | EP12: 0 | EQ12: 0 | ER12: 0 | ES12: 0 | ET12: 0 | EU12: 0 | EV12: 0 | EW12: 0 | EX12: 0 | EY12: 0 | EZ12: 0 | FA12: 0 | FB12: 0 | FC12: 0 | FD12: 0 | FE12: 0 | FF12: 0 | FG12: 0 | FH12: 0 | FI12: 0 | FJ12: 0 | FK12: 0 | FL12: 0 | FM12: 0 | FN12: 0 | FO12: 0 | FP12: 0 | FQ12: 0 | FR12: 0 | FS12: 0 | FT12: 0 | FU12: 0 | FV12: 0 | FW12: 0 | FX12: 0 | FY12: 0 | FZ12: 0 | GA12: 0 | GB12: 0 | GC12: 0 | GD12: 0 | GE12: 0 | GF12: 0 | GG12: 0 | GH12: 0 | GI12: 0 | GJ12: 0 | GK12: 0 | GL12: 0 | GM12: 0 | GN12: 0 | GO12: 0 | GP12: 0 | GQ12: 0 | GR12: 0 | GS12: 0 | GT12: 0 | GU12: 0 | GV12: 0 | GW12: 0 | GX12: 0 | GY12: 0 | GZ12: 0 | HA12: 0 | HB12: 0 | HC12: 0 | HD12: 0 | HE12: 0 | HF12: 0 | HG12: 0 | HH12: 0 | HI12: 0 | HJ12: 0 | HK12: 0 | HL12: 0 | HM12: 0 | HN12: 0 | HO12: 0 | HP12: 0 | HQ12: 0 | HR12: 0 | HS12: 0 | HT12: 0 | HU12: 0 | HV12: 0 | HW12: 0 | HX12: 0 | HY12: 0 | HZ12: 0 | IA12: 0 | IB12: 0 | IC12: 0 | ID12: 0 | IE12: 0 | IF12: 0 | IG12: 0 | IH12: 0 | II12: 0 | IJ12: 0 | IK12: 0 | IL12: 0 | IM12: 0 | IN12: 0 | IO12: 0 | IP12: 0 | IQ12: 0 | IR12: 0 | IS12: 0 | IT12: 0 | IU12: 0 | IV12: 0 | IW12: 0 | IX12: 0 | IY12: 0 | IZ12: 0
A13: =IF($B$45=1,Faktorer_bolig!A9,Faktorer_andre!A9) -> 0 | C13: =IF($B$45=1,Faktorer_bolig!B9,Faktorer_andre!B9) -> Tilst/egnethet; | D13: =IF($B$45=1,Faktorer_bolig!C9,Faktorer_andre!C9) -> slitt/dårl | E13: 0 | F13: =IF($B$45=1,Faktorer_bolig!E9,Faktorer_andre!E9) -> brukbar | G13: 0 | H13: =IF($B$45=1,Faktorer_bolig!G9,Faktorer_andre!G9) -> bra | I13: 0 | J13: =IF($B$45=1,Faktorer_bolig!I9,Faktorer_andre!I9) -> svært god | K13: 0 | L13: =IF(areal_u>0,100-SUM(E13:K13),0) -> 0 | M13: 0 | N13: 0 | O13: 0 | P13: 0 | Q13: 0 | R13: 0 | S13: 0 | T13: 0 | U13: 0 | V13: 0 | W13: 0 | X13: 0 | Y13: 0 | Z13: 0 | AA13: 0 | AB13: 0 | AC13: 0 | AD13: 0 | AE13: 0 | AF13: 0 | AG13: 0 | AH13: 0 | AI13: 0 | AJ13: 0 | AK13: 0 | AL13: 0 | AM13: 0 | AN13: 0 | AO13: 0 | AP13: 0 | AQ13: 0 | AR13: 0 | AS13: 0 | AT13: 0 | AU13: 0 | AV13: 0 | AW13: 0 | AX13: 0 | AY13: 0 | AZ13: 0 | BA13: 0 | BB13: 0 | BC13: 0 | BD13: 0 | BE13: 0 | BF13: 0 | BG13: 0 | BH13: 0 | BI13: 0 | BJ13: 0 | BK13: 0 | BL13: 0 | BM13: 0 | BN13: 0 | BO13: 0 | BP13: 0 | BQ13: 0 | BR13: 0 | BS13: 0 | BT13: 0 | BU13: 0 | BV13: 0 | BW13: 0 | BX13: 0 | BY13: 0 | BZ13: 0 | CA13: 0 | CB13: 0 | CC13: 0 | CD13: 0 | CE13: 0 | CF13: 0 | CG13: 0 | CH13: 0 | CI13: 0 | CJ13: 0 | CK13: 0 | CL13: 0 | CM13: 0 | CN13: 0 | CO13: 0 | CP13: 0 | CQ13: 0 | CR13: 0 | CS13: 0 | CT13: 0 | CU13: 0 | CV13: 0 | CW13: 0 | CX13: 0 | CY13: 0 | CZ13: 0 | DA13: 0 | DB13: 0 | DC13: 0 | DD13: 0 | DE13: 0 | DF13: 0 | DG13: 0 | DH13: 0 | DI13: 0 | DJ13: 0 | DK13: 0 | DL13: 0 | DM13: 0 | DN13: 0 | DO13: 0 | DP13: 0 | DQ13: 0 | DR13: 0 | DS13: 0 | DT13: 0 | DU13: 0 | DV13: 0 | DW13: 0 | DX13: 0 | DY13: 0 | DZ13: 0 | EA13: 0 | EB13: 0 | EC13: 0 | ED13: 0 | EE13: 0 | EF13: 0 | EG13: 0 | EH13: 0 | EI13: 0 | EJ13: 0 | EK13: 0 | EL13: 0 | EM13: 0 | EN13: 0 | EO13: 0 | EP13: 0 | EQ13: 0 | ER13: 0 | ES13: 0 | ET13: 0 | EU13: 0 | EV13: 0 | EW13: 0 | EX13: 0 | EY13: 0 | EZ13: 0 | FA13: 0 | FB13: 0 | FC13: 0 | FD13: 0 | FE13: 0 | FF13: 0 | FG13: 0 | FH13: 0 | FI13: 0 | FJ13: 0 | FK13: 0 | FL13: 0 | FM13: 0 | FN13: 0 | FO13: 0 | FP13: 0 | FQ13: 0 | FR13: 0 | FS13: 0 | FT13: 0 | FU13: 0 | FV13: 0 | FW13: 0 | FX13: 0 | FY13: 0 | FZ13: 0 | GA13: 0 | GB13: 0 | GC13: 0 | GD13: 0 | GE13: 0 | GF13: 0 | GG13: 0 | GH13: 0 | GI13: 0 | GJ13: 0 | GK13: 0 | GL13: 0 | GM13: 0 | GN13: 0 | GO13: 0 | GP13: 0 | GQ13: 0 | GR13: 0 | GS13: 0 | GT13: 0 | GU13: 0 | GV13: 0 | GW13: 0 | GX13: 0 | GY13: 0 | GZ13: 0 | HA13: 0 | HB13: 0 | HC13: 0 | HD13: 0 | HE13: 0 | HF13: 0 | HG13: 0 | HH13: 0 | HI13: 0 | HJ13: 0 | HK13: 0 | HL13: 0 | HM13: 0 | HN13: 0 | HO13: 0 | HP13: 0 | HQ13: 0 | HR13: 0 | HS13: 0 | HT13: 0 | HU13: 0 | HV13: 0 | HW13: 0 | HX13: 0 | HY13: 0 | HZ13: 0 | IA13: 0 | IB13: 0 | IC13: 0 | ID13: 0 | IE13: 0 | IF13: 0 | IG13: 0 | IH13: 0 | II13: 0 | IJ13: 0 | IK13: 0 | IL13: 0 | IM13: 0 | IN13: 0 | IO13: 0 | IP13: 0 | IQ13: 0 | IR13: 0 | IS13: 0 | IT13: 0 | IU13: 0 | IV13: 0 | IW13: 0 | IX13: 0 | IY13: 0 | IZ13: 0
A14: =IF($B$45=1,Faktorer_bolig!A10,Faktorer_andre!A10) -> 1. etg: | B14: 0 | C14: =IF($B$45=1,Faktorer_bolig!B10,Faktorer_andre!B10) -> Arealbruk i %; | D14: =IF($B$45=1,Faktorer_bolig!C10,Faktorer_andre!C10) -> svak/uegnet. | E14: 0 | F14: =IF($B$45=1,Faktorer_bolig!E10,Faktorer_andre!E10) -> enkelt bruksareal | G14: 0 | H14: =IF($B$45=1,Faktorer_bolig!G10,Faktorer_andre!G10) -> vanl. bruksareal | I14: 0 | J14: =IF($B$45=1,Faktorer_bolig!I10,Faktorer_andre!I10) -> 0 | L14: =IF(areal_1>0,100-SUM(E14:K14),0) -> 0 | M14: 0 | N14: 0 | O14: 0 | P14: 0 | Q14: 0 | R14: 0 | S14: 0 | T14: 0 | U14: 0 | V14: 0 | W14: 0 | X14: 0 | Y14: 0 | Z14: 0 | AA14: 0 | AB14: 0 | AC14: 0 | AD14: 0 | AE14: 0 | AF14: 0 | AG14: 0 | AH14: 0 | AI14: 0 | AJ14: 0 | AK14: 0 | AL14: 0 | AM14: 0 | AN14: 0 | AO14: 0 | AP14: 0 | AQ14: 0 | AR14: 0 | AS14: 0 | AT14: 0 | AU14: 0 | AV14: 0 | AW14: 0 | AX14: 0 | AY14: 0 | AZ14: 0 | BA14: 0 | BB14: 0 | BC14: 0 | BD14: 0 | BE14: 0 | BF14: 0 | BG14: 0 | BH14: 0 | BI14: 0 | BJ14: 0 | BK14: 0 | BL14: 0 | BM14: 0 | BN14: 0 | BO14: 0 | BP14: 0 | BQ14: 0 | BR14: 0 | BS14: 0 | BT14: 0 | BU14: 0 | BV14: 0 | BW14: 0 | BX14: 0 | BY14: 0 | BZ14: 0 | CA14: 0 | CB14: 0 | CC14: 0 | CD14: 0 | CE14: 0 | CF14: 0 | CG14: 0 | CH14: 0 | CI14: 0 | CJ14: 0 | CK14: 0 | CL14: 0 | CM14: 0 | CN14: 0 | CO14: 0 | CP14: 0 | CQ14: 0 | CR14: 0 | CS14: 0 | CT14: 0 | CU14: 0 | CV14: 0 | CW14: 0 | CX14: 0 | CY14: 0 | CZ14: 0 | DA14: 0 | DB14: 0 | DC14: 0 | DD14: 0 | DE14: 0 | DF14: 0 | DG14: 0 | DH14: 0 | DI14: 0 | DJ14: 0 | DK14: 0 | DL14: 0 | DM14: 0 | DN14: 0 | DO14: 0 | DP14: 0 | DQ14: 0 | DR14: 0 | DS14: 0 | DT14: 0 | DU14: 0 | DV14: 0 | DW14: 0 | DX14: 0 | DY14: 0 | DZ14: 0 | EA14: 0 | EB14: 0 | EC14: 0 | ED14: 0 | EE14: 0 | EF14: 0 | EG14: 0 | EH14: 0 | EI14: 0 | EJ14: 0 | EK14: 0 | EL14: 0 | EM14: 0 | EN14: 0 | EO14: 0 | EP14: 0 | EQ14: 0 | ER14: 0 | ES14: 0 | ET14: 0 | EU14: 0 | EV14: 0 | EW14: 0 | EX14: 0 | EY14: 0 | EZ14: 0 | FA14: 0 | FB14: 0 | FC14: 0 | FD14: 0 | FE14: 0 | FF14: 0 | FG14: 0 | FH14: 0 | FI14: 0 | FJ14: 0 | FK14: 0 | FL14: 0 | FM14: 0 | FN14: 0 | FO14: 0 | FP14: 0 | FQ14: 0 | FR14: 0 | FS14: 0 | FT14: 0 | FU14: 0 | FV14: 0 | FW14: 0 | FX14: 0 | FY14: 0 | FZ14: 0 | GA14: 0 | GB14: 0 | GC14: 0 | GD14: 0 | GE14: 0 | GF14: 0 | GG14: 0 | GH14: 0 | GI14: 0 | GJ14: 0 | GK14: 0 | GL14: 0 | GM14: 0 | GN14: 0 | GO14: 0 | GP14: 0 | GQ14: 0 | GR14: 0 | GS14: 0 | GT14: 0 | GU14: 0 | GV14: 0 | GW14: 0 | GX14: 0 | GY14: 0 | GZ14: 0 | HA14: 0 | HB14: 0 | HC14: 0 | HD14: 0 | HE14: 0 | HF14: 0 | HG14: 0 | HH14: 0 | HI14: 0 | HJ14: 0 | HK14: 0 | HL14: 0 | HM14: 0 | HN14: 0 | HO14: 0 | HP14: 0 | HQ14: 0 | HR14: 0 | HS14: 0 | HT14: 0 | HU14: 0 | HV14: 0 | HW14: 0 | HX14: 0 | HY14: 0 | HZ14: 0 | IA14: 0 | IB14: 0 | IC14: 0 | ID14: 0 | IE14: 0 | IF14: 0 | IG14: 0 | IH14: 0 | II14: 0 | IJ14: 0 | IK14: 0 | IL14: 0 | IM14: 0 | IN14: 0 | IO14: 0 | IP14: 0 | IQ14: 0 | IR14: 0 | IS14: 0 | IT14: 0 | IU14: 0 | IV14: 0 | IW14: 0 | IX14: 0 | IY14: 0 | IZ14: 0
A15: =IF($B$45=1,Faktorer_bolig!A11,Faktorer_andre!A11) -> 0 | B15: =IF(AND(A14=0,SUM(E14:E16,G14:G16,I14:I16,K15:K16)>0),"Har du glemt arealet ?","") ->  | C15: =IF($B$45=1,Faktorer_bolig!B11,Faktorer_andre!B11) -> Etasjestd i %; | D15: =IF($B$45=1,Faktorer_bolig!C11,Faktorer_andre!C11) -> lav | E15: 0 | F15: =IF($B$45=1,Faktorer_bolig!E11,Faktorer_andre!E11) -> enkel | G15: 0 | H15: =IF($B$45=1,Faktorer_bolig!G11,Faktorer_andre!G11) -> bra | I15: 0 | J15: =IF($B$45=1,Faktorer_bolig!I11,Faktorer_andre!I11) -> god | K15: 0 | L15: =IF(areal_1>0,100-SUM(E15:K15),0) -> 0 | M15: 0 | N15: 0 | O15: 0 | P15: 0 | Q15: 0 | R15: 0 | S15: 0 | T15: 0 | U15: 0 | V15: 0 | W15: 0 | X15: 0 | Y15: 0 | Z15: 0 | AA15: 0 | AB15: 0 | AC15: 0 | AD15: 0 | AE15: 0 | AF15: 0 | AG15: 0 | AH15: 0 | AI15: 0 | AJ15: 0 | AK15: 0 | AL15: 0 | AM15: 0 | AN15: 0 | AO15: 0 | AP15: 0 | AQ15: 0 | AR15: 0 | AS15: 0 | AT15: 0 | AU15: 0 | AV15: 0 | AW15: 0 | AX15: 0 | AY15: 0 | AZ15: 0 | BA15: 0 | BB15: 0 | BC15: 0 | BD15: 0 | BE15: 0 | BF15: 0 | BG15: 0 | BH15: 0 | BI15: 0 | BJ15: 0 | BK15: 0 | BL15: 0 | BM15: 0 | BN15: 0 | BO15: 0 | BP15: 0 | BQ15: 0 | BR15: 0 | BS15: 0 | BT15: 0 | BU15: 0 | BV15: 0 | BW15: 0 | BX15: 0 | BY15: 0 | BZ15: 0 | CA15: 0 | CB15: 0 | CC15: 0 | CD15: 0 | CE15: 0 | CF15: 0 | CG15: 0 | CH15: 0 | CI15: 0 | CJ15: 0 | CK15: 0 | CL15: 0 | CM15: 0 | CN15: 0 | CO15: 0 | CP15: 0 | CQ15: 0 | CR15: 0 | CS15: 0 | CT15: 0 | CU15: 0 | CV15: 0 | CW15: 0 | CX15: 0 | CY15: 0 | CZ15: 0 | DA15: 0 | DB15: 0 | DC15: 0 | DD15: 0 | DE15: 0 | DF15: 0 | DG15: 0 | DH15: 0 | DI15: 0 | DJ15: 0 | DK15: 0 | DL15: 0 | DM15: 0 | DN15: 0 | DO15: 0 | DP15: 0 | DQ15: 0 | DR15: 0 | DS15: 0 | DT15: 0 | DU15: 0 | DV15: 0 | DW15: 0 | DX15: 0 | DY15: 0 | DZ15: 0 | EA15: 0 | EB15: 0 | EC15: 0 | ED15: 0 | EE15: 0 | EF15: 0 | EG15: 0 | EH15: 0 | EI15: 0 | EJ15: 0 | EK15: 0 | EL15: 0 | EM15: 0 | EN15: 0 | EO15: 0 | EP15: 0 | EQ15: 0 | ER15: 0 | ES15: 0 | ET15: 0 | EU15: 0 | EV15: 0 | EW15: 0 | EX15: 0 | EY15: 0 | EZ15: 0 | FA15: 0 | FB15: 0 | FC15: 0 | FD15: 0 | FE15: 0 | FF15: 0 | FG15: 0 | FH15: 0 | FI15: 0 | FJ15: 0 | FK15: 0 | FL15: 0 | FM15: 0 | FN15: 0 | FO15: 0 | FP15: 0 | FQ15: 0 | FR15: 0 | FS15: 0 | FT15: 0 | FU15: 0 | FV15: 0 | FW15: 0 | FX15: 0 | FY15: 0 | FZ15: 0 | GA15: 0 | GB15: 0 | GC15: 0 | GD15: 0 | GE15: 0 | GF15: 0 | GG15: 0 | GH15: 0 | GI15: 0 | GJ15: 0 | GK15: 0 | GL15: 0 | GM15: 0 | GN15: 0 | GO15: 0 | GP15: 0 | GQ15: 0 | GR15: 0 | GS15: 0 | GT15: 0 | GU15: 0 | GV15: 0 | GW15: 0 | GX15: 0 | GY15: 0 | GZ15: 0 | HA15: 0 | HB15: 0 | HC15: 0 | HD15: 0 | HE15: 0 | HF15: 0 | HG15: 0 | HH15: 0 | HI15: 0 | HJ15: 0 | HK15: 0 | HL15: 0 | HM15: 0 | HN15: 0 | HO15: 0 | HP15: 0 | HQ15: 0 | HR15: 0 | HS15: 0 | HT15: 0 | HU15: 0 | HV15: 0 | HW15: 0 | HX15: 0 | HY15: 0 | HZ15: 0 | IA15: 0 | IB15: 0 | IC15: 0 | ID15: 0 | IE15: 0 | IF15: 0 | IG15: 0 | IH15: 0 | II15: 0 | IJ15: 0 | IK15: 0 | IL15: 0 | IM15: 0 | IN15: 0 | IO15: 0 | IP15: 0 | IQ15: 0 | IR15: 0 | IS15: 0 | IT15: 0 | IU15: 0 | IV15: 0 | IW15: 0 | IX15: 0 | IY15: 0 | IZ15: 0
A16: =IF($B$45=1,Faktorer_bolig!A12,Faktorer_andre!A12) -> 0 | C16: =IF($B$45=1,Faktorer_bolig!B12,Faktorer_andre!B12) -> Tilst/egnethet; | D16: =IF($B$45=1,Faktorer_bolig!C12,Faktorer_andre!C12) -> slitt/dårl | E16: 0 | F16: =IF($B$45=1,Faktorer_bolig!E12,Faktorer_andre!E12) -> brukbar | G16: 0 | H16: =IF($B$45=1,Faktorer_bolig!G12,Faktorer_andre!G12) -> bra | I16: 0 | J16: =IF($B$45=1,Faktorer_bolig!I12,Faktorer_andre!I12) -> svært god | K16: 0 | L16: =IF(areal_1>0,100-SUM(E16:K16),0) -> 0 | M16: 0 | N16: 0 | O16: 0 | P16: 0 | Q16: 0 | R16: 0 | S16: 0 | T16: 0 | U16: 0 | V16: 0 | W16: 0 | X16: 0 | Y16: 0 | Z16: 0 | AA16: 0 | AB16: 0 | AC16: 0 | AD16: 0 | AE16: 0 | AF16: 0 | AG16: 0 | AH16: 0 | AI16: 0 | AJ16: 0 | AK16: 0 | AL16: 0 | AM16: 0 | AN16: 0 | AO16: 0 | AP16: 0 | AQ16: 0 | AR16: 0 | AS16: 0 | AT16: 0 | AU16: 0 | AV16: 0 | AW16: 0 | AX16: 0 | AY16: 0 | AZ16: 0 | BA16: 0 | BB16: 0 | BC16: 0 | BD16: 0 | BE16: 0 | BF16: 0 | BG16: 0 | BH16: 0 | BI16: 0 | BJ16: 0 | BK16: 0 | BL16: 0 | BM16: 0 | BN16: 0 | BO16: 0 | BP16: 0 | BQ16: 0 | BR16: 0 | BS16: 0 | BT16: 0 | BU16: 0 | BV16: 0 | BW16: 0 | BX16: 0 | BY16: 0 | BZ16: 0 | CA16: 0 | CB16: 0 | CC16: 0 | CD16: 0 | CE16: 0 | CF16: 0 | CG16: 0 | CH16: 0 | CI16: 0 | CJ16: 0 | CK16: 0 | CL16: 0 | CM16: 0 | CN16: 0 | CO16: 0 | CP16: 0 | CQ16: 0 | CR16: 0 | CS16: 0 | CT16: 0 | CU16: 0 | CV16: 0 | CW16: 0 | CX16: 0 | CY16: 0 | CZ16: 0 | DA16: 0 | DB16: 0 | DC16: 0 | DD16: 0 | DE16: 0 | DF16: 0 | DG16: 0 | DH16: 0 | DI16: 0 | DJ16: 0 | DK16: 0 | DL16: 0 | DM16: 0 | DN16: 0 | DO16: 0 | DP16: 0 | DQ16: 0 | DR16: 0 | DS16: 0 | DT16: 0 | DU16: 0 | DV16: 0 | DW16: 0 | DX16: 0 | DY16: 0 | DZ16: 0 | EA16: 0 | EB16: 0 | EC16: 0 | ED16: 0 | EE16: 0 | EF16: 0 | EG16: 0 | EH16: 0 | EI16: 0 | EJ16: 0 | EK16: 0 | EL16: 0 | EM16: 0 | EN16: 0 | EO16: 0 | EP16: 0 | EQ16: 0 | ER16: 0 | ES16: 0 | ET16: 0 | EU16: 0 | EV16: 0 | EW16: 0 | EX16: 0 | EY16: 0 | EZ16: 0 | FA16: 0 | FB16: 0 | FC16: 0 | FD16: 0 | FE16: 0 | FF16: 0 | FG16: 0 | FH16: 0 | FI16: 0 | FJ16: 0 | FK16: 0 | FL16: 0 | FM16: 0 | FN16: 0 | FO16: 0 | FP16: 0 | FQ16: 0 | FR16: 0 | FS16: 0 | FT16: 0 | FU16: 0 | FV16: 0 | FW16: 0 | FX16: 0 | FY16: 0 | FZ16: 0 | GA16: 0 | GB16: 0 | GC16: 0 | GD16: 0 | GE16: 0 | GF16: 0 | GG16: 0 | GH16: 0 | GI16: 0 | GJ16: 0 | GK16: 0 | GL16: 0 | GM16: 0 | GN16: 0 | GO16: 0 | GP16: 0 | GQ16: 0 | GR16: 0 | GS16: 0 | GT16: 0 | GU16: 0 | GV16: 0 | GW16: 0 | GX16: 0 | GY16: 0 | GZ16: 0 | HA16: 0 | HB16: 0 | HC16: 0 | HD16: 0 | HE16: 0 | HF16: 0 | HG16: 0 | HH16: 0 | HI16: 0 | HJ16: 0 | HK16: 0 | HL16: 0 | HM16: 0 | HN16: 0 | HO16: 0 | HP16: 0 | HQ16: 0 | HR16: 0 | HS16: 0 | HT16: 0 | HU16: 0 | HV16: 0 | HW16: 0 | HX16: 0 | HY16: 0 | HZ16: 0 | IA16: 0 | IB16: 0 | IC16: 0 | ID16: 0 | IE16: 0 | IF16: 0 | IG16: 0 | IH16: 0 | II16: 0 | IJ16: 0 | IK16: 0 | IL16: 0 | IM16: 0 | IN16: 0 | IO16: 0 | IP16: 0 | IQ16: 0 | IR16: 0 | IS16: 0 | IT16: 0 | IU16: 0 | IV16: 0 | IW16: 0 | IX16: 0 | IY16: 0 | IZ16: 0
A17: =IF($B$45=1,Faktorer_bolig!A13,Faktorer_andre!A13) -> 2. etg: | B17: 0 | C17: =IF($B$45=1,Faktorer_bolig!B13,Faktorer_andre!B13) -> Arealbruk i %; | D17: =IF($B$45=1,Faktorer_bolig!C13,Faktorer_andre!C13) -> svak/uegnet | E17: 0 | F17: =IF($B$45=1,Faktorer_bolig!E13,Faktorer_andre!E13) -> enkelt bruksareal | G17: 0 | H17: =IF($B$45=1,Faktorer_bolig!G13,Faktorer_andre!G13) -> vanl. bruksareal | I17: 0 | J17: =IF($B$45=1,Faktorer_bolig!I13,Faktorer_andre!I13) -> 0 | K17: 0 | L17: =IF(areal_2>0,100-SUM(E17:K17),0) -> 0 | M17: 0 | N17: 0 | O17: 0 | P17: 0 | Q17: 0 | R17: 0 | S17: 0 | T17: 0 | U17: 0 | V17: 0 | W17: 0 | X17: 0 | Y17: 0 | Z17: 0 | AA17: 0 | AB17: 0 | AC17: 0 | AD17: 0 | AE17: 0 | AF17: 0 | AG17: 0 | AH17: 0 | AI17: 0 | AJ17: 0 | AK17: 0 | AL17: 0 | AM17: 0 | AN17: 0 | AO17: 0 | AP17: 0 | AQ17: 0 | AR17: 0 | AS17: 0 | AT17: 0 | AU17: 0 | AV17: 0 | AW17: 0 | AX17: 0 | AY17: 0 | AZ17: 0 | BA17: 0 | BB17: 0 | BC17: 0 | BD17: 0 | BE17: 0 | BF17: 0 | BG17: 0 | BH17: 0 | BI17: 0 | BJ17: 0 | BK17: 0 | BL17: 0 | BM17: 0 | BN17: 0 | BO17: 0 | BP17: 0 | BQ17: 0 | BR17: 0 | BS17: 0 | BT17: 0 | BU17: 0 | BV17: 0 | BW17: 0 | BX17: 0 | BY17: 0 | BZ17: 0 | CA17: 0 | CB17: 0 | CC17: 0 | CD17: 0 | CE17: 0 | CF17: 0 | CG17: 0 | CH17: 0 | CI17: 0 | CJ17: 0 | CK17: 0 | CL17: 0 | CM17: 0 | CN17: 0 | CO17: 0 | CP17: 0 | CQ17: 0 | CR17: 0 | CS17: 0 | CT17: 0 | CU17: 0 | CV17: 0 | CW17: 0 | CX17: 0 | CY17: 0 | CZ17: 0 | DA17: 0 | DB17: 0 | DC17: 0 | DD17: 0 | DE17: 0 | DF17: 0 | DG17: 0 | DH17: 0 | DI17: 0 | DJ17: 0 | DK17: 0 | DL17: 0 | DM17: 0 | DN17: 0 | DO17: 0 | DP17: 0 | DQ17: 0 | DR17: 0 | DS17: 0 | DT17: 0 | DU17: 0 | DV17: 0 | DW17: 0 | DX17: 0 | DY17: 0 | DZ17: 0 | EA17: 0 | EB17: 0 | EC17: 0 | ED17: 0 | EE17: 0 | EF17: 0 | EG17: 0 | EH17: 0 | EI17: 0 | EJ17: 0 | EK17: 0 | EL17: 0 | EM17: 0 | EN17: 0 | EO17: 0 | EP17: 0 | EQ17: 0 | ER17: 0 | ES17: 0 | ET17: 0 | EU17: 0 | EV17: 0 | EW17: 0 | EX17: 0 | EY17: 0 | EZ17: 0 | FA17: 0 | FB17: 0 | FC17: 0 | FD17: 0 | FE17: 0 | FF17: 0 | FG17: 0 | FH17: 0 | FI17: 0 | FJ17: 0 | FK17: 0 | FL17: 0 | FM17: 0 | FN17: 0 | FO17: 0 | FP17: 0 | FQ17: 0 | FR17: 0 | FS17: 0 | FT17: 0 | FU17: 0 | FV17: 0 | FW17: 0 | FX17: 0 | FY17: 0 | FZ17: 0 | GA17: 0 | GB17: 0 | GC17: 0 | GD17: 0 | GE17: 0 | GF17: 0 | GG17: 0 | GH17: 0 | GI17: 0 | GJ17: 0 | GK17: 0 | GL17: 0 | GM17: 0 | GN17: 0 | GO17: 0 | GP17: 0 | GQ17: 0 | GR17: 0 | GS17: 0 | GT17: 0 | GU17: 0 | GV17: 0 | GW17: 0 | GX17: 0 | GY17: 0 | GZ17: 0 | HA17: 0 | HB17: 0 | HC17: 0 | HD17: 0 | HE17: 0 | HF17: 0 | HG17: 0 | HH17: 0 | HI17: 0 | HJ17: 0 | HK17: 0 | HL17: 0 | HM17: 0 | HN17: 0 | HO17: 0 | HP17: 0 | HQ17: 0 | HR17: 0 | HS17: 0 | HT17: 0 | HU17: 0 | HV17: 0 | HW17: 0 | HX17: 0 | HY17: 0 | HZ17: 0 | IA17: 0 | IB17: 0 | IC17: 0 | ID17: 0 | IE17: 0 | IF17: 0 | IG17: 0 | IH17: 0 | II17: 0 | IJ17: 0 | IK17: 0 | IL17: 0 | IM17: 0 | IN17: 0 | IO17: 0 | IP17: 0 | IQ17: 0 | IR17: 0 | IS17: 0 | IT17: 0 | IU17: 0 | IV17: 0 | IW17: 0 | IX17: 0 | IY17: 0 | IZ17: 0
A18: =IF($B$45=1,Faktorer_bolig!A14,Faktorer_andre!A14) -> 0 | B18: =IF(AND(A17=0,SUM(E17:E19,G17:G19,I17:I19,K18:K19)>0),"Har du glemt arealet ?","") ->  | C18: =IF($B$45=1,Faktorer_bolig!B14,Faktorer_andre!B14) -> Etasjestd i %; | D18: =IF($B$45=1,Faktorer_bolig!C14,Faktorer_andre!C14) -> lav | E18: 0 | F18: =IF($B$45=1,Faktorer_bolig!E14,Faktorer_andre!E14) -> enkel | G18: 0 | H18: =IF($B$45=1,Faktorer_bolig!G14,Faktorer_andre!G14) -> bra | I18: 0 | J18: =IF($B$45=1,Faktorer_bolig!I14,Faktorer_andre!I14) -> god | K18: 0 | L18: =IF(areal_2>0,100-SUM(E18:K18),0) -> 0 | M18: 0
A19: =IF($B$45=1,Faktorer_bolig!A15,Faktorer_andre!A15) -> 0 | C19: =IF($B$45=1,Faktorer_bolig!B15,Faktorer_andre!B15) -> Tilst/egnethet; | D19: =IF($B$45=1,Faktorer_bolig!C15,Faktorer_andre!C15) -> slitt/dårl | E19: 0 | F19: =IF($B$45=1,Faktorer_bolig!E15,Faktorer_andre!E15) -> brukbar | G19: 0 | H19: =IF($B$45=1,Faktorer_bolig!G15,Faktorer_andre!G15) -> bra | I19: 0 | J19: =IF($B$45=1,Faktorer_bolig!I15,Faktorer_andre!I15) -> svært god | K19: 0 | L19: =IF(areal_2>0,100-SUM(E19:K19),0) -> 0 | M19: 0
A20: =IF($B$45=1,Faktorer_bolig!A16,Faktorer_andre!A16) -> Kjørebro/ mesanin | B20: 0 | C20: =IF($B$45=1,Faktorer_bolig!B16,Faktorer_andre!B16) -> Arealbruk i %; | D20: =IF($B$45=1,Faktorer_bolig!C16,Faktorer_andre!C16) -> svak/uegnet | E20: 0 | F20: =IF($B$45=1,Faktorer_bolig!E16,Faktorer_andre!E16) -> lettlager | G20: 0 | H20: =IF($B$45=1,Faktorer_bolig!G16,Faktorer_andre!G16) -> vanl. bruksareal | I20: 0 | J20: =IF($B$45=1,Faktorer_bolig!I16,Faktorer_andre!I16) -> 0 | K20: 0 | L20: =IF($B$20>0,100-SUM(E20:K20),0) -> 0 | M20: 0
A21: =IF($B$45=1,Faktorer_bolig!A17,Faktorer_andre!A17) -> 0 | B21: =IF(AND(B20=0,SUM(E20:E22,G20:G22,I20:I22,K21:K22)>0),"Har du glemt arealet ?","") ->  | C21: =IF($B$45=1,Faktorer_bolig!B17,Faktorer_andre!B17) -> Etasjestd i %; | D21: =IF($B$45=1,Faktorer_bolig!C17,Faktorer_andre!C17) -> lav | E21: 0 | F21: =IF($B$45=1,Faktorer_bolig!E17,Faktorer_andre!E17) -> enkel | G21: 0 | H21: =IF($B$45=1,Faktorer_bolig!G17,Faktorer_andre!G17) -> bra | I21: 0 | J21: =IF($B$45=1,Faktorer_bolig!I17,Faktorer_andre!I17) -> god | K21: 0 | L21: =IF($B$20>0,100-SUM(E21:K21),0) -> 0 | M21: 0
A22: =IF($B$45=1,Faktorer_bolig!A18,Faktorer_andre!A18) -> 0 | C22: =IF($B$45=1,Faktorer_bolig!B18,Faktorer_andre!B18) -> Tilst/egnethet; | D22: =IF($B$45=1,Faktorer_bolig!C18,Faktorer_andre!C18) -> slitt/dårl | E22: 0 | F22: =IF($B$45=1,Faktorer_bolig!E18,Faktorer_andre!E18) -> brukbar | G22: 0 | H22: =IF($B$45=1,Faktorer_bolig!G18,Faktorer_andre!G18) -> bra | I22: 0 | J22: =IF($B$45=1,Faktorer_bolig!I18,Faktorer_andre!I18) -> svært god | K22: 0 | L22: 0 | M22: 0
A23: =Faktorer_bolig!A19 -> Enkel bolig | B23: 0 | C23: =Faktorer_bolig!A19 -> Enkel bolig | D23: =Faktorer_bolig!C19 -> svak/uinnr. | E23: 0 | F23: =Faktorer_bolig!E19 -> enkel | G23: 0 | H23: =Faktorer_bolig!G19 -> vanlig | I23: 0 | J23: =Faktorer_bolig!I19 -> 0 | K23: 0 | L23: =IF($B$23>0,100-SUM(E23:K23),0) -> 0 | M23: =IF(L23>0," % mangler","") -> 
A24: =Faktorer_bolig!A20 -> Enkel bolig | C24: =Faktorer_bolig!B20 -> Etasjestd %; | D24: =Faktorer_bolig!C20 -> lav | E24: 0 | F24: =Faktorer_bolig!E20 -> bra | G24: 0 | H24: =Faktorer_bolig!G20 -> god | I24: 0 | J24: =Faktorer_bolig!I20 -> topp | K24: 0 | L24: =IF($B$23>0,100-SUM(E24:K24),0) -> 0 | M24: =IF(L24>0," % mangler","") -> 
A25: =Faktorer_bolig!A21 -> Enkel bolig | C25: =Faktorer_bolig!B21 -> Tilst/egn; | D25: =Faktorer_bolig!C21 -> slitt/dårl | E25: 0 | F25: =Faktorer_bolig!E21 -> brukbar | G25: 0 | H25: =Faktorer_bolig!G21 -> bra | I25: 0 | J25: =Faktorer_bolig!I21 -> sv. god | K25: 0 | L25: =IF($B$23>0,100-SUM(E25:K25),0) -> 0 | M25: =IF(L25>0," % mangler","") -> 
A29: Tomt | B29: =VLOOKUP(A1,'Priser nybygg'!B3:G26,6) -> 0 | C29: Verdi for opparbeidet gårdstun og hage | K29: 0
A30: Tomt | C30: Tomt, | D30: =Registreringsskjema!B23 -> Vann; | E30: =Registreringsskjema!C23 -> Svært god = 4, god = 3, middels = 2, dårlig = 1 | J30: 0
A31: Tomt | C31: vann og | D31: =Registreringsskjema!B24 -> Avløp; | E31: =Registreringsskjema!C24 -> Svært god = 4, god = 3, middels = 2, dårlig = 1 | J31: 0
A32: Tomt | C32: avløp | D32: =Registreringsskjema!B25 -> Have/tun; | E32: =Registreringsskjema!C25 -> velholdt have/tun = 8, funksjonell beplantet have= 5, alminnelig bra = 3, enkel = 1 | J32: 0 | K32: =SUM(J30:J32) -> 0
A33: Tomt | D33: =Registreringsskjema!B26 -> 0 | E33: =Registreringsskjema!C26 -> 0 | F33: =Registreringsskjema!D26 -> 0 | G33: =Registreringsskjema!E26 -> 0 | H33: =Registreringsskjema!F26 -> 0 | I33: =Registreringsskjema!G26 -> 0 | J33: Ukorrigert verdi | K33: 0
A43: =CONCATENATE("Verdiberegning ",'Bygg 2'!A1) -> Verdiberegning X
A45: Valgt faktor_ark | B45: =VLOOKUP(A1,'Priser nybygg'!B3:G26,3,FALSE) -> 2 | C45: =IF($B$45=1,"Faktorer_bolig","Faktorer_andre") -> Faktorer_andre
A47: Hustype | B47: Etasje | D47: Faktor_1 | E47: Andel % | F47: Faktor_2 | G47: Andel % | H47: Faktor_3 | I47: Andel % | J47: Faktor_4 | K47: Andel % | L47: Beregnet faktor
A48: =$A$1 -> X | B48: Kjeller | C48: Arealtype %; | D48: =IF($B$45=1,Faktorer_bolig!D4,Faktorer_andre!D4) -> 0.1 | E48: ='Bygg 2'!E8 -> 0 | F48: =IF($B$45=1,Faktorer_bolig!F4,Faktorer_andre!F4) -> 0.2 | G48: ='Bygg 2'!G8 -> 0 | H48: =IF($B$45=1,Faktorer_bolig!H4,Faktorer_andre!H4) -> 0.3 | I48: ='Bygg 2'!I8 -> 0 | J48: =IF($B$45=1,Faktorer_bolig!J4,Faktorer_andre!J4) -> 0 | L48: =K48*J48+I48*H48+G48*F48+E48*D48 -> 0
B49: Kjeller | C49: Etasjestd %; | D49: =IF($B$45=1,Faktorer_bolig!D5,Faktorer_andre!D5) -> 0.4 | E49: ='Bygg 2'!E9 -> 0 | F49: =IF($B$45=1,Faktorer_bolig!F5,Faktorer_andre!F5) -> 0.6 | G49: ='Bygg 2'!G9 -> 0 | H49: =IF($B$45=1,Faktorer_bolig!H5,Faktorer_andre!H5) -> 0.8 | I49: ='Bygg 2'!I9 -> 0 | J49: =IF($B$45=1,Faktorer_bolig!J5,Faktorer_andre!J5) -> 1 | K49: ='Bygg 2'!K9 -> 0 | L49: 0
B50: Kjeller | C50: Tilst/egn; | D50: =IF($B$45=1,Faktorer_bolig!D6,Faktorer_andre!D6) -> 0.4 | E50: ='Bygg 2'!E10 -> 0 | F50: =IF($B$45=1,Faktorer_bolig!F6,Faktorer_andre!F6) -> 0.6 | G50: ='Bygg 2'!G10 -> 0 | H50: =IF($B$45=1,Faktorer_bolig!H6,Faktorer_andre!H6) -> 0.8 | I50: ='Bygg 2'!I10 -> 0 | J50: =IF($B$45=1,Faktorer_bolig!J6,Faktorer_andre!J6) -> 1 | K50: ='Bygg 2'!K10 -> 0 | L50: 0
B51: Underetasje | C51: Arealtype %; | D51: =IF($B$45=1,Faktorer_bolig!D7,Faktorer_andre!D7) -> 0.2 | E51: ='Bygg 2'!E11 -> 0 | F51: =IF($B$45=1,Faktorer_bolig!F7,Faktorer_andre!F7) -> 0.35 | G51: ='Bygg 2'!G11 -> 0 | H51: =IF($B$45=1,Faktorer_bolig!H7,Faktorer_andre!H7) -> 0.5 | I51: ='Bygg 2'!I11 -> 0 | J51: =IF($B$45=1,Faktorer_bolig!J7,Faktorer_andre!J7) -> 0 | L51: 0
B52: Underetasje | C52: Etasjestd %; | D52: =IF($B$45=1,Faktorer_bolig!D8,Faktorer_andre!D8) -> 0.56 | E52: ='Bygg 2'!E12 -> 0 | F52: =IF($B$45=1,Faktorer_bolig!F8,Faktorer_andre!F8) -> 0.75 | G52: ='Bygg 2'!G12 -> 0 | H52: =IF($B$45=1,Faktorer_bolig!H8,Faktorer_andre!H8) -> 0.87 | I52: ='Bygg 2'!I12 -> 0 | J52: =IF($B$45=1,Faktorer_bolig!J8,Faktorer_andre!J8) -> 1 | K52: ='Bygg 2'!K12 -> 0 | L52: 0
B53: Underetasje | C53: Tilst/egn; | D53: =IF($B$45=1,Faktorer_bolig!D9,Faktorer_andre!D9) -> 0.5 | E53: ='Bygg 2'!E13 -> 0 | F53: =IF($B$45=1,Faktorer_bolig!F9,Faktorer_andre!F9) -> 0.65 | G53: ='Bygg 2'!G13 -> 0 | H53: =IF($B$45=1,Faktorer_bolig!H9,Faktorer_andre!H9) -> 0.8 | I53: ='Bygg 2'!I13 -> 0 | J53: =IF($B$45=1,Faktorer_bolig!J9,Faktorer_andre!J9) -> 1 | K53: ='Bygg 2'!K13 -> 0 | L53: 0
B54: 1. etg | C54: Arealtype %; | D54: =IF($B$45=1,Faktorer_bolig!D10,Faktorer_andre!D10) -> 0.4 | E54: ='Bygg 2'!E14 -> 0 | F54: =IF($B$45=1,Faktorer_bolig!F10,Faktorer_andre!F10) -> 0.7 | G54: ='Bygg 2'!G14 -> 0 | H54: =IF($B$45=1,Faktorer_bolig!H10,Faktorer_andre!H10) -> 1 | I54: ='Bygg 2'!I14 -> 0 | J54: =IF($B$45=1,Faktorer_bolig!J10,Faktorer_andre!J10) -> 0 | L54: 0
B55: 1. etg | C55: Etasjestd %; | D55: =IF($B$45=1,Faktorer_bolig!D11,Faktorer_andre!D11) -> 0.56 | E55: ='Bygg 2'!E15 -> 0 | F55: =IF($B$45=1,Faktorer_bolig!F11,Faktorer_andre!F11) -> 0.75 | G55: ='Bygg 2'!G15 -> 0 | H55: =IF($B$45=1,Faktorer_bolig!H11,Faktorer_andre!H11) -> 0.87 | I55: ='Bygg 2'!I15 -> 0 | J55: =IF($B$45=1,Faktorer_bolig!J11,Faktorer_andre!J11) -> 1 | K55: ='Bygg 2'!K15 -> 0 | L55: 0
B56: 1. etg | C56: Tilst/egn; | D56: =IF($B$45=1,Faktorer_bolig!D12,Faktorer_andre!D12) -> 0.5 | E56: ='Bygg 2'!E16 -> 0 | F56: =IF($B$45=1,Faktorer_bolig!F12,Faktorer_andre!F12) -> 0.65 | G56: ='Bygg 2'!G16 -> 0 | H56: =IF($B$45=1,Faktorer_bolig!H12,Faktorer_andre!H12) -> 0.8 | I56: ='Bygg 2'!I16 -> 0 | J56: =IF($B$45=1,Faktorer_bolig!J12,Faktorer_andre!J12) -> 1 | K56: ='Bygg 2'!K16 -> 0 | L56: 0
B57: 2.etg | C57: Arealtype %; | D57: =IF($B$45=1,Faktorer_bolig!D13,Faktorer_andre!D13) -> 0.2 | E57: ='Bygg 2'!E17 -> 0 | F57: =IF($B$45=1,Faktorer_bolig!F13,Faktorer_andre!F13) -> 0.4 | G57: ='Bygg 2'!G17 -> 0 | H57: =IF($B$45=1,Faktorer_bolig!H13,Faktorer_andre!H13) -> 0.6 | I57: ='Bygg 2'!I17 -> 0 | J57: =IF($B$45=1,Faktorer_bolig!J13,Faktorer_andre!J13) -> 0 | L57: =I57*H57+G57*F57+E57*D57 -> 0
B58: 2.etg | C58: Etasjestd %; | D58: =IF($B$45=1,Faktorer_bolig!D14,Faktorer_andre!D14) -> 0.56 | E58: ='Bygg 2'!E18 -> 0 | F58: =IF($B$45=1,Faktorer_bolig!F14,Faktorer_andre!F14) -> 0.75 | G58: ='Bygg 2'!G18 -> 0 | H58: =IF($B$45=1,Faktorer_bolig!H14,Faktorer_andre!H14) -> 0.87 | I58: ='Bygg 2'!I18 -> 0 | J58: =IF($B$45=1,Faktorer_bolig!J14,Faktorer_andre!J14) -> 1 | K58: ='Bygg 2'!K18 -> 0 | L58: =K58*J58+I58*H58+G58*F58+E58*D58 -> 0
B59: 2.etg | C59: Tilst/egn; | D59: =IF($B$45=1,Faktorer_bolig!D15,Faktorer_andre!D15) -> 0.5 | E59: ='Bygg 2'!E19 -> 0 | F59: =IF($B$45=1,Faktorer_bolig!F15,Faktorer_andre!F15) -> 0.65 | G59: ='Bygg 2'!G19 -> 0 | H59: =IF($B$45=1,Faktorer_bolig!H15,Faktorer_andre!H15) -> 0.8 | I59: ='Bygg 2'!I19 -> 0 | J59: =IF($B$45=1,Faktorer_bolig!J15,Faktorer_andre!J15) -> 1 | K59: ='Bygg 2'!K19 -> 0 | L59: =K59*J59+I59*H59+G59*F59+E59*D59 -> 0
B60: Mesanin/kjørebro | C60: =IF(ISTEXT(B60),C57,"") -> Arealtype %; | D60: =IF($B$45=1,Faktorer_bolig!D16,Faktorer_andre!D16) -> 0.1 | E60: ='Bygg 2'!E20 -> 0 | F60: =IF($B$45=1,Faktorer_bolig!F16,Faktorer_andre!F16) -> 0.2 | G60: ='Bygg 2'!G20 -> 0 | H60: =IF($B$45=1,Faktorer_bolig!H16,Faktorer_andre!H16) -> 0.3 | I60: ='Bygg 2'!I20 -> 0 | J60: =IF($B$45=1,Faktorer_bolig!J16,Faktorer_andre!J16) -> 0 | L60: =I60*H60+G60*F60+E60*D60 -> 0
B61: Mesanin/kjørebro | C61: Etasjestd %; | D61: =IF($B$45=1,Faktorer_bolig!D17,Faktorer_andre!D17) -> 0.4 | E61: ='Bygg 2'!E21 -> 0 | F61: =IF($B$45=1,Faktorer_bolig!F17,Faktorer_andre!F17) -> 0.6 | G61: ='Bygg 2'!G21 -> 0 | H61: =IF($B$45=1,Faktorer_bolig!H17,Faktorer_andre!H17) -> 0.8 | I61: ='Bygg 2'!I21 -> 0 | J61: =IF($B$45=1,Faktorer_bolig!J17,Faktorer_andre!J17) -> 1 | K61: ='Bygg 2'!K21 -> 0 | L61: =K61*J61+I61*H61+G61*F61+E61*D61 -> 0
B62: Mesanin/kjørebro | C62: Tilst/egn; | D62: =IF($B$45=1,Faktorer_bolig!D18,Faktorer_andre!D18) -> 0.4 | E62: ='Bygg 2'!E22 -> 0 | F62: =IF($B$45=1,Faktorer_bolig!F18,Faktorer_andre!F18) -> 0.6 | G62: ='Bygg 2'!G22 -> 0 | H62: =IF($B$45=1,Faktorer_bolig!H18,Faktorer_andre!H18) -> 0.8 | I62: ='Bygg 2'!I22 -> 0 | J62: =IF($B$45=1,Faktorer_bolig!J18,Faktorer_andre!J18) -> 1 | K62: ='Bygg 2'!K22 -> 0 | L62: =K62*J62+I62*H62+G62*F62+E62*D62 -> 0
B63: Enkel Bolig | C63: Arealtype %; | D63: =IF(A63="Bolig",Faktorer_bolig!D19,Faktorer_andre!D19) -> 0 | E63: ='Bygg 2'!E23 -> 0 | F63: =IF($A63="Bolig",Faktorer_bolig!F19,Faktorer_andre!F19) -> 0 | G63: ='Bygg 2'!G23 -> 0 | H63: =IF($A63="Bolig",Faktorer_bolig!H19,Faktorer_andre!H19) -> 0 | I63: ='Bygg 2'!I23 -> 0 | J63: =IF($B$45=1,Faktorer_bolig!J19,Faktorer_andre!J19) -> 0 | L63: =I63*H63+G63*F63+E63*D63 -> 0
B64: Enkel Bolig | C64: Etasjestd %; | D64: =IF(A64="Bolig",Faktorer_bolig!D20,Faktorer_andre!E20) -> 0 | E64: ='Bygg 2'!E24 -> 0 | F64: =IF($A64="Bolig",Faktorer_bolig!F20,Faktorer_andre!G20) -> 0 | G64: ='Bygg 2'!G24 -> 0 | H64: =IF($A64="Bolig",Faktorer_bolig!H20,Faktorer_andre!I20) -> 0 | I64: ='Bygg 2'!I24 -> 0 | J64: =IF($B$45=1,Faktorer_bolig!J20,Faktorer_andre!K20) -> 0 | K64: ='Bygg 2'!K24 -> 0 | L64: =K64*J64+I64*H64+G64*F64+E64*D64 -> 0
B65: Enkel Bolig | C65: Tilst/egn; | D65: =IF(A65="Bolig",Faktorer_bolig!D21,Faktorer_andre!E21) -> 0 | E65: ='Bygg 2'!E25 -> 0 | F65: =IF($A65="Bolig",Faktorer_bolig!F21,Faktorer_andre!G21) -> 0 | G65: ='Bygg 2'!G25 -> 0 | H65: =IF($A65="Bolig",Faktorer_bolig!H21,Faktorer_andre!I21) -> 0 | I65: ='Bygg 2'!I25 -> 0 | J65: =IF($B$45=1,Faktorer_bolig!J21,Faktorer_andre!K21) -> 0 | K65: ='Bygg 2'!K25 -> 0 | L65: =K65*J65+I65*H65+G65*F65+E65*D65 -> 0
C67: Pris nytt bygg | D67: =IF(A68="Bolig",Faktorer_bolig!D22,Faktorer_andre!D19) -> 0 | F67: =IF(C67="Bolig",Faktorer_bolig!F22,Faktorer_andre!F19) -> 0 | H67: =IF('Takst 1'!E3="Bolig",Faktorer_bolig!H22,Faktorer_andre!H19) -> 0 | L67: =VLOOKUP(A1,Pris_tabell_nytt,2,FALSE) -> 0
A68: =$A$1 -> X | D68: =Faktorer_bolig!N3 -> Kjeller | E68: =Faktorer_bolig!O3 -> undertasje | F68: =Faktorer_bolig!P3 -> 1 etg | G68: =Faktorer_bolig!Q3 -> 2.etg | H68: =Faktorer_bolig!S3 -> 0 | I68: =Faktorer_bolig!T3 -> 0
C69: Vektet etasjeareal | D69: =IF($B$46=1,Faktorer_bolig!N4,Faktorer_andre!M4) -> 0.3 | E69: =IF($B$46=1,Faktorer_bolig!O4,Faktorer_andre!N4) -> 0.5 | F69: =IF($B$46=1,Faktorer_bolig!P4,Faktorer_andre!O4) -> 1 | G69: =IF($B$46=1,Faktorer_bolig!Q4,Faktorer_andre!P4) -> 0.6 | H69: =IF($B$46=1,Faktorer_bolig!R4,Faktorer_andre!I25) -> 0 | I69: =IF($B$46=1,Faktorer_bolig!S4,Faktorer_andre!J25) -> 0 | L69: =areal_k*D69+areal_u*E69+areal_1*F69+areal_2*G69+B20*H69+B23*I69 -> 0
A70: =$A$1 -> X | C70: Korreksjon for størrelse | G70: fra | H70: =IF($B$46=1,Faktorer_bolig!N15,Faktorer_andre!M18) -> 3000 | I70: m2 til | J70: =IF($B$46=1,Faktorer_bolig!P15,Faktorer_andre!O18) -> 4000 | K70: =IF($B$46=1,Max_areal_korr_1,Max_areal_korr_2) -> 100 | L70: =MAX(MIN(100-(L69-H70)/(J70-H70)*(100-K70),100),K70) -> 100 | M70: Brukes som utgangspunkt for korreksjon av størrelse
A71: X
A72: X | C72: Nedskrevet verdi etter påkostning i %; min 50% | J72: Korr pga alder/restverdi | K72: =IF(År_siden_ombygg>0,1,0) -> 0 | L72: =MAX(L80,L87) ->  | M72: Brukes til å beregne trekk for alder i "Takst" celle G44
A73: X | C73: Korr. vedl.h/egnet. Grunnlag "Normale byggekostnader" fra "Teknisk verdiberegning" | I73: Korrigert restverdi pga tilstand egnethet | L73: =(areal_k*L50+areal_u*L53+areal_1*L56+areal_2*L59+B20*L62+B23*L65)/(areal_k+areal_u+areal_1+areal_2+B20+B23) -> 
A74: X | C74: Tomt | K74: Ekstra tomteverdi /bostedstillegg | L74: =K33*K32/16 -> 0
A75: X
K77: Bygg type | L77: =A1 -> X
K78: Valgt avskrivningskurvve | L78: =VLOOKUP(L77,'Priser nybygg'!B3:F38,4,FALSE) -> 3
K79: Valgt sats | L79: =HLOOKUP($L$78,Nedskriving!$J$1:$L$4,3) -> 2.25
K80: Minste restverdi | L80: =HLOOKUP($L$78,Nedskriving!$J$1:$L$4,4) -> 20
L81: m2 | M81: år | N81: Faktor | O81: Faktor x m2
K82: Areal av opprinnelig del som ikke er pusset opp | L82: =G2*(1-prosent_oppgradering_1/100) -> 0 | M82: =MIN(J2-E2,397) -> 397 | N82: =VLOOKUP(M82,Nedskriving!$A$4:$G$400,$L$78+4,FALSE) -> 20 | O82: =L82*N82 -> 0
K83: Opprinnelig hus pusset opp | L83: =IF(E3>E4,G2*prosent_oppgradering_1/100,G2*prosent_oppgradering_1/100) -> 0 | M83: =IF(E4>0,J2-E4,0) -> 0 | N83: =IF(M83>0,VLOOKUP(M83,Nedskriving!$A$4:$G$119,$L$78+4,FALSE),0) -> 0 | O83: =L83*N83 -> 0
K84: Areal av TILBYGG som er pusset opp | L84: =IF(E4>E3,G3*prosent_oppgradering_1/100,0) -> 0 | M84: =IF(E3=0,0,IF(L84>0,J2-E4,J2-E3)) -> 0 | N84: =IF(M84>0,VLOOKUP(M84,Nedskriving!$A$4:$G$119,$L$78+4,FALSE),0) -> 0 | O84: =L84*N84 -> 0
K85: Tilbygg ikke pusset opp | L85: =G3-L84 -> 0 | M85: =IF(E3=0,0,(J2-E3)) -> 0 | N85: =IF(M85>0,VLOOKUP(M85,Nedskriving!$A$4:$G$119,$L$78+4,FALSE),0) -> 0 | O85: =L85*N85 -> 0
K86: Sum | L86: =SUM(L82:L85) -> 0 | O86: =SUM(O82:O85) -> 0
K87: Beregnet veid faktor for nedskriving pga alder | L87: =O86/L86 -> 
C90: Bygningens alder | D90: =J2-E2 -> 2022
C93: =A1 -> X | D93: ='Takst 1'!L32 -> 0

Sheet Bygg 3
A1: X | B1: 0
D2: Byggeår; | E2: 0 | F2: Grunnflate; | G2: 0 | I2: Befaring år; | J2: 0
C3: Tilbygg; | D3: År; | E3: 0 | F3: Grunnflate; | G3: 0
C4: Ombygd | D4: År; | E4: 0 | H4: Korrigert pga oppgradering; | J4: 0
J5: tak max 10 %
B7: Areal
A8: =IF($B$45=1,Faktorer_bolig!A4,Faktorer_andre!A4) -> Kjeller: | B8: 0 | C8: =IF($B$45=1,Faktorer_bolig!B4,Faktorer_andre!B4) -> Arealbruk i %; | D8: =IF($B$45=1,Faktorer_bolig!C4,Faktorer_andre!C4) -> svak/uinnr. | E8: 0 | F8: =IF($B$45=1,Faktorer_bolig!E4,Faktorer_andre!E4) -> enkel lagerkjeller | G8: 0 | H8: =IF($B$45=1,Faktorer_bolig!G4,Faktorer_andre!G4) -> vanl. bruksareal | I8: 0 | J8: =IF($B$45=1,Faktorer_bolig!I4,Faktorer_andre!I4) -> 0 | K8: 0 | L8: =IF(areal_k>0,100-SUM(E8:K8),0) -> 0 | M8: =IF(L8>0," % mangler",IF(L8=0,0,"Over 100% blir feil!!!")) -> 0
A9: =IF($B$45=1,Faktorer_bolig!A5,Faktorer_andre!A5) -> 0 | B9: =IF(AND(B8=0,SUM(E8:E10,G8:G10,I8:I10,K9:K10)>0),"Har du glemt arealet ?","") ->  | C9: =IF($B$45=1,Faktorer_bolig!B5,Faktorer_andre!B5) -> Etasjestd i %; | D9: =IF($B$45=1,Faktorer_bolig!C5,Faktorer_andre!C5) -> svak/gråstein | E9: 0 | F9: =IF($B$45=1,Faktorer_bolig!E5,Faktorer_andre!E5) -> enkelt lager | G9: 0 | H9: =IF($B$45=1,Faktorer_bolig!G5,Faktorer_andre!G5) -> bra lagerareal | I9: 0 | J9: =IF($B$45=1,Faktorer_bolig!I5,Faktorer_andre!I5) -> godt bruksareal | K9: 0 | L9: =IF(areal_k>0,100-SUM(E9:K9),0) -> 0 | M9: =IF(L9>0," % mangler",IF(L9=0,0,"Over 100% blir feil!!!")) -> 0 | N9: 0 | O9: 0 | P9: 0 | Q9: 0 | R9: 0 | S9: 0 | T9: 0 | U9: 0 | V9: 0 | W9: 0 | X9: 0 | Y9: 0 | Z9: 0 | AA9: 0 | AB9: 0 | AC9: 0 | AD9: 0 | AE9: 0 | AF9: 0 | AG9: 0 | AH9: 0 | AI9: 0 | AJ9: 0 | AK9: 0 | AL9: 0 | AM9: 0 | AN9: 0 | AO9: 0 | AP9: 0 | AQ9: 0 | AR9: 0 | AS9: 0 | AT9: 0 | AU9: 0 | AV9: 0 | AW9: 0 | AX9: 0 | AY9: 0 | AZ9: 0 | BA9: 0 | BB9: 0 | BC9: 0 | BD9: 0 | BE9: 0 | BF9: 0 | BG9: 0 | BH9: 0 | BI9: 0 | BJ9: 0 | BK9: 0 | BL9: 0 | BM9: 0 | BN9: 0 | BO9: 0 | BP9: 0 | BQ9: 0 | BR9: 0 | BS9: 0 | BT9: 0 | BU9: 0 | BV9: 0 | BW9: 0 | BX9: 0 | BY9: 0 | BZ9: 0 | CA9: 0 | CB9: 0 | CC9: 0 | CD9: 0 | CE9: 0 | CF9: 0 | CG9: 0 | CH9: 0 | CI9: 0 | CJ9: 0 | CK9: 0 | CL9: 0 | CM9: 0 | CN9: 0 | CO9: 0 | CP9: 0 | CQ9: 0 | CR9: 0 | CS9: 0 | CT9: 0 | CU9: 0 | CV9: 0 | CW9: 0 | CX9: 0 | CY9: 0 | CZ9: 0 | DA9: 0 | DB9: 0 | DC9: 0 | DD9: 0 | DE9: 0 | DF9: 0 | DG9: 0 | DH9: 0 | DI9: 0 | DJ9: 0 | DK9: 0 | DL9: 0 | DM9: 0 | DN9: 0 | DO9: 0 | DP9: 0 | DQ9: 0 | DR9: 0 | DS9: 0 | DT9: 0 | DU9: 0 | DV9: 0 | DW9: 0 | DX9: 0 | DY9: 0 | DZ9: 0 | EA9: 0 | EB9: 0 | EC9: 0 | ED9: 0 | EE9: 0 | EF9: 0 | EG9: 0 | EH9: 0 | EI9: 0 | EJ9: 0 | EK9: 0 | EL9: 0 | EM9: 0 | EN9: 0 | EO9: 0 | EP9: 0 | EQ9: 0 | ER9: 0 | ES9: 0 | ET9: 0 | EU9: 0 | EV9: 0 | EW9: 0 | EX9: 0 | EY9: 0 | EZ9: 0 | FA9: 0 | FB9: 0 | FC9: 0 | FD9: 0 | FE9: 0 | FF9: 0 | FG9: 0 | FH9: 0 | FI9: 0 | FJ9: 0 | FK9: 0 | FL9: 0 | FM9: 0 | FN9: 0 | FO9: 0 | FP9: 0 | FQ9: 0 | FR9: 0 | FS9: 0 | FT9: 0 | FU9: 0 | FV9: 0 | FW9: 0 | FX9: 0 | FY9: 0 | FZ9: 0 | GA9: 0 | GB9: 0 | GC9: 0 | GD9: 0 | GE9: 0 | GF9: 0 | GG9: 0 | GH9: 0 | GI9: 0 | GJ9: 0 | GK9: 0 | GL9: 0 | GM9: 0 | GN9: 0 | GO9: 0 | GP9: 0 | GQ9: 0 | GR9: 0 | GS9: 0 | GT9: 0 | GU9: 0 | GV9: 0 | GW9: 0 | GX9: 0 | GY9: 0 | GZ9: 0 | HA9: 0 | HB9: 0 | HC9: 0 | HD9: 0 | HE9: 0 | HF9: 0 | HG9: 0 | HH9: 0 | HI9: 0 | HJ9: 0 | HK9: 0 | HL9: 0 | HM9: 0 | HN9: 0 | HO9: 0 | HP9: 0 | HQ9: 0 | HR9: 0 | HS9: 0 | HT9: 0 | HU9: 0 | HV9: 0 | HW9: 0 | HX9: 0 | HY9: 0 | HZ9: 0 | IA9: 0 | IB9: 0 | IC9: 0 | ID9: 0 | IE9: 0 | IF9: 0 | IG9: 0 | IH9: 0 | II9: 0 | IJ9: 0 | IK9: 0 | IL9: 0 | IM9: 0 | IN9: 0 | IO9: 0 | IP9: 0 | IQ9: 0 | IR9: 0 | IS9: 0 | IT9: 0 | IU9: 0 | IV9: 0 | IW9: 0 | IX9: 0 | IY9: 0 | IZ9: 0
A10: =IF($B$45=1,Faktorer_bolig!A6,Faktorer_andre!A6) -> 0 | C10: =IF($B$45=1,Faktorer_bolig!B6,Faktorer_andre!B6) -> Tilst/egnethet; | D10: =IF($B$45=1,Faktorer_bolig!C6,Faktorer_andre!C6) -> slitt/dårlig | E10: 0 | F10: =IF($B$45=1,Faktorer_bolig!E6,Faktorer_andre!E6) -> brukbar | G10: 0 | H10: =IF($B$45=1,Faktorer_bolig!G6,Faktorer_andre!G6) -> bra | I10: 0 | J10: =IF($B$45=1,Faktorer_bolig!I6,Faktorer_andre!I6) -> svært god | K10: 0 | L10: =IF(areal_k>0,100-SUM(E10:K10),0) -> 0 | M10: =IF(L10>0," % mangler",IF(L10=0,0,"----Over 100% blir feil!!!")) -> 0 | N10: 0 | O10: 0 | P10: 0 | Q10: 0 | R10: 0 | S10: 0 | T10: 0 | U10: 0 | V10: 0 | W10: 0 | X10: 0 | Y10: 0 | Z10: 0 | AA10: 0 | AB10: 0 | AC10: 0 | AD10: 0 | AE10: 0 | AF10: 0 | AG10: 0 | AH10: 0 | AI10: 0 | AJ10: 0 | AK10: 0 | AL10: 0 | AM10: 0 | AN10: 0 | AO10: 0 | AP10: 0 | AQ10: 0 | AR10: 0 | AS10: 0 | AT10: 0 | AU10: 0 | AV10: 0 | AW10: 0 | AX10: 0 | AY10: 0 | AZ10: 0 | BA10: 0 | BB10: 0 | BC10: 0 | BD10: 0 | BE10: 0 | BF10: 0 | BG10: 0 | BH10: 0 | BI10: 0 | BJ10: 0 | BK10: 0 | BL10: 0 | BM10: 0 | BN10: 0 | BO10: 0 | BP10: 0 | BQ10: 0 | BR10: 0 | BS10: 0 | BT10: 0 | BU10: 0 | BV10: 0 | BW10: 0 | BX10: 0 | BY10: 0 | BZ10: 0 | CA10: 0 | CB10: 0 | CC10: 0 | CD10: 0 | CE10: 0 | CF10: 0 | CG10: 0 | CH10: 0 | CI10: 0 | CJ10: 0 | CK10: 0 | CL10: 0 | CM10: 0 | CN10: 0 | CO10: 0 | CP10: 0 | CQ10: 0 | CR10: 0 | CS10: 0 | CT10: 0 | CU10: 0 | CV10: 0 | CW10: 0 | CX10: 0 | CY10: 0 | CZ10: 0 | DA10: 0 | DB10: 0 | DC10: 0 | DD10: 0 | DE10: 0 | DF10: 0 | DG10: 0 | DH10: 0 | DI10: 0 | DJ10: 0 | DK10: 0 | DL10: 0 | DM10: 0 | DN10: 0 | DO10: 0 | DP10: 0 | DQ10: 0 | DR10: 0 | DS10: 0 | DT10: 0 | DU10: 0 | DV10: 0 | DW10: 0 | DX10: 0 | DY10: 0 | DZ10: 0 | EA10: 0 | EB10: 0 | EC10: 0 | ED10: 0 | EE10: 0 | EF10: 0 | EG10: 0 | EH10: 0 | EI10: 0 | EJ10: 0 | EK10: 0 | EL10: 0 | EM10: 0 | EN10: 0 | EO10: 0 | EP10: 0 | EQ10: 0 | ER10: 0 | ES10: 0 | ET10: 0 | EU10: 0 | EV10: 0 | EW10: 0 | EX10: 0 | EY10: 0 | EZ10: 0 | FA10: 0 | FB10: 0 | FC10: 0 | FD10: 0 | FE10: 0 | FF10: 0 | FG10: 0 | FH10: 0 | FI10: 0 | FJ10: 0 | FK10: 0 | FL10: 0 | FM10: 0 | FN10: 0 | FO10: 0 | FP10: 0 | FQ10: 0 | FR10: 0 | FS10: 0 | FT10: 0 | FU10: 0 | FV10: 0 | FW10: 0 | FX10: 0 | FY10: 0 | FZ10: 0 | GA10: 0 | GB10: 0 | GC10: 0 | GD10: 0 | GE10: 0 | GF10: 0 | GG10: 0 | GH10: 0 | GI10: 0 | GJ10: 0 | GK10: 0 | GL10: 0 | GM10: 0 | GN10: 0 | GO10: 0 | GP10: 0 | GQ10: 0 | GR10: 0 | GS10: 0 | GT10: 0 | GU10: 0 | GV10: 0 | GW10: 0 | GX10: 0 | GY10: 0 | GZ10: 0 | HA10: 0 | HB10: 0 | HC10: 0 | HD10: 0 | HE10: 0 | HF10: 0 | HG10: 0 | HH10: 0 | HI10: 0 | HJ10: 0 | HK10: 0 | HL10: 0 | HM10: 0 | HN10: 0 | HO10: 0 | HP10: 0 | HQ10: 0 | HR10: 0 | HS10: 0 | HT10: 0 | HU10: 0 | HV10: 0 | HW10: 0 | HX10: 0 | HY10: 0 | HZ10: 0 | IA10: 0 | IB10: 0 | IC10: 0 | ID10: 0 | IE10: 0 | IF10: 0 | IG10: 0 | IH10: 0 | II10: 0 | IJ10: 0 | IK10: 0 | IL10: 0 | IM10: 0 | IN10: 0 | IO10: 0 | IP10: 0 | IQ10: 0 | IR10: 0 | IS10: 0 | IT10: 0 | IU10: 0 | IV10: 0 | IW10: 0 | IX10: 0 | IY10: 0 | IZ10: 0
A11: =IF($B$45=1,Faktorer_bolig!A7,Faktorer_andre!A7) -> Sokkel/underetg: | B11: 0 | C11: =IF($B$45=1,Faktorer_bolig!B7,Faktorer_andre!B7) -> Arealbruk i %; | D11: =IF($B$45=1,Faktorer_bolig!C7,Faktorer_andre!C7) -> svak/uegnet | E11: 0 | F11: =IF($B$45=1,Faktorer_bolig!E7,Faktorer_andre!E7) -> enkelt lagerareal | G11: 0 | H11: =IF($B$45=1,Faktorer_bolig!G7,Faktorer_andre!G7) -> vanl. bruksareal | I11: 0 | J11: =IF($B$45=1,Faktorer_bolig!I7,Faktorer_andre!I7) -> 0 | K11: 0 | L11: =IF(areal_u>0,100-SUM(E11:K11),0) -> 0 | M11: =IF(L11>0," % mangler",IF(L11=0,0,"----Over 100% blir feil!!!")) -> 0 | N11: 0 | O11: 0 | P11: 0 | Q11: 0 | R11: 0 | S11: 0 | T11: 0 | U11: 0 | V11: 0 | W11: 0 | X11: 0 | Y11: 0 | Z11: 0 | AA11: 0 | AB11: 0 | AC11: 0 | AD11: 0 | AE11: 0 | AF11: 0 | AG11: 0 | AH11: 0 | AI11: 0 | AJ11: 0 | AK11: 0 | AL11: 0 | AM11: 0 | AN11: 0 | AO11: 0 | AP11: 0 | AQ11: 0 | AR11: 0 | AS11: 0 | AT11: 0 | AU11: 0 | AV11: 0 | AW11: 0 | AX11: 0 | AY11: 0 | AZ11: 0 | BA11: 0 | BB11: 0 | BC11: 0 | BD11: 0 | BE11: 0 | BF11: 0 | BG11: 0 | BH11: 0 | BI11: 0 | BJ11: 0 | BK11: 0 | BL11: 0 | BM11: 0 | BN11: 0 | BO11: 0 | BP11: 0 | BQ11: 0 | BR11: 0 | BS11: 0 | BT11: 0 | BU11: 0 | BV11: 0 | BW11: 0 | BX11: 0 | BY11: 0 | BZ11: 0 | CA11: 0 | CB11: 0 | CC11: 0 | CD11: 0 | CE11: 0 | CF11: 0 | CG11: 0 | CH11: 0 | CI11: 0 | CJ11: 0 | CK11: 0 | CL11: 0 | CM11: 0 | CN11: 0 | CO11: 0 | CP11: 0 | CQ11: 0 | CR11: 0 | CS11: 0 | CT11: 0 | CU11: 0 | CV11: 0 | CW11: 0 | CX11: 0 | CY11: 0 | CZ11: 0 | DA11: 0 | DB11: 0 | DC11: 0 | DD11: 0 | DE11: 0 | DF11: 0 | DG11: 0 | DH11: 0 | DI11: 0 | DJ11: 0 | DK11: 0 | DL11: 0 | DM11: 0 | DN11: 0 | DO11: 0 | DP11: 0 | DQ11: 0 | DR11: 0 | DS11: 0 | DT11: 0 | DU11: 0 | DV11: 0 | DW11: 0 | DX11: 0 | DY11: 0 | DZ11: 0 | EA11: 0 | EB11: 0 | EC11: 0 | ED11: 0 | EE11: 0 | EF11: 0 | EG11: 0 | EH11: 0 | EI11: 0 | EJ11: 0 | EK11: 0 | EL11: 0 | EM11: 0 | EN11: 0 | EO11: 0 | EP11: 0 | EQ11: 0 | ER11: 0 | ES11: 0 | ET11: 0 | EU11: 0 | EV11: 0 | EW11: 0 | EX11: 0 | EY11: 0 | EZ11: 0 | FA11: 0 | FB11: 0 | FC11: 0 | FD11: 0 | FE11: 0 | FF11: 0 | FG11: 0 | FH11: 0 | FI11: 0 | FJ11: 0 | FK11: 0 | FL11: 0 | FM11: 0 | FN11: 0 | FO11: 0 | FP11: 0 | FQ11: 0 | FR11: 0 | FS11: 0 | FT11: 0 | FU11: 0 | FV11: 0 | FW11: 0 | FX11: 0 | FY11: 0 | FZ11: 0 | GA11: 0 | GB11: 0 | GC11: 0 | GD11: 0 | GE11: 0 | GF11: 0 | GG11: 0 | GH11: 0 | GI11: 0 | GJ11: 0 | GK11: 0 | GL11: 0 | GM11: 0 | GN11: 0 | GO11: 0 | GP11: 0 | GQ11: 0 | GR11: 0 | GS11: 0 | GT11: 0 | GU11: 0 | GV11: 0 | GW11: 0 | GX11: 0 | GY11: 0 | GZ11: 0 | HA11: 0 | HB11: 0 | HC11: 0 | HD11: 0 | HE11: 0 | HF11: 0 | HG11: 0 | HH11: 0 | HI11: 0 | HJ11: 0 | HK11: 0 | HL11: 0 | HM11: 0 | HN11: 0 | HO11: 0 | HP11: 0 | HQ11: 0 | HR11: 0 | HS11: 0 | HT11: 0 | HU11: 0 | HV11: 0 | HW11: 0 | HX11: 0 | HY11: 0 | HZ11: 0 | IA11: 0 | IB11: 0 | IC11: 0 | ID11: 0 | IE11: 0 | IF11: 0 | IG11: 0 | IH11: 0 | II11: 0 | IJ11: 0 | IK11: 0 | IL11: 0 | IM11: 0 | IN11: 0 | IO11: 0 | IP11: 0 | IQ11: 0 | IR11: 0 | IS11: 0 | IT11: 0 | IU11: 0 | IV11: 0 | IW11: 0 | IX11: 0 | IY11: 0 | IZ11: 0
A12: =IF($B$45=1,Faktorer_bolig!A8,Faktorer_andre!A8) -> 0 | B12: =IF(AND(A11=0,SUM(E11:E13,G11:G13,I11:I13,K12:K13)>0),"Har du glemt arealet ?","") ->  | C12: =IF($B$45=1,Faktorer_bolig!B8,Faktorer_andre!B8) -> Etasjestd i %; | D12: =IF($B$45=1,Faktorer_bolig!C8,Faktorer_andre!C8) -> lav/uinnredet | E12: 0 | F12: =IF($B$45=1,Faktorer_bolig!E8,Faktorer_andre!E8) -> enkel | G12: 0 | H12: =IF($B$45=1,Faktorer_bolig!G8,Faktorer_andre!G8) -> bra | I12: 0 | J12: =IF($B$45=1,Faktorer_bolig!I8,Faktorer_andre!I8) -> god | K12: 0 | L12: =IF(areal_u>0,100-SUM(E12:K12),0) -> 0 | M12: 0 | N12: 0 | O12: 0 | P12: 0 | Q12: 0 | R12: 0 | S12: 0 | T12: 0 | U12: 0 | V12: 0 | W12: 0 | X12: 0 | Y12: 0 | Z12: 0 | AA12: 0 | AB12: 0 | AC12: 0 | AD12: 0 | AE12: 0 | AF12: 0 | AG12: 0 | AH12: 0 | AI12: 0 | AJ12: 0 | AK12: 0 | AL12: 0 | AM12: 0 | AN12: 0 | AO12: 0 | AP12: 0 | AQ12: 0 | AR12: 0 | AS12: 0 | AT12: 0 | AU12: 0 | AV12: 0 | AW12: 0 | AX12: 0 | AY12: 0 | AZ12: 0 | BA12: 0 | BB12: 0 | BC12: 0 | BD12: 0 | BE12: 0 | BF12: 0 | BG12: 0 | BH12: 0 | BI12: 0 | BJ12: 0 | BK12: 0 | BL12: 0 | BM12: 0 | BN12: 0 | BO12: 0 | BP12: 0 | BQ12: 0 | BR12: 0 | BS12: 0 | BT12: 0 | BU12: 0 | BV12: 0 | BW12: 0 | BX12: 0 | BY12: 0 | BZ12: 0 | CA12: 0 | CB12: 0 | CC12: 0 | CD12: 0 | CE12: 0 | CF12: 0 | CG12: 0 | CH12: 0 | CI12: 0 | CJ12: 0 | CK12: 0 | CL12: 0 | CM12: 0 | CN12: 0 | CO12: 0 | CP12: 0 | CQ12: 0 | CR12: 0 | CS12: 0 | CT12: 0 | CU12: 0 | CV12: 0 | CW12: 0 | CX12: 0 | CY12: 0 | CZ12: 0 | DA12: 0 | DB12: 0 | DC12: 0 | DD12: 0 | DE12: 0 | DF12: 0 | DG12: 0 | DH12: 0 | DI12: 0 | DJ12: 0 | DK12: 0 | DL12: 0 | DM12: 0 | DN12: 0 | DO12: 0 | DP12: 0 | DQ12: 0 | DR12: 0 | DS12: 0 | DT12: 0 | DU12: 0 | DV12: 0 | DW12: 0 | DX12: 0 | DY12: 0 | DZ12: 0 | EA12: 0 | EB12: 0 | EC12: 0 | ED12: 0 | EE12: 0 | EF12: 0 | EG12: 0 | EH12: 0 | EI12: 0 | EJ12: 0 | EK12: 0 | EL12: 0 | EM12: 0 | EN12: 0 | EO12: 0 | EP12: 0 | EQ12: 0 | ER12: 0 | ES12: 0 | ET12: 0 | EU12: 0 | EV12: 0 | EW12: 0 | EX12: 0 | EY12: 0 | EZ12: 0 | FA12: 0 | FB12: 0 | FC12: 0 | FD12: 0 | FE12: 0 | FF12: 0 | FG12: 0 | FH12: 0 | FI12: 0 | FJ12: 0 | FK12: 0 | FL12: 0 | FM12: 0 | FN12: 0 | FO12: 0 | FP12: 0 | FQ12: 0 | FR12: 0 | FS12: 0 | FT12: 0 | FU12: 0 | FV12: 0 | FW12: 0 | FX12: 0 | FY12: 0 | FZ12: 0 | GA12: 0 | GB12: 0 | GC12: 0 | GD12: 0 | GE12: 0 | GF12: 0 | GG12: 0 | GH12: 0 | GI12: 0 | GJ12: 0 | GK12: 0 | GL12: 0 | GM12: 0 | GN12: 0 | GO12: 0 | GP12: 0 | GQ12: 0 | GR12: 0 | GS12: 0 | GT12: 0 | GU12: 0 | GV12: 0 | GW12: 0 | GX12: 0 | GY12: 0 | GZ12: 0 | HA12: 0 | HB12: 0 | HC12: 0 | HD12: 0 | HE12: 0 | HF12: 0 | HG12: 0 | HH12: 0 | HI12: 0 | HJ12: 0 | HK12: 0 | HL12: 0 | HM12: 0 | HN12: 0 | HO12: 0 | HP12: 0 | HQ12: 0 | HR12: 0 | HS12: 0 | HT12: 0 | HU12: 0 | HV12: 0 | HW12: 0 | HX12: 0 | HY12: 0 | HZ12: 0 | IA12: 0 | IB12: 0 | IC12: 0 | ID12: 0 | IE12: 0 | IF12: 0 | IG12: 0 | IH12: 0 | II12: 0 | IJ12: 0 | IK12: 0 | IL12: 0 | IM12: 0 | IN12: 0 | IO12: 0 | IP12: 0 | IQ12: 0 | IR12: 0 | IS12: 0 | IT12: 0 | IU12: 0 | IV12: 0 | IW12: 0 | IX12: 0 | IY12: 0 | IZ12: 0
A13: =IF($B$45=1,Faktorer_bolig!A9,Faktorer_andre!A9) -> 0 | C13: =IF($B$45=1,Faktorer_bolig!B9,Faktorer_andre!B9) -> Tilst/egnethet; | D13: =IF($B$45=1,Faktorer_bolig!C9,Faktorer_andre!C9) -> slitt/dårl | E13: 0 | F13: =IF($B$45=1,Faktorer_bolig!E9,Faktorer_andre!E9) -> brukbar | G13: 0 | H13: =IF($B$45=1,Faktorer_bolig!G9,Faktorer_andre!G9) -> bra | I13: 0 | J13: =IF($B$45=1,Faktorer_bolig!I9,Faktorer_andre!I9) -> svært god | K13: 0 | L13: =IF(areal_u>0,100-SUM(E13:K13),0) -> 0 | M13: 0 | N13: 0 | O13: 0 | P13: 0 | Q13: 0 | R13: 0 | S13: 0 | T13: 0 | U13: 0 | V13: 0 | W13: 0 | X13: 0 | Y13: 0 | Z13: 0 | AA13: 0 | AB13: 0 | AC13: 0 | AD13: 0 | AE13: 0 | AF13: 0 | AG13: 0 | AH13: 0 | AI13: 0 | AJ13: 0 | AK13: 0 | AL13: 0 | AM13: 0 | AN13: 0 | AO13: 0 | AP13: 0 | AQ13: 0 | AR13: 0 | AS13: 0 | AT13: 0 | AU13: 0 | AV13: 0 | AW13: 0 | AX13: 0 | AY13: 0 | AZ13: 0 | BA13: 0 | BB13: 0 | BC13: 0 | BD13: 0 | BE13: 0 | BF13: 0 | BG13: 0 | BH13: 0 | BI13: 0 | BJ13: 0 | BK13: 0 | BL13: 0 | BM13: 0 | BN13: 0 | BO13: 0 | BP13: 0 | BQ13: 0 | BR13: 0 | BS13: 0 | BT13: 0 | BU13: 0 | BV13: 0 | BW13: 0 | BX13: 0 | BY13: 0 | BZ13: 0 | CA13: 0 | CB13: 0 | CC13: 0 | CD13: 0 | CE13: 0 | CF13: 0 | CG13: 0 | CH13: 0 | CI13: 0 | CJ13: 0 | CK13: 0 | CL13: 0 | CM13: 0 | CN13: 0 | CO13: 0 | CP13: 0 | CQ13: 0 | CR13: 0 | CS13: 0 | CT13: 0 | CU13: 0 | CV13: 0 | CW13: 0 | CX13: 0 | CY13: 0 | CZ13: 0 | DA13: 0 | DB13: 0 | DC13: 0 | DD13: 0 | DE13: 0 | DF13: 0 | DG13: 0 | DH13: 0 | DI13: 0 | DJ13: 0 | DK13: 0 | DL13: 0 | DM13: 0 | DN13: 0 | DO13: 0 | DP13: 0 | DQ13: 0 | DR13: 0 | DS13: 0 | DT13: 0 | DU13: 0 | DV13: 0 | DW13: 0 | DX13: 0 | DY13: 0 | DZ13: 0 | EA13: 0 | EB13: 0 | EC13: 0 | ED13: 0 | EE13: 0 | EF13: 0 | EG13: 0 | EH13: 0 | EI13: 0 | EJ13: 0 | EK13: 0 | EL13: 0 | EM13: 0 | EN13: 0 | EO13: 0 | EP13: 0 | EQ13: 0 | ER13: 0 | ES13: 0 | ET13: 0 | EU13: 0 | EV13: 0 | EW13: 0 | EX13: 0 | EY13: 0 | EZ13: 0 | FA13: 0 | FB13: 0 | FC13: 0 | FD13: 0 | FE13: 0 | FF13: 0 | FG13: 0 | FH13: 0 | FI13: 0 | FJ13: 0 | FK13: 0 | FL13: 0 | FM13: 0 | FN13: 0 | FO13: 0 | FP13: 0 | FQ13: 0 | FR13: 0 | FS13: 0 | FT13: 0 | FU13: 0 | FV13: 0 | FW13: 0 | FX13: 0 | FY13: 0 | FZ13: 0 | GA13: 0 | GB13: 0 | GC13: 0 | GD13: 0 | GE13: 0 | GF13: 0 | GG13: 0 | GH13: 0 | GI13: 0 | GJ13: 0 | GK13: 0 | GL13: 0 | GM13: 0 | GN13: 0 | GO13: 0 | GP13: 0 | GQ13: 0 | GR13: 0 | GS13: 0 | GT13: 0 | GU13: 0 | GV13: 0 | GW13: 0 | GX13: 0 | GY13: 0 | GZ13: 0 | HA13: 0 | HB13: 0 | HC13: 0 | HD13: 0 | HE13: 0 | HF13: 0 | HG13: 0 | HH13: 0 | HI13: 0 | HJ13: 0 | HK13: 0 | HL13: 0 | HM13: 0 | HN13: 0 | HO13: 0 | HP13: 0 | HQ13: 0 | HR13: 0 | HS13: 0 | HT13: 0 | HU13: 0 | HV13: 0 | HW13: 0 | HX13: 0 | HY13: 0 | HZ13: 0 | IA13: 0 | IB13: 0 | IC13: 0 | ID13: 0 | IE13: 0 | IF13: 0 | IG13: 0 | IH13: 0 | II13: 0 | IJ13: 0 | IK13: 0 | IL13: 0 | IM13: 0 | IN13: 0 | IO13: 0 | IP13: 0 | IQ13: 0 | IR13: 0 | IS13: 0 | IT13: 0 | IU13: 0 | IV13: 0 | IW13: 0 | IX13: 0 | IY13: 0 | IZ13: 0
A14: =IF($B$45=1,Faktorer_bolig!A10,Faktorer_andre!A10) -> 1. etg: | B14: 0 | C14: =IF($B$45=1,Faktorer_bolig!B10,Faktorer_andre!B10) -> Arealbruk i %; | D14: =IF($B$45=1,Faktorer_bolig!C10,Faktorer_andre!C10) -> svak/uegnet. | E14: 0 | F14: =IF($B$45=1,Faktorer_bolig!E10,Faktorer_andre!E10) -> enkelt bruksareal | G14: 0 | H14: =IF($B$45=1,Faktorer_bolig!G10,Faktorer_andre!G10) -> vanl. bruksareal | I14: 0 | J14: =IF($B$45=1,Faktorer_bolig!I10,Faktorer_andre!I10) -> 0 | L14: =IF(areal_1>0,100-SUM(E14:K14),0) -> 0 | M14: 0 | N14: 0 | O14: 0 | P14: 0 | Q14: 0 | R14: 0 | S14: 0 | T14: 0 | U14: 0 | V14: 0 | W14: 0 | X14: 0 | Y14: 0 | Z14: 0 | AA14: 0 | AB14: 0 | AC14: 0 | AD14: 0 | AE14: 0 | AF14: 0 | AG14: 0 | AH14: 0 | AI14: 0 | AJ14: 0 | AK14: 0 | AL14: 0 | AM14: 0 | AN14: 0 | AO14: 0 | AP14: 0 | AQ14: 0 | AR14: 0 | AS14: 0 | AT14: 0 | AU14: 0 | AV14: 0 | AW14: 0 | AX14: 0 | AY14: 0 | AZ14: 0 | BA14: 0 | BB14: 0 | BC14: 0 | BD14: 0 | BE14: 0 | BF14: 0 | BG14: 0 | BH14: 0 | BI14: 0 | BJ14: 0 | BK14: 0 | BL14: 0 | BM14: 0 | BN14: 0 | BO14: 0 | BP14: 0 | BQ14: 0 | BR14: 0 | BS14: 0 | BT14: 0 | BU14: 0 | BV14: 0 | BW14: 0 | BX14: 0 | BY14: 0 | BZ14: 0 | CA14: 0 | CB14: 0 | CC14: 0 | CD14: 0 | CE14: 0 | CF14: 0 | CG14: 0 | CH14: 0 | CI14: 0 | CJ14: 0 | CK14: 0 | CL14: 0 | CM14: 0 | CN14: 0 | CO14: 0 | CP14: 0 | CQ14: 0 | CR14: 0 | CS14: 0 | CT14: 0 | CU14: 0 | CV14: 0 | CW14: 0 | CX14: 0 | CY14: 0 | CZ14: 0 | DA14: 0 | DB14: 0 | DC14: 0 | DD14: 0 | DE14: 0 | DF14: 0 | DG14: 0 | DH14: 0 | DI14: 0 | DJ14: 0 | DK14: 0 | DL14: 0 | DM14: 0 | DN14: 0 | DO14: 0 | DP14: 0 | DQ14: 0 | DR14: 0 | DS14: 0 | DT14: 0 | DU14: 0 | DV14: 0 | DW14: 0 | DX14: 0 | DY14: 0 | DZ14: 0 | EA14: 0 | EB14: 0 | EC14: 0 | ED14: 0 | EE14: 0 | EF14: 0 | EG14: 0 | EH14: 0 | EI14: 0 | EJ14: 0 | EK14: 0 | EL14: 0 | EM14: 0 | EN14: 0 | EO14: 0 | EP14: 0 | EQ14: 0 | ER14: 0 | ES14: 0 | ET14: 0 | EU14: 0 | EV14: 0 | EW14: 0 | EX14: 0 | EY14: 0 | EZ14: 0 | FA14: 0 | FB14: 0 | FC14: 0 | FD14: 0 | FE14: 0 | FF14: 0 | FG14: 0 | FH14: 0 | FI14: 0 | FJ14: 0 | FK14: 0 | FL14: 0 | FM14: 0 | FN14: 0 | FO14: 0 | FP14: 0 | FQ14: 0 | FR14: 0 | FS14: 0 | FT14: 0 | FU14: 0 | FV14: 0 | FW14: 0 | FX14: 0 | FY14: 0 | FZ14: 0 | GA14: 0 | GB14: 0 | GC14: 0 | GD14: 0 | GE14: 0 | GF14: 0 | GG14: 0 | GH14: 0 | GI14: 0 | GJ14: 0 | GK14: 0 | GL14: 0 | GM14: 0 | GN14: 0 | GO14: 0 | GP14: 0 | GQ14: 0 | GR14: 0 | GS14: 0 | GT14: 0 | GU14: 0 | GV14: 0 | GW14: 0 | GX14: 0 | GY14: 0 | GZ14: 0 | HA14: 0 | HB14: 0 | HC14: 0 | HD14: 0 | HE14: 0 | HF14: 0 | HG14: 0 | HH14: 0 | HI14: 0 | HJ14: 0 | HK14: 0 | HL14: 0 | HM14: 0 | HN14: 0 | HO14: 0 | HP14: 0 | HQ14: 0 | HR14: 0 | HS14: 0 | HT14: 0 | HU14: 0 | HV14: 0 | HW14: 0 | HX14: 0 | HY14: 0 | HZ14: 0 | IA14: 0 | IB14: 0 | IC14: 0 | ID14: 0 | IE14: 0 | IF14: 0 | IG14: 0 | IH14: 0 | II14: 0 | IJ14: 0 | IK14: 0 | IL14: 0 | IM14: 0 | IN14: 0 | IO14: 0 | IP14: 0 | IQ14: 0 | IR14: 0 | IS14: 0 | IT14: 0 | IU14: 0 | IV14: 0 | IW14: 0 | IX14: 0 | IY14: 0 | IZ14: 0
A15: =IF($B$45=1,Faktorer_bolig!A11,Faktorer_andre!A11) -> 0 | B15: =IF(AND(A14=0,SUM(E14:E16,G14:G16,I14:I16,K15:K16)>0),"Har du glemt arealet ?","") ->  | C15: =IF($B$45=1,Faktorer_bolig!B11,Faktorer_andre!B11) -> Etasjestd i %; | D15: =IF($B$45=1,Faktorer_bolig!C11,Faktorer_andre!C11) -> lav | E15: 0 | F15: =IF($B$45=1,Faktorer_bolig!E11,Faktorer_andre!E11) -> enkel | G15: 0 | H15: =IF($B$45=1,Faktorer_bolig!G11,Faktorer_andre!G11) -> bra | I15: 0 | J15: =IF($B$45=1,Faktorer_bolig!I11,Faktorer_andre!I11) -> god | K15: 0 | L15: =IF(areal_1>0,100-SUM(E15:K15),0) -> 0 | M15: 0 | N15: 0 | O15: 0 | P15: 0 | Q15: 0 | R15: 0 | S15: 0 | T15: 0 | U15: 0 | V15: 0 | W15: 0 | X15: 0 | Y15: 0 | Z15: 0 | AA15: 0 | AB15: 0 | AC15: 0 | AD15: 0 | AE15: 0 | AF15: 0 | AG15: 0 | AH15: 0 | AI15: 0 | AJ15: 0 | AK15: 0 | AL15: 0 | AM15: 0 | AN15: 0 | AO15: 0 | AP15: 0 | AQ15: 0 | AR15: 0 | AS15: 0 | AT15: 0 | AU15: 0 | AV15: 0 | AW15: 0 | AX15: 0 | AY15: 0 | AZ15: 0 | BA15: 0 | BB15: 0 | BC15: 0 | BD15: 0 | BE15: 0 | BF15: 0 | BG15: 0 | BH15: 0 | BI15: 0 | BJ15: 0 | BK15: 0 | BL15: 0 | BM15: 0 | BN15: 0 | BO15: 0 | BP15: 0 | BQ15: 0 | BR15: 0 | BS15: 0 | BT15: 0 | BU15: 0 | BV15: 0 | BW15: 0 | BX15: 0 | BY15: 0 | BZ15: 0 | CA15: 0 | CB15: 0 | CC15: 0 | CD15: 0 | CE15: 0 | CF15: 0 | CG15: 0 | CH15: 0 | CI15: 0 | CJ15: 0 | CK15: 0 | CL15: 0 | CM15: 0 | CN15: 0 | CO15: 0 | CP15: 0 | CQ15: 0 | CR15: 0 | CS15: 0 | CT15: 0 | CU15: 0 | CV15: 0 | CW15: 0 | CX15: 0 | CY15: 0 | CZ15: 0 | DA15: 0 | DB15: 0 | DC15: 0 | DD15: 0 | DE15: 0 | DF15: 0 | DG15: 0 | DH15: 0 | DI15: 0 | DJ15: 0 | DK15: 0 | DL15: 0 | DM15: 0 | DN15: 0 | DO15: 0 | DP15: 0 | DQ15: 0 | DR15: 0 | DS15: 0 | DT15: 0 | DU15: 0 | DV15: 0 | DW15: 0 | DX15: 0 | DY15: 0 | DZ15: 0 | EA15: 0 | EB15: 0 | EC15: 0 | ED15: 0 | EE15: 0 | EF15: 0 | EG15: 0 | EH15: 0 | EI15: 0 | EJ15: 0 | EK15: 0 | EL15: 0 | EM15: 0 | EN15: 0 | EO15: 0 | EP15: 0 | EQ15: 0 | ER15: 0 | ES15: 0 | ET15: 0 | EU15: 0 | EV15: 0 | EW15: 0 | EX15: 0 | EY15: 0 | EZ15: 0 | FA15: 0 | FB15: 0 | FC15: 0 | FD15: 0 | FE15: 0 | FF15: 0 | FG15: 0 | FH15: 0 | FI15: 0 | FJ15: 0 | FK15: 0 | FL15: 0 | FM15: 0 | FN15: 0 | FO15: 0 | FP15: 0 | FQ15: 0 | FR15: 0 | FS15: 0 | FT15: 0 | FU15: 0 | FV15: 0 | FW15: 0 | FX15: 0 | FY15: 0 | FZ15: 0 | GA15: 0 | GB15: 0 | GC15: 0 | GD15: 0 | GE15: 0 | GF15: 0 | GG15: 0 | GH15: 0 | GI15: 0 | GJ15: 0 | GK15: 0 | GL15: 0 | GM15: 0 | GN15: 0 | GO15: 0 | GP15: 0 | GQ15: 0 | GR15: 0 | GS15: 0 | GT15: 0 | GU15: 0 | GV15: 0 | GW15: 0 | GX15: 0 | GY15: 0 | GZ15: 0 | HA15: 0 | HB15: 0 | HC15: 0 | HD15: 0 | HE15: 0 | HF15: 0 | HG15: 0 | HH15: 0 | HI15: 0 | HJ15: 0 | HK15: 0 | HL15: 0 | HM15: 0 | HN15: 0 | HO15: 0 | HP15: 0 | HQ15: 0 | HR15: 0 | HS15: 0 | HT15: 0 | HU15: 0 | HV15: 0 | HW15: 0 | HX15: 0 | HY15: 0 | HZ15: 0 | IA15: 0 | IB15: 0 | IC15: 0 | ID15: 0 | IE15: 0 | IF15: 0 | IG15: 0 | IH15: 0 | II15: 0 | IJ15: 0 | IK15: 0 | IL15: 0 | IM15: 0 | IN15: 0 | IO15: 0 | IP15: 0 | IQ15: 0 | IR15: 0 | IS15: 0 | IT15: 0 | IU15: 0 | IV15: 0 | IW15: 0 | IX15: 0 | IY15: 0 | IZ15: 0
A16: =IF($B$45=1,Faktorer_bolig!A12,Faktorer_andre!A12) -> 0 | C16: =IF($B$45=1,Faktorer_bolig!B12,Faktorer_andre!B12) -> Tilst/egnethet; | D16: =IF($B$45=1,Faktorer_bolig!C12,Faktorer_andre!C12) -> slitt/dårl | E16: 0 | F16: =IF($B$45=1,Faktorer_bolig!E12,Faktorer_andre!E12) -> brukbar | G16: 0 | H16: =IF($B$45=1,Faktorer_bolig!G12,Faktorer_andre!G12) -> bra | I16: 0 | J16: =IF($B$45=1,Faktorer_bolig!I12,Faktorer_andre!I12) -> svært god | K16: 0 | L16: =IF(areal_1>0,100-SUM(E16:K16),0) -> 0 | M16: 0 | N16: 0 | O16: 0 | P16: 0 | Q16: 0 | R16: 0 | S16: 0 | T16: 0 | U16: 0 | V16: 0 | W16: 0 | X16: 0 | Y16: 0 | Z16: 0 | AA16: 0 | AB16: 0 | AC16: 0 | AD16: 0 | AE16: 0 | AF16: 0 | AG16: 0 | AH16: 0 | AI16: 0 | AJ16: 0 | AK16: 0 | AL16: 0 | AM16: 0 | AN16: 0 | AO16: 0 | AP16: 0 | AQ16: 0 | AR16: 0 | AS16: 0 | AT16: 0 | AU16: 0 | AV16: 0 | AW16: 0 | AX16: 0 | AY16: 0 | AZ16: 0 | BA16: 0 | BB16: 0 | BC16: 0 | BD16: 0 | BE16: 0 | BF16: 0 | BG16: 0 | BH16: 0 | BI16: 0 | BJ16: 0 | BK16: 0 | BL16: 0 | BM16: 0 | BN16: 0 | BO16: 0 | BP16: 0 | BQ16: 0 | BR16: 0 | BS16: 0 | BT16: 0 | BU16: 0 | BV16: 0 | BW16: 0 | BX16: 0 | BY16: 0 | BZ16: 0 | CA16: 0 | CB16: 0 | CC16: 0 | CD16: 0 | CE16: 0 | CF16: 0 | CG16: 0 | CH16: 0 | CI16: 0 | CJ16: 0 | CK16: 0 | CL16: 0 | CM16: 0 | CN16: 0 | CO16: 0 | CP16: 0 | CQ16: 0 | CR16: 0 | CS16: 0 | CT16: 0 | CU16: 0 | CV16: 0 | CW16: 0 | CX16: 0 | CY16: 0 | CZ16: 0 | DA16: 0 | DB16: 0 | DC16: 0 | DD16: 0 | DE16: 0 | DF16: 0 | DG16: 0 | DH16: 0 | DI16: 0 | DJ16: 0 | DK16: 0 | DL16: 0 | DM16: 0 | DN16: 0 | DO16: 0 | DP16: 0 | DQ16: 0 | DR16: 0 | DS16: 0 | DT16: 0 | DU16: 0 | DV16: 0 | DW16: 0 | DX16: 0 | DY16: 0 | DZ16: 0 | EA16: 0 | EB16: 0 | EC16: 0 | ED16: 0 | EE16: 0 | EF16: 0 | EG16: 0 | EH16: 0 | EI16: 0 | EJ16: 0 | EK16: 0 | EL16: 0 | EM16: 0 | EN16: 0 | EO16: 0 | EP16: 0 | EQ16: 0 | ER16: 0 | ES16: 0 | ET16: 0 | EU16: 0 | EV16: 0 | EW16: 0 | EX16: 0 | EY16: 0 | EZ16: 0 | FA16: 0 | FB16: 0 | FC16: 0 | FD16: 0 | FE16: 0 | FF16: 0 | FG16: 0 | FH16: 0 | FI16: 0 | FJ16: 0 | FK16: 0 | FL16: 0 | FM16: 0 | FN16: 0 | FO16: 0 | FP16: 0 | FQ16: 0 | FR16: 0 | FS16: 0 | FT16: 0 | FU16: 0 | FV16: 0 | FW16: 0 | FX16: 0 | FY16: 0 | FZ16: 0 | GA16: 0 | GB16: 0 | GC16: 0 | GD16: 0 | GE16: 0 | GF16: 0 | GG16: 0 | GH16: 0 | GI16: 0 | GJ16: 0 | GK16: 0 | GL16: 0 | GM16: 0 | GN16: 0 | GO16: 0 | GP16: 0 | GQ16: 0 | GR16: 0 | GS16: 0 | GT16: 0 | GU16: 0 | GV16: 0 | GW16: 0 | GX16: 0 | GY16: 0 | GZ16: 0 | HA16: 0 | HB16: 0 | HC16: 0 | HD16: 0 | HE16: 0 | HF16: 0 | HG16: 0 | HH16: 0 | HI16: 0 | HJ16: 0 | HK16: 0 | HL16: 0 | HM16: 0 | HN16: 0 | HO16: 0 | HP16: 0 | HQ16: 0 | HR16: 0 | HS16: 0 | HT16: 0 | HU16: 0 | HV16: 0 | HW16: 0 | HX16: 0 | HY16: 0 | HZ16: 0 | IA16: 0 | IB16: 0 | IC16: 0 | ID16: 0 | IE16: 0 | IF16: 0 | IG16: 0 | IH16: 0 | II16: 0 | IJ16: 0 | IK16: 0 | IL16: 0 | IM16: 0 | IN16: 0 | IO16: 0 | IP16: 0 | IQ16: 0 | IR16: 0 | IS16: 0 | IT16: 0 | IU16: 0 | IV16: 0 | IW16: 0 | IX16: 0 | IY16: 0 | IZ16: 0
A17: =IF($B$45=1,Faktorer_bolig!A13,Faktorer_andre!A13) -> 2. etg: | B17: 0 | C17: =IF($B$45=1,Faktorer_bolig!B13,Faktorer_andre!B13) -> Arealbruk i %; | D17: =IF($B$45=1,Faktorer_bolig!C13,Faktorer_andre!C13) -> svak/uegnet | E17: 0 | F17: =IF($B$45=1,Faktorer_bolig!E13,Faktorer_andre!E13) -> enkelt bruksareal | G17: 0 | H17: =IF($B$45=1,Faktorer_bolig!G13,Faktorer_andre!G13) -> vanl. bruksareal | I17: 0 | J17: =IF($B$45=1,Faktorer_bolig!I13,Faktorer_andre!I13) -> 0 | K17: 0 | L17: =IF(areal_2>0,100-SUM(E17:K17),0) -> 0 | M17: 0 | N17: 0 | O17: 0 | P17: 0 | Q17: 0 | R17: 0 | S17: 0 | T17: 0 | U17: 0 | V17: 0 | W17: 0 | X17: 0 | Y17: 0 | Z17: 0 | AA17: 0 | AB17: 0 | AC17: 0 | AD17: 0 | AE17: 0 | AF17: 0 | AG17: 0 | AH17: 0 | AI17: 0 | AJ17: 0 | AK17: 0 | AL17: 0 | AM17: 0 | AN17: 0 | AO17: 0 | AP17: 0 | AQ17: 0 | AR17: 0 | AS17: 0 | AT17: 0 | AU17: 0 | AV17: 0 | AW17: 0 | AX17: 0 | AY17: 0 | AZ17: 0 | BA17: 0 | BB17: 0 | BC17: 0 | BD17: 0 | BE17: 0 | BF17: 0 | BG17: 0 | BH17: 0 | BI17: 0 | BJ17: 0 | BK17: 0 | BL17: 0 | BM17: 0 | BN17: 0 | BO17: 0 | BP17: 0 | BQ17: 0 | BR17: 0 | BS17: 0 | BT17: 0 | BU17: 0 | BV17: 0 | BW17: 0 | BX17: 0 | BY17: 0 | BZ17: 0 | CA17: 0 | CB17: 0 | CC17: 0 | CD17: 0 | CE17: 0 | CF17: 0 | CG17: 0 | CH17: 0 | CI17: 0 | CJ17: 0 | CK17: 0 | CL17: 0 | CM17: 0 | CN17: 0 | CO17: 0 | CP17: 0 | CQ17: 0 | CR17: 0 | CS17: 0 | CT17: 0 | CU17: 0 | CV17: 0 | CW17: 0 | CX17: 0 | CY17: 0 | CZ17: 0 | DA17: 0 | DB17: 0 | DC17: 0 | DD17: 0 | DE17: 0 | DF17: 0 | DG17: 0 | DH17: 0 | DI17: 0 | DJ17: 0 | DK17: 0 | DL17: 0 | DM17: 0 | DN17: 0 | DO17: 0 | DP17: 0 | DQ17: 0 | DR17: 0 | DS17: 0 | DT17: 0 | DU17: 0 | DV17: 0 | DW17: 0 | DX17: 0 | DY17: 0 | DZ17: 0 | EA17: 0 | EB17: 0 | EC17: 0 | ED17: 0 | EE17: 0 | EF17: 0 | EG17: 0 | EH17: 0 | EI17: 0 | EJ17: 0 | EK17: 0 | EL17: 0 | EM17: 0 | EN17: 0 | EO17: 0 | EP17: 0 | EQ17: 0 | ER17: 0 | ES17: 0 | ET17: 0 | EU17: 0 | EV17: 0 | EW17: 0 | EX17: 0 | EY17: 0 | EZ17: 0 | FA17: 0 | FB17: 0 | FC17: 0 | FD17: 0 | FE17: 0 | FF17: 0 | FG17: 0 | FH17: 0 | FI17: 0 | FJ17: 0 | FK17: 0 | FL17: 0 | FM17: 0 | FN17: 0 | FO17: 0 | FP17: 0 | FQ17: 0 | FR17: 0 | FS17: 0 | FT17: 0 | FU17: 0 | FV17: 0 | FW17: 0 | FX17: 0 | FY17: 0 | FZ17: 0 | GA17: 0 | GB17: 0 | GC17: 0 | GD17: 0 | GE17: 0 | GF17: 0 | GG17: 0 | GH17: 0 | GI17: 0 | GJ17: 0 | GK17: 0 | GL17: 0 | GM17: 0 | GN17: 0 | GO17: 0 | GP17: 0 | GQ17: 0 | GR17: 0 | GS17: 0 | GT17: 0 | GU17: 0 | GV17: 0 | GW17: 0 | GX17: 0 | GY17: 0 | GZ17: 0 | HA17: 0 | HB17: 0 | HC17: 0 | HD17: 0 | HE17: 0 | HF17: 0 | HG17: 0 | HH17: 0 | HI17: 0 | HJ17: 0 | HK17: 0 | HL17: 0 | HM17: 0 | HN17: 0 | HO17: 0 | HP17: 0 | HQ17: 0 | HR17: 0 | HS17: 0 | HT17: 0 | HU17: 0 | HV17: 0 | HW17: 0 | HX17: 0 | HY17: 0 | HZ17: 0 | IA17: 0 | IB17: 0 | IC17: 0 | ID17: 0 | IE17: 0 | IF17: 0 | IG17: 0 | IH17: 0 | II17: 0 | IJ17: 0 | IK17: 0 | IL17: 0 | IM17: 0 | IN17: 0 | IO17: 0 | IP17: 0 | IQ17: 0 | IR17: 0 | IS17: 0 | IT17: 0 | IU17: 0 | IV17: 0 | IW17: 0 | IX17: 0 | IY17: 0 | IZ17: 0
A18: =IF($B$45=1,Faktorer_bolig!A14,Faktorer_andre!A14) -> 0 | B18: =IF(AND(A17=0,SUM(E17:E19,G17:G19,I17:I19,K18:K19)>0),"Har du glemt arealet ?","") ->  | C18: =IF($B$45=1,Faktorer_bolig!B14,Faktorer_andre!B14) -> Etasjestd i %; | D18: =IF($B$45=1,Faktorer_bolig!C14,Faktorer_andre!C14) -> lav | E18: 0 | F18: =IF($B$45=1,Faktorer_bolig!E14,Faktorer_andre!E14) -> enkel | G18: 0 | H18: =IF($B$45=1,Faktorer_bolig!G14,Faktorer_andre!G14) -> bra | I18: 0 | J18: =IF($B$45=1,Faktorer_bolig!I14,Faktorer_andre!I14) -> god | K18: 0 | L18: =IF(areal_2>0,100-SUM(E18:K18),0) -> 0 | M18: 0
A19: =IF($B$45=1,Faktorer_bolig!A15,Faktorer_andre!A15) -> 0 | C19: =IF($B$45=1,Faktorer_bolig!B15,Faktorer_andre!B15) -> Tilst/egnethet; | D19: =IF($B$45=1,Faktorer_bolig!C15,Faktorer_andre!C15) -> slitt/dårl | E19: 0 | F19: =IF($B$45=1,Faktorer_bolig!E15,Faktorer_andre!E15) -> brukbar | G19: 0 | H19: =IF($B$45=1,Faktorer_bolig!G15,Faktorer_andre!G15) -> bra | I19: 0 | J19: =IF($B$45=1,Faktorer_bolig!I15,Faktorer_andre!I15) -> svært god | K19: 0 | L19: =IF(areal_2>0,100-SUM(E19:K19),0) -> 0 | M19: 0
A20: =IF($B$45=1,Faktorer_bolig!A16,Faktorer_andre!A16) -> Kjørebro/ mesanin | B20: 0 | C20: =IF($B$45=1,Faktorer_bolig!B16,Faktorer_andre!B16) -> Arealbruk i %; | D20: =IF($B$45=1,Faktorer_bolig!C16,Faktorer_andre!C16) -> svak/uegnet | E20: 0 | F20: =IF($B$45=1,Faktorer_bolig!E16,Faktorer_andre!E16) -> lettlager | G20: 0 | H20: =IF($B$45=1,Faktorer_bolig!G16,Faktorer_andre!G16) -> vanl. bruksareal | I20: 0 | J20: =IF($B$45=1,Faktorer_bolig!I16,Faktorer_andre!I16) -> 0 | K20: 0 | L20: =IF($B$20>0,100-SUM(E20:K20),0) -> 0 | M20: 0
A21: =IF($B$45=1,Faktorer_bolig!A17,Faktorer_andre!A17) -> 0 | B21: =IF(AND(B20=0,SUM(E20:E22,G20:G22,I20:I22,K21:K22)>0),"Har du glemt arealet ?","") ->  | C21: =IF($B$45=1,Faktorer_bolig!B17,Faktorer_andre!B17) -> Etasjestd i %; | D21: =IF($B$45=1,Faktorer_bolig!C17,Faktorer_andre!C17) -> lav | E21: 0 | F21: =IF($B$45=1,Faktorer_bolig!E17,Faktorer_andre!E17) -> enkel | G21: 0 | H21: =IF($B$45=1,Faktorer_bolig!G17,Faktorer_andre!G17) -> bra | I21: 0 | J21: =IF($B$45=1,Faktorer_bolig!I17,Faktorer_andre!I17) -> god | K21: 0 | L21: =IF($B$20>0,100-SUM(E21:K21),0) -> 0 | M21: 0
A22: =IF($B$45=1,Faktorer_bolig!A18,Faktorer_andre!A18) -> 0 | C22: =IF($B$45=1,Faktorer_bolig!B18,Faktorer_andre!B18) -> Tilst/egnethet; | D22: =IF($B$45=1,Faktorer_bolig!C18,Faktorer_andre!C18) -> slitt/dårl | E22: 0 | F22: =IF($B$45=1,Faktorer_bolig!E18,Faktorer_andre!E18) -> brukbar | G22: 0 | H22: =IF($B$45=1,Faktorer_bolig!G18,Faktorer_andre!G18) -> bra | I22: 0 | J22: =IF($B$45=1,Faktorer_bolig!I18,Faktorer_andre!I18) -> svært god | K22: 0 | L22: 0 | M22: 0
A23: =Faktorer_bolig!A19 -> Enkel bolig | B23: 0 | C23: =Faktorer_bolig!A19 -> Enkel bolig | D23: =Faktorer_bolig!C19 -> svak/uinnr. | E23: 0 | F23: =Faktorer_bolig!E19 -> enkel | G23: 0 | H23: =Faktorer_bolig!G19 -> vanlig | I23: 0 | J23: =Faktorer_bolig!I19 -> 0 | K23: 0 | L23: =IF($B$23>0,100-SUM(E23:K23),0) -> 0 | M23: =IF(L23>0," % mangler","") -> 
A24: =Faktorer_bolig!A20 -> Enkel bolig | C24: =Faktorer_bolig!B20 -> Etasjestd %; | D24: =Faktorer_bolig!C20 -> lav | E24: 0 | F24: =Faktorer_bolig!E20 -> bra | G24: 0 | H24: =Faktorer_bolig!G20 -> god | I24: 0 | J24: =Faktorer_bolig!I20 -> topp | K24: 0 | L24: =IF($B$23>0,100-SUM(E24:K24),0) -> 0 | M24: =IF(L24>0," % mangler","") -> 
A25: =Faktorer_bolig!A21 -> Enkel bolig | C25: =Faktorer_bolig!B21 -> Tilst/egn; | D25: =Faktorer_bolig!C21 -> slitt/dårl | E25: 0 | F25: =Faktorer_bolig!E21 -> brukbar | G25: 0 | H25: =Faktorer_bolig!G21 -> bra | I25: 0 | J25: =Faktorer_bolig!I21 -> sv. god | K25: 0 | L25: =IF($B$23>0,100-SUM(E25:K25),0) -> 0 | M25: =IF(L25>0," % mangler","") -> 
A29: Tomt | B29: =VLOOKUP(A1,'Priser nybygg'!B3:G26,6) -> 0 | C29: Verdi for opparbeidet gårdstun og hage | J29: 2 | K29: 0
A30: Tomt | C30: Tomt, | D30: =Registreringsskjema!B23 -> Vann; | E30: =Registreringsskjema!C23 -> Svært god = 4, god = 3, middels = 2, dårlig = 1 | J30: 0
A31: Tomt | C31: vann og | D31: =Registreringsskjema!B24 -> Avløp; | E31: =Registreringsskjema!C24 -> Svært god = 4, god = 3, middels = 2, dårlig = 1 | J31: 0
A32: Tomt | C32: avløp | D32: =Registreringsskjema!B25 -> Have/tun; | E32: =Registreringsskjema!C25 -> velholdt have/tun = 8, funksjonell beplantet have= 5, alminnelig bra = 3, enkel = 1 | J32: 0 | K32: =SUM(J29:J32) -> 2
A33: Tomt | D33: =Registreringsskjema!B26 -> 0 | E33: =Registreringsskjema!C26 -> 0 | F33: =Registreringsskjema!D26 -> 0 | G33: =Registreringsskjema!E26 -> 0 | H33: =Registreringsskjema!F26 -> 0 | I33: =Registreringsskjema!G26 -> 0 | J33: Ukorrigert verdi | K33: 0
A43: =CONCATENATE("Verdiberegning ",'Bygg 3'!A1) -> Verdiberegning X
A45: Valgt faktor_ark | B45: =VLOOKUP(A1,'Priser nybygg'!B3:G26,3,FALSE) -> 2 | C45: =IF($B$45=1,"Faktorer_bolig","Faktorer_andre") -> Faktorer_andre
A47: Hustype | B47: Etasje | D47: Faktor_1 | E47: Andel % | F47: Faktor_2 | G47: Andel % | H47: Faktor_3 | I47: Andel % | J47: Faktor_4 | K47: Andel % | L47: Beregnet faktor
A48: =$A$1 -> X | B48: Kjeller | C48: Arealtype %; | D48: =IF($B$45=1,Faktorer_bolig!D4,Faktorer_andre!D4) -> 0.1 | E48: ='Bygg 3'!E8 -> 0 | F48: =IF($B$45=1,Faktorer_bolig!F4,Faktorer_andre!F4) -> 0.2 | G48: ='Bygg 3'!G8 -> 0 | H48: =IF($B$45=1,Faktorer_bolig!H4,Faktorer_andre!H4) -> 0.3 | I48: ='Bygg 3'!I8 -> 0 | J48: =IF($B$45=1,Faktorer_bolig!J4,Faktorer_andre!J4) -> 0 | L48: =K48*J48+I48*H48+G48*F48+E48*D48 -> 0
B49: Kjeller | C49: Etasjestd %; | D49: =IF($B$45=1,Faktorer_bolig!D5,Faktorer_andre!D5) -> 0.4 | E49: ='Bygg 3'!E9 -> 0 | F49: =IF($B$45=1,Faktorer_bolig!F5,Faktorer_andre!F5) -> 0.6 | G49: ='Bygg 3'!G9 -> 0 | H49: =IF($B$45=1,Faktorer_bolig!H5,Faktorer_andre!H5) -> 0.8 | I49: ='Bygg 3'!I9 -> 0 | J49: =IF($B$45=1,Faktorer_bolig!J5,Faktorer_andre!J5) -> 1 | K49: ='Bygg 3'!K9 -> 0 | L49: 0
B50: Kjeller | C50: Tilst/egn; | D50: =IF($B$45=1,Faktorer_bolig!D6,Faktorer_andre!D6) -> 0.4 | E50: ='Bygg 3'!E10 -> 0 | F50: =IF($B$45=1,Faktorer_bolig!F6,Faktorer_andre!F6) -> 0.6 | G50: ='Bygg 3'!G10 -> 0 | H50: =IF($B$45=1,Faktorer_bolig!H6,Faktorer_andre!H6) -> 0.8 | I50: ='Bygg 3'!I10 -> 0 | J50: =IF($B$45=1,Faktorer_bolig!J6,Faktorer_andre!J6) -> 1 | K50: ='Bygg 3'!K10 -> 0 | L50: 0
B51: Underetasje | C51: Arealtype %; | D51: =IF($B$45=1,Faktorer_bolig!D7,Faktorer_andre!D7) -> 0.2 | E51: ='Bygg 3'!E11 -> 0 | F51: =IF($B$45=1,Faktorer_bolig!F7,Faktorer_andre!F7) -> 0.35 | G51: ='Bygg 3'!G11 -> 0 | H51: =IF($B$45=1,Faktorer_bolig!H7,Faktorer_andre!H7) -> 0.5 | I51: ='Bygg 3'!I11 -> 0 | J51: =IF($B$45=1,Faktorer_bolig!J7,Faktorer_andre!J7) -> 0 | L51: 0
B52: Underetasje | C52: Etasjestd %; | D52: =IF($B$45=1,Faktorer_bolig!D8,Faktorer_andre!D8) -> 0.56 | E52: ='Bygg 3'!E12 -> 0 | F52: =IF($B$45=1,Faktorer_bolig!F8,Faktorer_andre!F8) -> 0.75 | G52: ='Bygg 3'!G12 -> 0 | H52: =IF($B$45=1,Faktorer_bolig!H8,Faktorer_andre!H8) -> 0.87 | I52: ='Bygg 3'!I12 -> 0 | J52: =IF($B$45=1,Faktorer_bolig!J8,Faktorer_andre!J8) -> 1 | K52: ='Bygg 3'!K12 -> 0 | L52: 0
B53: Underetasje | C53: Tilst/egn; | D53: =IF($B$45=1,Faktorer_bolig!D9,Faktorer_andre!D9) -> 0.5 | E53: ='Bygg 3'!E13 -> 0 | F53: =IF($B$45=1,Faktorer_bolig!F9,Faktorer_andre!F9) -> 0.65 | G53: ='Bygg 3'!G13 -> 0 | H53: =IF($B$45=1,Faktorer_bolig!H9,Faktorer_andre!H9) -> 0.8 | I53: ='Bygg 3'!I13 -> 0 | J53: =IF($B$45=1,Faktorer_bolig!J9,Faktorer_andre!J9) -> 1 | K53: ='Bygg 3'!K13 -> 0 | L53: 0
B54: 1. etg | C54: Arealtype %; | D54: =IF($B$45=1,Faktorer_bolig!D10,Faktorer_andre!D10) -> 0.4 | E54: ='Bygg 3'!E14 -> 0 | F54: =IF($B$45=1,Faktorer_bolig!F10,Faktorer_andre!F10) -> 0.7 | G54: ='Bygg 3'!G14 -> 0 | H54: =IF($B$45=1,Faktorer_bolig!H10,Faktorer_andre!H10) -> 1 | I54: ='Bygg 3'!I14 -> 0 | J54: =IF($B$45=1,Faktorer_bolig!J10,Faktorer_andre!J10) -> 0 | L54: 0
B55: 1. etg | C55: Etasjestd %; | D55: =IF($B$45=1,Faktorer_bolig!D11,Faktorer_andre!D11) -> 0.56 | E55: ='Bygg 3'!E15 -> 0 | F55: =IF($B$45=1,Faktorer_bolig!F11,Faktorer_andre!F11) -> 0.75 | G55: ='Bygg 3'!G15 -> 0 | H55: =IF($B$45=1,Faktorer_bolig!H11,Faktorer_andre!H11) -> 0.87 | I55: ='Bygg 3'!I15 -> 0 | J55: =IF($B$45=1,Faktorer_bolig!J11,Faktorer_andre!J11) -> 1 | K55: ='Bygg 3'!K15 -> 0 | L55: 0
B56: 1. etg | C56: Tilst/egn; | D56: =IF($B$45=1,Faktorer_bolig!D12,Faktorer_andre!D12) -> 0.5 | E56: ='Bygg 3'!E16 -> 0 | F56: =IF($B$45=1,Faktorer_bolig!F12,Faktorer_andre!F12) -> 0.65 | G56: ='Bygg 3'!G16 -> 0 | H56: =IF($B$45=1,Faktorer_bolig!H12,Faktorer_andre!H12) -> 0.8 | I56: ='Bygg 3'!I16 -> 0 | J56: =IF($B$45=1,Faktorer_bolig!J12,Faktorer_andre!J12) -> 1 | K56: ='Bygg 3'!K16 -> 0 | L56: 0
B57: 2.etg | C57: Arealtype %; | D57: =IF($B$45=1,Faktorer_bolig!D13,Faktorer_andre!D13) -> 0.2 | E57: ='Bygg 3'!E17 -> 0 | F57: =IF($B$45=1,Faktorer_bolig!F13,Faktorer_andre!F13) -> 0.4 | G57: ='Bygg 3'!G17 -> 0 | H57: =IF($B$45=1,Faktorer_bolig!H13,Faktorer_andre!H13) -> 0.6 | I57: ='Bygg 3'!I17 -> 0 | J57: =IF($B$45=1,Faktorer_bolig!J13,Faktorer_andre!J13) -> 0 | L57: =I57*H57+G57*F57+E57*D57 -> 0
B58: 2.etg | C58: Etasjestd %; | D58: =IF($B$45=1,Faktorer_bolig!D14,Faktorer_andre!D14) -> 0.56 | E58: ='Bygg 3'!E18 -> 0 | F58: =IF($B$45=1,Faktorer_bolig!F14,Faktorer_andre!F14) -> 0.75 | G58: ='Bygg 3'!G18 -> 0 | H58: =IF($B$45=1,Faktorer_bolig!H14,Faktorer_andre!H14) -> 0.87 | I58: ='Bygg 3'!I18 -> 0 | J58: =IF($B$45=1,Faktorer_bolig!J14,Faktorer_andre!J14) -> 1 | K58: ='Bygg 3'!K18 -> 0 | L58: =K58*J58+I58*H58+G58*F58+E58*D58 -> 0
B59: 2.etg | C59: Tilst/egn; | D59: =IF($B$45=1,Faktorer_bolig!D15,Faktorer_andre!D15) -> 0.5 | E59: ='Bygg 3'!E19 -> 0 | F59: =IF($B$45=1,Faktorer_bolig!F15,Faktorer_andre!F15) -> 0.65 | G59: ='Bygg 3'!G19 -> 0 | H59: =IF($B$45=1,Faktorer_bolig!H15,Faktorer_andre!H15) -> 0.8 | I59: ='Bygg 3'!I19 -> 0 | J59: =IF($B$45=1,Faktorer_bolig!J15,Faktorer_andre!J15) -> 1 | K59: ='Bygg 3'!K19 -> 0 | L59: =K59*J59+I59*H59+G59*F59+E59*D59 -> 0
B60: Mesanin/kjørebro | C60: =IF(ISTEXT(B60),C57,"") -> Arealtype %; | D60: =IF($B$45=1,Faktorer_bolig!D16,Faktorer_andre!D16) -> 0.1 | E60: ='Bygg 3'!E20 -> 0 | F60: =IF($B$45=1,Faktorer_bolig!F16,Faktorer_andre!F16) -> 0.2 | G60: ='Bygg 3'!G20 -> 0 | H60: =IF($B$45=1,Faktorer_bolig!H16,Faktorer_andre!H16) -> 0.3 | I60: ='Bygg 3'!I20 -> 0 | J60: =IF($B$45=1,Faktorer_bolig!J16,Faktorer_andre!J16) -> 0 | L60: =I60*H60+G60*F60+E60*D60 -> 0
B61: Mesanin/kjørebro | C61: Etasjestd %; | D61: =IF($B$45=1,Faktorer_bolig!D17,Faktorer_andre!D17) -> 0.4 | E61: ='Bygg 3'!E21 -> 0 | F61: =IF($B$45=1,Faktorer_bolig!F17,Faktorer_andre!F17) -> 0.6 | G61: ='Bygg 3'!G21 -> 0 | H61: =IF($B$45=1,Faktorer_bolig!H17,Faktorer_andre!H17) -> 0.8 | I61: ='Bygg 3'!I21 -> 0 | J61: =IF($B$45=1,Faktorer_bolig!J17,Faktorer_andre!J17) -> 1 | K61: ='Bygg 3'!K21 -> 0 | L61: =K61*J61+I61*H61+G61*F61+E61*D61 -> 0
B62: Mesanin/kjørebro | C62: Tilst/egn; | D62: =IF($B$45=1,Faktorer_bolig!D18,Faktorer_andre!D18) -> 0.4 | E62: ='Bygg 3'!E22 -> 0 | F62: =IF($B$45=1,Faktorer_bolig!F18,Faktorer_andre!F18) -> 0.6 | G62: ='Bygg 3'!G22 -> 0 | H62: =IF($B$45=1,Faktorer_bolig!H18,Faktorer_andre!H18) -> 0.8 | I62: ='Bygg 3'!I22 -> 0 | J62: =IF($B$45=1,Faktorer_bolig!J18,Faktorer_andre!J18) -> 1 | K62: ='Bygg 3'!K22 -> 0 | L62: =K62*J62+I62*H62+G62*F62+E62*D62 -> 0
B63: Enkel Bolig | C63: Arealtype %; | D63: =IF(A63="Bolig",Faktorer_bolig!D19,Faktorer_andre!D19) -> 0 | E63: ='Bygg 3'!E23 -> 0 | F63: =IF($A63="Bolig",Faktorer_bolig!F19,Faktorer_andre!F19) -> 0 | G63: ='Bygg 3'!G23 -> 0 | H63: =IF($A63="Bolig",Faktorer_bolig!H19,Faktorer_andre!H19) -> 0 | I63: ='Bygg 3'!I23 -> 0 | J63: =IF($B$45=1,Faktorer_bolig!J19,Faktorer_andre!J19) -> 0 | L63: =I63*H63+G63*F63+E63*D63 -> 0
B64: Enkel Bolig | C64: Etasjestd %; | D64: =IF(A64="Bolig",Faktorer_bolig!D20,Faktorer_andre!E20) -> 0 | E64: ='Bygg 3'!E24 -> 0 | F64: =IF($A64="Bolig",Faktorer_bolig!F20,Faktorer_andre!G20) -> 0 | G64: ='Bygg 3'!G24 -> 0 | H64: =IF($A64="Bolig",Faktorer_bolig!H20,Faktorer_andre!I20) -> 0 | I64: ='Bygg 3'!I24 -> 0 | J64: =IF($B$45=1,Faktorer_bolig!J20,Faktorer_andre!K20) -> 0 | K64: ='Bygg 3'!K24 -> 0 | L64: =K64*J64+I64*H64+G64*F64+E64*D64 -> 0
B65: Enkel Bolig | C65: Tilst/egn; | D65: =IF(A65="Bolig",Faktorer_bolig!D21,Faktorer_andre!E21) -> 0 | E65: ='Bygg 3'!E25 -> 0 | F65: =IF($A65="Bolig",Faktorer_bolig!F21,Faktorer_andre!G21) -> 0 | G65: ='Bygg 3'!G25 -> 0 | H65: =IF($A65="Bolig",Faktorer_bolig!H21,Faktorer_andre!I21) -> 0 | I65: ='Bygg 3'!I25 -> 0 | J65: =IF($B$45=1,Faktorer_bolig!J21,Faktorer_andre!K21) -> 0 | K65: ='Bygg 3'!K25 -> 0 | L65: =K65*J65+I65*H65+G65*F65+E65*D65 -> 0
C67: Pris nytt bygg | D67: =IF(A68="Bolig",Faktorer_bolig!D22,Faktorer_andre!D19) -> 0 | F67: =IF(C67="Bolig",Faktorer_bolig!F22,Faktorer_andre!F19) -> 0 | H67: =IF('Takst 1'!E3="Bolig",Faktorer_bolig!H22,Faktorer_andre!H19) -> 0 | L67: =VLOOKUP(A1,Pris_tabell_nytt,2,FALSE) -> 0
A68: =$A$1 -> X | D68: =Faktorer_bolig!N3 -> Kjeller | E68: =Faktorer_bolig!O3 -> undertasje | F68: =Faktorer_bolig!P3 -> 1 etg | G68: =Faktorer_bolig!Q3 -> 2.etg | H68: =Faktorer_bolig!S3 -> 0 | I68: =Faktorer_bolig!T3 -> 0
C69: Vektet etasjeareal | D69: =IF($B$46=1,Faktorer_bolig!N4,Faktorer_andre!M4) -> 0.3 | E69: =IF($B$46=1,Faktorer_bolig!O4,Faktorer_andre!N4) -> 0.5 | F69: =IF($B$46=1,Faktorer_bolig!P4,Faktorer_andre!O4) -> 1 | G69: =IF($B$46=1,Faktorer_bolig!Q4,Faktorer_andre!P4) -> 0.6 | H69: =IF($B$46=1,Faktorer_bolig!R4,Faktorer_andre!I25) -> 0 | I69: =IF($B$46=1,Faktorer_bolig!S4,Faktorer_andre!J25) -> 0 | L69: =areal_k*D69+areal_u*E69+areal_1*F69+areal_2*G69+B20*H69+B23*I69 -> 0
A70: =$A$1 -> X | C70: Korreksjon for størrelse | G70: fra | H70: =IF($B$46=1,Faktorer_bolig!N15,Faktorer_andre!M18) -> 3000 | I70: m2 til | J70: =IF($B$46=1,Faktorer_bolig!P15,Faktorer_andre!O18) -> 4000 | K70: =IF($B$46=1,Max_areal_korr_1,Max_areal_korr_2) -> 100 | L70: =MAX(MIN(100-(L69-H70)/(J70-H70)*(100-K70),100),K70) -> 100 | M70: Brukes som utgangspunkt for korreksjon av størrelse
A71: X | P71: =MAX(MIN(((L71-(MIN(P70,N71)))*0.25)+100,100),O71) -> 100
A72: X | C72: Nedskrevet verdi etter påkostning i %; min 50% | J72: Korr pga alder/restverdi | K72: =IF(År_siden_ombygg>0,1,0) -> 0 | L72: =MAX(L80,L87) ->  | M72: Brukes til å beregne trekk for alder i "Takst" celle G44
A73: X | C73: Korr. vedl.h/egnet. Grunnlag "Normale byggekostnader" fra "Teknisk verdiberegning" | I73: Korrigert restverdi pga tilstand egnethet | L73: =(areal_k*L50+areal_u*L53+areal_1*L56+areal_2*L59+B20*L62+B23*L65)/(areal_k+areal_u+areal_1+areal_2+B20+B23) -> 
A74: X | C74: Tomt | K74: Ekstra tomteverdi /bostedstillegg | L74: =K33*K32/16 -> 0
A75: X
K77: Bygg type | L77: =A1 -> X
K78: Valgt avskrivningskurvve | L78: =VLOOKUP(L77,'Priser nybygg'!B3:F38,4,FALSE) -> 3
K79: Valgt sats | L79: =HLOOKUP($L$78,Nedskriving!$J$1:$L$4,3) -> 2.25
K80: Minste restverdi | L80: =HLOOKUP($L$78,Nedskriving!$J$1:$L$4,4) -> 20
L81: m2 | M81: år | N81: Faktor | O81: Faktor x m2
K82: Areal av opprinnelig del som ikke er pusset opp | L82: =G2*(1-prosent_oppgradering_1/100) -> 0 | M82: =MIN(J2-E2,397) -> 0 | N82: =VLOOKUP(M82,Nedskriving!$A$4:$G$400,$L$78+4,FALSE) ->  | O82: =L82*N82 -> 
K83: Opprinnelig hus pusset opp | L83: =IF(E3>E4,G2*prosent_oppgradering_1/100,G2*prosent_oppgradering_1/100) -> 0 | M83: =IF(E4>0,J2-E4,0) -> 0 | N83: =IF(M83>0,VLOOKUP(M83,Nedskriving!$A$4:$G$119,$L$78+4,FALSE),0) -> 0 | O83: =L83*N83 -> 0
K84: Areal av TILBYGG som er pusset opp | L84: =IF(E4>E3,G3*prosent_oppgradering_1/100,0) -> 0 | M84: =IF(E3=0,0,IF(L84>0,J2-E4,J2-E3)) -> 0 | N84: =IF(M84>0,VLOOKUP(M84,Nedskriving!$A$4:$G$119,$L$78+4,FALSE),0) -> 0 | O84: =L84*N84 -> 0
K85: Tilbygg ikke pusset opp | L85: =G3-L84 -> 0 | M85: =IF(E3=0,0,(J2-E3)) -> 0 | N85: =IF(M85>0,VLOOKUP(M85,Nedskriving!$A$4:$G$119,$L$78+4,FALSE),0) -> 0 | O85: =L85*N85 -> 0
K86: Sum | L86: =SUM(L82:L85) -> 0 | O86: =SUM(O82:O85) -> 
K87: Beregnet veid faktor for nedskriving pga alder | L87: =O86/L86 -> 
C90: Bygningens alder | D90: =J2-E2 -> 0
C93: =A1 -> X | D93: ='Takst 1'!L32 -> 0

Sheet Bygg 4
A1: X | B1: 0
D2: Byggeår; | E2: 0 | F2: Grunnflate; | G2: 0 | I2: Befaring år; | J2: 0
C3: Tilbygg; | D3: År; | E3: 0 | F3: Grunnflate; | G3: 0
C4: Ombygd | D4: År; | E4: 0 | H4: Korrigert pga oppgradering; | J4: 0
J5: tak max 10 %
B7: Areal
A8: =IF($B$45=1,Faktorer_bolig!A4,Faktorer_andre!A4) -> Kjeller: | B8: 0 | C8: =IF($B$45=1,Faktorer_bolig!B4,Faktorer_andre!B4) -> Arealbruk i %; | D8: =IF($B$45=1,Faktorer_bolig!C4,Faktorer_andre!C4) -> svak/uinnr. | E8: 0 | F8: =IF($B$45=1,Faktorer_bolig!E4,Faktorer_andre!E4) -> enkel lagerkjeller | G8: 0 | H8: =IF($B$45=1,Faktorer_bolig!G4,Faktorer_andre!G4) -> vanl. bruksareal | I8: 0 | J8: =IF($B$45=1,Faktorer_bolig!I4,Faktorer_andre!I4) -> 0 | K8: 0 | L8: =IF(areal_k>0,100-SUM(E8:K8),0) -> 0 | M8: =IF(L8>0," % mangler",IF(L8=0,0,"Over 100% blir feil!!!")) -> 0
A9: =IF($B$45=1,Faktorer_bolig!A5,Faktorer_andre!A5) -> 0 | B9: =IF(AND(B8=0,SUM(E8:E10,G8:G10,I8:I10,K9:K10)>0),"Har du glemt arealet ?","") ->  | C9: =IF($B$45=1,Faktorer_bolig!B5,Faktorer_andre!B5) -> Etasjestd i %; | D9: =IF($B$45=1,Faktorer_bolig!C5,Faktorer_andre!C5) -> svak/gråstein | E9: 0 | F9: =IF($B$45=1,Faktorer_bolig!E5,Faktorer_andre!E5) -> enkelt lager | G9: 0 | H9: =IF($B$45=1,Faktorer_bolig!G5,Faktorer_andre!G5) -> bra lagerareal | I9: 0 | J9: =IF($B$45=1,Faktorer_bolig!I5,Faktorer_andre!I5) -> godt bruksareal | K9: 0 | L9: =IF(areal_k>0,100-SUM(E9:K9),0) -> 0 | M9: =IF(L9>0," % mangler",IF(L9=0,0,"Over 100% blir feil!!!")) -> 0 | N9: 0 | O9: 0 | P9: 0 | Q9: 0 | R9: 0 | S9: 0 | T9: 0 | U9: 0 | V9: 0 | W9: 0 | X9: 0 | Y9: 0 | Z9: 0 | AA9: 0 | AB9: 0 | AC9: 0 | AD9: 0 | AE9: 0 | AF9: 0 | AG9: 0 | AH9: 0 | AI9: 0 | AJ9: 0 | AK9: 0 | AL9: 0 | AM9: 0 | AN9: 0 | AO9: 0 | AP9: 0 | AQ9: 0 | AR9: 0 | AS9: 0 | AT9: 0 | AU9: 0 | AV9: 0 | AW9: 0 | AX9: 0 | AY9: 0 | AZ9: 0 | BA9: 0 | BB9: 0 | BC9: 0 | BD9: 0 | BE9: 0 | BF9: 0 | BG9: 0 | BH9: 0 | BI9: 0 | BJ9: 0 | BK9: 0 | BL9: 0 | BM9: 0 | BN9: 0 | BO9: 0 | BP9: 0 | BQ9: 0 | BR9: 0 | BS9: 0 | BT9: 0 | BU9: 0 | BV9: 0 | BW9: 0 | BX9: 0 | BY9: 0 | BZ9: 0 | CA9: 0 | CB9: 0 | CC9: 0 | CD9: 0 | CE9: 0 | CF9: 0 | CG9: 0 | CH9: 0 | CI9: 0 | CJ9: 0 | CK9: 0 | CL9: 0 | CM9: 0 | CN9: 0 | CO9: 0 | CP9: 0 | CQ9: 0 | CR9: 0 | CS9: 0 | CT9: 0 | CU9: 0 | CV9: 0 | CW9: 0 | CX9: 0 | CY9: 0 | CZ9: 0 | DA9: 0 | DB9: 0 | DC9: 0 | DD9: 0 | DE9: 0 | DF9: 0 | DG9: 0 | DH9: 0 | DI9: 0 | DJ9: 0 | DK9: 0 | DL9: 0 | DM9: 0 | DN9: 0 | DO9: 0 | DP9: 0 | DQ9: 0 | DR9: 0 | DS9: 0 | DT9: 0 | DU9: 0 | DV9: 0 | DW9: 0 | DX9: 0 | DY9: 0 | DZ9: 0 | EA9: 0 | EB9: 0 | EC9: 0 | ED9: 0 | EE9: 0 | EF9: 0 | EG9: 0 | EH9: 0 | EI9: 0 | EJ9: 0 | EK9: 0 | EL9: 0 | EM9: 0 | EN9: 0 | EO9: 0 | EP9: 0 | EQ9: 0 | ER9: 0 | ES9: 0 | ET9: 0 | EU9: 0 | EV9: 0 | EW9: 0 | EX9: 0 | EY9: 0 | EZ9: 0 | FA9: 0 | FB9: 0 | FC9: 0 | FD9: 0 | FE9: 0 | FF9: 0 | FG9: 0 | FH9: 0 | FI9: 0 | FJ9: 0 | FK9: 0 | FL9: 0 | FM9: 0 | FN9: 0 | FO9: 0 | FP9: 0 | FQ9: 0 | FR9: 0 | FS9: 0 | FT9: 0 | FU9: 0 | FV9: 0 | FW9: 0 | FX9: 0 | FY9: 0 | FZ9: 0 | GA9: 0 | GB9: 0 | GC9: 0 | GD9: 0 | GE9: 0 | GF9: 0 | GG9: 0 | GH9: 0 | GI9: 0 | GJ9: 0 | GK9: 0 | GL9: 0 | GM9: 0 | GN9: 0 | GO9: 0 | GP9: 0 | GQ9: 0 | GR9: 0 | GS9: 0 | GT9: 0 | GU9: 0 | GV9: 0 | GW9: 0 | GX9: 0 | GY9: 0 | GZ9: 0 | HA9: 0 | HB9: 0 | HC9: 0 | HD9: 0 | HE9: 0 | HF9: 0 | HG9: 0 | HH9: 0 | HI9: 0 | HJ9: 0 | HK9: 0 | HL9: 0 | HM9: 0 | HN9: 0 | HO9: 0 | HP9: 0 | HQ9: 0 | HR9: 0 | HS9: 0 | HT9: 0 | HU9: 0 | HV9: 0 | HW9: 0 | HX9: 0 | HY9: 0 | HZ9: 0 | IA9: 0 | IB9: 0 | IC9: 0 | ID9: 0 | IE9: 0 | IF9: 0 | IG9: 0 | IH9: 0 | II9: 0 | IJ9: 0 | IK9: 0 | IL9: 0 | IM9: 0 | IN9: 0 | IO9: 0 | IP9: 0 | IQ9: 0 | IR9: 0 | IS9: 0 | IT9: 0 | IU9: 0 | IV9: 0 | IW9: 0 | IX9: 0 | IY9: 0 | IZ9: 0
A10: =IF($B$45=1,Faktorer_bolig!A6,Faktorer_andre!A6) -> 0 | C10: =IF($B$45=1,Faktorer_bolig!B6,Faktorer_andre!B6) -> Tilst/egnethet; | D10: =IF($B$45=1,Faktorer_bolig!C6,Faktorer_andre!C6) -> slitt/dårlig | E10: 0 | F10: =IF($B$45=1,Faktorer_bolig!E6,Faktorer_andre!E6) -> brukbar | G10: 0 | H10: =IF($B$45=1,Faktorer_bolig!G6,Faktorer_andre!G6) -> bra | I10: 0 | J10: =IF($B$45=1,Faktorer_bolig!I6,Faktorer_andre!I6) -> svært god | K10: 0 | L10: =IF(areal_k>0,100-SUM(E10:K10),0) -> 0 | M10: =IF(L10>0," % mangler",IF(L10=0,0,"----Over 100% blir feil!!!")) -> 0 | N10: 0 | O10: 0 | P10: 0 | Q10: 0 | R10: 0 | S10: 0 | T10: 0 | U10: 0 | V10: 0 | W10: 0 | X10: 0 | Y10: 0 | Z10: 0 | AA10: 0 | AB10: 0 | AC10: 0 | AD10: 0 | AE10: 0 | AF10: 0 | AG10: 0 | AH10: 0 | AI10: 0 | AJ10: 0 | AK10: 0 | AL10: 0 | AM10: 0 | AN10: 0 | AO10: 0 | AP10: 0 | AQ10: 0 | AR10: 0 | AS10: 0 | AT10: 0 | AU10: 0 | AV10: 0 | AW10: 0 | AX10: 0 | AY10: 0 | AZ10: 0 | BA10: 0 | BB10: 0 | BC10: 0 | BD10: 0 | BE10: 0 | BF10: 0 | BG10: 0 | BH10: 0 | BI10: 0 | BJ10: 0 | BK10: 0 | BL10: 0 | BM10: 0 | BN10: 0 | BO10: 0 | BP10: 0 | BQ10: 0 | BR10: 0 | BS10: 0 | BT10: 0 | BU10: 0 | BV10: 0 | BW10: 0 | BX10: 0 | BY10: 0 | BZ10: 0 | CA10: 0 | CB10: 0 | CC10: 0 | CD10: 0 | CE10: 0 | CF10: 0 | CG10: 0 | CH10: 0 | CI10: 0 | CJ10: 0 | CK10: 0 | CL10: 0 | CM10: 0 | CN10: 0 | CO10: 0 | CP10: 0 | CQ10: 0 | CR10: 0 | CS10: 0 | CT10: 0 | CU10: 0 | CV10: 0 | CW10: 0 | CX10: 0 | CY10: 0 | CZ10: 0 | DA10: 0 | DB10: 0 | DC10: 0 | DD10: 0 | DE10: 0 | DF10: 0 | DG10: 0 | DH10: 0 | DI10: 0 | DJ10: 0 | DK10: 0 | DL10: 0 | DM10: 0 | DN10: 0 | DO10: 0 | DP10: 0 | DQ10: 0 | DR10: 0 | DS10: 0 | DT10: 0 | DU10: 0 | DV10: 0 | DW10: 0 | DX10: 0 | DY10: 0 | DZ10: 0 | EA10: 0 | EB10: 0 | EC10: 0 | ED10: 0 | EE10: 0 | EF10: 0 | EG10: 0 | EH10: 0 | EI10: 0 | EJ10: 0 | EK10: 0 | EL10: 0 | EM10: 0 | EN10: 0 | EO10: 0 | EP10: 0 | EQ10: 0 | ER10: 0 | ES10: 0 | ET10: 0 | EU10: 0 | EV10: 0 | EW10: 0 | EX10: 0 | EY10: 0 | EZ10: 0 | FA10: 0 | FB10: 0 | FC10: 0 | FD10: 0 | FE10: 0 | FF10: 0 | FG10: 0 | FH10: 0 | FI10: 0 | FJ10: 0 | FK10: 0 | FL10: 0 | FM10: 0 | FN10: 0 | FO10: 0 | FP10: 0 | FQ10: 0 | FR10: 0 | FS10: 0 | FT10: 0 | FU10: 0 | FV10: 0 | FW10: 0 | FX10: 0 | FY10: 0 | FZ10: 0 | GA10: 0 | GB10: 0 | GC10: 0 | GD10: 0 | GE10: 0 | GF10: 0 | GG10: 0 | GH10: 0 | GI10: 0 | GJ10: 0 | GK10: 0 | GL10: 0 | GM10: 0 | GN10: 0 | GO10: 0 | GP10: 0 | GQ10: 0 | GR10: 0 | GS10: 0 | GT10: 0 | GU10: 0 | GV10: 0 | GW10: 0 | GX10: 0 | GY10: 0 | GZ10: 0 | HA10: 0 | HB10: 0 | HC10: 0 | HD10: 0 | HE10: 0 | HF10: 0 | HG10: 0 | HH10: 0 | HI10: 0 | HJ10: 0 | HK10: 0 | HL10: 0 | HM10: 0 | HN10: 0 | HO10: 0 | HP10: 0 | HQ10: 0 | HR10: 0 | HS10: 0 | HT10: 0 | HU10: 0 | HV10: 0 | HW10: 0 | HX10: 0 | HY10: 0 | HZ10: 0 | IA10: 0 | IB10: 0 | IC10: 0 | ID10: 0 | IE10: 0 | IF10: 0 | IG10: 0 | IH10: 0 | II10: 0 | IJ10: 0 | IK10: 0 | IL10: 0 | IM10: 0 | IN10: 0 | IO10: 0 | IP10: 0 | IQ10: 0 | IR10: 0 | IS10: 0 | IT10: 0 | IU10: 0 | IV10: 0 | IW10: 0 | IX10: 0 | IY10: 0 | IZ10: 0
A11: =IF($B$45=1,Faktorer_bolig!A7,Faktorer_andre!A7) -> Sokkel/underetg: | B11: 0 | C11: =IF($B$45=1,Faktorer_bolig!B7,Faktorer_andre!B7) -> Arealbruk i %; | D11: =IF($B$45=1,Faktorer_bolig!C7,Faktorer_andre!C7) -> svak/uegnet | E11: 0 | F11: =IF($B$45=1,Faktorer_bolig!E7,Faktorer_andre!E7) -> enkelt lagerareal | G11: 0 | H11: =IF($B$45=1,Faktorer_bolig!G7,Faktorer_andre!G7) -> vanl. bruksareal | I11: 0 | J11: =IF($B$45=1,Faktorer_bolig!I7,Faktorer_andre!I7) -> 0 | K11: 0 | L11: =IF(areal_u>0,100-SUM(E11:K11),0) -> 0 | M11: =IF(L11>0," % mangler",IF(L11=0,0,"----Over 100% blir feil!!!")) -> 0 | N11: 0 | O11: 0 | P11: 0 | Q11: 0 | R11: 0 | S11: 0 | T11: 0 | U11: 0 | V11: 0 | W11: 0 | X11: 0 | Y11: 0 | Z11: 0 | AA11: 0 | AB11: 0 | AC11: 0 | AD11: 0 | AE11: 0 | AF11: 0 | AG11: 0 | AH11: 0 | AI11: 0 | AJ11: 0 | AK11: 0 | AL11: 0 | AM11: 0 | AN11: 0 | AO11: 0 | AP11: 0 | AQ11: 0 | AR11: 0 | AS11: 0 | AT11: 0 | AU11: 0 | AV11: 0 | AW11: 0 | AX11: 0 | AY11: 0 | AZ11: 0 | BA11: 0 | BB11: 0 | BC11: 0 | BD11: 0 | BE11: 0 | BF11: 0 | BG11: 0 | BH11: 0 | BI11: 0 | BJ11: 0 | BK11: 0 | BL11: 0 | BM11: 0 | BN11: 0 | BO11: 0 | BP11: 0 | BQ11: 0 | BR11: 0 | BS11: 0 | BT11: 0 | BU11: 0 | BV11: 0 | BW11: 0 | BX11: 0 | BY11: 0 | BZ11: 0 | CA11: 0 | CB11: 0 | CC11: 0 | CD11: 0 | CE11: 0 | CF11: 0 | CG11: 0 | CH11: 0 | CI11: 0 | CJ11: 0 | CK11: 0 | CL11: 0 | CM11: 0 | CN11: 0 | CO11: 0 | CP11: 0 | CQ11: 0 | CR11: 0 | CS11: 0 | CT11: 0 | CU11: 0 | CV11: 0 | CW11: 0 | CX11: 0 | CY11: 0 | CZ11: 0 | DA11: 0 | DB11: 0 | DC11: 0 | DD11: 0 | DE11: 0 | DF11: 0 | DG11: 0 | DH11: 0 | DI11: 0 | DJ11: 0 | DK11: 0 | DL11: 0 | DM11: 0 | DN11: 0 | DO11: 0 | DP11: 0 | DQ11: 0 | DR11: 0 | DS11: 0 | DT11: 0 | DU11: 0 | DV11: 0 | DW11: 0 | DX11: 0 | DY11: 0 | DZ11: 0 | EA11: 0 | EB11: 0 | EC11: 0 | ED11: 0 | EE11: 0 | EF11: 0 | EG11: 0 | EH11: 0 | EI11: 0 | EJ11: 0 | EK11: 0 | EL11: 0 | EM11: 0 | EN11: 0 | EO11: 0 | EP11: 0 | EQ11: 0 | ER11: 0 | ES11: 0 | ET11: 0 | EU11: 0 | EV11: 0 | EW11: 0 | EX11: 0 | EY11: 0 | EZ11: 0 | FA11: 0 | FB11: 0 | FC11: 0 | FD11: 0 | FE11: 0 | FF11: 0 | FG11: 0 | FH11: 0 | FI11: 0 | FJ11: 0 | FK11: 0 | FL11: 0 | FM11: 0 | FN11: 0 | FO11: 0 | FP11: 0 | FQ11: 0 | FR11: 0 | FS11: 0 | FT11: 0 | FU11: 0 | FV11: 0 | FW11: 0 | FX11: 0 | FY11: 0 | FZ11: 0 | GA11: 0 | GB11: 0 | GC11: 0 | GD11: 0 | GE11: 0 | GF11: 0 | GG11: 0 | GH11: 0 | GI11: 0 | GJ11: 0 | GK11: 0 | GL11: 0 | GM11: 0 | GN11: 0 | GO11: 0 | GP11: 0 | GQ11: 0 | GR11: 0 | GS11: 0 | GT11: 0 | GU11: 0 | GV11: 0 | GW11: 0 | GX11: 0 | GY11: 0 | GZ11: 0 | HA11: 0 | HB11: 0 | HC11: 0 | HD11: 0 | HE11: 0 | HF11: 0 | HG11: 0 | HH11: 0 | HI11: 0 | HJ11: 0 | HK11: 0 | HL11: 0 | HM11: 0 | HN11: 0 | HO11: 0 | HP11: 0 | HQ11: 0 | HR11: 0 | HS11: 0 | HT11: 0 | HU11: 0 | HV11: 0 | HW11: 0 | HX11: 0 | HY11: 0 | HZ11: 0 | IA11: 0 | IB11: 0 | IC11: 0 | ID11: 0 | IE11: 0 | IF11: 0 | IG11: 0 | IH11: 0 | II11: 0 | IJ11: 0 | IK11: 0 | IL11: 0 | IM11: 0 | IN11: 0 | IO11: 0 | IP11: 0 | IQ11: 0 | IR11: 0 | IS11: 0 | IT11: 0 | IU11: 0 | IV11: 0 | IW11: 0 | IX11: 0 | IY11: 0 | IZ11: 0
A12: =IF($B$45=1,Faktorer_bolig!A8,Faktorer_andre!A8) -> 0 | B12: =IF(AND(A11=0,SUM(E11:E13,G11:G13,I11:I13,K12:K13)>0),"Har du glemt arealet ?","") ->  | C12: =IF($B$45=1,Faktorer_bolig!B8,Faktorer_andre!B8) -> Etasjestd i %; | D12: =IF($B$45=1,Faktorer_bolig!C8,Faktorer_andre!C8) -> lav/uinnredet | E12: 0 | F12: =IF($B$45=1,Faktorer_bolig!E8,Faktorer_andre!E8) -> enkel | G12: 0 | H12: =IF($B$45=1,Faktorer_bolig!G8,Faktorer_andre!G8) -> bra | I12: 0 | J12: =IF($B$45=1,Faktorer_bolig!I8,Faktorer_andre!I8) -> god | K12: 0 | L12: =IF(areal_u>0,100-SUM(E12:K12),0) -> 0 | M12: 0 | N12: 0 | O12: 0 | P12: 0 | Q12: 0 | R12: 0 | S12: 0 | T12: 0 | U12: 0 | V12: 0 | W12: 0 | X12: 0 | Y12: 0 | Z12: 0 | AA12: 0 | AB12: 0 | AC12: 0 | AD12: 0 | AE12: 0 | AF12: 0 | AG12: 0 | AH12: 0 | AI12: 0 | AJ12: 0 | AK12: 0 | AL12: 0 | AM12: 0 | AN12: 0 | AO12: 0 | AP12: 0 | AQ12: 0 | AR12: 0 | AS12: 0 | AT12: 0 | AU12: 0 | AV12: 0 | AW12: 0 | AX12: 0 | AY12: 0 | AZ12: 0 | BA12: 0 | BB12: 0 | BC12: 0 | BD12: 0 | BE12: 0 | BF12: 0 | BG12: 0 | BH12: 0 | BI12: 0 | BJ12: 0 | BK12: 0 | BL12: 0 | BM12: 0 | BN12: 0 | BO12: 0 | BP12: 0 | BQ12: 0 | BR12: 0 | BS12: 0 | BT12: 0 | BU12: 0 | BV12: 0 | BW12: 0 | BX12: 0 | BY12: 0 | BZ12: 0 | CA12: 0 | CB12: 0 | CC12: 0 | CD12: 0 | CE12: 0 | CF12: 0 | CG12: 0 | CH12: 0 | CI12: 0 | CJ12: 0 | CK12: 0 | CL12: 0 | CM12: 0 | CN12: 0 | CO12: 0 | CP12: 0 | CQ12: 0 | CR12: 0 | CS12: 0 | CT12: 0 | CU12: 0 | CV12: 0 | CW12: 0 | CX12: 0 | CY12: 0 | CZ12: 0 | DA12: 0 | DB12: 0 | DC12: 0 | DD12: 0 | DE12: 0 | DF12: 0 | DG12: 0 | DH12: 0 | DI12: 0 | DJ12: 0 | DK12: 0 | DL12: 0 | DM12: 0 | DN12: 0 | DO12: 0 | DP12: 0 | DQ12: 0 | DR12: 0 | DS12: 0 | DT12: 0 | DU12: 0 | DV12: 0 | DW12: 0 | DX12: 0 | DY12: 0 | DZ12: 0 | EA12: 0 | EB12: 0 | EC12: 0 | ED12: 0 | EE12: 0 | EF12: 0 | EG12: 0 | EH12: 0 | EI12: 0 | EJ12: 0 | EK12: 0 | EL12: 0 | EM12: 0 | EN12: 0 | EO12: 0 | EP12: 0 | EQ12: 0 | ER12: 0 | ES12: 0 | ET12: 0 | EU12: 0 | EV12: 0 | EW12: 0 | EX12: 0 | EY12: 0 | EZ12: 0 | FA12: 0 | FB12: 0 | FC12: 0 | FD12: 0 | FE12: 0 | FF12: 0 | FG12: 0 | FH12: 0 | FI12: 0 | FJ12: 0 | FK12: 0 | FL12: 0 | FM12: 0 | FN12: 0 | FO12: 0 | FP12: 0 | FQ12: 0 | FR12: 0 | FS12: 0 | FT12: 0 | FU12: 0 | FV12: 0 | FW12: 0 | FX12: 0 | FY12: 0 | FZ12: 0 | GA12: 0 | GB12: 0 | GC12: 0 | GD12: 0 | GE12: 0 | GF12: 0 | GG12: 0 | GH12: 0 | GI12: 0 | GJ12: 0 | GK12: 0 | GL12: 0 | GM12: 0 | GN12: 0 | GO12: 0 | GP12: 0 | GQ12: 0 | GR12: 0 | GS12: 0 | GT12: 0 | GU12: 0 | GV12: 0 | GW12: 0 | GX12: 0 | GY12: 0 | GZ12: 0 | HA12: 0 | HB12: 0 | HC12: 0 | HD12: 0 | HE12: 0 | HF12: 0 | HG12: 0 | HH12: 0 | HI12: 0 | HJ12: 0 | HK12: 0 | HL12: 0 | HM12: 0 | HN12: 0 | HO12: 0 | HP12: 0 | HQ12: 0 | HR12: 0 | HS12: 0 | HT12: 0 | HU12: 0 | HV12: 0 | HW12: 0 | HX12: 0 | HY12: 0 | HZ12: 0 | IA12: 0 | IB12: 0 | IC12: 0 | ID12: 0 | IE12: 0 | IF12: 0 | IG12: 0 | IH12: 0 | II12: 0 | IJ12: 0 | IK12: 0 | IL12: 0 | IM12: 0 | IN12: 0 | IO12: 0 | IP12: 0 | IQ12: 0 | IR12: 0 | IS12: 0 | IT12: 0 | IU12: 0 | IV12: 0 | IW12: 0 | IX12: 0 | IY12: 0 | IZ12: 0
A13: =IF($B$45=1,Faktorer_bolig!A9,Faktorer_andre!A9) -> 0 | C13: =IF($B$45=1,Faktorer_bolig!B9,Faktorer_andre!B9) -> Tilst/egnethet; | D13: =IF($B$45=1,Faktorer_bolig!C9,Faktorer_andre!C9) -> slitt/dårl | E13: 0 | F13: =IF($B$45=1,Faktorer_bolig!E9,Faktorer_andre!E9) -> brukbar | G13: 0 | H13: =IF($B$45=1,Faktorer_bolig!G9,Faktorer_andre!G9) -> bra | I13: 0 | J13: =IF($B$45=1,Faktorer_bolig!I9,Faktorer_andre!I9) -> svært god | K13: 0 | L13: =IF(areal_u>0,100-SUM(E13:K13),0) -> 0 | M13: 0 | N13: 0 | O13: 0 | P13: 0 | Q13: 0 | R13: 0 | S13: 0 | T13: 0 | U13: 0 | V13: 0 | W13: 0 | X13: 0 | Y13: 0 | Z13: 0 | AA13: 0 | AB13: 0 | AC13: 0 | AD13: 0 | AE13: 0 | AF13: 0 | AG13: 0 | AH13: 0 | AI13: 0 | AJ13: 0 | AK13: 0 | AL13: 0 | AM13: 0 | AN13: 0 | AO13: 0 | AP13: 0 | AQ13: 0 | AR13: 0 | AS13: 0 | AT13: 0 | AU13: 0 | AV13: 0 | AW13: 0 | AX13: 0 | AY13: 0 | AZ13: 0 | BA13: 0 | BB13: 0 | BC13: 0 | BD13: 0 | BE13: 0 | BF13: 0 | BG13: 0 | BH13: 0 | BI13: 0 | BJ13: 0 | BK13: 0 | BL13: 0 | BM13: 0 | BN13: 0 | BO13: 0 | BP13: 0 | BQ13: 0 | BR13: 0 | BS13: 0 | BT13: 0 | BU13: 0 | BV13: 0 | BW13: 0 | BX13: 0 | BY13: 0 | BZ13: 0 | CA13: 0 | CB13: 0 | CC13: 0 | CD13: 0 | CE13: 0 | CF13: 0 | CG13: 0 | CH13: 0 | CI13: 0 | CJ13: 0 | CK13: 0 | CL13: 0 | CM13: 0 | CN13: 0 | CO13: 0 | CP13: 0 | CQ13: 0 | CR13: 0 | CS13: 0 | CT13: 0 | CU13: 0 | CV13: 0 | CW13: 0 | CX13: 0 | CY13: 0 | CZ13: 0 | DA13: 0 | DB13: 0 | DC13: 0 | DD13: 0 | DE13: 0 | DF13: 0 | DG13: 0 | DH13: 0 | DI13: 0 | DJ13: 0 | DK13: 0 | DL13: 0 | DM13: 0 | DN13: 0 | DO13: 0 | DP13: 0 | DQ13: 0 | DR13: 0 | DS13: 0 | DT13: 0 | DU13: 0 | DV13: 0 | DW13: 0 | DX13: 0 | DY13: 0 | DZ13: 0 | EA13: 0 | EB13: 0 | EC13: 0 | ED13: 0 | EE13: 0 | EF13: 0 | EG13: 0 | EH13: 0 | EI13: 0 | EJ13: 0 | EK13: 0 | EL13: 0 | EM13: 0 | EN13: 0 | EO13: 0 | EP13: 0 | EQ13: 0 | ER13: 0 | ES13: 0 | ET13: 0 | EU13: 0 | EV13: 0 | EW13: 0 | EX13: 0 | EY13: 0 | EZ13: 0 | FA13: 0 | FB13: 0 | FC13: 0 | FD13: 0 | FE13: 0 | FF13: 0 | FG13: 0 | FH13: 0 | FI13: 0 | FJ13: 0 | FK13: 0 | FL13: 0 | FM13: 0 | FN13: 0 | FO13: 0 | FP13: 0 | FQ13: 0 | FR13: 0 | FS13: 0 | FT13: 0 | FU13: 0 | FV13: 0 | FW13: 0 | FX13: 0 | FY13: 0 | FZ13: 0 | GA13: 0 | GB13: 0 | GC13: 0 | GD13: 0 | GE13: 0 | GF13: 0 | GG13: 0 | GH13: 0 | GI13: 0 | GJ13: 0 | GK13: 0 | GL13: 0 | GM13: 0 | GN13: 0 | GO13: 0 | GP13: 0 | GQ13: 0 | GR13: 0 | GS13: 0 | GT13: 0 | GU13: 0 | GV13: 0 | GW13: 0 | GX13: 0 | GY13: 0 | GZ13: 0 | HA13: 0 | HB13: 0 | HC13: 0 | HD13: 0 | HE13: 0 | HF13: 0 | HG13: 0 | HH13: 0 | HI13: 0 | HJ13: 0 | HK13: 0 | HL13: 0 | HM13: 0 | HN13: 0 | HO13: 0 | HP13: 0 | HQ13: 0 | HR13: 0 | HS13: 0 | HT13: 0 | HU13: 0 | HV13: 0 | HW13: 0 | HX13: 0 | HY13: 0 | HZ13: 0 | IA13: 0 | IB13: 0 | IC13: 0 | ID13: 0 | IE13: 0 | IF13: 0 | IG13: 0 | IH13: 0 | II13: 0 | IJ13: 0 | IK13: 0 | IL13: 0 | IM13: 0 | IN13: 0 | IO13: 0 | IP13: 0 | IQ13: 0 | IR13: 0 | IS13: 0 | IT13: 0 | IU13: 0 | IV13: 0 | IW13: 0 | IX13: 0 | IY13: 0 | IZ13: 0
A14: =IF($B$45=1,Faktorer_bolig!A10,Faktorer_andre!A10) -> 1. etg: | B14: 0 | C14: =IF($B$45=1,Faktorer_bolig!B10,Faktorer_andre!B10) -> Arealbruk i %; | D14: =IF($B$45=1,Faktorer_bolig!C10,Faktorer_andre!C10) -> svak/uegnet. | E14: 0 | F14: =IF($B$45=1,Faktorer_bolig!E10,Faktorer_andre!E10) -> enkelt bruksareal | G14: 0 | H14: =IF($B$45=1,Faktorer_bolig!G10,Faktorer_andre!G10) -> vanl. bruksareal | I14: 0 | J14: =IF($B$45=1,Faktorer_bolig!I10,Faktorer_andre!I10) -> 0 | L14: =IF(areal_1>0,100-SUM(E14:K14),0) -> 0 | M14: 0 | N14: 0 | O14: 0 | P14: 0 | Q14: 0 | R14: 0 | S14: 0 | T14: 0 | U14: 0 | V14: 0 | W14: 0 | X14: 0 | Y14: 0 | Z14: 0 | AA14: 0 | AB14: 0 | AC14: 0 | AD14: 0 | AE14: 0 | AF14: 0 | AG14: 0 | AH14: 0 | AI14: 0 | AJ14: 0 | AK14: 0 | AL14: 0 | AM14: 0 | AN14: 0 | AO14: 0 | AP14: 0 | AQ14: 0 | AR14: 0 | AS14: 0 | AT14: 0 | AU14: 0 | AV14: 0 | AW14: 0 | AX14: 0 | AY14: 0 | AZ14: 0 | BA14: 0 | BB14: 0 | BC14: 0 | BD14: 0 | BE14: 0 | BF14: 0 | BG14: 0 | BH14: 0 | BI14: 0 | BJ14: 0 | BK14: 0 | BL14: 0 | BM14: 0 | BN14: 0 | BO14: 0 | BP14: 0 | BQ14: 0 | BR14: 0 | BS14: 0 | BT14: 0 | BU14: 0 | BV14: 0 | BW14: 0 | BX14: 0 | BY14: 0 | BZ14: 0 | CA14: 0 | CB14: 0 | CC14: 0 | CD14: 0 | CE14: 0 | CF14: 0 | CG14: 0 | CH14: 0 | CI14: 0 | CJ14: 0 | CK14: 0 | CL14: 0 | CM14: 0 | CN14: 0 | CO14: 0 | CP14: 0 | CQ14: 0 | CR14: 0 | CS14: 0 | CT14: 0 | CU14: 0 | CV14: 0 | CW14: 0 | CX14: 0 | CY14: 0 | CZ14: 0 | DA14: 0 | DB14: 0 | DC14: 0 | DD14: 0 | DE14: 0 | DF14: 0 | DG14: 0 | DH14: 0 | DI14: 0 | DJ14: 0 | DK14: 0 | DL14: 0 | DM14: 0 | DN14: 0 | DO14: 0 | DP14: 0 | DQ14: 0 | DR14: 0 | DS14: 0 | DT14: 0 | DU14: 0 | DV14: 0 | DW14: 0 | DX14: 0 | DY14: 0 | DZ14: 0 | EA14: 0 | EB14: 0 | EC14: 0 | ED14: 0 | EE14: 0 | EF14: 0 | EG14: 0 | EH14: 0 | EI14: 0 | EJ14: 0 | EK14: 0 | EL14: 0 | EM14: 0 | EN14: 0 | EO14: 0 | EP14: 0 | EQ14: 0 | ER14: 0 | ES14: 0 | ET14: 0 | EU14: 0 | EV14: 0 | EW14: 0 | EX14: 0 | EY14: 0 | EZ14: 0 | FA14: 0 | FB14: 0 | FC14: 0 | FD14: 0 | FE14: 0 | FF14: 0 | FG14: 0 | FH14: 0 | FI14: 0 | FJ14: 0 | FK14: 0 | FL14: 0 | FM14: 0 | FN14: 0 | FO14: 0 | FP14: 0 | FQ14: 0 | FR14: 0 | FS14: 0 | FT14: 0 | FU14: 0 | FV14: 0 | FW14: 0 | FX14: 0 | FY14: 0 | FZ14: 0 | GA14: 0 | GB14: 0 | GC14: 0 | GD14: 0 | GE14: 0 | GF14: 0 | GG14: 0 | GH14: 0 | GI14: 0 | GJ14: 0 | GK14: 0 | GL14: 0 | GM14: 0 | GN14: 0 | GO14: 0 | GP14: 0 | GQ14: 0 | GR14: 0 | GS14: 0 | GT14: 0 | GU14: 0 | GV14: 0 | GW14: 0 | GX14: 0 | GY14: 0 | GZ14: 0 | HA14: 0 | HB14: 0 | HC14: 0 | HD14: 0 | HE14: 0 | HF14: 0 | HG14: 0 | HH14: 0 | HI14: 0 | HJ14: 0 | HK14: 0 | HL14: 0 | HM14: 0 | HN14: 0 | HO14: 0 | HP14: 0 | HQ14: 0 | HR14: 0 | HS14: 0 | HT14: 0 | HU14: 0 | HV14: 0 | HW14: 0 | HX14: 0 | HY14: 0 | HZ14: 0 | IA14: 0 | IB14: 0 | IC14: 0 | ID14: 0 | IE14: 0 | IF14: 0 | IG14: 0 | IH14: 0 | II14: 0 | IJ14: 0 | IK14: 0 | IL14: 0 | IM14: 0 | IN14: 0 | IO14: 0 | IP14: 0 | IQ14: 0 | IR14: 0 | IS14: 0 | IT14: 0 | IU14: 0 | IV14: 0 | IW14: 0 | IX14: 0 | IY14: 0 | IZ14: 0
A15: =IF($B$45=1,Faktorer_bolig!A11,Faktorer_andre!A11) -> 0 | B15: =IF(AND(A14=0,SUM(E14:E16,G14:G16,I14:I16,K15:K16)>0),"Har du glemt arealet ?","") ->  | C15: =IF($B$45=1,Faktorer_bolig!B11,Faktorer_andre!B11) -> Etasjestd i %; | D15: =IF($B$45=1,Faktorer_bolig!C11,Faktorer_andre!C11) -> lav | E15: 0 | F15: =IF($B$45=1,Faktorer_bolig!E11,Faktorer_andre!E11) -> enkel | G15: 0 | H15: =IF($B$45=1,Faktorer_bolig!G11,Faktorer_andre!G11) -> bra | I15: 0 | J15: =IF($B$45=1,Faktorer_bolig!I11,Faktorer_andre!I11) -> god | K15: 0 | L15: =IF(areal_1>0,100-SUM(E15:K15),0) -> 0 | M15: 0 | N15: 0 | O15: 0 | P15: 0 | Q15: 0 | R15: 0 | S15: 0 | T15: 0 | U15: 0 | V15: 0 | W15: 0 | X15: 0 | Y15: 0 | Z15: 0 | AA15: 0 | AB15: 0 | AC15: 0 | AD15: 0 | AE15: 0 | AF15: 0 | AG15: 0 | AH15: 0 | AI15: 0 | AJ15: 0 | AK15: 0 | AL15: 0 | AM15: 0 | AN15: 0 | AO15: 0 | AP15: 0 | AQ15: 0 | AR15: 0 | AS15: 0 | AT15: 0 | AU15: 0 | AV15: 0 | AW15: 0 | AX15: 0 | AY15: 0 | AZ15: 0 | BA15: 0 | BB15: 0 | BC15: 0 | BD15: 0 | BE15: 0 | BF15: 0 | BG15: 0 | BH15: 0 | BI15: 0 | BJ15: 0 | BK15: 0 | BL15: 0 | BM15: 0 | BN15: 0 | BO15: 0 | BP15: 0 | BQ15: 0 | BR15: 0 | BS15: 0 | BT15: 0 | BU15: 0 | BV15: 0 | BW15: 0 | BX15: 0 | BY15: 0 | BZ15: 0 | CA15: 0 | CB15: 0 | CC15: 0 | CD15: 0 | CE15: 0 | CF15: 0 | CG15: 0 | CH15: 0 | CI15: 0 | CJ15: 0 | CK15: 0 | CL15: 0 | CM15: 0 | CN15: 0 | CO15: 0 | CP15: 0 | CQ15: 0 | CR15: 0 | CS15: 0 | CT15: 0 | CU15: 0 | CV15: 0 | CW15: 0 | CX15: 0 | CY15: 0 | CZ15: 0 | DA15: 0 | DB15: 0 | DC15: 0 | DD15: 0 | DE15: 0 | DF15: 0 | DG15: 0 | DH15: 0 | DI15: 0 | DJ15: 0 | DK15: 0 | DL15: 0 | DM15: 0 | DN15: 0 | DO15: 0 | DP15: 0 | DQ15: 0 | DR15: 0 | DS15: 0 | DT15: 0 | DU15: 0 | DV15: 0 | DW15: 0 | DX15: 0 | DY15: 0 | DZ15: 0 | EA15: 0 | EB15: 0 | EC15: 0 | ED15: 0 | EE15: 0 | EF15: 0 | EG15: 0 | EH15: 0 | EI15: 0 | EJ15: 0 | EK15: 0 | EL15: 0 | EM15: 0 | EN15: 0 | EO15: 0 | EP15: 0 | EQ15: 0 | ER15: 0 | ES15: 0 | ET15: 0 | EU15: 0 | EV15: 0 | EW15: 0 | EX15: 0 | EY15: 0 | EZ15: 0 | FA15: 0 | FB15: 0 | FC15: 0 | FD15: 0 | FE15: 0 | FF15: 0 | FG15: 0 | FH15: 0 | FI15: 0 | FJ15: 0 | FK15: 0 | FL15: 0 | FM15: 0 | FN15: 0 | FO15: 0 | FP15: 0 | FQ15: 0 | FR15: 0 | FS15: 0 | FT15: 0 | FU15: 0 | FV15: 0 | FW15: 0 | FX15: 0 | FY15: 0 | FZ15: 0 | GA15: 0 | GB15: 0 | GC15: 0 | GD15: 0 | GE15: 0 | GF15: 0 | GG15: 0 | GH15: 0 | GI15: 0 | GJ15: 0 | GK15: 0 | GL15: 0 | GM15: 0 | GN15: 0 | GO15: 0 | GP15: 0 | GQ15: 0 | GR15: 0 | GS15: 0 | GT15: 0 | GU15: 0 | GV15: 0 | GW15: 0 | GX15: 0 | GY15: 0 | GZ15: 0 | HA15: 0 | HB15: 0 | HC15: 0 | HD15: 0 | HE15: 0 | HF15: 0 | HG15: 0 | HH15: 0 | HI15: 0 | HJ15: 0 | HK15: 0 | HL15: 0 | HM15: 0 | HN15: 0 | HO15: 0 | HP15: 0 | HQ15: 0 | HR15: 0 | HS15: 0 | HT15: 0 | HU15: 0 | HV15: 0 | HW15: 0 | HX15: 0 | HY15: 0 | HZ15: 0 | IA15: 0 | IB15: 0 | IC15: 0 | ID15: 0 | IE15: 0 | IF15: 0 | IG15: 0 | IH15: 0 | II15: 0 | IJ15: 0 | IK15: 0 | IL15: 0 | IM15: 0 | IN15: 0 | IO15: 0 | IP15: 0 | IQ15: 0 | IR15: 0 | IS15: 0 | IT15: 0 | IU15: 0 | IV15: 0 | IW15: 0 | IX15: 0 | IY15: 0 | IZ15: 0
A16: =IF($B$45=1,Faktorer_bolig!A12,Faktorer_andre!A12) -> 0 | C16: =IF($B$45=1,Faktorer_bolig!B12,Faktorer_andre!B12) -> Tilst/egnethet; | D16: =IF($B$45=1,Faktorer_bolig!C12,Faktorer_andre!C12) -> slitt/dårl | E16: 0 | F16: =IF($B$45=1,Faktorer_bolig!E12,Faktorer_andre!E12) -> brukbar | G16: 0 | H16: =IF($B$45=1,Faktorer_bolig!G12,Faktorer_andre!G12) -> bra | I16: 0 | J16: =IF($B$45=1,Faktorer_bolig!I12,Faktorer_andre!I12) -> svært god | K16: 0 | L16: =IF(areal_1>0,100-SUM(E16:K16),0) -> 0 | M16: 0 | N16: 0 | O16: 0 | P16: 0 | Q16: 0 | R16: 0 | S16: 0 | T16: 0 | U16: 0 | V16: 0 | W16: 0 | X16: 0 | Y16: 0 | Z16: 0 | AA16: 0 | AB16: 0 | AC16: 0 | AD16: 0 | AE16: 0 | AF16: 0 | AG16: 0 | AH16: 0 | AI16: 0 | AJ16: 0 | AK16: 0 | AL16: 0 | AM16: 0 | AN16: 0 | AO16: 0 | AP16: 0 | AQ16: 0 | AR16: 0 | AS16: 0 | AT16: 0 | AU16: 0 | AV16: 0 | AW16: 0 | AX16: 0 | AY16: 0 | AZ16: 0 | BA16: 0 | BB16: 0 | BC16: 0 | BD16: 0 | BE16: 0 | BF16: 0 | BG16: 0 | BH16: 0 | BI16: 0 | BJ16: 0 | BK16: 0 | BL16: 0 | BM16: 0 | BN16: 0 | BO16: 0 | BP16: 0 | BQ16: 0 | BR16: 0 | BS16: 0 | BT16: 0 | BU16: 0 | BV16: 0 | BW16: 0 | BX16: 0 | BY16: 0 | BZ16: 0 | CA16: 0 | CB16: 0 | CC16: 0 | CD16: 0 | CE16: 0 | CF16: 0 | CG16: 0 | CH16: 0 | CI16: 0 | CJ16: 0 | CK16: 0 | CL16: 0 | CM16: 0 | CN16: 0 | CO16: 0 | CP16: 0 | CQ16: 0 | CR16: 0 | CS16: 0 | CT16: 0 | CU16: 0 | CV16: 0 | CW16: 0 | CX16: 0 | CY16: 0 | CZ16: 0 | DA16: 0 | DB16: 0 | DC16: 0 | DD16: 0 | DE16: 0 | DF16: 0 | DG16: 0 | DH16: 0 | DI16: 0 | DJ16: 0 | DK16: 0 | DL16: 0 | DM16: 0 | DN16: 0 | DO16: 0 | DP16: 0 | DQ16: 0 | DR16: 0 | DS16: 0 | DT16: 0 | DU16: 0 | DV16: 0 | DW16: 0 | DX16: 0 | DY16: 0 | DZ16: 0 | EA16: 0 | EB16: 0 | EC16: 0 | ED16: 0 | EE16: 0 | EF16: 0 | EG16: 0 | EH16: 0 | EI16: 0 | EJ16: 0 | EK16: 0 | EL16: 0 | EM16: 0 | EN16: 0 | EO16: 0 | EP16: 0 | EQ16: 0 | ER16: 0 | ES16: 0 | ET16: 0 | EU16: 0 | EV16: 0 | EW16: 0 | EX16: 0 | EY16: 0 | EZ16: 0 | FA16: 0 | FB16: 0 | FC16: 0 | FD16: 0 | FE16: 0 | FF16: 0 | FG16: 0 | FH16: 0 | FI16: 0 | FJ16: 0 | FK16: 0 | FL16: 0 | FM16: 0 | FN16: 0 | FO16: 0 | FP16: 0 | FQ16: 0 | FR16: 0 | FS16: 0 | FT16: 0 | FU16: 0 | FV16: 0 | FW16: 0 | FX16: 0 | FY16: 0 | FZ16: 0 | GA16: 0 | GB16: 0 | GC16: 0 | GD16: 0 | GE16: 0 | GF16: 0 | GG16: 0 | GH16: 0 | GI16: 0 | GJ16: 0 | GK16: 0 | GL16: 0 | GM16: 0 | GN16: 0 | GO16: 0 | GP16: 0 | GQ16: 0 | GR16: 0 | GS16: 0 | GT16: 0 | GU16: 0 | GV16: 0 | GW16: 0 | GX16: 0 | GY16: 0 | GZ16: 0 | HA16: 0 | HB16: 0 | HC16: 0 | HD16: 0 | HE16: 0 | HF16: 0 | HG16: 0 | HH16: 0 | HI16: 0 | HJ16: 0 | HK16: 0 | HL16: 0 | HM16: 0 | HN16: 0 | HO16: 0 | HP16: 0 | HQ16: 0 | HR16: 0 | HS16: 0 | HT16: 0 | HU16: 0 | HV16: 0 | HW16: 0 | HX16: 0 | HY16: 0 | HZ16: 0 | IA16: 0 | IB16: 0 | IC16: 0 | ID16: 0 | IE16: 0 | IF16: 0 | IG16: 0 | IH16: 0 | II16: 0 | IJ16: 0 | IK16: 0 | IL16: 0 | IM16: 0 | IN16: 0 | IO16: 0 | IP16: 0 | IQ16: 0 | IR16: 0 | IS16: 0 | IT16: 0 | IU16: 0 | IV16: 0 | IW16: 0 | IX16: 0 | IY16: 0 | IZ16: 0
A17: =IF($B$45=1,Faktorer_bolig!A13,Faktorer_andre!A13) -> 2. etg: | B17: 0 | C17: =IF($B$45=1,Faktorer_bolig!B13,Faktorer_andre!B13) -> Arealbruk i %; | D17: =IF($B$45=1,Faktorer_bolig!C13,Faktorer_andre!C13) -> svak/uegnet | E17: 0 | F17: =IF($B$45=1,Faktorer_bolig!E13,Faktorer_andre!E13) -> enkelt bruksareal | G17: 0 | H17: =IF($B$45=1,Faktorer_bolig!G13,Faktorer_andre!G13) -> vanl. bruksareal | I17: 0 | J17: =IF($B$45=1,Faktorer_bolig!I13,Faktorer_andre!I13) -> 0 | K17: 0 | L17: =IF(areal_2>0,100-SUM(E17:K17),0) -> 0 | M17: 0 | N17: 0 | O17: 0 | P17: 0 | Q17: 0 | R17: 0 | S17: 0 | T17: 0 | U17: 0 | V17: 0 | W17: 0 | X17: 0 | Y17: 0 | Z17: 0 | AA17: 0 | AB17: 0 | AC17: 0 | AD17: 0 | AE17: 0 | AF17: 0 | AG17: 0 | AH17: 0 | AI17: 0 | AJ17: 0 | AK17: 0 | AL17: 0 | AM17: 0 | AN17: 0 | AO17: 0 | AP17: 0 | AQ17: 0 | AR17: 0 | AS17: 0 | AT17: 0 | AU17: 0 | AV17: 0 | AW17: 0 | AX17: 0 | AY17: 0 | AZ17: 0 | BA17: 0 | BB17: 0 | BC17: 0 | BD17: 0 | BE17: 0 | BF17: 0 | BG17: 0 | BH17: 0 | BI17: 0 | BJ17: 0 | BK17: 0 | BL17: 0 | BM17: 0 | BN17: 0 | BO17: 0 | BP17: 0 | BQ17: 0 | BR17: 0 | BS17: 0 | BT17: 0 | BU17: 0 | BV17: 0 | BW17: 0 | BX17: 0 | BY17: 0 | BZ17: 0 | CA17: 0 | CB17: 0 | CC17: 0 | CD17: 0 | CE17: 0 | CF17: 0 | CG17: 0 | CH17: 0 | CI17: 0 | CJ17: 0 | CK17: 0 | CL17: 0 | CM17: 0 | CN17: 0 | CO17: 0 | CP17: 0 | CQ17: 0 | CR17: 0 | CS17: 0 | CT17: 0 | CU17: 0 | CV17: 0 | CW17: 0 | CX17: 0 | CY17: 0 | CZ17: 0 | DA17: 0 | DB17: 0 | DC17: 0 | DD17: 0 | DE17: 0 | DF17: 0 | DG17: 0 | DH17: 0 | DI17: 0 | DJ17: 0 | DK17: 0 | DL17: 0 | DM17: 0 | DN17: 0 | DO17: 0 | DP17: 0 | DQ17: 0 | DR17: 0 | DS17: 0 | DT17: 0 | DU17: 0 | DV17: 0 | DW17: 0 | DX17: 0 | DY17: 0 | DZ17: 0 | EA17: 0 | EB17: 0 | EC17: 0 | ED17: 0 | EE17: 0 | EF17: 0 | EG17: 0 | EH17: 0 | EI17: 0 | EJ17: 0 | EK17: 0 | EL17: 0 | EM17: 0 | EN17: 0 | EO17: 0 | EP17: 0 | EQ17: 0 | ER17: 0 | ES17: 0 | ET17: 0 | EU17: 0 | EV17: 0 | EW17: 0 | EX17: 0 | EY17: 0 | EZ17: 0 | FA17: 0 | FB17: 0 | FC17: 0 | FD17: 0 | FE17: 0 | FF17: 0 | FG17: 0 | FH17: 0 | FI17: 0 | FJ17: 0 | FK17: 0 | FL17: 0 | FM17: 0 | FN17: 0 | FO17: 0 | FP17: 0 | FQ17: 0 | FR17: 0 | FS17: 0 | FT17: 0 | FU17: 0 | FV17: 0 | FW17: 0 | FX17: 0 | FY17: 0 | FZ17: 0 | GA17: 0 | GB17: 0 | GC17: 0 | GD17: 0 | GE17: 0 | GF17: 0 | GG17: 0 | GH17: 0 | GI17: 0 | GJ17: 0 | GK17: 0 | GL17: 0 | GM17: 0 | GN17: 0 | GO17: 0 | GP17: 0 | GQ17: 0 | GR17: 0 | GS17: 0 | GT17: 0 | GU17: 0 | GV17: 0 | GW17: 0 | GX17: 0 | GY17: 0 | GZ17: 0 | HA17: 0 | HB17: 0 | HC17: 0 | HD17: 0 | HE17: 0 | HF17: 0 | HG17: 0 | HH17: 0 | HI17: 0 | HJ17: 0 | HK17: 0 | HL17: 0 | HM17: 0 | HN17: 0 | HO17: 0 | HP17: 0 | HQ17: 0 | HR17: 0 | HS17: 0 | HT17: 0 | HU17: 0 | HV17: 0 | HW17: 0 | HX17: 0 | HY17: 0 | HZ17: 0 | IA17: 0 | IB17: 0 | IC17: 0 | ID17: 0 | IE17: 0 | IF17: 0 | IG17: 0 | IH17: 0 | II17: 0 | IJ17: 0 | IK17: 0 | IL17: 0 | IM17: 0 | IN17: 0 | IO17: 0 | IP17: 0 | IQ17: 0 | IR17: 0 | IS17: 0 | IT17: 0 | IU17: 0 | IV17: 0 | IW17: 0 | IX17: 0 | IY17: 0 | IZ17: 0
A18: =IF($B$45=1,Faktorer_bolig!A14,Faktorer_andre!A14) -> 0 | B18: =IF(AND(A17=0,SUM(E17:E19,G17:G19,I17:I19,K18:K19)>0),"Har du glemt arealet ?","") ->  | C18: =IF($B$45=1,Faktorer_bolig!B14,Faktorer_andre!B14) -> Etasjestd i %; | D18: =IF($B$45=1,Faktorer_bolig!C14,Faktorer_andre!C14) -> lav | E18: 0 | F18: =IF($B$45=1,Faktorer_bolig!E14,Faktorer_andre!E14) -> enkel | G18: 0 | H18: =IF($B$45=1,Faktorer_bolig!G14,Faktorer_andre!G14) -> bra | I18: 0 | J18: =IF($B$45=1,Faktorer_bolig!I14,Faktorer_andre!I14) -> god | K18: 0 | L18: =IF(areal_2>0,100-SUM(E18:K18),0) -> 0 | M18: 0
A19: =IF($B$45=1,Faktorer_bolig!A15,Faktorer_andre!A15) -> 0 | C19: =IF($B$45=1,Faktorer_bolig!B15,Faktorer_andre!B15) -> Tilst/egnethet; | D19: =IF($B$45=1,Faktorer_bolig!C15,Faktorer_andre!C15) -> slitt/dårl | E19: 0 | F19: =IF($B$45=1,Faktorer_bolig!E15,Faktorer_andre!E15) -> brukbar | G19: 0 | H19: =IF($B$45=1,Faktorer_bolig!G15,Faktorer_andre!G15) -> bra | I19: 0 | J19: =IF($B$45=1,Faktorer_bolig!I15,Faktorer_andre!I15) -> svært god | K19: 0 | L19: =IF(areal_2>0,100-SUM(E19:K19),0) -> 0 | M19: 0
A20: =IF($B$45=1,Faktorer_bolig!A16,Faktorer_andre!A16) -> Kjørebro/ mesanin | B20: 0 | C20: =IF($B$45=1,Faktorer_bolig!B16,Faktorer_andre!B16) -> Arealbruk i %; | D20: =IF($B$45=1,Faktorer_bolig!C16,Faktorer_andre!C16) -> svak/uegnet | E20: 0 | F20: =IF($B$45=1,Faktorer_bolig!E16,Faktorer_andre!E16) -> lettlager | G20: 0 | H20: =IF($B$45=1,Faktorer_bolig!G16,Faktorer_andre!G16) -> vanl. bruksareal | I20: 0 | J20: =IF($B$45=1,Faktorer_bolig!I16,Faktorer_andre!I16) -> 0 | K20: 0 | L20: =IF($B$20>0,100-SUM(E20:K20),0) -> 0 | M20: 0
A21: =IF($B$45=1,Faktorer_bolig!A17,Faktorer_andre!A17) -> 0 | B21: =IF(AND(B20=0,SUM(E20:E22,G20:G22,I20:I22,K21:K22)>0),"Har du glemt arealet ?","") ->  | C21: =IF($B$45=1,Faktorer_bolig!B17,Faktorer_andre!B17) -> Etasjestd i %; | D21: =IF($B$45=1,Faktorer_bolig!C17,Faktorer_andre!C17) -> lav | E21: 0 | F21: =IF($B$45=1,Faktorer_bolig!E17,Faktorer_andre!E17) -> enkel | G21: 0 | H21: =IF($B$45=1,Faktorer_bolig!G17,Faktorer_andre!G17) -> bra | I21: 0 | J21: =IF($B$45=1,Faktorer_bolig!I17,Faktorer_andre!I17) -> god | K21: 0 | L21: =IF($B$20>0,100-SUM(E21:K21),0) -> 0 | M21: 0
A22: =IF($B$45=1,Faktorer_bolig!A18,Faktorer_andre!A18) -> 0 | C22: =IF($B$45=1,Faktorer_bolig!B18,Faktorer_andre!B18) -> Tilst/egnethet; | D22: =IF($B$45=1,Faktorer_bolig!C18,Faktorer_andre!C18) -> slitt/dårl | E22: 0 | F22: =IF($B$45=1,Faktorer_bolig!E18,Faktorer_andre!E18) -> brukbar | G22: 0 | H22: =IF($B$45=1,Faktorer_bolig!G18,Faktorer_andre!G18) -> bra | I22: 0 | J22: =IF($B$45=1,Faktorer_bolig!I18,Faktorer_andre!I18) -> svært god | K22: 0 | L22: 0 | M22: 0
A23: =Faktorer_bolig!A19 -> Enkel bolig | B23: 0 | C23: =Faktorer_bolig!A19 -> Enkel bolig | D23: =Faktorer_bolig!C19 -> svak/uinnr. | E23: 0 | F23: =Faktorer_bolig!E19 -> enkel | G23: 0 | H23: =Faktorer_bolig!G19 -> vanlig | I23: 0 | J23: =Faktorer_bolig!I19 -> 0 | K23: 0 | L23: =IF($B$23>0,100-SUM(E23:K23),0) -> 0 | M23: =IF(L23>0," % mangler","") -> 
A24: =Faktorer_bolig!A20 -> Enkel bolig | C24: =Faktorer_bolig!B20 -> Etasjestd %; | D24: =Faktorer_bolig!C20 -> lav | E24: 0 | F24: =Faktorer_bolig!E20 -> bra | G24: 0 | H24: =Faktorer_bolig!G20 -> god | I24: 0 | J24: =Faktorer_bolig!I20 -> topp | K24: 0 | L24: =IF($B$23>0,100-SUM(E24:K24),0) -> 0 | M24: =IF(L24>0," % mangler","") -> 
A25: =Faktorer_bolig!A21 -> Enkel bolig | C25: =Faktorer_bolig!B21 -> Tilst/egn; | D25: =Faktorer_bolig!C21 -> slitt/dårl | E25: 0 | F25: =Faktorer_bolig!E21 -> brukbar | G25: 0 | H25: =Faktorer_bolig!G21 -> bra | I25: 0 | J25: =Faktorer_bolig!I21 -> sv. god | K25: 0 | L25: =IF($B$23>0,100-SUM(E25:K25),0) -> 0 | M25: =IF(L25>0," % mangler","") -> 
A29: Tomt | B29: =VLOOKUP(A1,'Priser nybygg'!B3:G26,6) -> 0 | C29: Verdi for opparbeidet gårdstun og hage | J29: 2 | K29: 0
A30: Tomt | C30: Tomt, | D30: =Registreringsskjema!B23 -> Vann; | E30: =Registreringsskjema!C23 -> Svært god = 4, god = 3, middels = 2, dårlig = 1 | J30: 0
A31: Tomt | C31: vann og | D31: =Registreringsskjema!B24 -> Avløp; | E31: =Registreringsskjema!C24 -> Svært god = 4, god = 3, middels = 2, dårlig = 1 | J31: 0
A32: Tomt | C32: avløp | D32: =Registreringsskjema!B25 -> Have/tun; | E32: =Registreringsskjema!C25 -> velholdt have/tun = 8, funksjonell beplantet have= 5, alminnelig bra = 3, enkel = 1 | J32: 0 | K32: =J30+J31+J32 -> 0
A33: Tomt | D33: =Registreringsskjema!B26 -> 0 | E33: =Registreringsskjema!C26 -> 0 | F33: =Registreringsskjema!D26 -> 0 | G33: =Registreringsskjema!E26 -> 0 | H33: =Registreringsskjema!F26 -> 0 | I33: =Registreringsskjema!G26 -> 0 | J33: Ukorrigert verdi | K33: 0
A43: =CONCATENATE("Verdiberegning ",'Bygg 4'!A1) -> Verdiberegning X
A45: Valgt faktor_ark | B45: =VLOOKUP(A1,'Priser nybygg'!B3:G26,3,FALSE) -> 2 | C45: =IF($B$45=1,"Faktorer_bolig","Faktorer_andre") -> Faktorer_andre
A47: Hustype | B47: Etasje | D47: Faktor_1 | E47: Andel % | F47: Faktor_2 | G47: Andel % | H47: Faktor_3 | I47: Andel % | J47: Faktor_4 | K47: Andel % | L47: Beregnet faktor
A48: =$A$1 -> X | B48: Kjeller | C48: Arealtype %; | D48: =IF($B$45=1,Faktorer_bolig!D4,Faktorer_andre!D4) -> 0.1 | E48: ='Bygg 4'!E8 -> 0 | F48: =IF($B$45=1,Faktorer_bolig!F4,Faktorer_andre!F4) -> 0.2 | G48: ='Bygg 4'!G8 -> 0 | H48: =IF($B$45=1,Faktorer_bolig!H4,Faktorer_andre!H4) -> 0.3 | I48: ='Bygg 4'!I8 -> 0 | J48: =IF($B$45=1,Faktorer_bolig!J4,Faktorer_andre!J4) -> 0 | L48: =K48*J48+I48*H48+G48*F48+E48*D48 -> 0
B49: Kjeller | C49: Etasjestd %; | D49: =IF($B$45=1,Faktorer_bolig!D5,Faktorer_andre!D5) -> 0.4 | E49: ='Bygg 4'!E9 -> 0 | F49: =IF($B$45=1,Faktorer_bolig!F5,Faktorer_andre!F5) -> 0.6 | G49: ='Bygg 4'!G9 -> 0 | H49: =IF($B$45=1,Faktorer_bolig!H5,Faktorer_andre!H5) -> 0.8 | I49: ='Bygg 4'!I9 -> 0 | J49: =IF($B$45=1,Faktorer_bolig!J5,Faktorer_andre!J5) -> 1 | K49: ='Bygg 4'!K9 -> 0 | L49: 0
B50: Kjeller | C50: Tilst/egn; | D50: =IF($B$45=1,Faktorer_bolig!D6,Faktorer_andre!D6) -> 0.4 | E50: ='Bygg 4'!E10 -> 0 | F50: =IF($B$45=1,Faktorer_bolig!F6,Faktorer_andre!F6) -> 0.6 | G50: ='Bygg 4'!G10 -> 0 | H50: =IF($B$45=1,Faktorer_bolig!H6,Faktorer_andre!H6) -> 0.8 | I50: ='Bygg 4'!I10 -> 0 | J50: =IF($B$45=1,Faktorer_bolig!J6,Faktorer_andre!J6) -> 1 | K50: ='Bygg 4'!K10 -> 0 | L50: 0
B51: Underetasje | C51: Arealtype %; | D51: =IF($B$45=1,Faktorer_bolig!D7,Faktorer_andre!D7) -> 0.2 | E51: ='Bygg 4'!E11 -> 0 | F51: =IF($B$45=1,Faktorer_bolig!F7,Faktorer_andre!F7) -> 0.35 | G51: ='Bygg 4'!G11 -> 0 | H51: =IF($B$45=1,Faktorer_bolig!H7,Faktorer_andre!H7) -> 0.5 | I51: ='Bygg 4'!I11 -> 0 | J51: =IF($B$45=1,Faktorer_bolig!J7,Faktorer_andre!J7) -> 0 | L51: 0
B52: Underetasje | C52: Etasjestd %; | D52: =IF($B$45=1,Faktorer_bolig!D8,Faktorer_andre!D8) -> 0.56 | E52: ='Bygg 4'!E12 -> 0 | F52: =IF($B$45=1,Faktorer_bolig!F8,Faktorer_andre!F8) -> 0.75 | G52: ='Bygg 4'!G12 -> 0 | H52: =IF($B$45=1,Faktorer_bolig!H8,Faktorer_andre!H8) -> 0.87 | I52: ='Bygg 4'!I12 -> 0 | J52: =IF($B$45=1,Faktorer_bolig!J8,Faktorer_andre!J8) -> 1 | K52: ='Bygg 4'!K12 -> 0 | L52: 0
B53: Underetasje | C53: Tilst/egn; | D53: =IF($B$45=1,Faktorer_bolig!D9,Faktorer_andre!D9) -> 0.5 | E53: ='Bygg 4'!E13 -> 0 | F53: =IF($B$45=1,Faktorer_bolig!F9,Faktorer_andre!F9) -> 0.65 | G53: ='Bygg 4'!G13 -> 0 | H53: =IF($B$45=1,Faktorer_bolig!H9,Faktorer_andre!H9) -> 0.8 | I53: ='Bygg 4'!I13 -> 0 | J53: =IF($B$45=1,Faktorer_bolig!J9,Faktorer_andre!J9) -> 1 | K53: ='Bygg 4'!K13 -> 0 | L53: 0
B54: 1. etg | C54: Arealtype %; | D54: =IF($B$45=1,Faktorer_bolig!D10,Faktorer_andre!D10) -> 0.4 | E54: ='Bygg 4'!E14 -> 0 | F54: =IF($B$45=1,Faktorer_bolig!F10,Faktorer_andre!F10) -> 0.7 | G54: ='Bygg 4'!G14 -> 0 | H54: =IF($B$45=1,Faktorer_bolig!H10,Faktorer_andre!H10) -> 1 | I54: ='Bygg 4'!I14 -> 0 | J54: =IF($B$45=1,Faktorer_bolig!J10,Faktorer_andre!J10) -> 0 | L54: 0
B55: 1. etg | C55: Etasjestd %; | D55: =IF($B$45=1,Faktorer_bolig!D11,Faktorer_andre!D11) -> 0.56 | E55: ='Bygg 4'!E15 -> 0 | F55: =IF($B$45=1,Faktorer_bolig!F11,Faktorer_andre!F11) -> 0.75 | G55: ='Bygg 4'!G15 -> 0 | H55: =IF($B$45=1,Faktorer_bolig!H11,Faktorer_andre!H11) -> 0.87 | I55: ='Bygg 4'!I15 -> 0 | J55: =IF($B$45=1,Faktorer_bolig!J11,Faktorer_andre!J11) -> 1 | K55: ='Bygg 4'!K15 -> 0 | L55: 0
B56: 1. etg | C56: Tilst/egn; | D56: =IF($B$45=1,Faktorer_bolig!D12,Faktorer_andre!D12) -> 0.5 | E56: ='Bygg 4'!E16 -> 0 | F56: =IF($B$45=1,Faktorer_bolig!F12,Faktorer_andre!F12) -> 0.65 | G56: ='Bygg 4'!G16 -> 0 | H56: =IF($B$45=1,Faktorer_bolig!H12,Faktorer_andre!H12) -> 0.8 | I56: ='Bygg 4'!I16 -> 0 | J56: =IF($B$45=1,Faktorer_bolig!J12,Faktorer_andre!J12) -> 1 | K56: ='Bygg 4'!K16 -> 0 | L56: 0
B57: 2.etg | C57: Arealtype %; | D57: =IF($B$45=1,Faktorer_bolig!D13,Faktorer_andre!D13) -> 0.2 | E57: ='Bygg 4'!E17 -> 0 | F57: =IF($B$45=1,Faktorer_bolig!F13,Faktorer_andre!F13) -> 0.4 | G57: ='Bygg 4'!G17 -> 0 | H57: =IF($B$45=1,Faktorer_bolig!H13,Faktorer_andre!H13) -> 0.6 | I57: ='Bygg 4'!I17 -> 0 | J57: =IF($B$45=1,Faktorer_bolig!J13,Faktorer_andre!J13) -> 0 | L57: =I57*H57+G57*F57+E57*D57 -> 0
B58: 2.etg | C58: Etasjestd %; | D58: =IF($B$45=1,Faktorer_bolig!D14,Faktorer_andre!D14) -> 0.56 | E58: ='Bygg 4'!E18 -> 0 | F58: =IF($B$45=1,Faktorer_bolig!F14,Faktorer_andre!F14) -> 0.75 | G58: ='Bygg 4'!G18 -> 0 | H58: =IF($B$45=1,Faktorer_bolig!H14,Faktorer_andre!H14) -> 0.87 | I58: ='Bygg 4'!I18 -> 0 | J58: =IF($B$45=1,Faktorer_bolig!J14,Faktorer_andre!J14) -> 1 | K58: ='Bygg 4'!K18 -> 0 | L58: =K58*J58+I58*H58+G58*F58+E58*D58 -> 0
B59: 2.etg | C59: Tilst/egn; | D59: =IF($B$45=1,Faktorer_bolig!D15,Faktorer_andre!D15) -> 0.5 | E59: ='Bygg 4'!E19 -> 0 | F59: =IF($B$45=1,Faktorer_bolig!F15,Faktorer_andre!F15) -> 0.65 | G59: ='Bygg 4'!G19 -> 0 | H59: =IF($B$45=1,Faktorer_bolig!H15,Faktorer_andre!H15) -> 0.8 | I59: ='Bygg 4'!I19 -> 0 | J59: =IF($B$45=1,Faktorer_bolig!J15,Faktorer_andre!J15) -> 1 | K59: ='Bygg 4'!K19 -> 0 | L59: =K59*J59+I59*H59+G59*F59+E59*D59 -> 0
B60: Mesanin/kjørebro | C60: =IF(ISTEXT(B60),C57,"") -> Arealtype %; | D60: =IF($B$45=1,Faktorer_bolig!D16,Faktorer_andre!D16) -> 0.1 | E60: ='Bygg 4'!E20 -> 0 | F60: =IF($B$45=1,Faktorer_bolig!F16,Faktorer_andre!F16) -> 0.2 | G60: ='Bygg 4'!G20 -> 0 | H60: =IF($B$45=1,Faktorer_bolig!H16,Faktorer_andre!H16) -> 0.3 | I60: ='Bygg 4'!I20 -> 0 | J60: =IF($B$45=1,Faktorer_bolig!J16,Faktorer_andre!J16) -> 0 | L60: =I60*H60+G60*F60+E60*D60 -> 0
B61: Mesanin/kjørebro | C61: Etasjestd %; | D61: =IF($B$45=1,Faktorer_bolig!D17,Faktorer_andre!D17) -> 0.4 | E61: ='Bygg 4'!E21 -> 0 | F61: =IF($B$45=1,Faktorer_bolig!F17,Faktorer_andre!F17) -> 0.6 | G61: ='Bygg 4'!G21 -> 0 | H61: =IF($B$45=1,Faktorer_bolig!H17,Faktorer_andre!H17) -> 0.8 | I61: ='Bygg 4'!I21 -> 0 | J61: =IF($B$45=1,Faktorer_bolig!J17,Faktorer_andre!J17) -> 1 | K61: ='Bygg 4'!K21 -> 0 | L61: =K61*J61+I61*H61+G61*F61+E61*D61 -> 0
B62: Mesanin/kjørebro | C62: Tilst/egn; | D62: =IF($B$45=1,Faktorer_bolig!D18,Faktorer_andre!D18) -> 0.4 | E62: ='Bygg 4'!E22 -> 0 | F62: =IF($B$45=1,Faktorer_bolig!F18,Faktorer_andre!F18) -> 0.6 | G62: ='Bygg 4'!G22 -> 0 | H62: =IF($B$45=1,Faktorer_bolig!H18,Faktorer_andre!H18) -> 0.8 | I62: ='Bygg 4'!I22 -> 0 | J62: =IF($B$45=1,Faktorer_bolig!J18,Faktorer_andre!J18) -> 1 | K62: ='Bygg 4'!K22 -> 0 | L62: =K62*J62+I62*H62+G62*F62+E62*D62 -> 0
B63: Enkel Bolig | C63: Arealtype %; | D63: =IF(A63="Bolig",Faktorer_bolig!D19,Faktorer_andre!D19) -> 0 | E63: ='Bygg 4'!E23 -> 0 | F63: =IF($A63="Bolig",Faktorer_bolig!F19,Faktorer_andre!F19) -> 0 | G63: ='Bygg 4'!G23 -> 0 | H63: =IF($A63="Bolig",Faktorer_bolig!H19,Faktorer_andre!H19) -> 0 | I63: ='Bygg 4'!I23 -> 0 | J63: =IF($B$45=1,Faktorer_bolig!J19,Faktorer_andre!J19) -> 0 | L63: =I63*H63+G63*F63+E63*D63 -> 0
B64: Enkel Bolig | C64: Etasjestd %; | D64: =IF(A64="Bolig",Faktorer_bolig!D20,Faktorer_andre!E20) -> 0 | E64: ='Bygg 4'!E24 -> 0 | F64: =IF($A64="Bolig",Faktorer_bolig!F20,Faktorer_andre!G20) -> 0 | G64: ='Bygg 4'!G24 -> 0 | H64: =IF($A64="Bolig",Faktorer_bolig!H20,Faktorer_andre!I20) -> 0 | I64: ='Bygg 4'!I24 -> 0 | J64: =IF($B$45=1,Faktorer_bolig!J20,Faktorer_andre!K20) -> 0 | K64: ='Bygg 4'!K24 -> 0 | L64: =K64*J64+I64*H64+G64*F64+E64*D64 -> 0
B65: Enkel Bolig | C65: Tilst/egn; | D65: =IF(A65="Bolig",Faktorer_bolig!D21,Faktorer_andre!E21) -> 0 | E65: ='Bygg 4'!E25 -> 0 | F65: =IF($A65="Bolig",Faktorer_bolig!F21,Faktorer_andre!G21) -> 0 | G65: ='Bygg 4'!G25 -> 0 | H65: =IF($A65="Bolig",Faktorer_bolig!H21,Faktorer_andre!I21) -> 0 | I65: ='Bygg 4'!I25 -> 0 | J65: =IF($B$45=1,Faktorer_bolig!J21,Faktorer_andre!K21) -> 0 | K65: ='Bygg 4'!K25 -> 0 | L65: =K65*J65+I65*H65+G65*F65+E65*D65 -> 0
A67: =$A$1 -> X | C67: Pris nytt bygg | D67: =IF(A67="Bolig",Faktorer_bolig!D22,Faktorer_andre!D19) -> 0 | F67: =IF(C67="Bolig",Faktorer_bolig!F22,Faktorer_andre!F19) -> 0 | H67: =IF('Takst 1'!E3="Bolig",Faktorer_bolig!H22,Faktorer_andre!H19) -> 0 | L67: =VLOOKUP(A1,Pris_tabell_nytt,2,FALSE) -> 0
D68: =Faktorer_bolig!N3 -> Kjeller | E68: =Faktorer_bolig!O3 -> undertasje | F68: =Faktorer_bolig!P3 -> 1 etg | G68: =Faktorer_bolig!Q3 -> 2.etg | H68: =Faktorer_bolig!S3 -> 0 | I68: =Faktorer_bolig!T3 -> 0
A69: =$A$1 -> X | C69: Vektet etasjeareal | D69: =IF($B$45=1,Faktorer_bolig!N4,Faktorer_andre!M4) -> 0.3 | E69: =IF($B$45=1,Faktorer_bolig!O4,Faktorer_andre!N4) -> 0.5 | F69: =IF($B$45=1,Faktorer_bolig!P4,Faktorer_andre!O4) -> 1 | G69: =IF($B$45=1,Faktorer_bolig!Q4,Faktorer_andre!P4) -> 0.6 | H69: =IF($B$45=1,Faktorer_bolig!R4,Faktorer_andre!Q4) -> 0.3 | I69: =IF($B$45=1,Faktorer_bolig!S4,Faktorer_andre!J25) -> 0 | L69: =areal_k*D69+areal_u*E69+areal_1*F69+areal_2*G69+B20*H69+B23*I69 -> 0
A70: X | C70: Korreksjon for størrelse | G70: fra | H70: =IF($B$45=1,Faktorer_bolig!N15,Faktorer_andre!M18) -> 3000 | I70: m2 til | J70: =IF($B$45=1,Faktorer_bolig!P15,Faktorer_andre!O18) -> 4000 | K70: =IF($B$45=1,Max_areal_korr_1,Max_areal_korr_2) -> 100 | L70: =MAX(MIN(100-(L69-H70)/(J70-H70)*(100-K70),100),K70) -> 100 | M70: Denne satsen brukes kun i Takst til å korrigere nyverdien | P70: =MAX(MIN(((L70-(MIN(P69,N70)))*0.25)+100,100),O70) -> 100
A71: X | C71: Nedskrevet verdi pga alder i % | K71: =VLOOKUP('Bygg 3'!A72,'Priser nybygg'!B3:F22,4,FALSE) ->  | M71: største verdi
A72: X | C72: Nedskrevet verdi etter påkostning i %; min 50% | H72: 0.02 | L72: =MAX(L86,L79) ->  | M72: velges
A73: X | C73: Korr. vedl.h/egnet. Grunnlag "Normale byggekostnader" fra "Teknisk verdiberegning" | I73: Korrigert restverdi pga mangler | L73: =(areal_k*L50+areal_u*L53+areal_1*L56+areal_2*L59+B20*L62+B23*L65)/(areal_k+areal_u+areal_1+areal_2+B20+B23) ->  | M73: Brukes til å beregne trekk for alder i "Takst"
A74: X | C74: Tomt | L74: =K33*K32/18 -> 0
K76: Bygg type | L76: =A1 -> X
K77: Valgt avskrivningskurvve | L77: =VLOOKUP(L76,'Priser nybygg'!B3:F38,4,FALSE) -> 3
K78: Valgt sats | L78: =HLOOKUP($L$77,Nedskriving!$J$1:$L$4,3) -> 2.25
K79: Minste restverdi | L79: =HLOOKUP($L$77,Nedskriving!$J$1:$L$4,4) -> 20
K81: Areal av opprinnelig del som ikke er pusset opp | L81: =G2*(1-prosent_oppgradering_1/100) -> 0 | M81: =MIN(J2-E2,397) -> 0 | N81: =IF(M81>0,VLOOKUP(M81,Nedskriving!$A$4:$G$400,$L$77+4,FALSE),0) -> 0 | O81: =L81*N81 -> 0
K82: Opprinnelig hus pusset opp | L82: =IF(E3>E4,G2*prosent_oppgradering_1/100,G2*prosent_oppgradering_1/100) -> 0 | M82: =IF(E4>0,J2-E4,0) -> 0 | N82: =IF(M82>0,VLOOKUP(M82,Nedskriving!$A$4:$G$400,$L$77+4,FALSE),0) -> 0 | O82: =L82*N82 -> 0
K83: Areal av TILBYGG som er pusset opp | L83: =IF(E4>E3,G3*prosent_oppgradering_1/100,0) -> 0 | M83: =IF(E3=0,0,J2-E3) -> 0 | N83: =IF(M83>0,VLOOKUP(M83,Nedskriving!$A$4:$G$400,$L$77+4,FALSE),0) -> 0 | O83: =L83*N83 -> 0
K84: Tilbygg ikke pusset opp | L84: =G3-L83 -> 0 | M84: =IF(OR(L84=0,E4=0),0,J2-E4) -> 0 | N84: =IF(M84>0,VLOOKUP(M84,Nedskriving!$A$4:$G$400,$L$77+4,FALSE),0) -> 0 | O84: =L84*N84 -> 0
K85: Sum | L85: =SUM(L81:L84) -> 0 | O85: =SUM(O81:O84) -> 0
K86: Beregnet veid faktor for nedskriving pga alder | L86: =O85/L85 -> 
C87: Bygningens alder | D87: =J2-E2 -> 0 | E87: år
C89: År siden ombygging | D89: =IF(ISNUMBER(E4),J2-E4,0) -> 0 | E89: år
C90: =A1 -> X | D90: ='Takst 3'!J27 -> 

Sheet Bygg 5
A1: X | B1: 0
D2: Byggeår; | E2: 0 | F2: Grunnflate; | G2: 0 | I2: Befaring år; | J2: =YEAR(TODAY()) -> 2022
C3: Tilbygg; | D3: År; | E3: 0 | F3: Grunnflate; | G3: 0
C4: Ombygd | D4: År; | E4: 0 | H4: Korrigert pga oppgradering; | J4: 0
J5: tak max 10 %
B7: Areal
A8: =IF($B$45=1,Faktorer_bolig!A4,Faktorer_andre!A4) -> Kjeller: | B8: 0 | C8: =IF($B$45=1,Faktorer_bolig!B4,Faktorer_andre!B4) -> Arealbruk i %; | D8: =IF($B$45=1,Faktorer_bolig!C4,Faktorer_andre!C4) -> svak/uinnr. | E8: 0 | F8: =IF($B$45=1,Faktorer_bolig!E4,Faktorer_andre!E4) -> enkel lagerkjeller | G8: 0 | H8: =IF($B$45=1,Faktorer_bolig!G4,Faktorer_andre!G4) -> vanl. bruksareal | I8: 0 | J8: =IF($B$45=1,Faktorer_bolig!I4,Faktorer_andre!I4) -> 0 | K8: 0 | L8: 0 | M8: 0
A9: =IF($B$45=1,Faktorer_bolig!A5,Faktorer_andre!A5) -> 0 | B9: =IF(AND(B8=0,SUM(E8:E10,G8:G10,I8:I10,K9:K10)>0),"Har du glemt arealet ?","") ->  | C9: =IF($B$45=1,Faktorer_bolig!B5,Faktorer_andre!B5) -> Etasjestd i %; | D9: =IF($B$45=1,Faktorer_bolig!C5,Faktorer_andre!C5) -> svak/gråstein | E9: 0 | F9: =IF($B$45=1,Faktorer_bolig!E5,Faktorer_andre!E5) -> enkelt lager | G9: 0 | H9: =IF($B$45=1,Faktorer_bolig!G5,Faktorer_andre!G5) -> bra lagerareal | I9: 0 | J9: =IF($B$45=1,Faktorer_bolig!I5,Faktorer_andre!I5) -> godt bruksareal | K9: 0 | L9: =IF(areal_k>0,100-SUM(E9:K9),0) -> 0 | M9: =IF(L9>0," % mangler",IF(L9=0,0,"Over 100% blir feil!!!")) -> 0 | N9: 0 | O9: 0 | P9: 0 | Q9: 0 | R9: 0 | S9: 0 | T9: 0 | U9: 0 | V9: 0 | W9: 0 | X9: 0 | Y9: 0 | Z9: 0 | AA9: 0 | AB9: 0 | AC9: 0 | AD9: 0 | AE9: 0 | AF9: 0 | AG9: 0 | AH9: 0 | AI9: 0 | AJ9: 0 | AK9: 0 | AL9: 0 | AM9: 0 | AN9: 0 | AO9: 0 | AP9: 0 | AQ9: 0 | AR9: 0 | AS9: 0 | AT9: 0 | AU9: 0 | AV9: 0 | AW9: 0 | AX9: 0 | AY9: 0 | AZ9: 0 | BA9: 0 | BB9: 0 | BC9: 0 | BD9: 0 | BE9: 0 | BF9: 0 | BG9: 0 | BH9: 0 | BI9: 0 | BJ9: 0 | BK9: 0 | BL9: 0 | BM9: 0 | BN9: 0 | BO9: 0 | BP9: 0 | BQ9: 0 | BR9: 0 | BS9: 0 | BT9: 0 | BU9: 0 | BV9: 0 | BW9: 0 | BX9: 0 | BY9: 0 | BZ9: 0 | CA9: 0 | CB9: 0 | CC9: 0 | CD9: 0 | CE9: 0 | CF9: 0 | CG9: 0 | CH9: 0 | CI9: 0 | CJ9: 0 | CK9: 0 | CL9: 0 | CM9: 0 | CN9: 0 | CO9: 0 | CP9: 0 | CQ9: 0 | CR9: 0 | CS9: 0 | CT9: 0 | CU9: 0 | CV9: 0 | CW9: 0 | CX9: 0 | CY9: 0 | CZ9: 0 | DA9: 0 | DB9: 0 | DC9: 0 | DD9: 0 | DE9: 0 | DF9: 0 | DG9: 0 | DH9: 0 | DI9: 0 | DJ9: 0 | DK9: 0 | DL9: 0 | DM9: 0 | DN9: 0 | DO9: 0 | DP9: 0 | DQ9: 0 | DR9: 0 | DS9: 0 | DT9: 0 | DU9: 0 | DV9: 0 | DW9: 0 | DX9: 0 | DY9: 0 | DZ9: 0 | EA9: 0 | EB9: 0 | EC9: 0 | ED9: 0 | EE9: 0 | EF9: 0 | EG9: 0 | EH9: 0 | EI9: 0 | EJ9: 0 | EK9: 0 | EL9: 0 | EM9: 0 | EN9: 0 | EO9: 0 | EP9: 0 | EQ9: 0 | ER9: 0 | ES9: 0 | ET9: 0 | EU9: 0 | EV9: 0 | EW9: 0 | EX9: 0 | EY9: 0 | EZ9: 0 | FA9: 0 | FB9: 0 | FC9: 0 | FD9: 0 | FE9: 0 | FF9: 0 | FG9: 0 | FH9: 0 | FI9: 0 | FJ9: 0 | FK9: 0 | FL9: 0 | FM9: 0 | FN9: 0 | FO9: 0 | FP9: 0 | FQ9: 0 | FR9: 0 | FS9: 0 | FT9: 0 | FU9: 0 | FV9: 0 | FW9: 0 | FX9: 0 | FY9: 0 | FZ9: 0 | GA9: 0 | GB9: 0 | GC9: 0 | GD9: 0 | GE9: 0 | GF9: 0 | GG9: 0 | GH9: 0 | GI9: 0 | GJ9: 0 | GK9: 0 | GL9: 0 | GM9: 0 | GN9: 0 | GO9: 0 | GP9: 0 | GQ9: 0 | GR9: 0 | GS9: 0 | GT9: 0 | GU9: 0 | GV9: 0 | GW9: 0 | GX9: 0 | GY9: 0 | GZ9: 0 | HA9: 0 | HB9: 0 | HC9: 0 | HD9: 0 | HE9: 0 | HF9: 0 | HG9: 0 | HH9: 0 | HI9: 0 | HJ9: 0 | HK9: 0 | HL9: 0 | HM9: 0 | HN9: 0 | HO9: 0 | HP9: 0 | HQ9: 0 | HR9: 0 | HS9: 0 | HT9: 0 | HU9: 0 | HV9: 0 | HW9: 0 | HX9: 0 | HY9: 0 | HZ9: 0 | IA9: 0 | IB9: 0 | IC9: 0 | ID9: 0 | IE9: 0 | IF9: 0 | IG9: 0 | IH9: 0 | II9: 0 | IJ9: 0 | IK9: 0 | IL9: 0 | IM9: 0 | IN9: 0 | IO9: 0 | IP9: 0 | IQ9: 0 | IR9: 0 | IS9: 0 | IT9: 0 | IU9: 0 | IV9: 0 | IW9: 0 | IX9: 0 | IY9: 0 | IZ9: 0
A10: =IF($B$45=1,Faktorer_bolig!A6,Faktorer_andre!A6) -> 0 | C10: =IF($B$45=1,Faktorer_bolig!B6,Faktorer_andre!B6) -> Tilst/egnethet; | D10: =IF($B$45=1,Faktorer_bolig!C6,Faktorer_andre!C6) -> slitt/dårlig | E10: 0 | F10: =IF($B$45=1,Faktorer_bolig!E6,Faktorer_andre!E6) -> brukbar | G10: 0 | H10: =IF($B$45=1,Faktorer_bolig!G6,Faktorer_andre!G6) -> bra | I10: 0 | J10: =IF($B$45=1,Faktorer_bolig!I6,Faktorer_andre!I6) -> svært god | K10: 0 | L10: =IF(areal_k>0,100-SUM(E10:K10),0) -> 0 | M10: =IF(L10>0," % mangler",IF(L10=0,0,"----Over 100% blir feil!!!")) -> 0 | N10: 0 | O10: 0 | P10: 0 | Q10: 0 | R10: 0 | S10: 0 | T10: 0 | U10: 0 | V10: 0 | W10: 0 | X10: 0 | Y10: 0 | Z10: 0 | AA10: 0 | AB10: 0 | AC10: 0 | AD10: 0 | AE10: 0 | AF10: 0 | AG10: 0 | AH10: 0 | AI10: 0 | AJ10: 0 | AK10: 0 | AL10: 0 | AM10: 0 | AN10: 0 | AO10: 0 | AP10: 0 | AQ10: 0 | AR10: 0 | AS10: 0 | AT10: 0 | AU10: 0 | AV10: 0 | AW10: 0 | AX10: 0 | AY10: 0 | AZ10: 0 | BA10: 0 | BB10: 0 | BC10: 0 | BD10: 0 | BE10: 0 | BF10: 0 | BG10: 0 | BH10: 0 | BI10: 0 | BJ10: 0 | BK10: 0 | BL10: 0 | BM10: 0 | BN10: 0 | BO10: 0 | BP10: 0 | BQ10: 0 | BR10: 0 | BS10: 0 | BT10: 0 | BU10: 0 | BV10: 0 | BW10: 0 | BX10: 0 | BY10: 0 | BZ10: 0 | CA10: 0 | CB10: 0 | CC10: 0 | CD10: 0 | CE10: 0 | CF10: 0 | CG10: 0 | CH10: 0 | CI10: 0 | CJ10: 0 | CK10: 0 | CL10: 0 | CM10: 0 | CN10: 0 | CO10: 0 | CP10: 0 | CQ10: 0 | CR10: 0 | CS10: 0 | CT10: 0 | CU10: 0 | CV10: 0 | CW10: 0 | CX10: 0 | CY10: 0 | CZ10: 0 | DA10: 0 | DB10: 0 | DC10: 0 | DD10: 0 | DE10: 0 | DF10: 0 | DG10: 0 | DH10: 0 | DI10: 0 | DJ10: 0 | DK10: 0 | DL10: 0 | DM10: 0 | DN10: 0 | DO10: 0 | DP10: 0 | DQ10: 0 | DR10: 0 | DS10: 0 | DT10: 0 | DU10: 0 | DV10: 0 | DW10: 0 | DX10: 0 | DY10: 0 | DZ10: 0 | EA10: 0 | EB10: 0 | EC10: 0 | ED10: 0 | EE10: 0 | EF10: 0 | EG10: 0 | EH10: 0 | EI10: 0 | EJ10: 0 | EK10: 0 | EL10: 0 | EM10: 0 | EN10: 0 | EO10: 0 | EP10: 0 | EQ10: 0 | ER10: 0 | ES10: 0 | ET10: 0 | EU10: 0 | EV10: 0 | EW10: 0 | EX10: 0 | EY10: 0 | EZ10: 0 | FA10: 0 | FB10: 0 | FC10: 0 | FD10: 0 | FE10: 0 | FF10: 0 | FG10: 0 | FH10: 0 | FI10: 0 | FJ10: 0 | FK10: 0 | FL10: 0 | FM10: 0 | FN10: 0 | FO10: 0 | FP10: 0 | FQ10: 0 | FR10: 0 | FS10: 0 | FT10: 0 | FU10: 0 | FV10: 0 | FW10: 0 | FX10: 0 | FY10: 0 | FZ10: 0 | GA10: 0 | GB10: 0 | GC10: 0 | GD10: 0 | GE10: 0 | GF10: 0 | GG10: 0 | GH10: 0 | GI10: 0 | GJ10: 0 | GK10: 0 | GL10: 0 | GM10: 0 | GN10: 0 | GO10: 0 | GP10: 0 | GQ10: 0 | GR10: 0 | GS10: 0 | GT10: 0 | GU10: 0 | GV10: 0 | GW10: 0 | GX10: 0 | GY10: 0 | GZ10: 0 | HA10: 0 | HB10: 0 | HC10: 0 | HD10: 0 | HE10: 0 | HF10: 0 | HG10: 0 | HH10: 0 | HI10: 0 | HJ10: 0 | HK10: 0 | HL10: 0 | HM10: 0 | HN10: 0 | HO10: 0 | HP10: 0 | HQ10: 0 | HR10: 0 | HS10: 0 | HT10: 0 | HU10: 0 | HV10: 0 | HW10: 0 | HX10: 0 | HY10: 0 | HZ10: 0 | IA10: 0 | IB10: 0 | IC10: 0 | ID10: 0 | IE10: 0 | IF10: 0 | IG10: 0 | IH10: 0 | II10: 0 | IJ10: 0 | IK10: 0 | IL10: 0 | IM10: 0 | IN10: 0 | IO10: 0 | IP10: 0 | IQ10: 0 | IR10: 0 | IS10: 0 | IT10: 0 | IU10: 0 | IV10: 0 | IW10: 0 | IX10: 0 | IY10: 0 | IZ10: 0
A11: =IF($B$45=1,Faktorer_bolig!A7,Faktorer_andre!A7) -> Sokkel/underetg: | B11: 0 | C11: =IF($B$45=1,Faktorer_bolig!B7,Faktorer_andre!B7) -> Arealbruk i %; | D11: =IF($B$45=1,Faktorer_bolig!C7,Faktorer_andre!C7) -> svak/uegnet | E11: 0 | F11: =IF($B$45=1,Faktorer_bolig!E7,Faktorer_andre!E7) -> enkelt lagerareal | G11: 0 | H11: =IF($B$45=1,Faktorer_bolig!G7,Faktorer_andre!G7) -> vanl. bruksareal | I11: 0 | J11: =IF($B$45=1,Faktorer_bolig!I7,Faktorer_andre!I7) -> 0 | K11: 0 | L11: =IF(areal_u>0,100-SUM(E11:K11),0) -> 0 | M11: =IF(L11>0," % mangler",IF(L11=0,0,"----Over 100% blir feil!!!")) -> 0 | N11: 0 | O11: 0 | P11: 0 | Q11: 0 | R11: 0 | S11: 0 | T11: 0 | U11: 0 | V11: 0 | W11: 0 | X11: 0 | Y11: 0 | Z11: 0 | AA11: 0 | AB11: 0 | AC11: 0 | AD11: 0 | AE11: 0 | AF11: 0 | AG11: 0 | AH11: 0 | AI11: 0 | AJ11: 0 | AK11: 0 | AL11: 0 | AM11: 0 | AN11: 0 | AO11: 0 | AP11: 0 | AQ11: 0 | AR11: 0 | AS11: 0 | AT11: 0 | AU11: 0 | AV11: 0 | AW11: 0 | AX11: 0 | AY11: 0 | AZ11: 0 | BA11: 0 | BB11: 0 | BC11: 0 | BD11: 0 | BE11: 0 | BF11: 0 | BG11: 0 | BH11: 0 | BI11: 0 | BJ11: 0 | BK11: 0 | BL11: 0 | BM11: 0 | BN11: 0 | BO11: 0 | BP11: 0 | BQ11: 0 | BR11: 0 | BS11: 0 | BT11: 0 | BU11: 0 | BV11: 0 | BW11: 0 | BX11: 0 | BY11: 0 | BZ11: 0 | CA11: 0 | CB11: 0 | CC11: 0 | CD11: 0 | CE11: 0 | CF11: 0 | CG11: 0 | CH11: 0 | CI11: 0 | CJ11: 0 | CK11: 0 | CL11: 0 | CM11: 0 | CN11: 0 | CO11: 0 | CP11: 0 | CQ11: 0 | CR11: 0 | CS11: 0 | CT11: 0 | CU11: 0 | CV11: 0 | CW11: 0 | CX11: 0 | CY11: 0 | CZ11: 0 | DA11: 0 | DB11: 0 | DC11: 0 | DD11: 0 | DE11: 0 | DF11: 0 | DG11: 0 | DH11: 0 | DI11: 0 | DJ11: 0 | DK11: 0 | DL11: 0 | DM11: 0 | DN11: 0 | DO11: 0 | DP11: 0 | DQ11: 0 | DR11: 0 | DS11: 0 | DT11: 0 | DU11: 0 | DV11: 0 | DW11: 0 | DX11: 0 | DY11: 0 | DZ11: 0 | EA11: 0 | EB11: 0 | EC11: 0 | ED11: 0 | EE11: 0 | EF11: 0 | EG11: 0 | EH11: 0 | EI11: 0 | EJ11: 0 | EK11: 0 | EL11: 0 | EM11: 0 | EN11: 0 | EO11: 0 | EP11: 0 | EQ11: 0 | ER11: 0 | ES11: 0 | ET11: 0 | EU11: 0 | EV11: 0 | EW11: 0 | EX11: 0 | EY11: 0 | EZ11: 0 | FA11: 0 | FB11: 0 | FC11: 0 | FD11: 0 | FE11: 0 | FF11: 0 | FG11: 0 | FH11: 0 | FI11: 0 | FJ11: 0 | FK11: 0 | FL11: 0 | FM11: 0 | FN11: 0 | FO11: 0 | FP11: 0 | FQ11: 0 | FR11: 0 | FS11: 0 | FT11: 0 | FU11: 0 | FV11: 0 | FW11: 0 | FX11: 0 | FY11: 0 | FZ11: 0 | GA11: 0 | GB11: 0 | GC11: 0 | GD11: 0 | GE11: 0 | GF11: 0 | GG11: 0 | GH11: 0 | GI11: 0 | GJ11: 0 | GK11: 0 | GL11: 0 | GM11: 0 | GN11: 0 | GO11: 0 | GP11: 0 | GQ11: 0 | GR11: 0 | GS11: 0 | GT11: 0 | GU11: 0 | GV11: 0 | GW11: 0 | GX11: 0 | GY11: 0 | GZ11: 0 | HA11: 0 | HB11: 0 | HC11: 0 | HD11: 0 | HE11: 0 | HF11: 0 | HG11: 0 | HH11: 0 | HI11: 0 | HJ11: 0 | HK11: 0 | HL11: 0 | HM11: 0 | HN11: 0 | HO11: 0 | HP11: 0 | HQ11: 0 | HR11: 0 | HS11: 0 | HT11: 0 | HU11: 0 | HV11: 0 | HW11: 0 | HX11: 0 | HY11: 0 | HZ11: 0 | IA11: 0 | IB11: 0 | IC11: 0 | ID11: 0 | IE11: 0 | IF11: 0 | IG11: 0 | IH11: 0 | II11: 0 | IJ11: 0 | IK11: 0 | IL11: 0 | IM11: 0 | IN11: 0 | IO11: 0 | IP11: 0 | IQ11: 0 | IR11: 0 | IS11: 0 | IT11: 0 | IU11: 0 | IV11: 0 | IW11: 0 | IX11: 0 | IY11: 0 | IZ11: 0
A12: =IF($B$45=1,Faktorer_bolig!A8,Faktorer_andre!A8) -> 0 | B12: =IF(AND(A11=0,SUM(E11:E13,G11:G13,I11:I13,K12:K13)>0),"Har du glemt arealet ?","") ->  | C12: =IF($B$45=1,Faktorer_bolig!B8,Faktorer_andre!B8) -> Etasjestd i %; | D12: =IF($B$45=1,Faktorer_bolig!C8,Faktorer_andre!C8) -> lav/uinnredet | E12: 0 | F12: =IF($B$45=1,Faktorer_bolig!E8,Faktorer_andre!E8) -> enkel | G12: 0 | H12: =IF($B$45=1,Faktorer_bolig!G8,Faktorer_andre!G8) -> bra | I12: 0 | J12: =IF($B$45=1,Faktorer_bolig!I8,Faktorer_andre!I8) -> god | K12: 0 | L12: =IF(areal_u>0,100-SUM(E12:K12),0) -> 0 | M12: 0 | N12: 0 | O12: 0 | P12: 0 | Q12: 0 | R12: 0 | S12: 0 | T12: 0 | U12: 0 | V12: 0 | W12: 0 | X12: 0 | Y12: 0 | Z12: 0 | AA12: 0 | AB12: 0 | AC12: 0 | AD12: 0 | AE12: 0 | AF12: 0 | AG12: 0 | AH12: 0 | AI12: 0 | AJ12: 0 | AK12: 0 | AL12: 0 | AM12: 0 | AN12: 0 | AO12: 0 | AP12: 0 | AQ12: 0 | AR12: 0 | AS12: 0 | AT12: 0 | AU12: 0 | AV12: 0 | AW12: 0 | AX12: 0 | AY12: 0 | AZ12: 0 | BA12: 0 | BB12: 0 | BC12: 0 | BD12: 0 | BE12: 0 | BF12: 0 | BG12: 0 | BH12: 0 | BI12: 0 | BJ12: 0 | BK12: 0 | BL12: 0 | BM12: 0 | BN12: 0 | BO12: 0 | BP12: 0 | BQ12: 0 | BR12: 0 | BS12: 0 | BT12: 0 | BU12: 0 | BV12: 0 | BW12: 0 | BX12: 0 | BY12: 0 | BZ12: 0 | CA12: 0 | CB12: 0 | CC12: 0 | CD12: 0 | CE12: 0 | CF12: 0 | CG12: 0 | CH12: 0 | CI12: 0 | CJ12: 0 | CK12: 0 | CL12: 0 | CM12: 0 | CN12: 0 | CO12: 0 | CP12: 0 | CQ12: 0 | CR12: 0 | CS12: 0 | CT12: 0 | CU12: 0 | CV12: 0 | CW12: 0 | CX12: 0 | CY12: 0 | CZ12: 0 | DA12: 0 | DB12: 0 | DC12: 0 | DD12: 0 | DE12: 0 | DF12: 0 | DG12: 0 | DH12: 0 | DI12: 0 | DJ12: 0 | DK12: 0 | DL12: 0 | DM12: 0 | DN12: 0 | DO12: 0 | DP12: 0 | DQ12: 0 | DR12: 0 | DS12: 0 | DT12: 0 | DU12: 0 | DV12: 0 | DW12: 0 | DX12: 0 | DY12: 0 | DZ12: 0 | EA12: 0 | EB12: 0 | EC12: 0 | ED12: 0 | EE12: 0 | EF12: 0 | EG12: 0 | EH12: 0 | EI12: 0 | EJ12: 0 | EK12: 0 | EL12: 0 | EM12: 0 | EN12: 0 | EO12: 0 | EP12: 0 | EQ12: 0 | ER12: 0 | ES12: 0 | ET12: 0 | EU12: 0 | EV12: 0 | EW12: 0 | EX12: 0 | EY12: 0 | EZ12: 0 | FA12: 0 | FB12: 0 | FC12: 0 | FD12: 0 | FE12: 0 | FF12: 0 | FG12: 0 | FH12: 0 | FI12: 0 | FJ12: 0 | FK12: 0 | FL12: 0 | FM12: 0 | FN12: 0 | FO12: 0 | FP12: 0 | FQ12: 0 | FR12: 0 | FS12: 0 | FT12: 0 | FU12: 0 | FV12: 0 | FW12: 0 | FX12: 0 | FY12: 0 | FZ12: 0 | GA12: 0 | GB12: 0 | GC12: 0 | GD12: 0 | GE12: 0 | GF12: 0 | GG12: 0 | GH12: 0 | GI12: 0 | GJ12: 0 | GK12: 0 | GL12: 0 | GM12: 0 | GN12: 0 | GO12: 0 | GP12: 0 | GQ12: 0 | GR12: 0 | GS12: 0 | GT12: 0 | GU12: 0 | GV12: 0 | GW12: 0 | GX12: 0 | GY12: 0 | GZ12: 0 | HA12: 0 | HB12: 0 | HC12: 0 | HD12: 0 | HE12: 0 | HF12: 0 | HG12: 0 | HH12: 0 | HI12: 0 | HJ12: 0 | HK12: 0 | HL12: 0 | HM12: 0 | HN12: 0 | HO12: 0 | HP12: 0 | HQ12: 0 | HR12: 0 | HS12: 0 | HT12: 0 | HU12: 0 | HV12: 0 | HW12: 0 | HX12: 0 | HY12: 0 | HZ12: 0 | IA12: 0 | IB12: 0 | IC12: 0 | ID12: 0 | IE12: 0 | IF12: 0 | IG12: 0 | IH12: 0 | II12: 0 | IJ12: 0 | IK12: 0 | IL12: 0 | IM12: 0 | IN12: 0 | IO12: 0 | IP12: 0 | IQ12: 0 | IR12: 0 | IS12: 0 | IT12: 0 | IU12: 0 | IV12: 0 | IW12: 0 | IX12: 0 | IY12: 0 | IZ12: 0
A13: =IF($B$45=1,Faktorer_bolig!A9,Faktorer_andre!A9) -> 0 | C13: =IF($B$45=1,Faktorer_bolig!B9,Faktorer_andre!B9) -> Tilst/egnethet; | D13: =IF($B$45=1,Faktorer_bolig!C9,Faktorer_andre!C9) -> slitt/dårl | E13: 0 | F13: =IF($B$45=1,Faktorer_bolig!E9,Faktorer_andre!E9) -> brukbar | G13: 0 | H13: =IF($B$45=1,Faktorer_bolig!G9,Faktorer_andre!G9) -> bra | I13: 0 | J13: =IF($B$45=1,Faktorer_bolig!I9,Faktorer_andre!I9) -> svært god | K13: 0 | L13: =IF(areal_u>0,100-SUM(E13:K13),0) -> 0 | M13: 0 | N13: 0 | O13: 0 | P13: 0 | Q13: 0 | R13: 0 | S13: 0 | T13: 0 | U13: 0 | V13: 0 | W13: 0 | X13: 0 | Y13: 0 | Z13: 0 | AA13: 0 | AB13: 0 | AC13: 0 | AD13: 0 | AE13: 0 | AF13: 0 | AG13: 0 | AH13: 0 | AI13: 0 | AJ13: 0 | AK13: 0 | AL13: 0 | AM13: 0 | AN13: 0 | AO13: 0 | AP13: 0 | AQ13: 0 | AR13: 0 | AS13: 0 | AT13: 0 | AU13: 0 | AV13: 0 | AW13: 0 | AX13: 0 | AY13: 0 | AZ13: 0 | BA13: 0 | BB13: 0 | BC13: 0 | BD13: 0 | BE13: 0 | BF13: 0 | BG13: 0 | BH13: 0 | BI13: 0 | BJ13: 0 | BK13: 0 | BL13: 0 | BM13: 0 | BN13: 0 | BO13: 0 | BP13: 0 | BQ13: 0 | BR13: 0 | BS13: 0 | BT13: 0 | BU13: 0 | BV13: 0 | BW13: 0 | BX13: 0 | BY13: 0 | BZ13: 0 | CA13: 0 | CB13: 0 | CC13: 0 | CD13: 0 | CE13: 0 | CF13: 0 | CG13: 0 | CH13: 0 | CI13: 0 | CJ13: 0 | CK13: 0 | CL13: 0 | CM13: 0 | CN13: 0 | CO13: 0 | CP13: 0 | CQ13: 0 | CR13: 0 | CS13: 0 | CT13: 0 | CU13: 0 | CV13: 0 | CW13: 0 | CX13: 0 | CY13: 0 | CZ13: 0 | DA13: 0 | DB13: 0 | DC13: 0 | DD13: 0 | DE13: 0 | DF13: 0 | DG13: 0 | DH13: 0 | DI13: 0 | DJ13: 0 | DK13: 0 | DL13: 0 | DM13: 0 | DN13: 0 | DO13: 0 | DP13: 0 | DQ13: 0 | DR13: 0 | DS13: 0 | DT13: 0 | DU13: 0 | DV13: 0 | DW13: 0 | DX13: 0 | DY13: 0 | DZ13: 0 | EA13: 0 | EB13: 0 | EC13: 0 | ED13: 0 | EE13: 0 | EF13: 0 | EG13: 0 | EH13: 0 | EI13: 0 | EJ13: 0 | EK13: 0 | EL13: 0 | EM13: 0 | EN13: 0 | EO13: 0 | EP13: 0 | EQ13: 0 | ER13: 0 | ES13: 0 | ET13: 0 | EU13: 0 | EV13: 0 | EW13: 0 | EX13: 0 | EY13: 0 | EZ13: 0 | FA13: 0 | FB13: 0 | FC13: 0 | FD13: 0 | FE13: 0 | FF13: 0 | FG13: 0 | FH13: 0 | FI13: 0 | FJ13: 0 | FK13: 0 | FL13: 0 | FM13: 0 | FN13: 0 | FO13: 0 | FP13: 0 | FQ13: 0 | FR13: 0 | FS13: 0 | FT13: 0 | FU13: 0 | FV13: 0 | FW13: 0 | FX13: 0 | FY13: 0 | FZ13: 0 | GA13: 0 | GB13: 0 | GC13: 0 | GD13: 0 | GE13: 0 | GF13: 0 | GG13: 0 | GH13: 0 | GI13: 0 | GJ13: 0 | GK13: 0 | GL13: 0 | GM13: 0 | GN13: 0 | GO13: 0 | GP13: 0 | GQ13: 0 | GR13: 0 | GS13: 0 | GT13: 0 | GU13: 0 | GV13: 0 | GW13: 0 | GX13: 0 | GY13: 0 | GZ13: 0 | HA13: 0 | HB13: 0 | HC13: 0 | HD13: 0 | HE13: 0 | HF13: 0 | HG13: 0 | HH13: 0 | HI13: 0 | HJ13: 0 | HK13: 0 | HL13: 0 | HM13: 0 | HN13: 0 | HO13: 0 | HP13: 0 | HQ13: 0 | HR13: 0 | HS13: 0 | HT13: 0 | HU13: 0 | HV13: 0 | HW13: 0 | HX13: 0 | HY13: 0 | HZ13: 0 | IA13: 0 | IB13: 0 | IC13: 0 | ID13: 0 | IE13: 0 | IF13: 0 | IG13: 0 | IH13: 0 | II13: 0 | IJ13: 0 | IK13: 0 | IL13: 0 | IM13: 0 | IN13: 0 | IO13: 0 | IP13: 0 | IQ13: 0 | IR13: 0 | IS13: 0 | IT13: 0 | IU13: 0 | IV13: 0 | IW13: 0 | IX13: 0 | IY13: 0 | IZ13: 0
A14: =IF($B$45=1,Faktorer_bolig!A10,Faktorer_andre!A10) -> 1. etg: | B14: 0 | C14: =IF($B$45=1,Faktorer_bolig!B10,Faktorer_andre!B10) -> Arealbruk i %; | D14: =IF($B$45=1,Faktorer_bolig!C10,Faktorer_andre!C10) -> svak/uegnet. | E14: 0 | F14: =IF($B$45=1,Faktorer_bolig!E10,Faktorer_andre!E10) -> enkelt bruksareal | G14: 0 | H14: =IF($B$45=1,Faktorer_bolig!G10,Faktorer_andre!G10) -> vanl. bruksareal | I14: 0 | J14: =IF($B$45=1,Faktorer_bolig!I10,Faktorer_andre!I10) -> 0 | L14: =IF(areal_1>0,100-SUM(E14:K14),0) -> 0 | M14: 0 | N14: 0 | O14: 0 | P14: 0 | Q14: 0 | R14: 0 | S14: 0 | T14: 0 | U14: 0 | V14: 0 | W14: 0 | X14: 0 | Y14: 0 | Z14: 0 | AA14: 0 | AB14: 0 | AC14: 0 | AD14: 0 | AE14: 0 | AF14: 0 | AG14: 0 | AH14: 0 | AI14: 0 | AJ14: 0 | AK14: 0 | AL14: 0 | AM14: 0 | AN14: 0 | AO14: 0 | AP14: 0 | AQ14: 0 | AR14: 0 | AS14: 0 | AT14: 0 | AU14: 0 | AV14: 0 | AW14: 0 | AX14: 0 | AY14: 0 | AZ14: 0 | BA14: 0 | BB14: 0 | BC14: 0 | BD14: 0 | BE14: 0 | BF14: 0 | BG14: 0 | BH14: 0 | BI14: 0 | BJ14: 0 | BK14: 0 | BL14: 0 | BM14: 0 | BN14: 0 | BO14: 0 | BP14: 0 | BQ14: 0 | BR14: 0 | BS14: 0 | BT14: 0 | BU14: 0 | BV14: 0 | BW14: 0 | BX14: 0 | BY14: 0 | BZ14: 0 | CA14: 0 | CB14: 0 | CC14: 0 | CD14: 0 | CE14: 0 | CF14: 0 | CG14: 0 | CH14: 0 | CI14: 0 | CJ14: 0 | CK14: 0 | CL14: 0 | CM14: 0 | CN14: 0 | CO14: 0 | CP14: 0 | CQ14: 0 | CR14: 0 | CS14: 0 | CT14: 0 | CU14: 0 | CV14: 0 | CW14: 0 | CX14: 0 | CY14: 0 | CZ14: 0 | DA14: 0 | DB14: 0 | DC14: 0 | DD14: 0 | DE14: 0 | DF14: 0 | DG14: 0 | DH14: 0 | DI14: 0 | DJ14: 0 | DK14: 0 | DL14: 0 | DM14: 0 | DN14: 0 | DO14: 0 | DP14: 0 | DQ14: 0 | DR14: 0 | DS14: 0 | DT14: 0 | DU14: 0 | DV14: 0 | DW14: 0 | DX14: 0 | DY14: 0 | DZ14: 0 | EA14: 0 | EB14: 0 | EC14: 0 | ED14: 0 | EE14: 0 | EF14: 0 | EG14: 0 | EH14: 0 | EI14: 0 | EJ14: 0 | EK14: 0 | EL14: 0 | EM14: 0 | EN14: 0 | EO14: 0 | EP14: 0 | EQ14: 0 | ER14: 0 | ES14: 0 | ET14: 0 | EU14: 0 | EV14: 0 | EW14: 0 | EX14: 0 | EY14: 0 | EZ14: 0 | FA14: 0 | FB14: 0 | FC14: 0 | FD14: 0 | FE14: 0 | FF14: 0 | FG14: 0 | FH14: 0 | FI14: 0 | FJ14: 0 | FK14: 0 | FL14: 0 | FM14: 0 | FN14: 0 | FO14: 0 | FP14: 0 | FQ14: 0 | FR14: 0 | FS14: 0 | FT14: 0 | FU14: 0 | FV14: 0 | FW14: 0 | FX14: 0 | FY14: 0 | FZ14: 0 | GA14: 0 | GB14: 0 | GC14: 0 | GD14: 0 | GE14: 0 | GF14: 0 | GG14: 0 | GH14: 0 | GI14: 0 | GJ14: 0 | GK14: 0 | GL14: 0 | GM14: 0 | GN14: 0 | GO14: 0 | GP14: 0 | GQ14: 0 | GR14: 0 | GS14: 0 | GT14: 0 | GU14: 0 | GV14: 0 | GW14: 0 | GX14: 0 | GY14: 0 | GZ14: 0 | HA14: 0 | HB14: 0 | HC14: 0 | HD14: 0 | HE14: 0 | HF14: 0 | HG14: 0 | HH14: 0 | HI14: 0 | HJ14: 0 | HK14: 0 | HL14: 0 | HM14: 0 | HN14: 0 | HO14: 0 | HP14: 0 | HQ14: 0 | HR14: 0 | HS14: 0 | HT14: 0 | HU14: 0 | HV14: 0 | HW14: 0 | HX14: 0 | HY14: 0 | HZ14: 0 | IA14: 0 | IB14: 0 | IC14: 0 | ID14: 0 | IE14: 0 | IF14: 0 | IG14: 0 | IH14: 0 | II14: 0 | IJ14: 0 | IK14: 0 | IL14: 0 | IM14: 0 | IN14: 0 | IO14: 0 | IP14: 0 | IQ14: 0 | IR14: 0 | IS14: 0 | IT14: 0 | IU14: 0 | IV14: 0 | IW14: 0 | IX14: 0 | IY14: 0 | IZ14: 0
A15: =IF($B$45=1,Faktorer_bolig!A11,Faktorer_andre!A11) -> 0 | B15: =IF(AND(A14=0,SUM(E14:E16,G14:G16,I14:I16,K15:K16)>0),"Har du glemt arealet ?","") ->  | C15: =IF($B$45=1,Faktorer_bolig!B11,Faktorer_andre!B11) -> Etasjestd i %; | D15: =IF($B$45=1,Faktorer_bolig!C11,Faktorer_andre!C11) -> lav | E15: 0 | F15: =IF($B$45=1,Faktorer_bolig!E11,Faktorer_andre!E11) -> enkel | G15: 0 | H15: =IF($B$45=1,Faktorer_bolig!G11,Faktorer_andre!G11) -> bra | I15: 0 | J15: =IF($B$45=1,Faktorer_bolig!I11,Faktorer_andre!I11) -> god | K15: 0 | L15: =IF(areal_1>0,100-SUM(E15:K15),0) -> 0 | M15: 0 | N15: 0 | O15: 0 | P15: 0 | Q15: 0 | R15: 0 | S15: 0 | T15: 0 | U15: 0 | V15: 0 | W15: 0 | X15: 0 | Y15: 0 | Z15: 0 | AA15: 0 | AB15: 0 | AC15: 0 | AD15: 0 | AE15: 0 | AF15: 0 | AG15: 0 | AH15: 0 | AI15: 0 | AJ15: 0 | AK15: 0 | AL15: 0 | AM15: 0 | AN15: 0 | AO15: 0 | AP15: 0 | AQ15: 0 | AR15: 0 | AS15: 0 | AT15: 0 | AU15: 0 | AV15: 0 | AW15: 0 | AX15: 0 | AY15: 0 | AZ15: 0 | BA15: 0 | BB15: 0 | BC15: 0 | BD15: 0 | BE15: 0 | BF15: 0 | BG15: 0 | BH15: 0 | BI15: 0 | BJ15: 0 | BK15: 0 | BL15: 0 | BM15: 0 | BN15: 0 | BO15: 0 | BP15: 0 | BQ15: 0 | BR15: 0 | BS15: 0 | BT15: 0 | BU15: 0 | BV15: 0 | BW15: 0 | BX15: 0 | BY15: 0 | BZ15: 0 | CA15: 0 | CB15: 0 | CC15: 0 | CD15: 0 | CE15: 0 | CF15: 0 | CG15: 0 | CH15: 0 | CI15: 0 | CJ15: 0 | CK15: 0 | CL15: 0 | CM15: 0 | CN15: 0 | CO15: 0 | CP15: 0 | CQ15: 0 | CR15: 0 | CS15: 0 | CT15: 0 | CU15: 0 | CV15: 0 | CW15: 0 | CX15: 0 | CY15: 0 | CZ15: 0 | DA15: 0 | DB15: 0 | DC15: 0 | DD15: 0 | DE15: 0 | DF15: 0 | DG15: 0 | DH15: 0 | DI15: 0 | DJ15: 0 | DK15: 0 | DL15: 0 | DM15: 0 | DN15: 0 | DO15: 0 | DP15: 0 | DQ15: 0 | DR15: 0 | DS15: 0 | DT15: 0 | DU15: 0 | DV15: 0 | DW15: 0 | DX15: 0 | DY15: 0 | DZ15: 0 | EA15: 0 | EB15: 0 | EC15: 0 | ED15: 0 | EE15: 0 | EF15: 0 | EG15: 0 | EH15: 0 | EI15: 0 | EJ15: 0 | EK15: 0 | EL15: 0 | EM15: 0 | EN15: 0 | EO15: 0 | EP15: 0 | EQ15: 0 | ER15: 0 | ES15: 0 | ET15: 0 | EU15: 0 | EV15: 0 | EW15: 0 | EX15: 0 | EY15: 0 | EZ15: 0 | FA15: 0 | FB15: 0 | FC15: 0 | FD15: 0 | FE15: 0 | FF15: 0 | FG15: 0 | FH15: 0 | FI15: 0 | FJ15: 0 | FK15: 0 | FL15: 0 | FM15: 0 | FN15: 0 | FO15: 0 | FP15: 0 | FQ15: 0 | FR15: 0 | FS15: 0 | FT15: 0 | FU15: 0 | FV15: 0 | FW15: 0 | FX15: 0 | FY15: 0 | FZ15: 0 | GA15: 0 | GB15: 0 | GC15: 0 | GD15: 0 | GE15: 0 | GF15: 0 | GG15: 0 | GH15: 0 | GI15: 0 | GJ15: 0 | GK15: 0 | GL15: 0 | GM15: 0 | GN15: 0 | GO15: 0 | GP15: 0 | GQ15: 0 | GR15: 0 | GS15: 0 | GT15: 0 | GU15: 0 | GV15: 0 | GW15: 0 | GX15: 0 | GY15: 0 | GZ15: 0 | HA15: 0 | HB15: 0 | HC15: 0 | HD15: 0 | HE15: 0 | HF15: 0 | HG15: 0 | HH15: 0 | HI15: 0 | HJ15: 0 | HK15: 0 | HL15: 0 | HM15: 0 | HN15: 0 | HO15: 0 | HP15: 0 | HQ15: 0 | HR15: 0 | HS15: 0 | HT15: 0 | HU15: 0 | HV15: 0 | HW15: 0 | HX15: 0 | HY15: 0 | HZ15: 0 | IA15: 0 | IB15: 0 | IC15: 0 | ID15: 0 | IE15: 0 | IF15: 0 | IG15: 0 | IH15: 0 | II15: 0 | IJ15: 0 | IK15: 0 | IL15: 0 | IM15: 0 | IN15: 0 | IO15: 0 | IP15: 0 | IQ15: 0 | IR15: 0 | IS15: 0 | IT15: 0 | IU15: 0 | IV15: 0 | IW15: 0 | IX15: 0 | IY15: 0 | IZ15: 0
A16: =IF($B$45=1,Faktorer_bolig!A12,Faktorer_andre!A12) -> 0 | C16: =IF($B$45=1,Faktorer_bolig!B12,Faktorer_andre!B12) -> Tilst/egnethet; | D16: =IF($B$45=1,Faktorer_bolig!C12,Faktorer_andre!C12) -> slitt/dårl | E16: 0 | F16: =IF($B$45=1,Faktorer_bolig!E12,Faktorer_andre!E12) -> brukbar | G16: 0 | H16: =IF($B$45=1,Faktorer_bolig!G12,Faktorer_andre!G12) -> bra | I16: 0 | J16: =IF($B$45=1,Faktorer_bolig!I12,Faktorer_andre!I12) -> svært god | K16: 0 | L16: =IF(areal_1>0,100-SUM(E16:K16),0) -> 0 | M16: 0 | N16: 0 | O16: 0 | P16: 0 | Q16: 0 | R16: 0 | S16: 0 | T16: 0 | U16: 0 | V16: 0 | W16: 0 | X16: 0 | Y16: 0 | Z16: 0 | AA16: 0 | AB16: 0 | AC16: 0 | AD16: 0 | AE16: 0 | AF16: 0 | AG16: 0 | AH16: 0 | AI16: 0 | AJ16: 0 | AK16: 0 | AL16: 0 | AM16: 0 | AN16: 0 | AO16: 0 | AP16: 0 | AQ16: 0 | AR16: 0 | AS16: 0 | AT16: 0 | AU16: 0 | AV16: 0 | AW16: 0 | AX16: 0 | AY16: 0 | AZ16: 0 | BA16: 0 | BB16: 0 | BC16: 0 | BD16: 0 | BE16: 0 | BF16: 0 | BG16: 0 | BH16: 0 | BI16: 0 | BJ16: 0 | BK16: 0 | BL16: 0 | BM16: 0 | BN16: 0 | BO16: 0 | BP16: 0 | BQ16: 0 | BR16: 0 | BS16: 0 | BT16: 0 | BU16: 0 | BV16: 0 | BW16: 0 | BX16: 0 | BY16: 0 | BZ16: 0 | CA16: 0 | CB16: 0 | CC16: 0 | CD16: 0 | CE16: 0 | CF16: 0 | CG16: 0 | CH16: 0 | CI16: 0 | CJ16: 0 | CK16: 0 | CL16: 0 | CM16: 0 | CN16: 0 | CO16: 0 | CP16: 0 | CQ16: 0 | CR16: 0 | CS16: 0 | CT16: 0 | CU16: 0 | CV16: 0 | CW16: 0 | CX16: 0 | CY16: 0 | CZ16: 0 | DA16: 0 | DB16: 0 | DC16: 0 | DD16: 0 | DE16: 0 | DF16: 0 | DG16: 0 | DH16: 0 | DI16: 0 | DJ16: 0 | DK16: 0 | DL16: 0 | DM16: 0 | DN16: 0 | DO16: 0 | DP16: 0 | DQ16: 0 | DR16: 0 | DS16: 0 | DT16: 0 | DU16: 0 | DV16: 0 | DW16: 0 | DX16: 0 | DY16: 0 | DZ16: 0 | EA16: 0 | EB16: 0 | EC16: 0 | ED16: 0 | EE16: 0 | EF16: 0 | EG16: 0 | EH16: 0 | EI16: 0 | EJ16: 0 | EK16: 0 | EL16: 0 | EM16: 0 | EN16: 0 | EO16: 0 | EP16: 0 | EQ16: 0 | ER16: 0 | ES16: 0 | ET16: 0 | EU16: 0 | EV16: 0 | EW16: 0 | EX16: 0 | EY16: 0 | EZ16: 0 | FA16: 0 | FB16: 0 | FC16: 0 | FD16: 0 | FE16: 0 | FF16: 0 | FG16: 0 | FH16: 0 | FI16: 0 | FJ16: 0 | FK16: 0 | FL16: 0 | FM16: 0 | FN16: 0 | FO16: 0 | FP16: 0 | FQ16: 0 | FR16: 0 | FS16: 0 | FT16: 0 | FU16: 0 | FV16: 0 | FW16: 0 | FX16: 0 | FY16: 0 | FZ16: 0 | GA16: 0 | GB16: 0 | GC16: 0 | GD16: 0 | GE16: 0 | GF16: 0 | GG16: 0 | GH16: 0 | GI16: 0 | GJ16: 0 | GK16: 0 | GL16: 0 | GM16: 0 | GN16: 0 | GO16: 0 | GP16: 0 | GQ16: 0 | GR16: 0 | GS16: 0 | GT16: 0 | GU16: 0 | GV16: 0 | GW16: 0 | GX16: 0 | GY16: 0 | GZ16: 0 | HA16: 0 | HB16: 0 | HC16: 0 | HD16: 0 | HE16: 0 | HF16: 0 | HG16: 0 | HH16: 0 | HI16: 0 | HJ16: 0 | HK16: 0 | HL16: 0 | HM16: 0 | HN16: 0 | HO16: 0 | HP16: 0 | HQ16: 0 | HR16: 0 | HS16: 0 | HT16: 0 | HU16: 0 | HV16: 0 | HW16: 0 | HX16: 0 | HY16: 0 | HZ16: 0 | IA16: 0 | IB16: 0 | IC16: 0 | ID16: 0 | IE16: 0 | IF16: 0 | IG16: 0 | IH16: 0 | II16: 0 | IJ16: 0 | IK16: 0 | IL16: 0 | IM16: 0 | IN16: 0 | IO16: 0 | IP16: 0 | IQ16: 0 | IR16: 0 | IS16: 0 | IT16: 0 | IU16: 0 | IV16: 0 | IW16: 0 | IX16: 0 | IY16: 0 | IZ16: 0
A17: =IF($B$45=1,Faktorer_bolig!A13,Faktorer_andre!A13) -> 2. etg: | B17: 0 | C17: =IF($B$45=1,Faktorer_bolig!B13,Faktorer_andre!B13) -> Arealbruk i %; | D17: =IF($B$45=1,Faktorer_bolig!C13,Faktorer_andre!C13) -> svak/uegnet | E17: 0 | F17: =IF($B$45=1,Faktorer_bolig!E13,Faktorer_andre!E13) -> enkelt bruksareal | G17: 0 | H17: =IF($B$45=1,Faktorer_bolig!G13,Faktorer_andre!G13) -> vanl. bruksareal | I17: 0 | J17: =IF($B$45=1,Faktorer_bolig!I13,Faktorer_andre!I13) -> 0 | K17: 0 | L17: =IF(areal_2>0,100-SUM(E17:K17),0) -> 0 | M17: 0 | N17: 0 | O17: 0 | P17: 0 | Q17: 0 | R17: 0 | S17: 0 | T17: 0 | U17: 0 | V17: 0 | W17: 0 | X17: 0 | Y17: 0 | Z17: 0 | AA17: 0 | AB17: 0 | AC17: 0 | AD17: 0 | AE17: 0 | AF17: 0 | AG17: 0 | AH17: 0 | AI17: 0 | AJ17: 0 | AK17: 0 | AL17: 0 | AM17: 0 | AN17: 0 | AO17: 0 | AP17: 0 | AQ17: 0 | AR17: 0 | AS17: 0 | AT17: 0 | AU17: 0 | AV17: 0 | AW17: 0 | AX17: 0 | AY17: 0 | AZ17: 0 | BA17: 0 | BB17: 0 | BC17: 0 | BD17: 0 | BE17: 0 | BF17: 0 | BG17: 0 | BH17: 0 | BI17: 0 | BJ17: 0 | BK17: 0 | BL17: 0 | BM17: 0 | BN17: 0 | BO17: 0 | BP17: 0 | BQ17: 0 | BR17: 0 | BS17: 0 | BT17: 0 | BU17: 0 | BV17: 0 | BW17: 0 | BX17: 0 | BY17: 0 | BZ17: 0 | CA17: 0 | CB17: 0 | CC17: 0 | CD17: 0 | CE17: 0 | CF17: 0 | CG17: 0 | CH17: 0 | CI17: 0 | CJ17: 0 | CK17: 0 | CL17: 0 | CM17: 0 | CN17: 0 | CO17: 0 | CP17: 0 | CQ17: 0 | CR17: 0 | CS17: 0 | CT17: 0 | CU17: 0 | CV17: 0 | CW17: 0 | CX17: 0 | CY17: 0 | CZ17: 0 | DA17: 0 | DB17: 0 | DC17: 0 | DD17: 0 | DE17: 0 | DF17: 0 | DG17: 0 | DH17: 0 | DI17: 0 | DJ17: 0 | DK17: 0 | DL17: 0 | DM17: 0 | DN17: 0 | DO17: 0 | DP17: 0 | DQ17: 0 | DR17: 0 | DS17: 0 | DT17: 0 | DU17: 0 | DV17: 0 | DW17: 0 | DX17: 0 | DY17: 0 | DZ17: 0 | EA17: 0 | EB17: 0 | EC17: 0 | ED17: 0 | EE17: 0 | EF17: 0 | EG17: 0 | EH17: 0 | EI17: 0 | EJ17: 0 | EK17: 0 | EL17: 0 | EM17: 0 | EN17: 0 | EO17: 0 | EP17: 0 | EQ17: 0 | ER17: 0 | ES17: 0 | ET17: 0 | EU17: 0 | EV17: 0 | EW17: 0 | EX17: 0 | EY17: 0 | EZ17: 0 | FA17: 0 | FB17: 0 | FC17: 0 | FD17: 0 | FE17: 0 | FF17: 0 | FG17: 0 | FH17: 0 | FI17: 0 | FJ17: 0 | FK17: 0 | FL17: 0 | FM17: 0 | FN17: 0 | FO17: 0 | FP17: 0 | FQ17: 0 | FR17: 0 | FS17: 0 | FT17: 0 | FU17: 0 | FV17: 0 | FW17: 0 | FX17: 0 | FY17: 0 | FZ17: 0 | GA17: 0 | GB17: 0 | GC17: 0 | GD17: 0 | GE17: 0 | GF17: 0 | GG17: 0 | GH17: 0 | GI17: 0 | GJ17: 0 | GK17: 0 | GL17: 0 | GM17: 0 | GN17: 0 | GO17: 0 | GP17: 0 | GQ17: 0 | GR17: 0 | GS17: 0 | GT17: 0 | GU17: 0 | GV17: 0 | GW17: 0 | GX17: 0 | GY17: 0 | GZ17: 0 | HA17: 0 | HB17: 0 | HC17: 0 | HD17: 0 | HE17: 0 | HF17: 0 | HG17: 0 | HH17: 0 | HI17: 0 | HJ17: 0 | HK17: 0 | HL17: 0 | HM17: 0 | HN17: 0 | HO17: 0 | HP17: 0 | HQ17: 0 | HR17: 0 | HS17: 0 | HT17: 0 | HU17: 0 | HV17: 0 | HW17: 0 | HX17: 0 | HY17: 0 | HZ17: 0 | IA17: 0 | IB17: 0 | IC17: 0 | ID17: 0 | IE17: 0 | IF17: 0 | IG17: 0 | IH17: 0 | II17: 0 | IJ17: 0 | IK17: 0 | IL17: 0 | IM17: 0 | IN17: 0 | IO17: 0 | IP17: 0 | IQ17: 0 | IR17: 0 | IS17: 0 | IT17: 0 | IU17: 0 | IV17: 0 | IW17: 0 | IX17: 0 | IY17: 0 | IZ17: 0
A18: =IF($B$45=1,Faktorer_bolig!A14,Faktorer_andre!A14) -> 0 | B18: =IF(AND(A17=0,SUM(E17:E19,G17:G19,I17:I19,K18:K19)>0),"Har du glemt arealet ?","") ->  | C18: =IF($B$45=1,Faktorer_bolig!B14,Faktorer_andre!B14) -> Etasjestd i %; | D18: =IF($B$45=1,Faktorer_bolig!C14,Faktorer_andre!C14) -> lav | E18: 0 | F18: =IF($B$45=1,Faktorer_bolig!E14,Faktorer_andre!E14) -> enkel | G18: 0 | H18: =IF($B$45=1,Faktorer_bolig!G14,Faktorer_andre!G14) -> bra | I18: 0 | J18: =IF($B$45=1,Faktorer_bolig!I14,Faktorer_andre!I14) -> god | K18: 0 | L18: =IF(areal_2>0,100-SUM(E18:K18),0) -> 0 | M18: 0
A19: =IF($B$45=1,Faktorer_bolig!A15,Faktorer_andre!A15) -> 0 | C19: =IF($B$45=1,Faktorer_bolig!B15,Faktorer_andre!B15) -> Tilst/egnethet; | D19: =IF($B$45=1,Faktorer_bolig!C15,Faktorer_andre!C15) -> slitt/dårl | E19: 0 | F19: =IF($B$45=1,Faktorer_bolig!E15,Faktorer_andre!E15) -> brukbar | G19: 0 | H19: =IF($B$45=1,Faktorer_bolig!G15,Faktorer_andre!G15) -> bra | I19: 0 | J19: =IF($B$45=1,Faktorer_bolig!I15,Faktorer_andre!I15) -> svært god | K19: 0 | L19: =IF(areal_2>0,100-SUM(E19:K19),0) -> 0 | M19: 0
A20: =IF($B$45=1,Faktorer_bolig!A16,Faktorer_andre!A16) -> Kjørebro/ mesanin | B20: 0 | C20: =IF($B$45=1,Faktorer_bolig!B16,Faktorer_andre!B16) -> Arealbruk i %; | D20: =IF($B$45=1,Faktorer_bolig!C16,Faktorer_andre!C16) -> svak/uegnet | E20: 0 | F20: =IF($B$45=1,Faktorer_bolig!E16,Faktorer_andre!E16) -> lettlager | G20: 0 | H20: =IF($B$45=1,Faktorer_bolig!G16,Faktorer_andre!G16) -> vanl. bruksareal | I20: 0 | J20: =IF($B$45=1,Faktorer_bolig!I16,Faktorer_andre!I16) -> 0 | K20: 0 | L20: =IF($B$20>0,100-SUM(E20:K20),0) -> 0 | M20: 0
A21: =IF($B$45=1,Faktorer_bolig!A17,Faktorer_andre!A17) -> 0 | B21: =IF(AND(B20=0,SUM(E20:E22,G20:G22,I20:I22,K21:K22)>0),"Har du glemt arealet ?","") ->  | C21: =IF($B$45=1,Faktorer_bolig!B17,Faktorer_andre!B17) -> Etasjestd i %; | D21: =IF($B$45=1,Faktorer_bolig!C17,Faktorer_andre!C17) -> lav | E21: 0 | F21: =IF($B$45=1,Faktorer_bolig!E17,Faktorer_andre!E17) -> enkel | G21: 0 | H21: =IF($B$45=1,Faktorer_bolig!G17,Faktorer_andre!G17) -> bra | I21: 0 | J21: =IF($B$45=1,Faktorer_bolig!I17,Faktorer_andre!I17) -> god | K21: 0 | L21: =IF($B$20>0,100-SUM(E21:K21),0) -> 0 | M21: 0
A22: =IF($B$45=1,Faktorer_bolig!A18,Faktorer_andre!A18) -> 0 | C22: =IF($B$45=1,Faktorer_bolig!B18,Faktorer_andre!B18) -> Tilst/egnethet; | D22: =IF($B$45=1,Faktorer_bolig!C18,Faktorer_andre!C18) -> slitt/dårl | E22: 0 | F22: =IF($B$45=1,Faktorer_bolig!E18,Faktorer_andre!E18) -> brukbar | G22: 0 | H22: =IF($B$45=1,Faktorer_bolig!G18,Faktorer_andre!G18) -> bra | I22: 0 | J22: =IF($B$45=1,Faktorer_bolig!I18,Faktorer_andre!I18) -> svært god | K22: 0 | L22: 0 | M22: 0
A23: =Faktorer_bolig!A19 -> Enkel bolig | B23: 0 | C23: =Faktorer_bolig!A19 -> Enkel bolig | D23: =Faktorer_bolig!C19 -> svak/uinnr. | E23: 0 | F23: =Faktorer_bolig!E19 -> enkel | G23: 0 | H23: =Faktorer_bolig!G19 -> vanlig | I23: 0 | J23: =Faktorer_bolig!I19 -> 0 | K23: 0 | L23: =IF($B$23>0,100-SUM(E23:K23),0) -> 0 | M23: =IF(L23>0," % mangler","") -> 
A24: =Faktorer_bolig!A20 -> Enkel bolig | C24: =Faktorer_bolig!B20 -> Etasjestd %; | D24: =Faktorer_bolig!C20 -> lav | E24: 0 | F24: =Faktorer_bolig!E20 -> bra | G24: 0 | H24: =Faktorer_bolig!G20 -> god | I24: 0 | J24: =Faktorer_bolig!I20 -> topp | K24: 0 | L24: =IF($B$23>0,100-SUM(E24:K24),0) -> 0 | M24: =IF(L24>0," % mangler","") -> 
A25: =Faktorer_bolig!A21 -> Enkel bolig | C25: =Faktorer_bolig!B21 -> Tilst/egn; | D25: =Faktorer_bolig!C21 -> slitt/dårl | E25: 0 | F25: =Faktorer_bolig!E21 -> brukbar | G25: 0 | H25: =Faktorer_bolig!G21 -> bra | I25: 0 | J25: =Faktorer_bolig!I21 -> sv. god | K25: 0 | L25: =IF($B$23>0,100-SUM(E25:K25),0) -> 0 | M25: =IF(L25>0," % mangler","") -> 
A29: Tomt | B29: =VLOOKUP(A1,'Priser nybygg'!B3:G26,6) -> 0 | C29: Verdi for opparbeidet gårdstun og hage | J29: 0 | K29: 0
A30: Tomt | C30: Tomt, | D30: =Registreringsskjema!B23 -> Vann; | E30: =Registreringsskjema!C23 -> Svært god = 4, god = 3, middels = 2, dårlig = 1 | J30: 0
A31: Tomt | C31: vann og | D31: =Registreringsskjema!B24 -> Avløp; | E31: =Registreringsskjema!C24 -> Svært god = 4, god = 3, middels = 2, dårlig = 1 | J31: 0
A32: Tomt | C32: avløp | D32: =Registreringsskjema!B25 -> Have/tun; | E32: =Registreringsskjema!C25 -> velholdt have/tun = 8, funksjonell beplantet have= 5, alminnelig bra = 3, enkel = 1 | J32: 0 | K32: =J30+J31+J32 -> 0
A33: Tomt | D33: =Registreringsskjema!B26 -> 0 | E33: =Registreringsskjema!C26 -> 0 | F33: =Registreringsskjema!D26 -> 0 | G33: =Registreringsskjema!E26 -> 0 | H33: =Registreringsskjema!F26 -> 0 | I33: =Registreringsskjema!G26 -> 0 | J33: Ukorrigert verdi | K33: 0
A43: =CONCATENATE("Verdiberegning ",'Bygg 5'!A1) -> Verdiberegning X
A45: Valgt faktor_ark | B45: =VLOOKUP(A1,'Priser nybygg'!B3:G26,3,FALSE) -> 2 | C45: =IF($B$45=1,"Faktorer_bolig","Faktorer_andre") -> Faktorer_andre
A47: Hustype | B47: Etasje | D47: Faktor_1 | E47: Andel % | F47: Faktor_2 | G47: Andel % | H47: Faktor_3 | I47: Andel % | J47: Faktor_4 | K47: Andel % | L47: Beregnet faktor
A48: =$A$1 -> X | B48: Kjeller | C48: Arealtype %; | D48: =IF($B$45=1,Faktorer_bolig!D4,Faktorer_andre!D4) -> 0.1 | E48: ='Bygg 5'!E8 -> 0 | F48: =IF($B$45=1,Faktorer_bolig!F4,Faktorer_andre!F4) -> 0.2 | G48: ='Bygg 5'!G8 -> 0 | H48: =IF($B$45=1,Faktorer_bolig!H4,Faktorer_andre!H4) -> 0.3 | I48: ='Bygg 5'!I8 -> 0 | J48: =IF($B$45=1,Faktorer_bolig!J4,Faktorer_andre!J4) -> 0 | L48: =K48*J48+I48*H48+G48*F48+E48*D48 -> 0
B49: Kjeller | C49: Etasjestd %; | D49: =IF($B$45=1,Faktorer_bolig!D5,Faktorer_andre!D5) -> 0.4 | E49: ='Bygg 5'!E9 -> 0 | F49: =IF($B$45=1,Faktorer_bolig!F5,Faktorer_andre!F5) -> 0.6 | G49: ='Bygg 5'!G9 -> 0 | H49: =IF($B$45=1,Faktorer_bolig!H5,Faktorer_andre!H5) -> 0.8 | I49: ='Bygg 5'!I9 -> 0 | J49: =IF($B$45=1,Faktorer_bolig!J5,Faktorer_andre!J5) -> 1 | K49: ='Bygg 5'!K9 -> 0 | L49: 0
B50: Kjeller | C50: Tilst/egn; | D50: =IF($B$45=1,Faktorer_bolig!D6,Faktorer_andre!D6) -> 0.4 | E50: ='Bygg 5'!E10 -> 0 | F50: =IF($B$45=1,Faktorer_bolig!F6,Faktorer_andre!F6) -> 0.6 | G50: ='Bygg 5'!G10 -> 0 | H50: =IF($B$45=1,Faktorer_bolig!H6,Faktorer_andre!H6) -> 0.8 | I50: ='Bygg 5'!I10 -> 0 | J50: =IF($B$45=1,Faktorer_bolig!J6,Faktorer_andre!J6) -> 1 | K50: ='Bygg 5'!K10 -> 0 | L50: 0
B51: Underetasje | C51: Arealtype %; | D51: =IF($B$45=1,Faktorer_bolig!D7,Faktorer_andre!D7) -> 0.2 | E51: ='Bygg 5'!E11 -> 0 | F51: =IF($B$45=1,Faktorer_bolig!F7,Faktorer_andre!F7) -> 0.35 | G51: ='Bygg 5'!G11 -> 0 | H51: =IF($B$45=1,Faktorer_bolig!H7,Faktorer_andre!H7) -> 0.5 | I51: ='Bygg 5'!I11 -> 0 | J51: =IF($B$45=1,Faktorer_bolig!J7,Faktorer_andre!J7) -> 0 | L51: 0
B52: Underetasje | C52: Etasjestd %; | D52: =IF($B$45=1,Faktorer_bolig!D8,Faktorer_andre!D8) -> 0.56 | E52: ='Bygg 5'!E12 -> 0 | F52: =IF($B$45=1,Faktorer_bolig!F8,Faktorer_andre!F8) -> 0.75 | G52: ='Bygg 5'!G12 -> 0 | H52: =IF($B$45=1,Faktorer_bolig!H8,Faktorer_andre!H8) -> 0.87 | I52: ='Bygg 5'!I12 -> 0 | J52: =IF($B$45=1,Faktorer_bolig!J8,Faktorer_andre!J8) -> 1 | K52: ='Bygg 5'!K12 -> 0 | L52: 0
B53: Underetasje | C53: Tilst/egn; | D53: =IF($B$45=1,Faktorer_bolig!D9,Faktorer_andre!D9) -> 0.5 | E53: ='Bygg 5'!E13 -> 0 | F53: =IF($B$45=1,Faktorer_bolig!F9,Faktorer_andre!F9) -> 0.65 | G53: ='Bygg 5'!G13 -> 0 | H53: =IF($B$45=1,Faktorer_bolig!H9,Faktorer_andre!H9) -> 0.8 | I53: ='Bygg 5'!I13 -> 0 | J53: =IF($B$45=1,Faktorer_bolig!J9,Faktorer_andre!J9) -> 1 | K53: ='Bygg 5'!K13 -> 0 | L53: 0
B54: 1. etg | C54: Arealtype %; | D54: =IF($B$45=1,Faktorer_bolig!D10,Faktorer_andre!D10) -> 0.4 | E54: ='Bygg 5'!E14 -> 0 | F54: =IF($B$45=1,Faktorer_bolig!F10,Faktorer_andre!F10) -> 0.7 | G54: ='Bygg 5'!G14 -> 0 | H54: =IF($B$45=1,Faktorer_bolig!H10,Faktorer_andre!H10) -> 1 | I54: ='Bygg 5'!I14 -> 0 | J54: =IF($B$45=1,Faktorer_bolig!J10,Faktorer_andre!J10) -> 0 | L54: 0
B55: 1. etg | C55: Etasjestd %; | D55: =IF($B$45=1,Faktorer_bolig!D11,Faktorer_andre!D11) -> 0.56 | E55: ='Bygg 5'!E15 -> 0 | F55: =IF($B$45=1,Faktorer_bolig!F11,Faktorer_andre!F11) -> 0.75 | G55: ='Bygg 5'!G15 -> 0 | H55: =IF($B$45=1,Faktorer_bolig!H11,Faktorer_andre!H11) -> 0.87 | I55: ='Bygg 5'!I15 -> 0 | J55: =IF($B$45=1,Faktorer_bolig!J11,Faktorer_andre!J11) -> 1 | K55: ='Bygg 5'!K15 -> 0 | L55: 0
B56: 1. etg | C56: Tilst/egn; | D56: =IF($B$45=1,Faktorer_bolig!D12,Faktorer_andre!D12) -> 0.5 | E56: ='Bygg 5'!E16 -> 0 | F56: =IF($B$45=1,Faktorer_bolig!F12,Faktorer_andre!F12) -> 0.65 | G56: ='Bygg 5'!G16 -> 0 | H56: =IF($B$45=1,Faktorer_bolig!H12,Faktorer_andre!H12) -> 0.8 | I56: ='Bygg 5'!I16 -> 0 | J56: =IF($B$45=1,Faktorer_bolig!J12,Faktorer_andre!J12) -> 1 | K56: ='Bygg 5'!K16 -> 0 | L56: 0
B57: 2.etg | C57: Arealtype %; | D57: =IF($B$45=1,Faktorer_bolig!D13,Faktorer_andre!D13) -> 0.2 | E57: ='Bygg 5'!E17 -> 0 | F57: =IF($B$45=1,Faktorer_bolig!F13,Faktorer_andre!F13) -> 0.4 | G57: ='Bygg 5'!G17 -> 0 | H57: =IF($B$45=1,Faktorer_bolig!H13,Faktorer_andre!H13) -> 0.6 | I57: ='Bygg 5'!I17 -> 0 | J57: =IF($B$45=1,Faktorer_bolig!J13,Faktorer_andre!J13) -> 0 | L57: =I57*H57+G57*F57+E57*D57 -> 0
B58: 2.etg | C58: Etasjestd %; | D58: =IF($B$45=1,Faktorer_bolig!D14,Faktorer_andre!D14) -> 0.56 | E58: ='Bygg 5'!E18 -> 0 | F58: =IF($B$45=1,Faktorer_bolig!F14,Faktorer_andre!F14) -> 0.75 | G58: ='Bygg 5'!G18 -> 0 | H58: =IF($B$45=1,Faktorer_bolig!H14,Faktorer_andre!H14) -> 0.87 | I58: ='Bygg 5'!I18 -> 0 | J58: =IF($B$45=1,Faktorer_bolig!J14,Faktorer_andre!J14) -> 1 | K58: ='Bygg 5'!K18 -> 0 | L58: =K58*J58+I58*H58+G58*F58+E58*D58 -> 0
B59: 2.etg | C59: Tilst/egn; | D59: =IF($B$45=1,Faktorer_bolig!D15,Faktorer_andre!D15) -> 0.5 | E59: ='Bygg 5'!E19 -> 0 | F59: =IF($B$45=1,Faktorer_bolig!F15,Faktorer_andre!F15) -> 0.65 | G59: ='Bygg 5'!G19 -> 0 | H59: =IF($B$45=1,Faktorer_bolig!H15,Faktorer_andre!H15) -> 0.8 | I59: ='Bygg 5'!I19 -> 0 | J59: =IF($B$45=1,Faktorer_bolig!J15,Faktorer_andre!J15) -> 1 | K59: ='Bygg 5'!K19 -> 0 | L59: =K59*J59+I59*H59+G59*F59+E59*D59 -> 0
B60: Mesanin/kjørebro | C60: =IF(ISTEXT(B60),C57,"") -> Arealtype %; | D60: =IF($B$45=1,Faktorer_bolig!D16,Faktorer_andre!D16) -> 0.1 | E60: ='Bygg 5'!E20 -> 0 | F60: =IF($B$45=1,Faktorer_bolig!F16,Faktorer_andre!F16) -> 0.2 | G60: ='Bygg 5'!G20 -> 0 | H60: =IF($B$45=1,Faktorer_bolig!H16,Faktorer_andre!H16) -> 0.3 | I60: ='Bygg 5'!I20 -> 0 | J60: =IF($B$45=1,Faktorer_bolig!J16,Faktorer_andre!J16) -> 0 | L60: =I60*H60+G60*F60+E60*D60 -> 0
B61: Mesanin/kjørebro | C61: Etasjestd %; | D61: =IF($B$45=1,Faktorer_bolig!D17,Faktorer_andre!D17) -> 0.4 | E61: ='Bygg 5'!E21 -> 0 | F61: =IF($B$45=1,Faktorer_bolig!F17,Faktorer_andre!F17) -> 0.6 | G61: ='Bygg 5'!G21 -> 0 | H61: =IF($B$45=1,Faktorer_bolig!H17,Faktorer_andre!H17) -> 0.8 | I61: ='Bygg 5'!I21 -> 0 | J61: =IF($B$45=1,Faktorer_bolig!J17,Faktorer_andre!J17) -> 1 | K61: ='Bygg 5'!K21 -> 0 | L61: =K61*J61+I61*H61+G61*F61+E61*D61 -> 0
B62: Mesanin/kjørebro | C62: Tilst/egn; | D62: =IF($B$45=1,Faktorer_bolig!D18,Faktorer_andre!D18) -> 0.4 | E62: ='Bygg 5'!E22 -> 0 | F62: =IF($B$45=1,Faktorer_bolig!F18,Faktorer_andre!F18) -> 0.6 | G62: ='Bygg 5'!G22 -> 0 | H62: =IF($B$45=1,Faktorer_bolig!H18,Faktorer_andre!H18) -> 0.8 | I62: ='Bygg 5'!I22 -> 0 | J62: =IF($B$45=1,Faktorer_bolig!J18,Faktorer_andre!J18) -> 1 | K62: ='Bygg 5'!K22 -> 0 | L62: =K62*J62+I62*H62+G62*F62+E62*D62 -> 0
B63: Enkel Bolig | C63: Arealtype %; | D63: =IF(A63="Bolig",Faktorer_bolig!D19,Faktorer_andre!D19) -> 0 | E63: ='Bygg 5'!E23 -> 0 | F63: =IF($A63="Bolig",Faktorer_bolig!F19,Faktorer_andre!F19) -> 0 | G63: ='Bygg 5'!G23 -> 0 | H63: =IF($A63="Bolig",Faktorer_bolig!H19,Faktorer_andre!H19) -> 0 | I63: ='Bygg 5'!I23 -> 0 | J63: =IF($B$45=1,Faktorer_bolig!J19,Faktorer_andre!J19) -> 0 | L63: =I63*H63+G63*F63+E63*D63 -> 0
B64: Enkel Bolig | C64: Etasjestd %; | D64: =IF(A64="Bolig",Faktorer_bolig!D20,Faktorer_andre!E20) -> 0 | E64: ='Bygg 5'!E24 -> 0 | F64: =IF($A64="Bolig",Faktorer_bolig!F20,Faktorer_andre!G20) -> 0 | G64: ='Bygg 5'!G24 -> 0 | H64: =IF($A64="Bolig",Faktorer_bolig!H20,Faktorer_andre!I20) -> 0 | I64: ='Bygg 5'!I24 -> 0 | J64: =IF($B$45=1,Faktorer_bolig!J20,Faktorer_andre!K20) -> 0 | K64: ='Bygg 5'!K24 -> 0 | L64: =K64*J64+I64*H64+G64*F64+E64*D64 -> 0
B65: Enkel Bolig | C65: Tilst/egn; | D65: =IF(A65="Bolig",Faktorer_bolig!D21,Faktorer_andre!E21) -> 0 | E65: ='Bygg 5'!E25 -> 0 | F65: =IF($A65="Bolig",Faktorer_bolig!F21,Faktorer_andre!G21) -> 0 | G65: ='Bygg 5'!G25 -> 0 | H65: =IF($A65="Bolig",Faktorer_bolig!H21,Faktorer_andre!I21) -> 0 | I65: ='Bygg 5'!I25 -> 0 | J65: =IF($B$45=1,Faktorer_bolig!J21,Faktorer_andre!K21) -> 0 | K65: ='Bygg 5'!K25 -> 0 | L65: =K65*J65+I65*H65+G65*F65+E65*D65 -> 0
A67: =$A$1 -> X | C67: Pris nytt bygg | D67: =IF(A67="Bolig",Faktorer_bolig!D22,Faktorer_andre!D19) -> 0 | F67: =IF(C67="Bolig",Faktorer_bolig!F22,Faktorer_andre!F19) -> 0 | H67: =IF('Takst 1'!E3="Bolig",Faktorer_bolig!H22,Faktorer_andre!H19) -> 0 | L67: =VLOOKUP(A1,Pris_tabell_nytt,2,FALSE) -> 0
D68: =Faktorer_bolig!N3 -> Kjeller | E68: =Faktorer_bolig!O3 -> undertasje | F68: =Faktorer_bolig!P3 -> 1 etg | G68: =Faktorer_bolig!Q3 -> 2.etg | H68: =Faktorer_bolig!S3 -> 0 | I68: =Faktorer_bolig!T3 -> 0
A69: =$A$1 -> X | C69: Vektet etasjeareal | D69: =IF($B$45=1,Faktorer_bolig!N4,Faktorer_andre!M4) -> 0.3 | E69: =IF($B$45=1,Faktorer_bolig!O4,Faktorer_andre!N4) -> 0.5 | F69: =IF($B$45=1,Faktorer_bolig!P4,Faktorer_andre!O4) -> 1 | G69: =IF($B$45=1,Faktorer_bolig!Q4,Faktorer_andre!P4) -> 0.6 | H69: =IF($B$45=1,Faktorer_bolig!R4,Faktorer_andre!Q4) -> 0.3 | I69: =IF($B$45=1,Faktorer_bolig!S4,Faktorer_andre!J25) -> 0 | L69: =areal_k*D69+areal_u*E69+areal_1*F69+areal_2*G69+B20*H69+B23*I69 -> 0
A70: X | C70: Korreksjon for størrelse | G70: fra | H70: =IF($B$45=1,Faktorer_bolig!N15,Faktorer_andre!M18) -> 3000 | I70: m2 til | J70: =IF($B$45=1,Faktorer_bolig!P15,Faktorer_andre!O18) -> 4000 | K70: =IF($B$45=1,Max_areal_korr_1,Max_areal_korr_2) -> 100 | L70: =MAX(MIN(100-(L69-H70)/(J70-H70)*(100-K70),100),K70) -> 100 | M70: Denne satsen brukes kun i Takst til å korrigere nyverdien | P70: =MAX(MIN(((L70-(MIN(P69,N70)))*0.25)+100,100),O70) -> 100
A71: X | C71: Nedskrevet verdi pga alder i % | K71: =VLOOKUP('Bygg 3'!A72,'Priser nybygg'!B3:F22,4,FALSE) ->  | M71: største verdi
A72: X | C72: Nedskrevet verdi etter påkostning i %; min 50% | H72: 0.02 | L72: =MAX(L86,L79) ->  | M72: velges
A73: X | C73: Korr. vedl.h/egnet. Grunnlag "Normale byggekostnader" fra "Teknisk verdiberegning" | L73: =(areal_k*L50+areal_u*L53+areal_1*L56+areal_2*L59+B20*L62+B23*L65)/(areal_k+areal_u+areal_1+areal_2+B20+B23) -> 
A74: X | C74: Tomt
K76: Bygg type | L76: =A1 -> X
K77: Valgt avskrivningskurvve | L77: =VLOOKUP(L76,'Priser nybygg'!B3:F38,4,FALSE) -> 3
K78: Valgt sats | L78: =HLOOKUP($L$77,Nedskriving!$J$1:$L$4,3) -> 2.25
K79: Minste restverdi | L79: =HLOOKUP($L$77,Nedskriving!$J$1:$L$4,4) -> 20
K81: Areal av opprinnelig del som ikke er pusset opp | L81: =G2*(1-prosent_oppgradering_1/100) -> 0 | M81: =MIN(J2-E2,397) -> 397 | N81: =IF(M81>0,VLOOKUP(M81,Nedskriving!$A$4:$G$400,$L$77+4,FALSE),0) -> 20 | O81: =L81*N81 -> 0
K82: Opprinnelig hus pusset opp | L82: =IF(E3>E4,G2*prosent_oppgradering_1/100,G2*prosent_oppgradering_1/100) -> 0 | M82: =IF(E4>0,J2-E4,0) -> 0 | N82: =IF(M82>0,VLOOKUP(M82,Nedskriving!$A$4:$G$400,$L$77+4,FALSE),0) -> 0 | O82: =L82*N82 -> 0
K83: Areal av TILBYGG som er pusset opp | L83: =IF(E4>E3,G3*prosent_oppgradering_1/100,0) -> 0 | M83: =IF(E3=0,0,J2-E3) -> 0 | N83: =IF(M83>0,VLOOKUP(M83,Nedskriving!$A$4:$G$400,$L$77+4,FALSE),0) -> 0 | O83: =L83*N83 -> 0
K84: Tilbygg ikke pusset opp | L84: =G3-L83 -> 0 | M84: =IF(OR(L84=0,E4=0),0,J2-E4) -> 0 | N84: =IF(M84>0,VLOOKUP(M84,Nedskriving!$A$4:$G$400,$L$77+4,FALSE),0) -> 0 | O84: =L84*N84 -> 0
K85: Sum | L85: =SUM(L81:L84) -> 0 | O85: =SUM(O81:O84) -> 0
K86: Beregnet veid faktor for nedskriving pga alder | L86: =O85/L85 -> 
C87: Bygningens alder | D87: =J2-E2 -> 2022 | E87: år
C89: År siden ombygging | D89: =IF(ISNUMBER(E4),J2-E4,0) -> 2022 | E89: år
C90: =A1 -> X | D90: ='Takst 5'!J27 -> 
C91: Sum takst | D91: ='SUM pr bygg'!G11 -> 0

Sheet Bygg 6
A1: X | B1: 0
D2: Byggeår; | E2: 0 | F2: Grunnflate; | G2: 0 | I2: Befaring år; | J2: =YEAR(TODAY()) -> 2022
C3: Tilbygg; | D3: År; | E3: 0 | F3: Grunnflate; | G3: 0
C4: Ombygd | D4: År; | E4: 0 | H4: Korrigert pga oppgradering; | J4: 0
J5: tak max 10 %
B7: Areal
A8: =IF($B$45=1,Faktorer_bolig!A4,Faktorer_andre!A4) -> Kjeller: | B8: 0 | C8: =IF($B$45=1,Faktorer_bolig!B4,Faktorer_andre!B4) -> Arealbruk i %; | D8: =IF($B$45=1,Faktorer_bolig!C4,Faktorer_andre!C4) -> svak/uinnr. | E8: 0 | F8: =IF($B$45=1,Faktorer_bolig!E4,Faktorer_andre!E4) -> enkel lagerkjeller | G8: 0 | H8: =IF($B$45=1,Faktorer_bolig!G4,Faktorer_andre!G4) -> vanl. bruksareal | I8: 0 | J8: =IF($B$45=1,Faktorer_bolig!I4,Faktorer_andre!I4) -> 0 | K8: 0 | L8: 0 | M8: 0
A9: =IF($B$45=1,Faktorer_bolig!A5,Faktorer_andre!A5) -> 0 | B9: =IF(AND(B8=0,SUM(E8:E10,G8:G10,I8:I10,K9:K10)>0),"Har du glemt arealet ?","") ->  | C9: =IF($B$45=1,Faktorer_bolig!B5,Faktorer_andre!B5) -> Etasjestd i %; | D9: =IF($B$45=1,Faktorer_bolig!C5,Faktorer_andre!C5) -> svak/gråstein | E9: 0 | F9: =IF($B$45=1,Faktorer_bolig!E5,Faktorer_andre!E5) -> enkelt lager | G9: 0 | H9: =IF($B$45=1,Faktorer_bolig!G5,Faktorer_andre!G5) -> bra lagerareal | I9: 0 | J9: =IF($B$45=1,Faktorer_bolig!I5,Faktorer_andre!I5) -> godt bruksareal | K9: 0 | L9: =IF(areal_k>0,100-SUM(E9:K9),0) -> 0 | M9: =IF(L9>0," % mangler",IF(L9=0,0,"Over 100% blir feil!!!")) -> 0 | P9: 0 | Q9: 0 | R9: 0 | S9: 0 | T9: 0 | U9: 0 | V9: 0 | W9: 0 | X9: 0 | Y9: 0 | Z9: 0 | AA9: 0 | AB9: 0 | AC9: 0 | AD9: 0 | AE9: 0 | AF9: 0 | AG9: 0 | AH9: 0 | AI9: 0 | AJ9: 0 | AK9: 0 | AL9: 0 | AM9: 0 | AN9: 0 | AO9: 0 | AP9: 0 | AQ9: 0 | AR9: 0 | AS9: 0 | AT9: 0 | AU9: 0 | AV9: 0 | AW9: 0 | AX9: 0 | AY9: 0 | AZ9: 0 | BA9: 0 | BB9: 0 | BC9: 0 | BD9: 0 | BE9: 0 | BF9: 0 | BG9: 0 | BH9: 0 | BI9: 0 | BJ9: 0 | BK9: 0 | BL9: 0 | BM9: 0 | BN9: 0 | BO9: 0 | BP9: 0 | BQ9: 0 | BR9: 0 | BS9: 0 | BT9: 0 | BU9: 0 | BV9: 0 | BW9: 0 | BX9: 0 | BY9: 0 | BZ9: 0 | CA9: 0 | CB9: 0 | CC9: 0 | CD9: 0 | CE9: 0 | CF9: 0 | CG9: 0 | CH9: 0 | CI9: 0 | CJ9: 0 | CK9: 0 | CL9: 0 | CM9: 0 | CN9: 0 | CO9: 0 | CP9: 0 | CQ9: 0 | CR9: 0 | CS9: 0 | CT9: 0 | CU9: 0 | CV9: 0 | CW9: 0 | CX9: 0 | CY9: 0 | CZ9: 0 | DA9: 0 | DB9: 0 | DC9: 0 | DD9: 0 | DE9: 0 | DF9: 0 | DG9: 0 | DH9: 0 | DI9: 0 | DJ9: 0 | DK9: 0 | DL9: 0 | DM9: 0 | DN9: 0 | DO9: 0 | DP9: 0 | DQ9: 0 | DR9: 0 | DS9: 0 | DT9: 0 | DU9: 0 | DV9: 0 | DW9: 0 | DX9: 0 | DY9: 0 | DZ9: 0 | EA9: 0 | EB9: 0 | EC9: 0 | ED9: 0 | EE9: 0 | EF9: 0 | EG9: 0 | EH9: 0 | EI9: 0 | EJ9: 0 | EK9: 0 | EL9: 0 | EM9: 0 | EN9: 0 | EO9: 0 | EP9: 0 | EQ9: 0 | ER9: 0 | ES9: 0 | ET9: 0 | EU9: 0 | EV9: 0 | EW9: 0 | EX9: 0 | EY9: 0 | EZ9: 0 | FA9: 0 | FB9: 0 | FC9: 0 | FD9: 0 | FE9: 0 | FF9: 0 | FG9: 0 | FH9: 0 | FI9: 0 | FJ9: 0 | FK9: 0 | FL9: 0 | FM9: 0 | FN9: 0 | FO9: 0 | FP9: 0 | FQ9: 0 | FR9: 0 | FS9: 0 | FT9: 0 | FU9: 0 | FV9: 0 | FW9: 0 | FX9: 0 | FY9: 0 | FZ9: 0 | GA9: 0 | GB9: 0 | GC9: 0 | GD9: 0 | GE9: 0 | GF9: 0 | GG9: 0 | GH9: 0 | GI9: 0 | GJ9: 0 | GK9: 0 | GL9: 0 | GM9: 0 | GN9: 0 | GO9: 0 | GP9: 0 | GQ9: 0 | GR9: 0 | GS9: 0 | GT9: 0 | GU9: 0 | GV9: 0 | GW9: 0 | GX9: 0 | GY9: 0 | GZ9: 0 | HA9: 0 | HB9: 0 | HC9: 0 | HD9: 0 | HE9: 0 | HF9: 0 | HG9: 0 | HH9: 0 | HI9: 0 | HJ9: 0 | HK9: 0 | HL9: 0 | HM9: 0 | HN9: 0 | HO9: 0 | HP9: 0 | HQ9: 0 | HR9: 0 | HS9: 0 | HT9: 0 | HU9: 0 | HV9: 0 | HW9: 0 | HX9: 0 | HY9: 0 | HZ9: 0 | IA9: 0 | IB9: 0 | IC9: 0 | ID9: 0 | IE9: 0 | IF9: 0 | IG9: 0 | IH9: 0 | II9: 0 | IJ9: 0 | IK9: 0 | IL9: 0 | IM9: 0 | IN9: 0 | IO9: 0 | IP9: 0 | IQ9: 0 | IR9: 0 | IS9: 0 | IT9: 0 | IU9: 0 | IV9: 0 | IW9: 0 | IX9: 0 | IY9: 0 | IZ9: 0
A10: =IF($B$45=1,Faktorer_bolig!A6,Faktorer_andre!A6) -> 0 | C10: =IF($B$45=1,Faktorer_bolig!B6,Faktorer_andre!B6) -> Tilst/egnethet; | D10: =IF($B$45=1,Faktorer_bolig!C6,Faktorer_andre!C6) -> slitt/dårlig | E10: 0 | F10: =IF($B$45=1,Faktorer_bolig!E6,Faktorer_andre!E6) -> brukbar | G10: 0 | H10: =IF($B$45=1,Faktorer_bolig!G6,Faktorer_andre!G6) -> bra | I10: 0 | J10: =IF($B$45=1,Faktorer_bolig!I6,Faktorer_andre!I6) -> svært god | K10: 0 | L10: =IF(areal_k>0,100-SUM(E10:K10),0) -> 0 | M10: =IF(L10>0," % mangler",IF(L10=0,0,"----Over 100% blir feil!!!")) -> 0 | P10: 0 | Q10: 0 | R10: 0 | S10: 0 | T10: 0 | U10: 0 | V10: 0 | W10: 0 | X10: 0 | Y10: 0 | Z10: 0 | AA10: 0 | AB10: 0 | AC10: 0 | AD10: 0 | AE10: 0 | AF10: 0 | AG10: 0 | AH10: 0 | AI10: 0 | AJ10: 0 | AK10: 0 | AL10: 0 | AM10: 0 | AN10: 0 | AO10: 0 | AP10: 0 | AQ10: 0 | AR10: 0 | AS10: 0 | AT10: 0 | AU10: 0 | AV10: 0 | AW10: 0 | AX10: 0 | AY10: 0 | AZ10: 0 | BA10: 0 | BB10: 0 | BC10: 0 | BD10: 0 | BE10: 0 | BF10: 0 | BG10: 0 | BH10: 0 | BI10: 0 | BJ10: 0 | BK10: 0 | BL10: 0 | BM10: 0 | BN10: 0 | BO10: 0 | BP10: 0 | BQ10: 0 | BR10: 0 | BS10: 0 | BT10: 0 | BU10: 0 | BV10: 0 | BW10: 0 | BX10: 0 | BY10: 0 | BZ10: 0 | CA10: 0 | CB10: 0 | CC10: 0 | CD10: 0 | CE10: 0 | CF10: 0 | CG10: 0 | CH10: 0 | CI10: 0 | CJ10: 0 | CK10: 0 | CL10: 0 | CM10: 0 | CN10: 0 | CO10: 0 | CP10: 0 | CQ10: 0 | CR10: 0 | CS10: 0 | CT10: 0 | CU10: 0 | CV10: 0 | CW10: 0 | CX10: 0 | CY10: 0 | CZ10: 0 | DA10: 0 | DB10: 0 | DC10: 0 | DD10: 0 | DE10: 0 | DF10: 0 | DG10: 0 | DH10: 0 | DI10: 0 | DJ10: 0 | DK10: 0 | DL10: 0 | DM10: 0 | DN10: 0 | DO10: 0 | DP10: 0 | DQ10: 0 | DR10: 0 | DS10: 0 | DT10: 0 | DU10: 0 | DV10: 0 | DW10: 0 | DX10: 0 | DY10: 0 | DZ10: 0 | EA10: 0 | EB10: 0 | EC10: 0 | ED10: 0 | EE10: 0 | EF10: 0 | EG10: 0 | EH10: 0 | EI10: 0 | EJ10: 0 | EK10: 0 | EL10: 0 | EM10: 0 | EN10: 0 | EO10: 0 | EP10: 0 | EQ10: 0 | ER10: 0 | ES10: 0 | ET10: 0 | EU10: 0 | EV10: 0 | EW10: 0 | EX10: 0 | EY10: 0 | EZ10: 0 | FA10: 0 | FB10: 0 | FC10: 0 | FD10: 0 | FE10: 0 | FF10: 0 | FG10: 0 | FH10: 0 | FI10: 0 | FJ10: 0 | FK10: 0 | FL10: 0 | FM10: 0 | FN10: 0 | FO10: 0 | FP10: 0 | FQ10: 0 | FR10: 0 | FS10: 0 | FT10: 0 | FU10: 0 | FV10: 0 | FW10: 0 | FX10: 0 | FY10: 0 | FZ10: 0 | GA10: 0 | GB10: 0 | GC10: 0 | GD10: 0 | GE10: 0 | GF10: 0 | GG10: 0 | GH10: 0 | GI10: 0 | GJ10: 0 | GK10: 0 | GL10: 0 | GM10: 0 | GN10: 0 | GO10: 0 | GP10: 0 | GQ10: 0 | GR10: 0 | GS10: 0 | GT10: 0 | GU10: 0 | GV10: 0 | GW10: 0 | GX10: 0 | GY10: 0 | GZ10: 0 | HA10: 0 | HB10: 0 | HC10: 0 | HD10: 0 | HE10: 0 | HF10: 0 | HG10: 0 | HH10: 0 | HI10: 0 | HJ10: 0 | HK10: 0 | HL10: 0 | HM10: 0 | HN10: 0 | HO10: 0 | HP10: 0 | HQ10: 0 | HR10: 0 | HS10: 0 | HT10: 0 | HU10: 0 | HV10: 0 | HW10: 0 | HX10: 0 | HY10: 0 | HZ10: 0 | IA10: 0 | IB10: 0 | IC10: 0 | ID10: 0 | IE10: 0 | IF10: 0 | IG10: 0 | IH10: 0 | II10: 0 | IJ10: 0 | IK10: 0 | IL10: 0 | IM10: 0 | IN10: 0 | IO10: 0 | IP10: 0 | IQ10: 0 | IR10: 0 | IS10: 0 | IT10: 0 | IU10: 0 | IV10: 0 | IW10: 0 | IX10: 0 | IY10: 0 | IZ10: 0
A11: =IF($B$45=1,Faktorer_bolig!A7,Faktorer_andre!A7) -> Sokkel/underetg: | B11: 0 | C11: =IF($B$45=1,Faktorer_bolig!B7,Faktorer_andre!B7) -> Arealbruk i %; | D11: =IF($B$45=1,Faktorer_bolig!C7,Faktorer_andre!C7) -> svak/uegnet | E11: 0 | F11: =IF($B$45=1,Faktorer_bolig!E7,Faktorer_andre!E7) -> enkelt lagerareal | G11: 0 | H11: =IF($B$45=1,Faktorer_bolig!G7,Faktorer_andre!G7) -> vanl. bruksareal | I11: 0 | J11: =IF($B$45=1,Faktorer_bolig!I7,Faktorer_andre!I7) -> 0 | K11: 0 | L11: =IF(areal_u>0,100-SUM(E11:K11),0) -> 0 | M11: =IF(L11>0," % mangler",IF(L11=0,0,"----Over 100% blir feil!!!")) -> 0 | P11: 0 | Q11: 0 | R11: 0 | S11: 0 | T11: 0 | U11: 0 | V11: 0 | W11: 0 | X11: 0 | Y11: 0 | Z11: 0 | AA11: 0 | AB11: 0 | AC11: 0 | AD11: 0 | AE11: 0 | AF11: 0 | AG11: 0 | AH11: 0 | AI11: 0 | AJ11: 0 | AK11: 0 | AL11: 0 | AM11: 0 | AN11: 0 | AO11: 0 | AP11: 0 | AQ11: 0 | AR11: 0 | AS11: 0 | AT11: 0 | AU11: 0 | AV11: 0 | AW11: 0 | AX11: 0 | AY11: 0 | AZ11: 0 | BA11: 0 | BB11: 0 | BC11: 0 | BD11: 0 | BE11: 0 | BF11: 0 | BG11: 0 | BH11: 0 | BI11: 0 | BJ11: 0 | BK11: 0 | BL11: 0 | BM11: 0 | BN11: 0 | BO11: 0 | BP11: 0 | BQ11: 0 | BR11: 0 | BS11: 0 | BT11: 0 | BU11: 0 | BV11: 0 | BW11: 0 | BX11: 0 | BY11: 0 | BZ11: 0 | CA11: 0 | CB11: 0 | CC11: 0 | CD11: 0 | CE11: 0 | CF11: 0 | CG11: 0 | CH11: 0 | CI11: 0 | CJ11: 0 | CK11: 0 | CL11: 0 | CM11: 0 | CN11: 0 | CO11: 0 | CP11: 0 | CQ11: 0 | CR11: 0 | CS11: 0 | CT11: 0 | CU11: 0 | CV11: 0 | CW11: 0 | CX11: 0 | CY11: 0 | CZ11: 0 | DA11: 0 | DB11: 0 | DC11: 0 | DD11: 0 | DE11: 0 | DF11: 0 | DG11: 0 | DH11: 0 | DI11: 0 | DJ11: 0 | DK11: 0 | DL11: 0 | DM11: 0 | DN11: 0 | DO11: 0 | DP11: 0 | DQ11: 0 | DR11: 0 | DS11: 0 | DT11: 0 | DU11: 0 | DV11: 0 | DW11: 0 | DX11: 0 | DY11: 0 | DZ11: 0 | EA11: 0 | EB11: 0 | EC11: 0 | ED11: 0 | EE11: 0 | EF11: 0 | EG11: 0 | EH11: 0 | EI11: 0 | EJ11: 0 | EK11: 0 | EL11: 0 | EM11: 0 | EN11: 0 | EO11: 0 | EP11: 0 | EQ11: 0 | ER11: 0 | ES11: 0 | ET11: 0 | EU11: 0 | EV11: 0 | EW11: 0 | EX11: 0 | EY11: 0 | EZ11: 0 | FA11: 0 | FB11: 0 | FC11: 0 | FD11: 0 | FE11: 0 | FF11: 0 | FG11: 0 | FH11: 0 | FI11: 0 | FJ11: 0 | FK11: 0 | FL11: 0 | FM11: 0 | FN11: 0 | FO11: 0 | FP11: 0 | FQ11: 0 | FR11: 0 | FS11: 0 | FT11: 0 | FU11: 0 | FV11: 0 | FW11: 0 | FX11: 0 | FY11: 0 | FZ11: 0 | GA11: 0 | GB11: 0 | GC11: 0 | GD11: 0 | GE11: 0 | GF11: 0 | GG11: 0 | GH11: 0 | GI11: 0 | GJ11: 0 | GK11: 0 | GL11: 0 | GM11: 0 | GN11: 0 | GO11: 0 | GP11: 0 | GQ11: 0 | GR11: 0 | GS11: 0 | GT11: 0 | GU11: 0 | GV11: 0 | GW11: 0 | GX11: 0 | GY11: 0 | GZ11: 0 | HA11: 0 | HB11: 0 | HC11: 0 | HD11: 0 | HE11: 0 | HF11: 0 | HG11: 0 | HH11: 0 | HI11: 0 | HJ11: 0 | HK11: 0 | HL11: 0 | HM11: 0 | HN11: 0 | HO11: 0 | HP11: 0 | HQ11: 0 | HR11: 0 | HS11: 0 | HT11: 0 | HU11: 0 | HV11: 0 | HW11: 0 | HX11: 0 | HY11: 0 | HZ11: 0 | IA11: 0 | IB11: 0 | IC11: 0 | ID11: 0 | IE11: 0 | IF11: 0 | IG11: 0 | IH11: 0 | II11: 0 | IJ11: 0 | IK11: 0 | IL11: 0 | IM11: 0 | IN11: 0 | IO11: 0 | IP11: 0 | IQ11: 0 | IR11: 0 | IS11: 0 | IT11: 0 | IU11: 0 | IV11: 0 | IW11: 0 | IX11: 0 | IY11: 0 | IZ11: 0
A12: =IF($B$45=1,Faktorer_bolig!A8,Faktorer_andre!A8) -> 0 | B12: =IF(AND(A11=0,SUM(E11:E13,G11:G13,I11:I13,K12:K13)>0),"Har du glemt arealet ?","") ->  | C12: =IF($B$45=1,Faktorer_bolig!B8,Faktorer_andre!B8) -> Etasjestd i %; | D12: =IF($B$45=1,Faktorer_bolig!C8,Faktorer_andre!C8) -> lav/uinnredet | E12: 0 | F12: =IF($B$45=1,Faktorer_bolig!E8,Faktorer_andre!E8) -> enkel | G12: 0 | H12: =IF($B$45=1,Faktorer_bolig!G8,Faktorer_andre!G8) -> bra | I12: 0 | J12: =IF($B$45=1,Faktorer_bolig!I8,Faktorer_andre!I8) -> god | K12: 0 | L12: =IF(areal_u>0,100-SUM(E12:K12),0) -> 0 | M12: 0 | P12: 0 | Q12: 0 | R12: 0 | S12: 0 | T12: 0 | U12: 0 | V12: 0 | W12: 0 | X12: 0 | Y12: 0 | Z12: 0 | AA12: 0 | AB12: 0 | AC12: 0 | AD12: 0 | AE12: 0 | AF12: 0 | AG12: 0 | AH12: 0 | AI12: 0 | AJ12: 0 | AK12: 0 | AL12: 0 | AM12: 0 | AN12: 0 | AO12: 0 | AP12: 0 | AQ12: 0 | AR12: 0 | AS12: 0 | AT12: 0 | AU12: 0 | AV12: 0 | AW12: 0 | AX12: 0 | AY12: 0 | AZ12: 0 | BA12: 0 | BB12: 0 | BC12: 0 | BD12: 0 | BE12: 0 | BF12: 0 | BG12: 0 | BH12: 0 | BI12: 0 | BJ12: 0 | BK12: 0 | BL12: 0 | BM12: 0 | BN12: 0 | BO12: 0 | BP12: 0 | BQ12: 0 | BR12: 0 | BS12: 0 | BT12: 0 | BU12: 0 | BV12: 0 | BW12: 0 | BX12: 0 | BY12: 0 | BZ12: 0 | CA12: 0 | CB12: 0 | CC12: 0 | CD12: 0 | CE12: 0 | CF12: 0 | CG12: 0 | CH12: 0 | CI12: 0 | CJ12: 0 | CK12: 0 | CL12: 0 | CM12: 0 | CN12: 0 | CO12: 0 | CP12: 0 | CQ12: 0 | CR12: 0 | CS12: 0 | CT12: 0 | CU12: 0 | CV12: 0 | CW12: 0 | CX12: 0 | CY12: 0 | CZ12: 0 | DA12: 0 | DB12: 0 | DC12: 0 | DD12: 0 | DE12: 0 | DF12: 0 | DG12: 0 | DH12: 0 | DI12: 0 | DJ12: 0 | DK12: 0 | DL12: 0 | DM12: 0 | DN12: 0 | DO12: 0 | DP12: 0 | DQ12: 0 | DR12: 0 | DS12: 0 | DT12: 0 | DU12: 0 | DV12: 0 | DW12: 0 | DX12: 0 | DY12: 0 | DZ12: 0 | EA12: 0 | EB12: 0 | EC12: 0 | ED12: 0 | EE12: 0 | EF12: 0 | EG12: 0 | EH12: 0 | EI12: 0 | EJ12: 0 | EK12: 0 | EL12: 0 | EM12: 0 | EN12: 0 | EO12: 0 | EP12: 0 | EQ12: 0 | ER12: 0 | ES12: 0 | ET12: 0 | EU12: 0 | EV12: 0 | EW12: 0 | EX12: 0 | EY12: 0 | EZ12: 0 | FA12: 0 | FB12: 0 | FC12: 0 | FD12: 0 | FE12: 0 | FF12: 0 | FG12: 0 | FH12: 0 | FI12: 0 | FJ12: 0 | FK12: 0 | FL12: 0 | FM12: 0 | FN12: 0 | FO12: 0 | FP12: 0 | FQ12: 0 | FR12: 0 | FS12: 0 | FT12: 0 | FU12: 0 | FV12: 0 | FW12: 0 | FX12: 0 | FY12: 0 | FZ12: 0 | GA12: 0 | GB12: 0 | GC12: 0 | GD12: 0 | GE12: 0 | GF12: 0 | GG12: 0 | GH12: 0 | GI12: 0 | GJ12: 0 | GK12: 0 | GL12: 0 | GM12: 0 | GN12: 0 | GO12: 0 | GP12: 0 | GQ12: 0 | GR12: 0 | GS12: 0 | GT12: 0 | GU12: 0 | GV12: 0 | GW12: 0 | GX12: 0 | GY12: 0 | GZ12: 0 | HA12: 0 | HB12: 0 | HC12: 0 | HD12: 0 | HE12: 0 | HF12: 0 | HG12: 0 | HH12: 0 | HI12: 0 | HJ12: 0 | HK12: 0 | HL12: 0 | HM12: 0 | HN12: 0 | HO12: 0 | HP12: 0 | HQ12: 0 | HR12: 0 | HS12: 0 | HT12: 0 | HU12: 0 | HV12: 0 | HW12: 0 | HX12: 0 | HY12: 0 | HZ12: 0 | IA12: 0 | IB12: 0 | IC12: 0 | ID12: 0 | IE12: 0 | IF12: 0 | IG12: 0 | IH12: 0 | II12: 0 | IJ12: 0 | IK12: 0 | IL12: 0 | IM12: 0 | IN12: 0 | IO12: 0 | IP12: 0 | IQ12: 0 | IR12: 0 | IS12: 0 | IT12: 0 | IU12: 0 | IV12: 0 | IW12: 0 | IX12: 0 | IY12: 0 | IZ12: 0
A13: =IF($B$45=1,Faktorer_bolig!A9,Faktorer_andre!A9) -> 0 | C13: =IF($B$45=1,Faktorer_bolig!B9,Faktorer_andre!B9) -> Tilst/egnethet; | D13: =IF($B$45=1,Faktorer_bolig!C9,Faktorer_andre!C9) -> slitt/dårl | E13: 0 | F13: =IF($B$45=1,Faktorer_bolig!E9,Faktorer_andre!E9) -> brukbar | G13: 0 | H13: =IF($B$45=1,Faktorer_bolig!G9,Faktorer_andre!G9) -> bra | I13: 0 | J13: =IF($B$45=1,Faktorer_bolig!I9,Faktorer_andre!I9) -> svært god | K13: 0 | L13: =IF(areal_u>0,100-SUM(E13:K13),0) -> 0 | M13: 0 | P13: 0 | Q13: 0 | R13: 0 | S13: 0 | T13: 0 | U13: 0 | V13: 0 | W13: 0 | X13: 0 | Y13: 0 | Z13: 0 | AA13: 0 | AB13: 0 | AC13: 0 | AD13: 0 | AE13: 0 | AF13: 0 | AG13: 0 | AH13: 0 | AI13: 0 | AJ13: 0 | AK13: 0 | AL13: 0 | AM13: 0 | AN13: 0 | AO13: 0 | AP13: 0 | AQ13: 0 | AR13: 0 | AS13: 0 | AT13: 0 | AU13: 0 | AV13: 0 | AW13: 0 | AX13: 0 | AY13: 0 | AZ13: 0 | BA13: 0 | BB13: 0 | BC13: 0 | BD13: 0 | BE13: 0 | BF13: 0 | BG13: 0 | BH13: 0 | BI13: 0 | BJ13: 0 | BK13: 0 | BL13: 0 | BM13: 0 | BN13: 0 | BO13: 0 | BP13: 0 | BQ13: 0 | BR13: 0 | BS13: 0 | BT13: 0 | BU13: 0 | BV13: 0 | BW13: 0 | BX13: 0 | BY13: 0 | BZ13: 0 | CA13: 0 | CB13: 0 | CC13: 0 | CD13: 0 | CE13: 0 | CF13: 0 | CG13: 0 | CH13: 0 | CI13: 0 | CJ13: 0 | CK13: 0 | CL13: 0 | CM13: 0 | CN13: 0 | CO13: 0 | CP13: 0 | CQ13: 0 | CR13: 0 | CS13: 0 | CT13: 0 | CU13: 0 | CV13: 0 | CW13: 0 | CX13: 0 | CY13: 0 | CZ13: 0 | DA13: 0 | DB13: 0 | DC13: 0 | DD13: 0 | DE13: 0 | DF13: 0 | DG13: 0 | DH13: 0 | DI13: 0 | DJ13: 0 | DK13: 0 | DL13: 0 | DM13: 0 | DN13: 0 | DO13: 0 | DP13: 0 | DQ13: 0 | DR13: 0 | DS13: 0 | DT13: 0 | DU13: 0 | DV13: 0 | DW13: 0 | DX13: 0 | DY13: 0 | DZ13: 0 | EA13: 0 | EB13: 0 | EC13: 0 | ED13: 0 | EE13: 0 | EF13: 0 | EG13: 0 | EH13: 0 | EI13: 0 | EJ13: 0 | EK13: 0 | EL13: 0 | EM13: 0 | EN13: 0 | EO13: 0 | EP13: 0 | EQ13: 0 | ER13: 0 | ES13: 0 | ET13: 0 | EU13: 0 | EV13: 0 | EW13: 0 | EX13: 0 | EY13: 0 | EZ13: 0 | FA13: 0 | FB13: 0 | FC13: 0 | FD13: 0 | FE13: 0 | FF13: 0 | FG13: 0 | FH13: 0 | FI13: 0 | FJ13: 0 | FK13: 0 | FL13: 0 | FM13: 0 | FN13: 0 | FO13: 0 | FP13: 0 | FQ13: 0 | FR13: 0 | FS13: 0 | FT13: 0 | FU13: 0 | FV13: 0 | FW13: 0 | FX13: 0 | FY13: 0 | FZ13: 0 | GA13: 0 | GB13: 0 | GC13: 0 | GD13: 0 | GE13: 0 | GF13: 0 | GG13: 0 | GH13: 0 | GI13: 0 | GJ13: 0 | GK13: 0 | GL13: 0 | GM13: 0 | GN13: 0 | GO13: 0 | GP13: 0 | GQ13: 0 | GR13: 0 | GS13: 0 | GT13: 0 | GU13: 0 | GV13: 0 | GW13: 0 | GX13: 0 | GY13: 0 | GZ13: 0 | HA13: 0 | HB13: 0 | HC13: 0 | HD13: 0 | HE13: 0 | HF13: 0 | HG13: 0 | HH13: 0 | HI13: 0 | HJ13: 0 | HK13: 0 | HL13: 0 | HM13: 0 | HN13: 0 | HO13: 0 | HP13: 0 | HQ13: 0 | HR13: 0 | HS13: 0 | HT13: 0 | HU13: 0 | HV13: 0 | HW13: 0 | HX13: 0 | HY13: 0 | HZ13: 0 | IA13: 0 | IB13: 0 | IC13: 0 | ID13: 0 | IE13: 0 | IF13: 0 | IG13: 0 | IH13: 0 | II13: 0 | IJ13: 0 | IK13: 0 | IL13: 0 | IM13: 0 | IN13: 0 | IO13: 0 | IP13: 0 | IQ13: 0 | IR13: 0 | IS13: 0 | IT13: 0 | IU13: 0 | IV13: 0 | IW13: 0 | IX13: 0 | IY13: 0 | IZ13: 0
A14: =IF($B$45=1,Faktorer_bolig!A10,Faktorer_andre!A10) -> 1. etg: | B14: 0 | C14: =IF($B$45=1,Faktorer_bolig!B10,Faktorer_andre!B10) -> Arealbruk i %; | D14: =IF($B$45=1,Faktorer_bolig!C10,Faktorer_andre!C10) -> svak/uegnet. | E14: 0 | F14: =IF($B$45=1,Faktorer_bolig!E10,Faktorer_andre!E10) -> enkelt bruksareal | G14: 0 | H14: =IF($B$45=1,Faktorer_bolig!G10,Faktorer_andre!G10) -> vanl. bruksareal | I14: 0 | J14: =IF($B$45=1,Faktorer_bolig!I10,Faktorer_andre!I10) -> 0 | L14: =IF(areal_1>0,100-SUM(E14:K14),0) -> 0 | M14: 0 | P14: 0 | Q14: 0 | R14: 0 | S14: 0 | T14: 0 | U14: 0 | V14: 0 | W14: 0 | X14: 0 | Y14: 0 | Z14: 0 | AA14: 0 | AB14: 0 | AC14: 0 | AD14: 0 | AE14: 0 | AF14: 0 | AG14: 0 | AH14: 0 | AI14: 0 | AJ14: 0 | AK14: 0 | AL14: 0 | AM14: 0 | AN14: 0 | AO14: 0 | AP14: 0 | AQ14: 0 | AR14: 0 | AS14: 0 | AT14: 0 | AU14: 0 | AV14: 0 | AW14: 0 | AX14: 0 | AY14: 0 | AZ14: 0 | BA14: 0 | BB14: 0 | BC14: 0 | BD14: 0 | BE14: 0 | BF14: 0 | BG14: 0 | BH14: 0 | BI14: 0 | BJ14: 0 | BK14: 0 | BL14: 0 | BM14: 0 | BN14: 0 | BO14: 0 | BP14: 0 | BQ14: 0 | BR14: 0 | BS14: 0 | BT14: 0 | BU14: 0 | BV14: 0 | BW14: 0 | BX14: 0 | BY14: 0 | BZ14: 0 | CA14: 0 | CB14: 0 | CC14: 0 | CD14: 0 | CE14: 0 | CF14: 0 | CG14: 0 | CH14: 0 | CI14: 0 | CJ14: 0 | CK14: 0 | CL14: 0 | CM14: 0 | CN14: 0 | CO14: 0 | CP14: 0 | CQ14: 0 | CR14: 0 | CS14: 0 | CT14: 0 | CU14: 0 | CV14: 0 | CW14: 0 | CX14: 0 | CY14: 0 | CZ14: 0 | DA14: 0 | DB14: 0 | DC14: 0 | DD14: 0 | DE14: 0 | DF14: 0 | DG14: 0 | DH14: 0 | DI14: 0 | DJ14: 0 | DK14: 0 | DL14: 0 | DM14: 0 | DN14: 0 | DO14: 0 | DP14: 0 | DQ14: 0 | DR14: 0 | DS14: 0 | DT14: 0 | DU14: 0 | DV14: 0 | DW14: 0 | DX14: 0 | DY14: 0 | DZ14: 0 | EA14: 0 | EB14: 0 | EC14: 0 | ED14: 0 | EE14: 0 | EF14: 0 | EG14: 0 | EH14: 0 | EI14: 0 | EJ14: 0 | EK14: 0 | EL14: 0 | EM14: 0 | EN14: 0 | EO14: 0 | EP14: 0 | EQ14: 0 | ER14: 0 | ES14: 0 | ET14: 0 | EU14: 0 | EV14: 0 | EW14: 0 | EX14: 0 | EY14: 0 | EZ14: 0 | FA14: 0 | FB14: 0 | FC14: 0 | FD14: 0 | FE14: 0 | FF14: 0 | FG14: 0 | FH14: 0 | FI14: 0 | FJ14: 0 | FK14: 0 | FL14: 0 | FM14: 0 | FN14: 0 | FO14: 0 | FP14: 0 | FQ14: 0 | FR14: 0 | FS14: 0 | FT14: 0 | FU14: 0 | FV14: 0 | FW14: 0 | FX14: 0 | FY14: 0 | FZ14: 0 | GA14: 0 | GB14: 0 | GC14: 0 | GD14: 0 | GE14: 0 | GF14: 0 | GG14: 0 | GH14: 0 | GI14: 0 | GJ14: 0 | GK14: 0 | GL14: 0 | GM14: 0 | GN14: 0 | GO14: 0 | GP14: 0 | GQ14: 0 | GR14: 0 | GS14: 0 | GT14: 0 | GU14: 0 | GV14: 0 | GW14: 0 | GX14: 0 | GY14: 0 | GZ14: 0 | HA14: 0 | HB14: 0 | HC14: 0 | HD14: 0 | HE14: 0 | HF14: 0 | HG14: 0 | HH14: 0 | HI14: 0 | HJ14: 0 | HK14: 0 | HL14: 0 | HM14: 0 | HN14: 0 | HO14: 0 | HP14: 0 | HQ14: 0 | HR14: 0 | HS14: 0 | HT14: 0 | HU14: 0 | HV14: 0 | HW14: 0 | HX14: 0 | HY14: 0 | HZ14: 0 | IA14: 0 | IB14: 0 | IC14: 0 | ID14: 0 | IE14: 0 | IF14: 0 | IG14: 0 | IH14: 0 | II14: 0 | IJ14: 0 | IK14: 0 | IL14: 0 | IM14: 0 | IN14: 0 | IO14: 0 | IP14: 0 | IQ14: 0 | IR14: 0 | IS14: 0 | IT14: 0 | IU14: 0 | IV14: 0 | IW14: 0 | IX14: 0 | IY14: 0 | IZ14: 0
A15: =IF($B$45=1,Faktorer_bolig!A11,Faktorer_andre!A11) -> 0 | B15: =IF(AND(A14=0,SUM(E14:E16,G14:G16,I14:I16,K15:K16)>0),"Har du glemt arealet ?","") ->  | C15: =IF($B$45=1,Faktorer_bolig!B11,Faktorer_andre!B11) -> Etasjestd i %; | D15: =IF($B$45=1,Faktorer_bolig!C11,Faktorer_andre!C11) -> lav | E15: 0 | F15: =IF($B$45=1,Faktorer_bolig!E11,Faktorer_andre!E11) -> enkel | G15: 0 | H15: =IF($B$45=1,Faktorer_bolig!G11,Faktorer_andre!G11) -> bra | I15: 0 | J15: =IF($B$45=1,Faktorer_bolig!I11,Faktorer_andre!I11) -> god | K15: 0 | L15: =IF(areal_1>0,100-SUM(E15:K15),0) -> 0 | M15: 0 | P15: 0 | Q15: 0 | R15: 0 | S15: 0 | T15: 0 | U15: 0 | V15: 0 | W15: 0 | X15: 0 | Y15: 0 | Z15: 0 | AA15: 0 | AB15: 0 | AC15: 0 | AD15: 0 | AE15: 0 | AF15: 0 | AG15: 0 | AH15: 0 | AI15: 0 | AJ15: 0 | AK15: 0 | AL15: 0 | AM15: 0 | AN15: 0 | AO15: 0 | AP15: 0 | AQ15: 0 | AR15: 0 | AS15: 0 | AT15: 0 | AU15: 0 | AV15: 0 | AW15: 0 | AX15: 0 | AY15: 0 | AZ15: 0 | BA15: 0 | BB15: 0 | BC15: 0 | BD15: 0 | BE15: 0 | BF15: 0 | BG15: 0 | BH15: 0 | BI15: 0 | BJ15: 0 | BK15: 0 | BL15: 0 | BM15: 0 | BN15: 0 | BO15: 0 | BP15: 0 | BQ15: 0 | BR15: 0 | BS15: 0 | BT15: 0 | BU15: 0 | BV15: 0 | BW15: 0 | BX15: 0 | BY15: 0 | BZ15: 0 | CA15: 0 | CB15: 0 | CC15: 0 | CD15: 0 | CE15: 0 | CF15: 0 | CG15: 0 | CH15: 0 | CI15: 0 | CJ15: 0 | CK15: 0 | CL15: 0 | CM15: 0 | CN15: 0 | CO15: 0 | CP15: 0 | CQ15: 0 | CR15: 0 | CS15: 0 | CT15: 0 | CU15: 0 | CV15: 0 | CW15: 0 | CX15: 0 | CY15: 0 | CZ15: 0 | DA15: 0 | DB15: 0 | DC15: 0 | DD15: 0 | DE15: 0 | DF15: 0 | DG15: 0 | DH15: 0 | DI15: 0 | DJ15: 0 | DK15: 0 | DL15: 0 | DM15: 0 | DN15: 0 | DO15: 0 | DP15: 0 | DQ15: 0 | DR15: 0 | DS15: 0 | DT15: 0 | DU15: 0 | DV15: 0 | DW15: 0 | DX15: 0 | DY15: 0 | DZ15: 0 | EA15: 0 | EB15: 0 | EC15: 0 | ED15: 0 | EE15: 0 | EF15: 0 | EG15: 0 | EH15: 0 | EI15: 0 | EJ15: 0 | EK15: 0 | EL15: 0 | EM15: 0 | EN15: 0 | EO15: 0 | EP15: 0 | EQ15: 0 | ER15: 0 | ES15: 0 | ET15: 0 | EU15: 0 | EV15: 0 | EW15: 0 | EX15: 0 | EY15: 0 | EZ15: 0 | FA15: 0 | FB15: 0 | FC15: 0 | FD15: 0 | FE15: 0 | FF15: 0 | FG15: 0 | FH15: 0 | FI15: 0 | FJ15: 0 | FK15: 0 | FL15: 0 | FM15: 0 | FN15: 0 | FO15: 0 | FP15: 0 | FQ15: 0 | FR15: 0 | FS15: 0 | FT15: 0 | FU15: 0 | FV15: 0 | FW15: 0 | FX15: 0 | FY15: 0 | FZ15: 0 | GA15: 0 | GB15: 0 | GC15: 0 | GD15: 0 | GE15: 0 | GF15: 0 | GG15: 0 | GH15: 0 | GI15: 0 | GJ15: 0 | GK15: 0 | GL15: 0 | GM15: 0 | GN15: 0 | GO15: 0 | GP15: 0 | GQ15: 0 | GR15: 0 | GS15: 0 | GT15: 0 | GU15: 0 | GV15: 0 | GW15: 0 | GX15: 0 | GY15: 0 | GZ15: 0 | HA15: 0 | HB15: 0 | HC15: 0 | HD15: 0 | HE15: 0 | HF15: 0 | HG15: 0 | HH15: 0 | HI15: 0 | HJ15: 0 | HK15: 0 | HL15: 0 | HM15: 0 | HN15: 0 | HO15: 0 | HP15: 0 | HQ15: 0 | HR15: 0 | HS15: 0 | HT15: 0 | HU15: 0 | HV15: 0 | HW15: 0 | HX15: 0 | HY15: 0 | HZ15: 0 | IA15: 0 | IB15: 0 | IC15: 0 | ID15: 0 | IE15: 0 | IF15: 0 | IG15: 0 | IH15: 0 | II15: 0 | IJ15: 0 | IK15: 0 | IL15: 0 | IM15: 0 | IN15: 0 | IO15: 0 | IP15: 0 | IQ15: 0 | IR15: 0 | IS15: 0 | IT15: 0 | IU15: 0 | IV15: 0 | IW15: 0 | IX15: 0 | IY15: 0 | IZ15: 0
A16: =IF($B$45=1,Faktorer_bolig!A12,Faktorer_andre!A12) -> 0 | C16: =IF($B$45=1,Faktorer_bolig!B12,Faktorer_andre!B12) -> Tilst/egnethet; | D16: =IF($B$45=1,Faktorer_bolig!C12,Faktorer_andre!C12) -> slitt/dårl | E16: 0 | F16: =IF($B$45=1,Faktorer_bolig!E12,Faktorer_andre!E12) -> brukbar | G16: 0 | H16: =IF($B$45=1,Faktorer_bolig!G12,Faktorer_andre!G12) -> bra | I16: 0 | J16: =IF($B$45=1,Faktorer_bolig!I12,Faktorer_andre!I12) -> svært god | K16: 0 | L16: =IF(areal_1>0,100-SUM(E16:K16),0) -> 0 | M16: 0 | P16: 0 | Q16: 0 | R16: 0 | S16: 0 | T16: 0 | U16: 0 | V16: 0 | W16: 0 | X16: 0 | Y16: 0 | Z16: 0 | AA16: 0 | AB16: 0 | AC16: 0 | AD16: 0 | AE16: 0 | AF16: 0 | AG16: 0 | AH16: 0 | AI16: 0 | AJ16: 0 | AK16: 0 | AL16: 0 | AM16: 0 | AN16: 0 | AO16: 0 | AP16: 0 | AQ16: 0 | AR16: 0 | AS16: 0 | AT16: 0 | AU16: 0 | AV16: 0 | AW16: 0 | AX16: 0 | AY16: 0 | AZ16: 0 | BA16: 0 | BB16: 0 | BC16: 0 | BD16: 0 | BE16: 0 | BF16: 0 | BG16: 0 | BH16: 0 | BI16: 0 | BJ16: 0 | BK16: 0 | BL16: 0 | BM16: 0 | BN16: 0 | BO16: 0 | BP16: 0 | BQ16: 0 | BR16: 0 | BS16: 0 | BT16: 0 | BU16: 0 | BV16: 0 | BW16: 0 | BX16: 0 | BY16: 0 | BZ16: 0 | CA16: 0 | CB16: 0 | CC16: 0 | CD16: 0 | CE16: 0 | CF16: 0 | CG16: 0 | CH16: 0 | CI16: 0 | CJ16: 0 | CK16: 0 | CL16: 0 | CM16: 0 | CN16: 0 | CO16: 0 | CP16: 0 | CQ16: 0 | CR16: 0 | CS16: 0 | CT16: 0 | CU16: 0 | CV16: 0 | CW16: 0 | CX16: 0 | CY16: 0 | CZ16: 0 | DA16: 0 | DB16: 0 | DC16: 0 | DD16: 0 | DE16: 0 | DF16: 0 | DG16: 0 | DH16: 0 | DI16: 0 | DJ16: 0 | DK16: 0 | DL16: 0 | DM16: 0 | DN16: 0 | DO16: 0 | DP16: 0 | DQ16: 0 | DR16: 0 | DS16: 0 | DT16: 0 | DU16: 0 | DV16: 0 | DW16: 0 | DX16: 0 | DY16: 0 | DZ16: 0 | EA16: 0 | EB16: 0 | EC16: 0 | ED16: 0 | EE16: 0 | EF16: 0 | EG16: 0 | EH16: 0 | EI16: 0 | EJ16: 0 | EK16: 0 | EL16: 0 | EM16: 0 | EN16: 0 | EO16: 0 | EP16: 0 | EQ16: 0 | ER16: 0 | ES16: 0 | ET16: 0 | EU16: 0 | EV16: 0 | EW16: 0 | EX16: 0 | EY16: 0 | EZ16: 0 | FA16: 0 | FB16: 0 | FC16: 0 | FD16: 0 | FE16: 0 | FF16: 0 | FG16: 0 | FH16: 0 | FI16: 0 | FJ16: 0 | FK16: 0 | FL16: 0 | FM16: 0 | FN16: 0 | FO16: 0 | FP16: 0 | FQ16: 0 | FR16: 0 | FS16: 0 | FT16: 0 | FU16: 0 | FV16: 0 | FW16: 0 | FX16: 0 | FY16: 0 | FZ16: 0 | GA16: 0 | GB16: 0 | GC16: 0 | GD16: 0 | GE16: 0 | GF16: 0 | GG16: 0 | GH16: 0 | GI16: 0 | GJ16: 0 | GK16: 0 | GL16: 0 | GM16: 0 | GN16: 0 | GO16: 0 | GP16: 0 | GQ16: 0 | GR16: 0 | GS16: 0 | GT16: 0 | GU16: 0 | GV16: 0 | GW16: 0 | GX16: 0 | GY16: 0 | GZ16: 0 | HA16: 0 | HB16: 0 | HC16: 0 | HD16: 0 | HE16: 0 | HF16: 0 | HG16: 0 | HH16: 0 | HI16: 0 | HJ16: 0 | HK16: 0 | HL16: 0 | HM16: 0 | HN16: 0 | HO16: 0 | HP16: 0 | HQ16: 0 | HR16: 0 | HS16: 0 | HT16: 0 | HU16: 0 | HV16: 0 | HW16: 0 | HX16: 0 | HY16: 0 | HZ16: 0 | IA16: 0 | IB16: 0 | IC16: 0 | ID16: 0 | IE16: 0 | IF16: 0 | IG16: 0 | IH16: 0 | II16: 0 | IJ16: 0 | IK16: 0 | IL16: 0 | IM16: 0 | IN16: 0 | IO16: 0 | IP16: 0 | IQ16: 0 | IR16: 0 | IS16: 0 | IT16: 0 | IU16: 0 | IV16: 0 | IW16: 0 | IX16: 0 | IY16: 0 | IZ16: 0
A17: =IF($B$45=1,Faktorer_bolig!A13,Faktorer_andre!A13) -> 2. etg: | B17: 0 | C17: =IF($B$45=1,Faktorer_bolig!B13,Faktorer_andre!B13) -> Arealbruk i %; | D17: =IF($B$45=1,Faktorer_bolig!C13,Faktorer_andre!C13) -> svak/uegnet | E17: 0 | F17: =IF($B$45=1,Faktorer_bolig!E13,Faktorer_andre!E13) -> enkelt bruksareal | G17: 0 | H17: =IF($B$45=1,Faktorer_bolig!G13,Faktorer_andre!G13) -> vanl. bruksareal | I17: 0 | J17: =IF($B$45=1,Faktorer_bolig!I13,Faktorer_andre!I13) -> 0 | K17: 0 | L17: =IF(areal_2>0,100-SUM(E17:K17),0) -> 0 | M17: 0 | P17: 0 | Q17: 0 | R17: 0 | S17: 0 | T17: 0 | U17: 0 | V17: 0 | W17: 0 | X17: 0 | Y17: 0 | Z17: 0 | AA17: 0 | AB17: 0 | AC17: 0 | AD17: 0 | AE17: 0 | AF17: 0 | AG17: 0 | AH17: 0 | AI17: 0 | AJ17: 0 | AK17: 0 | AL17: 0 | AM17: 0 | AN17: 0 | AO17: 0 | AP17: 0 | AQ17: 0 | AR17: 0 | AS17: 0 | AT17: 0 | AU17: 0 | AV17: 0 | AW17: 0 | AX17: 0 | AY17: 0 | AZ17: 0 | BA17: 0 | BB17: 0 | BC17: 0 | BD17: 0 | BE17: 0 | BF17: 0 | BG17: 0 | BH17: 0 | BI17: 0 | BJ17: 0 | BK17: 0 | BL17: 0 | BM17: 0 | BN17: 0 | BO17: 0 | BP17: 0 | BQ17: 0 | BR17: 0 | BS17: 0 | BT17: 0 | BU17: 0 | BV17: 0 | BW17: 0 | BX17: 0 | BY17: 0 | BZ17: 0 | CA17: 0 | CB17: 0 | CC17: 0 | CD17: 0 | CE17: 0 | CF17: 0 | CG17: 0 | CH17: 0 | CI17: 0 | CJ17: 0 | CK17: 0 | CL17: 0 | CM17: 0 | CN17: 0 | CO17: 0 | CP17: 0 | CQ17: 0 | CR17: 0 | CS17: 0 | CT17: 0 | CU17: 0 | CV17: 0 | CW17: 0 | CX17: 0 | CY17: 0 | CZ17: 0 | DA17: 0 | DB17: 0 | DC17: 0 | DD17: 0 | DE17: 0 | DF17: 0 | DG17: 0 | DH17: 0 | DI17: 0 | DJ17: 0 | DK17: 0 | DL17: 0 | DM17: 0 | DN17: 0 | DO17: 0 | DP17: 0 | DQ17: 0 | DR17: 0 | DS17: 0 | DT17: 0 | DU17: 0 | DV17: 0 | DW17: 0 | DX17: 0 | DY17: 0 | DZ17: 0 | EA17: 0 | EB17: 0 | EC17: 0 | ED17: 0 | EE17: 0 | EF17: 0 | EG17: 0 | EH17: 0 | EI17: 0 | EJ17: 0 | EK17: 0 | EL17: 0 | EM17: 0 | EN17: 0 | EO17: 0 | EP17: 0 | EQ17: 0 | ER17: 0 | ES17: 0 | ET17: 0 | EU17: 0 | EV17: 0 | EW17: 0 | EX17: 0 | EY17: 0 | EZ17: 0 | FA17: 0 | FB17: 0 | FC17: 0 | FD17: 0 | FE17: 0 | FF17: 0 | FG17: 0 | FH17: 0 | FI17: 0 | FJ17: 0 | FK17: 0 | FL17: 0 | FM17: 0 | FN17: 0 | FO17: 0 | FP17: 0 | FQ17: 0 | FR17: 0 | FS17: 0 | FT17: 0 | FU17: 0 | FV17: 0 | FW17: 0 | FX17: 0 | FY17: 0 | FZ17: 0 | GA17: 0 | GB17: 0 | GC17: 0 | GD17: 0 | GE17: 0 | GF17: 0 | GG17: 0 | GH17: 0 | GI17: 0 | GJ17: 0 | GK17: 0 | GL17: 0 | GM17: 0 | GN17: 0 | GO17: 0 | GP17: 0 | GQ17: 0 | GR17: 0 | GS17: 0 | GT17: 0 | GU17: 0 | GV17: 0 | GW17: 0 | GX17: 0 | GY17: 0 | GZ17: 0 | HA17: 0 | HB17: 0 | HC17: 0 | HD17: 0 | HE17: 0 | HF17: 0 | HG17: 0 | HH17: 0 | HI17: 0 | HJ17: 0 | HK17: 0 | HL17: 0 | HM17: 0 | HN17: 0 | HO17: 0 | HP17: 0 | HQ17: 0 | HR17: 0 | HS17: 0 | HT17: 0 | HU17: 0 | HV17: 0 | HW17: 0 | HX17: 0 | HY17: 0 | HZ17: 0 | IA17: 0 | IB17: 0 | IC17: 0 | ID17: 0 | IE17: 0 | IF17: 0 | IG17: 0 | IH17: 0 | II17: 0 | IJ17: 0 | IK17: 0 | IL17: 0 | IM17: 0 | IN17: 0 | IO17: 0 | IP17: 0 | IQ17: 0 | IR17: 0 | IS17: 0 | IT17: 0 | IU17: 0 | IV17: 0 | IW17: 0 | IX17: 0 | IY17: 0 | IZ17: 0
A18: =IF($B$45=1,Faktorer_bolig!A14,Faktorer_andre!A14) -> 0 | B18: =IF(AND(A17=0,SUM(E17:E19,G17:G19,I17:I19,K18:K19)>0),"Har du glemt arealet ?","") ->  | C18: =IF($B$45=1,Faktorer_bolig!B14,Faktorer_andre!B14) -> Etasjestd i %; | D18: =IF($B$45=1,Faktorer_bolig!C14,Faktorer_andre!C14) -> lav | E18: 0 | F18: =IF($B$45=1,Faktorer_bolig!E14,Faktorer_andre!E14) -> enkel | G18: 0 | H18: =IF($B$45=1,Faktorer_bolig!G14,Faktorer_andre!G14) -> bra | I18: 0 | J18: =IF($B$45=1,Faktorer_bolig!I14,Faktorer_andre!I14) -> god | K18: 0 | L18: =IF(areal_2>0,100-SUM(E18:K18),0) -> 0 | M18: 0
A19: =IF($B$45=1,Faktorer_bolig!A15,Faktorer_andre!A15) -> 0 | C19: =IF($B$45=1,Faktorer_bolig!B15,Faktorer_andre!B15) -> Tilst/egnethet; | D19: =IF($B$45=1,Faktorer_bolig!C15,Faktorer_andre!C15) -> slitt/dårl | E19: 0 | F19: =IF($B$45=1,Faktorer_bolig!E15,Faktorer_andre!E15) -> brukbar | G19: 0 | H19: =IF($B$45=1,Faktorer_bolig!G15,Faktorer_andre!G15) -> bra | I19: 0 | J19: =IF($B$45=1,Faktorer_bolig!I15,Faktorer_andre!I15) -> svært god | K19: 0 | L19: =IF(areal_2>0,100-SUM(E19:K19),0) -> 0 | M19: 0
A20: =IF($B$45=1,Faktorer_bolig!A16,Faktorer_andre!A16) -> Kjørebro/ mesanin | B20: 0 | C20: =IF($B$45=1,Faktorer_bolig!B16,Faktorer_andre!B16) -> Arealbruk i %; | D20: =IF($B$45=1,Faktorer_bolig!C16,Faktorer_andre!C16) -> svak/uegnet | E20: 0 | F20: =IF($B$45=1,Faktorer_bolig!E16,Faktorer_andre!E16) -> lettlager | G20: 0 | H20: =IF($B$45=1,Faktorer_bolig!G16,Faktorer_andre!G16) -> vanl. bruksareal | I20: 0 | J20: =IF($B$45=1,Faktorer_bolig!I16,Faktorer_andre!I16) -> 0 | K20: 0 | L20: 0 | M20: 0
A21: =IF($B$45=1,Faktorer_bolig!A17,Faktorer_andre!A17) -> 0 | B21: =IF(AND(B20=0,SUM(E20:E22,G20:G22,I20:I22,K21:K22)>0),"Har du glemt arealet ?","") ->  | C21: =IF($B$45=1,Faktorer_bolig!B17,Faktorer_andre!B17) -> Etasjestd i %; | D21: =IF($B$45=1,Faktorer_bolig!C17,Faktorer_andre!C17) -> lav | E21: 0 | F21: =IF($B$45=1,Faktorer_bolig!E17,Faktorer_andre!E17) -> enkel | G21: 0 | H21: =IF($B$45=1,Faktorer_bolig!G17,Faktorer_andre!G17) -> bra | I21: 0 | J21: =IF($B$45=1,Faktorer_bolig!I17,Faktorer_andre!I17) -> god | K21: 0 | L21: 0 | M21: 0
A22: =IF($B$45=1,Faktorer_bolig!A18,Faktorer_andre!A18) -> 0 | C22: =IF($B$45=1,Faktorer_bolig!B18,Faktorer_andre!B18) -> Tilst/egnethet; | D22: =IF($B$45=1,Faktorer_bolig!C18,Faktorer_andre!C18) -> slitt/dårl | E22: 0 | F22: =IF($B$45=1,Faktorer_bolig!E18,Faktorer_andre!E18) -> brukbar | G22: 0 | H22: =IF($B$45=1,Faktorer_bolig!G18,Faktorer_andre!G18) -> bra | I22: 0 | J22: =IF($B$45=1,Faktorer_bolig!I18,Faktorer_andre!I18) -> svært god | K22: 0 | L22: 0 | M22: 0
A23: =Faktorer_bolig!A19 -> Enkel bolig | B23: 0 | C23: =Faktorer_bolig!A19 -> Enkel bolig | D23: =Faktorer_bolig!C19 -> svak/uinnr. | E23: 0 | F23: =Faktorer_bolig!E19 -> enkel | G23: 0 | H23: =Faktorer_bolig!G19 -> vanlig | I23: 0 | J23: =Faktorer_bolig!I19 -> 0 | K23: 0 | L23: =IF($B$23>0,100-SUM(E23:K23),0) -> 0 | M23: =IF(L23>0," % mangler","") -> 
A24: =Faktorer_bolig!A20 -> Enkel bolig | C24: =Faktorer_bolig!B20 -> Etasjestd %; | D24: =Faktorer_bolig!C20 -> lav | E24: 0 | F24: =Faktorer_bolig!E20 -> bra | G24: 0 | H24: =Faktorer_bolig!G20 -> god | I24: 0 | J24: =Faktorer_bolig!I20 -> topp | K24: 0 | L24: =IF($B$23>0,100-SUM(E24:K24),0) -> 0 | M24: =IF(L24>0," % mangler","") -> 
A25: =Faktorer_bolig!A21 -> Enkel bolig | C25: =Faktorer_bolig!B21 -> Tilst/egn; | D25: =Faktorer_bolig!C21 -> slitt/dårl | E25: 0 | F25: =Faktorer_bolig!E21 -> brukbar | G25: 0 | H25: =Faktorer_bolig!G21 -> bra | I25: 0 | J25: =Faktorer_bolig!I21 -> sv. god | K25: 0 | L25: =IF($B$23>0,100-SUM(E25:K25),0) -> 0 | M25: =IF(L25>0," % mangler","") -> 
A29: Tomt | B29: =VLOOKUP(A1,'Priser nybygg'!B3:G26,6) -> 0 | C29: Verdi for opparbeidet gårdstun og hage | J29: 2 | K29: 0
A30: Tomt | C30: Tomt, | D30: =Registreringsskjema!B23 -> Vann; | E30: =Registreringsskjema!C23 -> Svært god = 4, god = 3, middels = 2, dårlig = 1 | J30: 0
A31: Tomt | C31: vann og | D31: =Registreringsskjema!B24 -> Avløp; | E31: =Registreringsskjema!C24 -> Svært god = 4, god = 3, middels = 2, dårlig = 1 | J31: 0
A32: Tomt | C32: avløp | D32: =Registreringsskjema!B25 -> Have/tun; | E32: =Registreringsskjema!C25 -> velholdt have/tun = 8, funksjonell beplantet have= 5, alminnelig bra = 3, enkel = 1 | J32: 0 | K32: =J30+J31+J32 -> 0
A33: Tomt | D33: =Registreringsskjema!B26 -> 0 | E33: =Registreringsskjema!C26 -> 0 | F33: =Registreringsskjema!D26 -> 0 | G33: =Registreringsskjema!E26 -> 0 | H33: =Registreringsskjema!F26 -> 0 | I33: =Registreringsskjema!G26 -> 0 | J33: Ukorrigert verdi | K33: 0
A43: =CONCATENATE("Verdiberegning ",'Bygg 6'!A1) -> Verdiberegning X
A45: Valgt faktor_ark | B45: =VLOOKUP(A1,'Priser nybygg'!B3:G26,3,FALSE) -> 2 | C45: =IF($B$45=1,"Faktorer_bolig","Faktorer_andre") -> Faktorer_andre
A47: Hustype | B47: Etasje | D47: Faktor_1 | E47: Andel % | F47: Faktor_2 | G47: Andel % | H47: Faktor_3 | I47: Andel % | J47: Faktor_4 | K47: Andel % | L47: Beregnet faktor
A48: =$A$1 -> X | B48: Kjeller | C48: Arealtype %; | D48: =IF($B$45=1,Faktorer_bolig!D4,Faktorer_andre!D4) -> 0.1 | E48: ='Bygg 6'!E8 -> 0 | F48: =IF($B$45=1,Faktorer_bolig!F4,Faktorer_andre!F4) -> 0.2 | G48: ='Bygg 6'!G8 -> 0 | H48: =IF($B$45=1,Faktorer_bolig!H4,Faktorer_andre!H4) -> 0.3 | I48: ='Bygg 6'!I8 -> 0 | J48: =IF($B$45=1,Faktorer_bolig!J4,Faktorer_andre!J4) -> 0 | L48: =K48*J48+I48*H48+G48*F48+E48*D48 -> 0
B49: Kjeller | C49: Etasjestd %; | D49: =IF($B$45=1,Faktorer_bolig!D5,Faktorer_andre!D5) -> 0.4 | E49: ='Bygg 6'!E9 -> 0 | F49: =IF($B$45=1,Faktorer_bolig!F5,Faktorer_andre!F5) -> 0.6 | G49: ='Bygg 6'!G9 -> 0 | H49: =IF($B$45=1,Faktorer_bolig!H5,Faktorer_andre!H5) -> 0.8 | I49: ='Bygg 6'!I9 -> 0 | J49: =IF($B$45=1,Faktorer_bolig!J5,Faktorer_andre!J5) -> 1 | K49: ='Bygg 6'!K9 -> 0 | L49: 0
B50: Kjeller | C50: Tilst/egn; | D50: =IF($B$45=1,Faktorer_bolig!D6,Faktorer_andre!D6) -> 0.4 | E50: ='Bygg 6'!E10 -> 0 | F50: =IF($B$45=1,Faktorer_bolig!F6,Faktorer_andre!F6) -> 0.6 | G50: ='Bygg 6'!G10 -> 0 | H50: =IF($B$45=1,Faktorer_bolig!H6,Faktorer_andre!H6) -> 0.8 | I50: ='Bygg 6'!I10 -> 0 | J50: =IF($B$45=1,Faktorer_bolig!J6,Faktorer_andre!J6) -> 1 | K50: ='Bygg 6'!K10 -> 0 | L50: 0
B51: Underetasje | C51: Arealtype %; | D51: =IF($B$45=1,Faktorer_bolig!D7,Faktorer_andre!D7) -> 0.2 | E51: ='Bygg 6'!E11 -> 0 | F51: =IF($B$45=1,Faktorer_bolig!F7,Faktorer_andre!F7) -> 0.35 | G51: ='Bygg 6'!G11 -> 0 | H51: =IF($B$45=1,Faktorer_bolig!H7,Faktorer_andre!H7) -> 0.5 | I51: ='Bygg 6'!I11 -> 0 | J51: =IF($B$45=1,Faktorer_bolig!J7,Faktorer_andre!J7) -> 0 | L51: 0
B52: Underetasje | C52: Etasjestd %; | D52: =IF($B$45=1,Faktorer_bolig!D8,Faktorer_andre!D8) -> 0.56 | E52: ='Bygg 6'!E12 -> 0 | F52: =IF($B$45=1,Faktorer_bolig!F8,Faktorer_andre!F8) -> 0.75 | G52: ='Bygg 6'!G12 -> 0 | H52: =IF($B$45=1,Faktorer_bolig!H8,Faktorer_andre!H8) -> 0.87 | I52: ='Bygg 6'!I12 -> 0 | J52: =IF($B$45=1,Faktorer_bolig!J8,Faktorer_andre!J8) -> 1 | K52: ='Bygg 6'!K12 -> 0 | L52: 0
B53: Underetasje | C53: Tilst/egn; | D53: =IF($B$45=1,Faktorer_bolig!D9,Faktorer_andre!D9) -> 0.5 | E53: ='Bygg 6'!E13 -> 0 | F53: =IF($B$45=1,Faktorer_bolig!F9,Faktorer_andre!F9) -> 0.65 | G53: ='Bygg 6'!G13 -> 0 | H53: =IF($B$45=1,Faktorer_bolig!H9,Faktorer_andre!H9) -> 0.8 | I53: ='Bygg 6'!I13 -> 0 | J53: =IF($B$45=1,Faktorer_bolig!J9,Faktorer_andre!J9) -> 1 | K53: ='Bygg 6'!K13 -> 0 | L53: 0
B54: 1. etg | C54: Arealtype %; | D54: =IF($B$45=1,Faktorer_bolig!D10,Faktorer_andre!D10) -> 0.4 | E54: ='Bygg 6'!E14 -> 0 | F54: =IF($B$45=1,Faktorer_bolig!F10,Faktorer_andre!F10) -> 0.7 | G54: ='Bygg 6'!G14 -> 0 | H54: =IF($B$45=1,Faktorer_bolig!H10,Faktorer_andre!H10) -> 1 | I54: ='Bygg 6'!I14 -> 0 | J54: =IF($B$45=1,Faktorer_bolig!J10,Faktorer_andre!J10) -> 0 | L54: 0
B55: 1. etg | C55: Etasjestd %; | D55: =IF($B$45=1,Faktorer_bolig!D11,Faktorer_andre!D11) -> 0.56 | E55: ='Bygg 6'!E15 -> 0 | F55: =IF($B$45=1,Faktorer_bolig!F11,Faktorer_andre!F11) -> 0.75 | G55: ='Bygg 6'!G15 -> 0 | H55: =IF($B$45=1,Faktorer_bolig!H11,Faktorer_andre!H11) -> 0.87 | I55: ='Bygg 6'!I15 -> 0 | J55: =IF($B$45=1,Faktorer_bolig!J11,Faktorer_andre!J11) -> 1 | K55: ='Bygg 6'!K15 -> 0 | L55: 0
B56: 1. etg | C56: Tilst/egn; | D56: =IF($B$45=1,Faktorer_bolig!D12,Faktorer_andre!D12) -> 0.5 | E56: ='Bygg 6'!E16 -> 0 | F56: =IF($B$45=1,Faktorer_bolig!F12,Faktorer_andre!F12) -> 0.65 | G56: ='Bygg 6'!G16 -> 0 | H56: =IF($B$45=1,Faktorer_bolig!H12,Faktorer_andre!H12) -> 0.8 | I56: ='Bygg 6'!I16 -> 0 | J56: =IF($B$45=1,Faktorer_bolig!J12,Faktorer_andre!J12) -> 1 | K56: ='Bygg 6'!K16 -> 0 | L56: 0
B57: 2.etg | C57: Arealtype %; | D57: =IF($B$45=1,Faktorer_bolig!D13,Faktorer_andre!D13) -> 0.2 | E57: ='Bygg 6'!E17 -> 0 | F57: =IF($B$45=1,Faktorer_bolig!F13,Faktorer_andre!F13) -> 0.4 | G57: ='Bygg 6'!G17 -> 0 | H57: =IF($B$45=1,Faktorer_bolig!H13,Faktorer_andre!H13) -> 0.6 | I57: ='Bygg 6'!I17 -> 0 | J57: =IF($B$45=1,Faktorer_bolig!J13,Faktorer_andre!J13) -> 0 | L57: =I57*H57+G57*F57+E57*D57 -> 0
B58: 2.etg | C58: Etasjestd %; | D58: =IF($B$45=1,Faktorer_bolig!D14,Faktorer_andre!D14) -> 0.56 | E58: ='Bygg 6'!E18 -> 0 | F58: =IF($B$45=1,Faktorer_bolig!F14,Faktorer_andre!F14) -> 0.75 | G58: ='Bygg 6'!G18 -> 0 | H58: =IF($B$45=1,Faktorer_bolig!H14,Faktorer_andre!H14) -> 0.87 | I58: ='Bygg 6'!I18 -> 0 | J58: =IF($B$45=1,Faktorer_bolig!J14,Faktorer_andre!J14) -> 1 | K58: ='Bygg 6'!K18 -> 0 | L58: =K58*J58+I58*H58+G58*F58+E58*D58 -> 0
B59: 2.etg | C59: Tilst/egn; | D59: =IF($B$45=1,Faktorer_bolig!D15,Faktorer_andre!D15) -> 0.5 | E59: ='Bygg 6'!E19 -> 0 | F59: =IF($B$45=1,Faktorer_bolig!F15,Faktorer_andre!F15) -> 0.65 | G59: ='Bygg 6'!G19 -> 0 | H59: =IF($B$45=1,Faktorer_bolig!H15,Faktorer_andre!H15) -> 0.8 | I59: ='Bygg 6'!I19 -> 0 | J59: =IF($B$45=1,Faktorer_bolig!J15,Faktorer_andre!J15) -> 1 | K59: ='Bygg 6'!K19 -> 0 | L59: =K59*J59+I59*H59+G59*F59+E59*D59 -> 0
B60: Mesanin/kjørebro | C60: =IF(ISTEXT(B60),C57,"") -> Arealtype %; | D60: =IF($B$45=1,Faktorer_bolig!D16,Faktorer_andre!D16) -> 0.1 | E60: ='Bygg 6'!E20 -> 0 | F60: =IF($B$45=1,Faktorer_bolig!F16,Faktorer_andre!F16) -> 0.2 | G60: ='Bygg 6'!G20 -> 0 | H60: =IF($B$45=1,Faktorer_bolig!H16,Faktorer_andre!H16) -> 0.3 | I60: ='Bygg 6'!I20 -> 0 | J60: =IF($B$45=1,Faktorer_bolig!J16,Faktorer_andre!J16) -> 0 | L60: =I60*H60+G60*F60+E60*D60 -> 0
B61: Mesanin/kjørebro | C61: Etasjestd %; | D61: =IF($B$45=1,Faktorer_bolig!D17,Faktorer_andre!D17) -> 0.4 | E61: ='Bygg 6'!E21 -> 0 | F61: =IF($B$45=1,Faktorer_bolig!F17,Faktorer_andre!F17) -> 0.6 | G61: ='Bygg 6'!G21 -> 0 | H61: =IF($B$45=1,Faktorer_bolig!H17,Faktorer_andre!H17) -> 0.8 | I61: ='Bygg 6'!I21 -> 0 | J61: =IF($B$45=1,Faktorer_bolig!J17,Faktorer_andre!J17) -> 1 | K61: ='Bygg 6'!K21 -> 0 | L61: =K61*J61+I61*H61+G61*F61+E61*D61 -> 0
B62: Mesanin/kjørebro | C62: Tilst/egn; | D62: =IF($B$45=1,Faktorer_bolig!D18,Faktorer_andre!D18) -> 0.4 | E62: ='Bygg 6'!E22 -> 0 | F62: =IF($B$45=1,Faktorer_bolig!F18,Faktorer_andre!F18) -> 0.6 | G62: ='Bygg 6'!G22 -> 0 | H62: =IF($B$45=1,Faktorer_bolig!H18,Faktorer_andre!H18) -> 0.8 | I62: ='Bygg 6'!I22 -> 0 | J62: =IF($B$45=1,Faktorer_bolig!J18,Faktorer_andre!J18) -> 1 | K62: ='Bygg 6'!K22 -> 0 | L62: =K62*J62+I62*H62+G62*F62+E62*D62 -> 0
B63: Enkel Bolig | C63: Arealtype %; | D63: =IF(A63="Bolig",Faktorer_bolig!D19,Faktorer_andre!D19) -> 0 | E63: ='Bygg 6'!E23 -> 0 | F63: =IF($A63="Bolig",Faktorer_bolig!F19,Faktorer_andre!F19) -> 0 | G63: ='Bygg 6'!G23 -> 0 | H63: =IF($A63="Bolig",Faktorer_bolig!H19,Faktorer_andre!H19) -> 0 | I63: ='Bygg 6'!I23 -> 0 | J63: =IF($B$45=1,Faktorer_bolig!J19,Faktorer_andre!J19) -> 0 | L63: =I63*H63+G63*F63+E63*D63 -> 0
B64: Enkel Bolig | C64: Etasjestd %; | D64: =IF(A64="Bolig",Faktorer_bolig!D20,Faktorer_andre!E20) -> 0 | E64: ='Bygg 6'!E24 -> 0 | F64: =IF($A64="Bolig",Faktorer_bolig!F20,Faktorer_andre!G20) -> 0 | G64: ='Bygg 6'!G24 -> 0 | H64: =IF($A64="Bolig",Faktorer_bolig!H20,Faktorer_andre!I20) -> 0 | I64: ='Bygg 6'!I24 -> 0 | J64: =IF($B$45=1,Faktorer_bolig!J20,Faktorer_andre!K20) -> 0 | K64: ='Bygg 6'!K24 -> 0 | L64: =K64*J64+I64*H64+G64*F64+E64*D64 -> 0
B65: Enkel Bolig | C65: Tilst/egn; | D65: =IF(A65="Bolig",Faktorer_bolig!D21,Faktorer_andre!E21) -> 0 | E65: ='Bygg 6'!E25 -> 0 | F65: =IF($A65="Bolig",Faktorer_bolig!F21,Faktorer_andre!G21) -> 0 | G65: ='Bygg 6'!G25 -> 0 | H65: =IF($A65="Bolig",Faktorer_bolig!H21,Faktorer_andre!I21) -> 0 | I65: ='Bygg 6'!I25 -> 0 | J65: =IF($B$45=1,Faktorer_bolig!J21,Faktorer_andre!K21) -> 0 | K65: ='Bygg 6'!K25 -> 0 | L65: =K65*J65+I65*H65+G65*F65+E65*D65 -> 0
A67: =$A$1 -> X | C67: Pris nytt bygg | D67: =IF(A67="Bolig",Faktorer_bolig!D22,Faktorer_andre!D19) -> 0 | F67: =IF(C67="Bolig",Faktorer_bolig!F22,Faktorer_andre!F19) -> 0 | H67: =IF('Takst 1'!E3="Bolig",Faktorer_bolig!H22,Faktorer_andre!H19) -> 0 | L67: =VLOOKUP(A1,Pris_tabell_nytt,2,FALSE) -> 0
D68: =Faktorer_bolig!N3 -> Kjeller | E68: =Faktorer_bolig!O3 -> undertasje | F68: =Faktorer_bolig!P3 -> 1 etg | G68: =Faktorer_bolig!Q3 -> 2.etg | H68: =Faktorer_bolig!S3 -> 0 | I68: =Faktorer_bolig!T3 -> 0
A69: =$A$1 -> X | C69: Vektet etasjeareal | D69: =IF($B$45=1,Faktorer_bolig!N4,Faktorer_andre!M4) -> 0.3 | E69: =IF($B$45=1,Faktorer_bolig!O4,Faktorer_andre!N4) -> 0.5 | F69: =IF($B$45=1,Faktorer_bolig!P4,Faktorer_andre!O4) -> 1 | G69: =IF($B$45=1,Faktorer_bolig!Q4,Faktorer_andre!P4) -> 0.6 | H69: =IF($B$45=1,Faktorer_bolig!R4,Faktorer_andre!Q4) -> 0.3 | I69: =IF($B$45=1,Faktorer_bolig!S4,Faktorer_andre!J25) -> 0 | L69: =areal_k*D69+areal_u*E69+areal_1*F69+areal_2*G69+B20*H69+B23*I69 -> 0
A70: X | C70: Korreksjon for størrelse | G70: fra | H70: =IF($B$45=1,Faktorer_bolig!N15,Faktorer_andre!M18) -> 3000 | I70: m2 til | J70: =IF($B$45=1,Faktorer_bolig!P15,Faktorer_andre!O18) -> 4000 | K70: =IF($B$45=1,Max_areal_korr_1,Max_areal_korr_2) -> 100 | L70: =MAX(MIN(100-(L69-H70)/(J70-H70)*(100-K70),100),K70) -> 100 | M70: Denne satsen brukes kun i Takst til å korrigere nyverdien
A71: X | C71: Nedskrevet verdi pga alder i % | K71: =VLOOKUP('Bygg 3'!A72,'Priser nybygg'!B3:F22,4,FALSE) ->  | M71: største verdi
A72: X | C72: Nedskrevet verdi etter påkostning i %; min 50% | H72: 0.02 | L72: =MAX(L86,L79) ->  | M72: velges
A73: X | C73: Korr. vedl.h/egnet. Grunnlag "Normale byggekostnader" fra "Teknisk verdiberegning" | L73: =(areal_k*L50+areal_u*L53+areal_1*L56+areal_2*L59+B20*L62+B23*L65)/(areal_k+areal_u+areal_1+areal_2+B20+B23) -> 
A74: X | C74: Tomt
K76: Bygg type | L76: =A1 -> X
K77: Valgt avskrivningskurvve | L77: =VLOOKUP(L76,'Priser nybygg'!B3:F38,4,FALSE) -> 3
K78: Valgt sats | L78: =HLOOKUP($L$77,Nedskriving!$J$1:$L$4,3) -> 2.25
K79: Minste restverdi | L79: =HLOOKUP($L$77,Nedskriving!$J$1:$L$4,4) -> 20
K81: Areal av opprinnelig del som ikke er pusset opp | L81: =G2*(1-prosent_oppgradering_1/100) -> 0 | M81: =MIN(J2-E2,397) -> 397 | N81: =IF(M81>0,VLOOKUP(M81,Nedskriving!$A$4:$G$400,$L$77+4,FALSE),0) -> 20 | O81: =L81*N81 -> 0
K82: Opprinnelig hus pusset opp | L82: =IF(E3>E4,G2*prosent_oppgradering_1/100,G2*prosent_oppgradering_1/100) -> 0 | M82: =IF(E4>0,J2-E4,0) -> 0 | N82: =IF(M82>0,VLOOKUP(M82,Nedskriving!$A$4:$G$400,$L$77+4,FALSE),0) -> 0 | O82: =L82*N82 -> 0
K83: Areal av TILBYGG som er pusset opp | L83: =IF(E4>E3,G3*prosent_oppgradering_1/100,0) -> 0 | M83: =IF(E3=0,0,J2-E3) -> 0 | N83: =IF(M83>0,VLOOKUP(M83,Nedskriving!$A$4:$G$400,$L$77+4,FALSE),0) -> 0 | O83: =L83*N83 -> 0
K84: Tilbygg ikke pusset opp | L84: =G3-L83 -> 0 | M84: =IF(OR(L84=0,E4=0),0,J2-E4) -> 0 | N84: =IF(M84>0,VLOOKUP(M84,Nedskriving!$A$4:$G$400,$L$77+4,FALSE),0) -> 0 | O84: =L84*N84 -> 0
K85: Sum | L85: =SUM(L81:L84) -> 0 | O85: =SUM(O81:O84) -> 0
K86: Beregnet veid faktor for nedskriving pga alder | L86: =O85/L85 -> 
C87: Bygningens alder | D87: =J2-E2 -> 2022 | E87: år
C89: År siden ombygging | D89: =IF(ISNUMBER(E4),J2-E4,0) -> 2022 | E89: år
C90: =A1 -> X | D90: ='Takst 6'!J27 -> 
C91: Sum takst | D91: ='SUM pr bygg'!G11 -> 0

Sheet Bygg 7
A1: X | B1: 0
D2: Byggeår; | E2: 0 | F2: Grunnflate; | G2: 0 | I2: Befaring år; | J2: =YEAR(TODAY()) -> 2022
C3: Tilbygg; | D3: År; | E3: 0 | F3: Grunnflate; | G3: 0
C4: Ombygd | D4: År; | E4: 0 | H4: Korrigert pga oppgradering; | J4: 0
J5: tak max 10 %
B7: Areal
A8: Kjeller | B8: 0 | C8: =IF($B$45=1,Faktorer_bolig!B4,Faktorer_andre!B4) -> Arealbruk i %; | D8: =IF($B$45=1,Faktorer_bolig!C4,Faktorer_andre!C4) -> svak/uinnr. | E8: 0 | F8: =IF($B$45=1,Faktorer_bolig!E4,Faktorer_andre!E4) -> enkel lagerkjeller | G8: 0 | H8: =IF($B$45=1,Faktorer_bolig!G4,Faktorer_andre!G4) -> vanl. bruksareal | I8: 0 | J8: =IF($B$45=1,Faktorer_bolig!I4,Faktorer_andre!I4) -> 0 | K8: 0 | L8: 0 | M8: 0
A9: 0 | B9: =IF(AND(B8=0,SUM(E8:E10,G8:G10,I8:I10,K9:K10)>0),"Har du glemt arealet ?","") ->  | C9: =IF($B$45=1,Faktorer_bolig!B5,Faktorer_andre!B5) -> Etasjestd i %; | D9: =IF($B$45=1,Faktorer_bolig!C5,Faktorer_andre!C5) -> svak/gråstein | E9: 0 | F9: =IF($B$45=1,Faktorer_bolig!E5,Faktorer_andre!E5) -> enkelt lager | G9: 0 | H9: =IF($B$45=1,Faktorer_bolig!G5,Faktorer_andre!G5) -> bra lagerareal | I9: 0 | J9: =IF($B$45=1,Faktorer_bolig!I5,Faktorer_andre!I5) -> godt bruksareal | K9: 0 | L9: =IF(areal_k>0,100-SUM(E9:K9),0) -> 0 | M9: =IF(L9>0," % mangler",IF(L9=0,0,"Over 100% blir feil!!!")) -> 0 | Q9: 0 | R9: 0 | S9: 0 | T9: 0 | U9: 0 | V9: 0 | W9: 0 | X9: 0 | Y9: 0 | Z9: 0 | AA9: 0 | AB9: 0 | AC9: 0 | AD9: 0 | AE9: 0 | AF9: 0 | AG9: 0 | AH9: 0 | AI9: 0 | AJ9: 0 | AK9: 0 | AL9: 0 | AM9: 0 | AN9: 0 | AO9: 0 | AP9: 0 | AQ9: 0 | AR9: 0 | AS9: 0 | AT9: 0 | AU9: 0 | AV9: 0 | AW9: 0 | AX9: 0 | AY9: 0 | AZ9: 0 | BA9: 0 | BB9: 0 | BC9: 0 | BD9: 0 | BE9: 0 | BF9: 0 | BG9: 0 | BH9: 0 | BI9: 0 | BJ9: 0 | BK9: 0 | BL9: 0 | BM9: 0 | BN9: 0 | BO9: 0 | BP9: 0 | BQ9: 0 | BR9: 0 | BS9: 0 | BT9: 0 | BU9: 0 | BV9: 0 | BW9: 0 | BX9: 0 | BY9: 0 | BZ9: 0 | CA9: 0 | CB9: 0 | CC9: 0 | CD9: 0 | CE9: 0 | CF9: 0 | CG9: 0 | CH9: 0 | CI9: 0 | CJ9: 0 | CK9: 0 | CL9: 0 | CM9: 0 | CN9: 0 | CO9: 0 | CP9: 0 | CQ9: 0 | CR9: 0 | CS9: 0 | CT9: 0 | CU9: 0 | CV9: 0 | CW9: 0 | CX9: 0 | CY9: 0 | CZ9: 0 | DA9: 0 | DB9: 0 | DC9: 0 | DD9: 0 | DE9: 0 | DF9: 0 | DG9: 0 | DH9: 0 | DI9: 0 | DJ9: 0 | DK9: 0 | DL9: 0 | DM9: 0 | DN9: 0 | DO9: 0 | DP9: 0 | DQ9: 0 | DR9: 0 | DS9: 0 | DT9: 0 | DU9: 0 | DV9: 0 | DW9: 0 | DX9: 0 | DY9: 0 | DZ9: 0 | EA9: 0 | EB9: 0 | EC9: 0 | ED9: 0 | EE9: 0 | EF9: 0 | EG9: 0 | EH9: 0 | EI9: 0 | EJ9: 0 | EK9: 0 | EL9: 0 | EM9: 0 | EN9: 0 | EO9: 0 | EP9: 0 | EQ9: 0 | ER9: 0 | ES9: 0 | ET9: 0 | EU9: 0 | EV9: 0 | EW9: 0 | EX9: 0 | EY9: 0 | EZ9: 0 | FA9: 0 | FB9: 0 | FC9: 0 | FD9: 0 | FE9: 0 | FF9: 0 | FG9: 0 | FH9: 0 | FI9: 0 | FJ9: 0 | FK9: 0 | FL9: 0 | FM9: 0 | FN9: 0 | FO9: 0 | FP9: 0 | FQ9: 0 | FR9: 0 | FS9: 0 | FT9: 0 | FU9: 0 | FV9: 0 | FW9: 0 | FX9: 0 | FY9: 0 | FZ9: 0 | GA9: 0 | GB9: 0 | GC9: 0 | GD9: 0 | GE9: 0 | GF9: 0 | GG9: 0 | GH9: 0 | GI9: 0 | GJ9: 0 | GK9: 0 | GL9: 0 | GM9: 0 | GN9: 0 | GO9: 0 | GP9: 0 | GQ9: 0 | GR9: 0 | GS9: 0 | GT9: 0 | GU9: 0 | GV9: 0 | GW9: 0 | GX9: 0 | GY9: 0 | GZ9: 0 | HA9: 0 | HB9: 0 | HC9: 0 | HD9: 0 | HE9: 0 | HF9: 0 | HG9: 0 | HH9: 0 | HI9: 0 | HJ9: 0 | HK9: 0 | HL9: 0 | HM9: 0 | HN9: 0 | HO9: 0 | HP9: 0 | HQ9: 0 | HR9: 0 | HS9: 0 | HT9: 0 | HU9: 0 | HV9: 0 | HW9: 0 | HX9: 0 | HY9: 0 | HZ9: 0 | IA9: 0 | IB9: 0 | IC9: 0 | ID9: 0 | IE9: 0 | IF9: 0 | IG9: 0 | IH9: 0 | II9: 0 | IJ9: 0 | IK9: 0 | IL9: 0 | IM9: 0 | IN9: 0 | IO9: 0 | IP9: 0 | IQ9: 0 | IR9: 0 | IS9: 0 | IT9: 0 | IU9: 0 | IV9: 0 | IW9: 0 | IX9: 0 | IY9: 0 | IZ9: 0
A10: 0 | C10: =IF($B$45=1,Faktorer_bolig!B6,Faktorer_andre!B6) -> Tilst/egnethet; | D10: =IF($B$45=1,Faktorer_bolig!C6,Faktorer_andre!C6) -> slitt/dårlig | E10: 0 | F10: =IF($B$45=1,Faktorer_bolig!E6,Faktorer_andre!E6) -> brukbar | G10: 0 | H10: =IF($B$45=1,Faktorer_bolig!G6,Faktorer_andre!G6) -> bra | I10: 0 | J10: =IF($B$45=1,Faktorer_bolig!I6,Faktorer_andre!I6) -> svært god | K10: 0 | L10: =IF(areal_k>0,100-SUM(E10:K10),0) -> 0 | M10: =IF(L10>0," % mangler",IF(L10=0,0,"----Over 100% blir feil!!!")) -> 0 | Q10: 0 | R10: 0 | S10: 0 | T10: 0 | U10: 0 | V10: 0 | W10: 0 | X10: 0 | Y10: 0 | Z10: 0 | AA10: 0 | AB10: 0 | AC10: 0 | AD10: 0 | AE10: 0 | AF10: 0 | AG10: 0 | AH10: 0 | AI10: 0 | AJ10: 0 | AK10: 0 | AL10: 0 | AM10: 0 | AN10: 0 | AO10: 0 | AP10: 0 | AQ10: 0 | AR10: 0 | AS10: 0 | AT10: 0 | AU10: 0 | AV10: 0 | AW10: 0 | AX10: 0 | AY10: 0 | AZ10: 0 | BA10: 0 | BB10: 0 | BC10: 0 | BD10: 0 | BE10: 0 | BF10: 0 | BG10: 0 | BH10: 0 | BI10: 0 | BJ10: 0 | BK10: 0 | BL10: 0 | BM10: 0 | BN10: 0 | BO10: 0 | BP10: 0 | BQ10: 0 | BR10: 0 | BS10: 0 | BT10: 0 | BU10: 0 | BV10: 0 | BW10: 0 | BX10: 0 | BY10: 0 | BZ10: 0 | CA10: 0 | CB10: 0 | CC10: 0 | CD10: 0 | CE10: 0 | CF10: 0 | CG10: 0 | CH10: 0 | CI10: 0 | CJ10: 0 | CK10: 0 | CL10: 0 | CM10: 0 | CN10: 0 | CO10: 0 | CP10: 0 | CQ10: 0 | CR10: 0 | CS10: 0 | CT10: 0 | CU10: 0 | CV10: 0 | CW10: 0 | CX10: 0 | CY10: 0 | CZ10: 0 | DA10: 0 | DB10: 0 | DC10: 0 | DD10: 0 | DE10: 0 | DF10: 0 | DG10: 0 | DH10: 0 | DI10: 0 | DJ10: 0 | DK10: 0 | DL10: 0 | DM10: 0 | DN10: 0 | DO10: 0 | DP10: 0 | DQ10: 0 | DR10: 0 | DS10: 0 | DT10: 0 | DU10: 0 | DV10: 0 | DW10: 0 | DX10: 0 | DY10: 0 | DZ10: 0 | EA10: 0 | EB10: 0 | EC10: 0 | ED10: 0 | EE10: 0 | EF10: 0 | EG10: 0 | EH10: 0 | EI10: 0 | EJ10: 0 | EK10: 0 | EL10: 0 | EM10: 0 | EN10: 0 | EO10: 0 | EP10: 0 | EQ10: 0 | ER10: 0 | ES10: 0 | ET10: 0 | EU10: 0 | EV10: 0 | EW10: 0 | EX10: 0 | EY10: 0 | EZ10: 0 | FA10: 0 | FB10: 0 | FC10: 0 | FD10: 0 | FE10: 0 | FF10: 0 | FG10: 0 | FH10: 0 | FI10: 0 | FJ10: 0 | FK10: 0 | FL10: 0 | FM10: 0 | FN10: 0 | FO10: 0 | FP10: 0 | FQ10: 0 | FR10: 0 | FS10: 0 | FT10: 0 | FU10: 0 | FV10: 0 | FW10: 0 | FX10: 0 | FY10: 0 | FZ10: 0 | GA10: 0 | GB10: 0 | GC10: 0 | GD10: 0 | GE10: 0 | GF10: 0 | GG10: 0 | GH10: 0 | GI10: 0 | GJ10: 0 | GK10: 0 | GL10: 0 | GM10: 0 | GN10: 0 | GO10: 0 | GP10: 0 | GQ10: 0 | GR10: 0 | GS10: 0 | GT10: 0 | GU10: 0 | GV10: 0 | GW10: 0 | GX10: 0 | GY10: 0 | GZ10: 0 | HA10: 0 | HB10: 0 | HC10: 0 | HD10: 0 | HE10: 0 | HF10: 0 | HG10: 0 | HH10: 0 | HI10: 0 | HJ10: 0 | HK10: 0 | HL10: 0 | HM10: 0 | HN10: 0 | HO10: 0 | HP10: 0 | HQ10: 0 | HR10: 0 | HS10: 0 | HT10: 0 | HU10: 0 | HV10: 0 | HW10: 0 | HX10: 0 | HY10: 0 | HZ10: 0 | IA10: 0 | IB10: 0 | IC10: 0 | ID10: 0 | IE10: 0 | IF10: 0 | IG10: 0 | IH10: 0 | II10: 0 | IJ10: 0 | IK10: 0 | IL10: 0 | IM10: 0 | IN10: 0 | IO10: 0 | IP10: 0 | IQ10: 0 | IR10: 0 | IS10: 0 | IT10: 0 | IU10: 0 | IV10: 0 | IW10: 0 | IX10: 0 | IY10: 0 | IZ10: 0
A11: Underetasje | B11: 0 | C11: =IF($B$45=1,Faktorer_bolig!B7,Faktorer_andre!B7) -> Arealbruk i %; | D11: =IF($B$45=1,Faktorer_bolig!C7,Faktorer_andre!C7) -> svak/uegnet | E11: 0 | F11: =IF($B$45=1,Faktorer_bolig!E7,Faktorer_andre!E7) -> enkelt lagerareal | G11: 0 | H11: =IF($B$45=1,Faktorer_bolig!G7,Faktorer_andre!G7) -> vanl. bruksareal | I11: 0 | J11: =IF($B$45=1,Faktorer_bolig!I7,Faktorer_andre!I7) -> 0 | K11: 0 | L11: =IF(areal_u>0,100-SUM(E11:K11),0) -> 0 | M11: =IF(L11>0," % mangler",IF(L11=0,0,"----Over 100% blir feil!!!")) -> 0 | Q11: 0 | R11: 0 | S11: 0 | T11: 0 | U11: 0 | V11: 0 | W11: 0 | X11: 0 | Y11: 0 | Z11: 0 | AA11: 0 | AB11: 0 | AC11: 0 | AD11: 0 | AE11: 0 | AF11: 0 | AG11: 0 | AH11: 0 | AI11: 0 | AJ11: 0 | AK11: 0 | AL11: 0 | AM11: 0 | AN11: 0 | AO11: 0 | AP11: 0 | AQ11: 0 | AR11: 0 | AS11: 0 | AT11: 0 | AU11: 0 | AV11: 0 | AW11: 0 | AX11: 0 | AY11: 0 | AZ11: 0 | BA11: 0 | BB11: 0 | BC11: 0 | BD11: 0 | BE11: 0 | BF11: 0 | BG11: 0 | BH11: 0 | BI11: 0 | BJ11: 0 | BK11: 0 | BL11: 0 | BM11: 0 | BN11: 0 | BO11: 0 | BP11: 0 | BQ11: 0 | BR11: 0 | BS11: 0 | BT11: 0 | BU11: 0 | BV11: 0 | BW11: 0 | BX11: 0 | BY11: 0 | BZ11: 0 | CA11: 0 | CB11: 0 | CC11: 0 | CD11: 0 | CE11: 0 | CF11: 0 | CG11: 0 | CH11: 0 | CI11: 0 | CJ11: 0 | CK11: 0 | CL11: 0 | CM11: 0 | CN11: 0 | CO11: 0 | CP11: 0 | CQ11: 0 | CR11: 0 | CS11: 0 | CT11: 0 | CU11: 0 | CV11: 0 | CW11: 0 | CX11: 0 | CY11: 0 | CZ11: 0 | DA11: 0 | DB11: 0 | DC11: 0 | DD11: 0 | DE11: 0 | DF11: 0 | DG11: 0 | DH11: 0 | DI11: 0 | DJ11: 0 | DK11: 0 | DL11: 0 | DM11: 0 | DN11: 0 | DO11: 0 | DP11: 0 | DQ11: 0 | DR11: 0 | DS11: 0 | DT11: 0 | DU11: 0 | DV11: 0 | DW11: 0 | DX11: 0 | DY11: 0 | DZ11: 0 | EA11: 0 | EB11: 0 | EC11: 0 | ED11: 0 | EE11: 0 | EF11: 0 | EG11: 0 | EH11: 0 | EI11: 0 | EJ11: 0 | EK11: 0 | EL11: 0 | EM11: 0 | EN11: 0 | EO11: 0 | EP11: 0 | EQ11: 0 | ER11: 0 | ES11: 0 | ET11: 0 | EU11: 0 | EV11: 0 | EW11: 0 | EX11: 0 | EY11: 0 | EZ11: 0 | FA11: 0 | FB11: 0 | FC11: 0 | FD11: 0 | FE11: 0 | FF11: 0 | FG11: 0 | FH11: 0 | FI11: 0 | FJ11: 0 | FK11: 0 | FL11: 0 | FM11: 0 | FN11: 0 | FO11: 0 | FP11: 0 | FQ11: 0 | FR11: 0 | FS11: 0 | FT11: 0 | FU11: 0 | FV11: 0 | FW11: 0 | FX11: 0 | FY11: 0 | FZ11: 0 | GA11: 0 | GB11: 0 | GC11: 0 | GD11: 0 | GE11: 0 | GF11: 0 | GG11: 0 | GH11: 0 | GI11: 0 | GJ11: 0 | GK11: 0 | GL11: 0 | GM11: 0 | GN11: 0 | GO11: 0 | GP11: 0 | GQ11: 0 | GR11: 0 | GS11: 0 | GT11: 0 | GU11: 0 | GV11: 0 | GW11: 0 | GX11: 0 | GY11: 0 | GZ11: 0 | HA11: 0 | HB11: 0 | HC11: 0 | HD11: 0 | HE11: 0 | HF11: 0 | HG11: 0 | HH11: 0 | HI11: 0 | HJ11: 0 | HK11: 0 | HL11: 0 | HM11: 0 | HN11: 0 | HO11: 0 | HP11: 0 | HQ11: 0 | HR11: 0 | HS11: 0 | HT11: 0 | HU11: 0 | HV11: 0 | HW11: 0 | HX11: 0 | HY11: 0 | HZ11: 0 | IA11: 0 | IB11: 0 | IC11: 0 | ID11: 0 | IE11: 0 | IF11: 0 | IG11: 0 | IH11: 0 | II11: 0 | IJ11: 0 | IK11: 0 | IL11: 0 | IM11: 0 | IN11: 0 | IO11: 0 | IP11: 0 | IQ11: 0 | IR11: 0 | IS11: 0 | IT11: 0 | IU11: 0 | IV11: 0 | IW11: 0 | IX11: 0 | IY11: 0 | IZ11: 0
A12: 0 | B12: =IF(AND(A11=0,SUM(E11:E13,G11:G13,I11:I13,K12:K13)>0),"Har du glemt arealet ?","") ->  | C12: =IF($B$45=1,Faktorer_bolig!B8,Faktorer_andre!B8) -> Etasjestd i %; | D12: =IF($B$45=1,Faktorer_bolig!C8,Faktorer_andre!C8) -> lav/uinnredet | E12: 0 | F12: =IF($B$45=1,Faktorer_bolig!E8,Faktorer_andre!E8) -> enkel | G12: 0 | H12: =IF($B$45=1,Faktorer_bolig!G8,Faktorer_andre!G8) -> bra | I12: 0 | J12: =IF($B$45=1,Faktorer_bolig!I8,Faktorer_andre!I8) -> god | K12: 0 | L12: =IF(areal_u>0,100-SUM(E12:K12),0) -> 0 | M12: 0 | Q12: 0 | R12: 0 | S12: 0 | T12: 0 | U12: 0 | V12: 0 | W12: 0 | X12: 0 | Y12: 0 | Z12: 0 | AA12: 0 | AB12: 0 | AC12: 0 | AD12: 0 | AE12: 0 | AF12: 0 | AG12: 0 | AH12: 0 | AI12: 0 | AJ12: 0 | AK12: 0 | AL12: 0 | AM12: 0 | AN12: 0 | AO12: 0 | AP12: 0 | AQ12: 0 | AR12: 0 | AS12: 0 | AT12: 0 | AU12: 0 | AV12: 0 | AW12: 0 | AX12: 0 | AY12: 0 | AZ12: 0 | BA12: 0 | BB12: 0 | BC12: 0 | BD12: 0 | BE12: 0 | BF12: 0 | BG12: 0 | BH12: 0 | BI12: 0 | BJ12: 0 | BK12: 0 | BL12: 0 | BM12: 0 | BN12: 0 | BO12: 0 | BP12: 0 | BQ12: 0 | BR12: 0 | BS12: 0 | BT12: 0 | BU12: 0 | BV12: 0 | BW12: 0 | BX12: 0 | BY12: 0 | BZ12: 0 | CA12: 0 | CB12: 0 | CC12: 0 | CD12: 0 | CE12: 0 | CF12: 0 | CG12: 0 | CH12: 0 | CI12: 0 | CJ12: 0 | CK12: 0 | CL12: 0 | CM12: 0 | CN12: 0 | CO12: 0 | CP12: 0 | CQ12: 0 | CR12: 0 | CS12: 0 | CT12: 0 | CU12: 0 | CV12: 0 | CW12: 0 | CX12: 0 | CY12: 0 | CZ12: 0 | DA12: 0 | DB12: 0 | DC12: 0 | DD12: 0 | DE12: 0 | DF12: 0 | DG12: 0 | DH12: 0 | DI12: 0 | DJ12: 0 | DK12: 0 | DL12: 0 | DM12: 0 | DN12: 0 | DO12: 0 | DP12: 0 | DQ12: 0 | DR12: 0 | DS12: 0 | DT12: 0 | DU12: 0 | DV12: 0 | DW12: 0 | DX12: 0 | DY12: 0 | DZ12: 0 | EA12: 0 | EB12: 0 | EC12: 0 | ED12: 0 | EE12: 0 | EF12: 0 | EG12: 0 | EH12: 0 | EI12: 0 | EJ12: 0 | EK12: 0 | EL12: 0 | EM12: 0 | EN12: 0 | EO12: 0 | EP12: 0 | EQ12: 0 | ER12: 0 | ES12: 0 | ET12: 0 | EU12: 0 | EV12: 0 | EW12: 0 | EX12: 0 | EY12: 0 | EZ12: 0 | FA12: 0 | FB12: 0 | FC12: 0 | FD12: 0 | FE12: 0 | FF12: 0 | FG12: 0 | FH12: 0 | FI12: 0 | FJ12: 0 | FK12: 0 | FL12: 0 | FM12: 0 | FN12: 0 | FO12: 0 | FP12: 0 | FQ12: 0 | FR12: 0 | FS12: 0 | FT12: 0 | FU12: 0 | FV12: 0 | FW12: 0 | FX12: 0 | FY12: 0 | FZ12: 0 | GA12: 0 | GB12: 0 | GC12: 0 | GD12: 0 | GE12: 0 | GF12: 0 | GG12: 0 | GH12: 0 | GI12: 0 | GJ12: 0 | GK12: 0 | GL12: 0 | GM12: 0 | GN12: 0 | GO12: 0 | GP12: 0 | GQ12: 0 | GR12: 0 | GS12: 0 | GT12: 0 | GU12: 0 | GV12: 0 | GW12: 0 | GX12: 0 | GY12: 0 | GZ12: 0 | HA12: 0 | HB12: 0 | HC12: 0 | HD12: 0 | HE12: 0 | HF12: 0 | HG12: 0 | HH12: 0 | HI12: 0 | HJ12: 0 | HK12: 0 | HL12: 0 | HM12: 0 | HN12: 0 | HO12: 0 | HP12: 0 | HQ12: 0 | HR12: 0 | HS12: 0 | HT12: 0 | HU12: 0 | HV12: 0 | HW12: 0 | HX12: 0 | HY12: 0 | HZ12: 0 | IA12: 0 | IB12: 0 | IC12: 0 | ID12: 0 | IE12: 0 | IF12: 0 | IG12: 0 | IH12: 0 | II12: 0 | IJ12: 0 | IK12: 0 | IL12: 0 | IM12: 0 | IN12: 0 | IO12: 0 | IP12: 0 | IQ12: 0 | IR12: 0 | IS12: 0 | IT12: 0 | IU12: 0 | IV12: 0 | IW12: 0 | IX12: 0 | IY12: 0 | IZ12: 0
A13: 0 | C13: =IF($B$45=1,Faktorer_bolig!B9,Faktorer_andre!B9) -> Tilst/egnethet; | D13: =IF($B$45=1,Faktorer_bolig!C9,Faktorer_andre!C9) -> slitt/dårl | E13: 0 | F13: =IF($B$45=1,Faktorer_bolig!E9,Faktorer_andre!E9) -> brukbar | G13: 0 | H13: =IF($B$45=1,Faktorer_bolig!G9,Faktorer_andre!G9) -> bra | I13: 0 | J13: =IF($B$45=1,Faktorer_bolig!I9,Faktorer_andre!I9) -> svært god | K13: 0 | L13: =IF(areal_u>0,100-SUM(E13:K13),0) -> 0 | M13: 0 | Q13: 0 | R13: 0 | S13: 0 | T13: 0 | U13: 0 | V13: 0 | W13: 0 | X13: 0 | Y13: 0 | Z13: 0 | AA13: 0 | AB13: 0 | AC13: 0 | AD13: 0 | AE13: 0 | AF13: 0 | AG13: 0 | AH13: 0 | AI13: 0 | AJ13: 0 | AK13: 0 | AL13: 0 | AM13: 0 | AN13: 0 | AO13: 0 | AP13: 0 | AQ13: 0 | AR13: 0 | AS13: 0 | AT13: 0 | AU13: 0 | AV13: 0 | AW13: 0 | AX13: 0 | AY13: 0 | AZ13: 0 | BA13: 0 | BB13: 0 | BC13: 0 | BD13: 0 | BE13: 0 | BF13: 0 | BG13: 0 | BH13: 0 | BI13: 0 | BJ13: 0 | BK13: 0 | BL13: 0 | BM13: 0 | BN13: 0 | BO13: 0 | BP13: 0 | BQ13: 0 | BR13: 0 | BS13: 0 | BT13: 0 | BU13: 0 | BV13: 0 | BW13: 0 | BX13: 0 | BY13: 0 | BZ13: 0 | CA13: 0 | CB13: 0 | CC13: 0 | CD13: 0 | CE13: 0 | CF13: 0 | CG13: 0 | CH13: 0 | CI13: 0 | CJ13: 0 | CK13: 0 | CL13: 0 | CM13: 0 | CN13: 0 | CO13: 0 | CP13: 0 | CQ13: 0 | CR13: 0 | CS13: 0 | CT13: 0 | CU13: 0 | CV13: 0 | CW13: 0 | CX13: 0 | CY13: 0 | CZ13: 0 | DA13: 0 | DB13: 0 | DC13: 0 | DD13: 0 | DE13: 0 | DF13: 0 | DG13: 0 | DH13: 0 | DI13: 0 | DJ13: 0 | DK13: 0 | DL13: 0 | DM13: 0 | DN13: 0 | DO13: 0 | DP13: 0 | DQ13: 0 | DR13: 0 | DS13: 0 | DT13: 0 | DU13: 0 | DV13: 0 | DW13: 0 | DX13: 0 | DY13: 0 | DZ13: 0 | EA13: 0 | EB13: 0 | EC13: 0 | ED13: 0 | EE13: 0 | EF13: 0 | EG13: 0 | EH13: 0 | EI13: 0 | EJ13: 0 | EK13: 0 | EL13: 0 | EM13: 0 | EN13: 0 | EO13: 0 | EP13: 0 | EQ13: 0 | ER13: 0 | ES13: 0 | ET13: 0 | EU13: 0 | EV13: 0 | EW13: 0 | EX13: 0 | EY13: 0 | EZ13: 0 | FA13: 0 | FB13: 0 | FC13: 0 | FD13: 0 | FE13: 0 | FF13: 0 | FG13: 0 | FH13: 0 | FI13: 0 | FJ13: 0 | FK13: 0 | FL13: 0 | FM13: 0 | FN13: 0 | FO13: 0 | FP13: 0 | FQ13: 0 | FR13: 0 | FS13: 0 | FT13: 0 | FU13: 0 | FV13: 0 | FW13: 0 | FX13: 0 | FY13: 0 | FZ13: 0 | GA13: 0 | GB13: 0 | GC13: 0 | GD13: 0 | GE13: 0 | GF13: 0 | GG13: 0 | GH13: 0 | GI13: 0 | GJ13: 0 | GK13: 0 | GL13: 0 | GM13: 0 | GN13: 0 | GO13: 0 | GP13: 0 | GQ13: 0 | GR13: 0 | GS13: 0 | GT13: 0 | GU13: 0 | GV13: 0 | GW13: 0 | GX13: 0 | GY13: 0 | GZ13: 0 | HA13: 0 | HB13: 0 | HC13: 0 | HD13: 0 | HE13: 0 | HF13: 0 | HG13: 0 | HH13: 0 | HI13: 0 | HJ13: 0 | HK13: 0 | HL13: 0 | HM13: 0 | HN13: 0 | HO13: 0 | HP13: 0 | HQ13: 0 | HR13: 0 | HS13: 0 | HT13: 0 | HU13: 0 | HV13: 0 | HW13: 0 | HX13: 0 | HY13: 0 | HZ13: 0 | IA13: 0 | IB13: 0 | IC13: 0 | ID13: 0 | IE13: 0 | IF13: 0 | IG13: 0 | IH13: 0 | II13: 0 | IJ13: 0 | IK13: 0 | IL13: 0 | IM13: 0 | IN13: 0 | IO13: 0 | IP13: 0 | IQ13: 0 | IR13: 0 | IS13: 0 | IT13: 0 | IU13: 0 | IV13: 0 | IW13: 0 | IX13: 0 | IY13: 0 | IZ13: 0
A14: 1. etg | B14: 0 | C14: =IF($B$45=1,Faktorer_bolig!B10,Faktorer_andre!B10) -> Arealbruk i %; | D14: =IF($B$45=1,Faktorer_bolig!C10,Faktorer_andre!C10) -> svak/uegnet. | E14: 0 | F14: =IF($B$45=1,Faktorer_bolig!E10,Faktorer_andre!E10) -> enkelt bruksareal | G14: 0 | H14: =IF($B$45=1,Faktorer_bolig!G10,Faktorer_andre!G10) -> vanl. bruksareal | I14: 0 | J14: =IF($B$45=1,Faktorer_bolig!I10,Faktorer_andre!I10) -> 0 | L14: =IF(areal_1>0,100-SUM(E14:K14),0) -> 0 | M14: 0 | Q14: 0 | R14: 0 | S14: 0 | T14: 0 | U14: 0 | V14: 0 | W14: 0 | X14: 0 | Y14: 0 | Z14: 0 | AA14: 0 | AB14: 0 | AC14: 0 | AD14: 0 | AE14: 0 | AF14: 0 | AG14: 0 | AH14: 0 | AI14: 0 | AJ14: 0 | AK14: 0 | AL14: 0 | AM14: 0 | AN14: 0 | AO14: 0 | AP14: 0 | AQ14: 0 | AR14: 0 | AS14: 0 | AT14: 0 | AU14: 0 | AV14: 0 | AW14: 0 | AX14: 0 | AY14: 0 | AZ14: 0 | BA14: 0 | BB14: 0 | BC14: 0 | BD14: 0 | BE14: 0 | BF14: 0 | BG14: 0 | BH14: 0 | BI14: 0 | BJ14: 0 | BK14: 0 | BL14: 0 | BM14: 0 | BN14: 0 | BO14: 0 | BP14: 0 | BQ14: 0 | BR14: 0 | BS14: 0 | BT14: 0 | BU14: 0 | BV14: 0 | BW14: 0 | BX14: 0 | BY14: 0 | BZ14: 0 | CA14: 0 | CB14: 0 | CC14: 0 | CD14: 0 | CE14: 0 | CF14: 0 | CG14: 0 | CH14: 0 | CI14: 0 | CJ14: 0 | CK14: 0 | CL14: 0 | CM14: 0 | CN14: 0 | CO14: 0 | CP14: 0 | CQ14: 0 | CR14: 0 | CS14: 0 | CT14: 0 | CU14: 0 | CV14: 0 | CW14: 0 | CX14: 0 | CY14: 0 | CZ14: 0 | DA14: 0 | DB14: 0 | DC14: 0 | DD14: 0 | DE14: 0 | DF14: 0 | DG14: 0 | DH14: 0 | DI14: 0 | DJ14: 0 | DK14: 0 | DL14: 0 | DM14: 0 | DN14: 0 | DO14: 0 | DP14: 0 | DQ14: 0 | DR14: 0 | DS14: 0 | DT14: 0 | DU14: 0 | DV14: 0 | DW14: 0 | DX14: 0 | DY14: 0 | DZ14: 0 | EA14: 0 | EB14: 0 | EC14: 0 | ED14: 0 | EE14: 0 | EF14: 0 | EG14: 0 | EH14: 0 | EI14: 0 | EJ14: 0 | EK14: 0 | EL14: 0 | EM14: 0 | EN14: 0 | EO14: 0 | EP14: 0 | EQ14: 0 | ER14: 0 | ES14: 0 | ET14: 0 | EU14: 0 | EV14: 0 | EW14: 0 | EX14: 0 | EY14: 0 | EZ14: 0 | FA14: 0 | FB14: 0 | FC14: 0 | FD14: 0 | FE14: 0 | FF14: 0 | FG14: 0 | FH14: 0 | FI14: 0 | FJ14: 0 | FK14: 0 | FL14: 0 | FM14: 0 | FN14: 0 | FO14: 0 | FP14: 0 | FQ14: 0 | FR14: 0 | FS14: 0 | FT14: 0 | FU14: 0 | FV14: 0 | FW14: 0 | FX14: 0 | FY14: 0 | FZ14: 0 | GA14: 0 | GB14: 0 | GC14: 0 | GD14: 0 | GE14: 0 | GF14: 0 | GG14: 0 | GH14: 0 | GI14: 0 | GJ14: 0 | GK14: 0 | GL14: 0 | GM14: 0 | GN14: 0 | GO14: 0 | GP14: 0 | GQ14: 0 | GR14: 0 | GS14: 0 | GT14: 0 | GU14: 0 | GV14: 0 | GW14: 0 | GX14: 0 | GY14: 0 | GZ14: 0 | HA14: 0 | HB14: 0 | HC14: 0 | HD14: 0 | HE14: 0 | HF14: 0 | HG14: 0 | HH14: 0 | HI14: 0 | HJ14: 0 | HK14: 0 | HL14: 0 | HM14: 0 | HN14: 0 | HO14: 0 | HP14: 0 | HQ14: 0 | HR14: 0 | HS14: 0 | HT14: 0 | HU14: 0 | HV14: 0 | HW14: 0 | HX14: 0 | HY14: 0 | HZ14: 0 | IA14: 0 | IB14: 0 | IC14: 0 | ID14: 0 | IE14: 0 | IF14: 0 | IG14: 0 | IH14: 0 | II14: 0 | IJ14: 0 | IK14: 0 | IL14: 0 | IM14: 0 | IN14: 0 | IO14: 0 | IP14: 0 | IQ14: 0 | IR14: 0 | IS14: 0 | IT14: 0 | IU14: 0 | IV14: 0 | IW14: 0 | IX14: 0 | IY14: 0 | IZ14: 0
A15: 0 | B15: =IF(AND(A14=0,SUM(E14:E16,G14:G16,I14:I16,K15:K16)>0),"Har du glemt arealet ?","") ->  | C15: =IF($B$45=1,Faktorer_bolig!B11,Faktorer_andre!B11) -> Etasjestd i %; | D15: =IF($B$45=1,Faktorer_bolig!C11,Faktorer_andre!C11) -> lav | E15: 0 | F15: =IF($B$45=1,Faktorer_bolig!E11,Faktorer_andre!E11) -> enkel | G15: 0 | H15: =IF($B$45=1,Faktorer_bolig!G11,Faktorer_andre!G11) -> bra | I15: 0 | J15: =IF($B$45=1,Faktorer_bolig!I11,Faktorer_andre!I11) -> god | K15: 0 | L15: =IF(areal_1>0,100-SUM(E15:K15),0) -> 0 | M15: 0 | Q15: 0 | R15: 0 | S15: 0 | T15: 0 | U15: 0 | V15: 0 | W15: 0 | X15: 0 | Y15: 0 | Z15: 0 | AA15: 0 | AB15: 0 | AC15: 0 | AD15: 0 | AE15: 0 | AF15: 0 | AG15: 0 | AH15: 0 | AI15: 0 | AJ15: 0 | AK15: 0 | AL15: 0 | AM15: 0 | AN15: 0 | AO15: 0 | AP15: 0 | AQ15: 0 | AR15: 0 | AS15: 0 | AT15: 0 | AU15: 0 | AV15: 0 | AW15: 0 | AX15: 0 | AY15: 0 | AZ15: 0 | BA15: 0 | BB15: 0 | BC15: 0 | BD15: 0 | BE15: 0 | BF15: 0 | BG15: 0 | BH15: 0 | BI15: 0 | BJ15: 0 | BK15: 0 | BL15: 0 | BM15: 0 | BN15: 0 | BO15: 0 | BP15: 0 | BQ15: 0 | BR15: 0 | BS15: 0 | BT15: 0 | BU15: 0 | BV15: 0 | BW15: 0 | BX15: 0 | BY15: 0 | BZ15: 0 | CA15: 0 | CB15: 0 | CC15: 0 | CD15: 0 | CE15: 0 | CF15: 0 | CG15: 0 | CH15: 0 | CI15: 0 | CJ15: 0 | CK15: 0 | CL15: 0 | CM15: 0 | CN15: 0 | CO15: 0 | CP15: 0 | CQ15: 0 | CR15: 0 | CS15: 0 | CT15: 0 | CU15: 0 | CV15: 0 | CW15: 0 | CX15: 0 | CY15: 0 | CZ15: 0 | DA15: 0 | DB15: 0 | DC15: 0 | DD15: 0 | DE15: 0 | DF15: 0 | DG15: 0 | DH15: 0 | DI15: 0 | DJ15: 0 | DK15: 0 | DL15: 0 | DM15: 0 | DN15: 0 | DO15: 0 | DP15: 0 | DQ15: 0 | DR15: 0 | DS15: 0 | DT15: 0 | DU15: 0 | DV15: 0 | DW15: 0 | DX15: 0 | DY15: 0 | DZ15: 0 | EA15: 0 | EB15: 0 | EC15: 0 | ED15: 0 | EE15: 0 | EF15: 0 | EG15: 0 | EH15: 0 | EI15: 0 | EJ15: 0 | EK15: 0 | EL15: 0 | EM15: 0 | EN15: 0 | EO15: 0 | EP15: 0 | EQ15: 0 | ER15: 0 | ES15: 0 | ET15: 0 | EU15: 0 | EV15: 0 | EW15: 0 | EX15: 0 | EY15: 0 | EZ15: 0 | FA15: 0 | FB15: 0 | FC15: 0 | FD15: 0 | FE15: 0 | FF15: 0 | FG15: 0 | FH15: 0 | FI15: 0 | FJ15: 0 | FK15: 0 | FL15: 0 | FM15: 0 | FN15: 0 | FO15: 0 | FP15: 0 | FQ15: 0 | FR15: 0 | FS15: 0 | FT15: 0 | FU15: 0 | FV15: 0 | FW15: 0 | FX15: 0 | FY15: 0 | FZ15: 0 | GA15: 0 | GB15: 0 | GC15: 0 | GD15: 0 | GE15: 0 | GF15: 0 | GG15: 0 | GH15: 0 | GI15: 0 | GJ15: 0 | GK15: 0 | GL15: 0 | GM15: 0 | GN15: 0 | GO15: 0 | GP15: 0 | GQ15: 0 | GR15: 0 | GS15: 0 | GT15: 0 | GU15: 0 | GV15: 0 | GW15: 0 | GX15: 0 | GY15: 0 | GZ15: 0 | HA15: 0 | HB15: 0 | HC15: 0 | HD15: 0 | HE15: 0 | HF15: 0 | HG15: 0 | HH15: 0 | HI15: 0 | HJ15: 0 | HK15: 0 | HL15: 0 | HM15: 0 | HN15: 0 | HO15: 0 | HP15: 0 | HQ15: 0 | HR15: 0 | HS15: 0 | HT15: 0 | HU15: 0 | HV15: 0 | HW15: 0 | HX15: 0 | HY15: 0 | HZ15: 0 | IA15: 0 | IB15: 0 | IC15: 0 | ID15: 0 | IE15: 0 | IF15: 0 | IG15: 0 | IH15: 0 | II15: 0 | IJ15: 0 | IK15: 0 | IL15: 0 | IM15: 0 | IN15: 0 | IO15: 0 | IP15: 0 | IQ15: 0 | IR15: 0 | IS15: 0 | IT15: 0 | IU15: 0 | IV15: 0 | IW15: 0 | IX15: 0 | IY15: 0 | IZ15: 0
A16: 0 | C16: =IF($B$45=1,Faktorer_bolig!B12,Faktorer_andre!B12) -> Tilst/egnethet; | D16: =IF($B$45=1,Faktorer_bolig!C12,Faktorer_andre!C12) -> slitt/dårl | E16: 0 | F16: =IF($B$45=1,Faktorer_bolig!E12,Faktorer_andre!E12) -> brukbar | G16: 0 | H16: =IF($B$45=1,Faktorer_bolig!G12,Faktorer_andre!G12) -> bra | I16: 0 | J16: =IF($B$45=1,Faktorer_bolig!I12,Faktorer_andre!I12) -> svært god | K16: 0 | L16: =IF(areal_1>0,100-SUM(E16:K16),0) -> 0 | M16: 0 | Q16: 0 | R16: 0 | S16: 0 | T16: 0 | U16: 0 | V16: 0 | W16: 0 | X16: 0 | Y16: 0 | Z16: 0 | AA16: 0 | AB16: 0 | AC16: 0 | AD16: 0 | AE16: 0 | AF16: 0 | AG16: 0 | AH16: 0 | AI16: 0 | AJ16: 0 | AK16: 0 | AL16: 0 | AM16: 0 | AN16: 0 | AO16: 0 | AP16: 0 | AQ16: 0 | AR16: 0 | AS16: 0 | AT16: 0 | AU16: 0 | AV16: 0 | AW16: 0 | AX16: 0 | AY16: 0 | AZ16: 0 | BA16: 0 | BB16: 0 | BC16: 0 | BD16: 0 | BE16: 0 | BF16: 0 | BG16: 0 | BH16: 0 | BI16: 0 | BJ16: 0 | BK16: 0 | BL16: 0 | BM16: 0 | BN16: 0 | BO16: 0 | BP16: 0 | BQ16: 0 | BR16: 0 | BS16: 0 | BT16: 0 | BU16: 0 | BV16: 0 | BW16: 0 | BX16: 0 | BY16: 0 | BZ16: 0 | CA16: 0 | CB16: 0 | CC16: 0 | CD16: 0 | CE16: 0 | CF16: 0 | CG16: 0 | CH16: 0 | CI16: 0 | CJ16: 0 | CK16: 0 | CL16: 0 | CM16: 0 | CN16: 0 | CO16: 0 | CP16: 0 | CQ16: 0 | CR16: 0 | CS16: 0 | CT16: 0 | CU16: 0 | CV16: 0 | CW16: 0 | CX16: 0 | CY16: 0 | CZ16: 0 | DA16: 0 | DB16: 0 | DC16: 0 | DD16: 0 | DE16: 0 | DF16: 0 | DG16: 0 | DH16: 0 | DI16: 0 | DJ16: 0 | DK16: 0 | DL16: 0 | DM16: 0 | DN16: 0 | DO16: 0 | DP16: 0 | DQ16: 0 | DR16: 0 | DS16: 0 | DT16: 0 | DU16: 0 | DV16: 0 | DW16: 0 | DX16: 0 | DY16: 0 | DZ16: 0 | EA16: 0 | EB16: 0 | EC16: 0 | ED16: 0 | EE16: 0 | EF16: 0 | EG16: 0 | EH16: 0 | EI16: 0 | EJ16: 0 | EK16: 0 | EL16: 0 | EM16: 0 | EN16: 0 | EO16: 0 | EP16: 0 | EQ16: 0 | ER16: 0 | ES16: 0 | ET16: 0 | EU16: 0 | EV16: 0 | EW16: 0 | EX16: 0 | EY16: 0 | EZ16: 0 | FA16: 0 | FB16: 0 | FC16: 0 | FD16: 0 | FE16: 0 | FF16: 0 | FG16: 0 | FH16: 0 | FI16: 0 | FJ16: 0 | FK16: 0 | FL16: 0 | FM16: 0 | FN16: 0 | FO16: 0 | FP16: 0 | FQ16: 0 | FR16: 0 | FS16: 0 | FT16: 0 | FU16: 0 | FV16: 0 | FW16: 0 | FX16: 0 | FY16: 0 | FZ16: 0 | GA16: 0 | GB16: 0 | GC16: 0 | GD16: 0 | GE16: 0 | GF16: 0 | GG16: 0 | GH16: 0 | GI16: 0 | GJ16: 0 | GK16: 0 | GL16: 0 | GM16: 0 | GN16: 0 | GO16: 0 | GP16: 0 | GQ16: 0 | GR16: 0 | GS16: 0 | GT16: 0 | GU16: 0 | GV16: 0 | GW16: 0 | GX16: 0 | GY16: 0 | GZ16: 0 | HA16: 0 | HB16: 0 | HC16: 0 | HD16: 0 | HE16: 0 | HF16: 0 | HG16: 0 | HH16: 0 | HI16: 0 | HJ16: 0 | HK16: 0 | HL16: 0 | HM16: 0 | HN16: 0 | HO16: 0 | HP16: 0 | HQ16: 0 | HR16: 0 | HS16: 0 | HT16: 0 | HU16: 0 | HV16: 0 | HW16: 0 | HX16: 0 | HY16: 0 | HZ16: 0 | IA16: 0 | IB16: 0 | IC16: 0 | ID16: 0 | IE16: 0 | IF16: 0 | IG16: 0 | IH16: 0 | II16: 0 | IJ16: 0 | IK16: 0 | IL16: 0 | IM16: 0 | IN16: 0 | IO16: 0 | IP16: 0 | IQ16: 0 | IR16: 0 | IS16: 0 | IT16: 0 | IU16: 0 | IV16: 0 | IW16: 0 | IX16: 0 | IY16: 0 | IZ16: 0
A17: 2.etg | B17: 0 | C17: =IF($B$45=1,Faktorer_bolig!B13,Faktorer_andre!B13) -> Arealbruk i %; | D17: =IF($B$45=1,Faktorer_bolig!C13,Faktorer_andre!C13) -> svak/uegnet | E17: 0 | F17: =IF($B$45=1,Faktorer_bolig!E13,Faktorer_andre!E13) -> enkelt bruksareal | G17: 0 | H17: =IF($B$45=1,Faktorer_bolig!G13,Faktorer_andre!G13) -> vanl. bruksareal | I17: 0 | J17: =IF($B$45=1,Faktorer_bolig!I13,Faktorer_andre!I13) -> 0 | K17: 0 | L17: =IF(areal_2>0,100-SUM(E17:K17),0) -> 0 | M17: 0 | Q17: 0 | R17: 0 | S17: 0 | T17: 0 | U17: 0 | V17: 0 | W17: 0 | X17: 0 | Y17: 0 | Z17: 0 | AA17: 0 | AB17: 0 | AC17: 0 | AD17: 0 | AE17: 0 | AF17: 0 | AG17: 0 | AH17: 0 | AI17: 0 | AJ17: 0 | AK17: 0 | AL17: 0 | AM17: 0 | AN17: 0 | AO17: 0 | AP17: 0 | AQ17: 0 | AR17: 0 | AS17: 0 | AT17: 0 | AU17: 0 | AV17: 0 | AW17: 0 | AX17: 0 | AY17: 0 | AZ17: 0 | BA17: 0 | BB17: 0 | BC17: 0 | BD17: 0 | BE17: 0 | BF17: 0 | BG17: 0 | BH17: 0 | BI17: 0 | BJ17: 0 | BK17: 0 | BL17: 0 | BM17: 0 | BN17: 0 | BO17: 0 | BP17: 0 | BQ17: 0 | BR17: 0 | BS17: 0 | BT17: 0 | BU17: 0 | BV17: 0 | BW17: 0 | BX17: 0 | BY17: 0 | BZ17: 0 | CA17: 0 | CB17: 0 | CC17: 0 | CD17: 0 | CE17: 0 | CF17: 0 | CG17: 0 | CH17: 0 | CI17: 0 | CJ17: 0 | CK17: 0 | CL17: 0 | CM17: 0 | CN17: 0 | CO17: 0 | CP17: 0 | CQ17: 0 | CR17: 0 | CS17: 0 | CT17: 0 | CU17: 0 | CV17: 0 | CW17: 0 | CX17: 0 | CY17: 0 | CZ17: 0 | DA17: 0 | DB17: 0 | DC17: 0 | DD17: 0 | DE17: 0 | DF17: 0 | DG17: 0 | DH17: 0 | DI17: 0 | DJ17: 0 | DK17: 0 | DL17: 0 | DM17: 0 | DN17: 0 | DO17: 0 | DP17: 0 | DQ17: 0 | DR17: 0 | DS17: 0 | DT17: 0 | DU17: 0 | DV17: 0 | DW17: 0 | DX17: 0 | DY17: 0 | DZ17: 0 | EA17: 0 | EB17: 0 | EC17: 0 | ED17: 0 | EE17: 0 | EF17: 0 | EG17: 0 | EH17: 0 | EI17: 0 | EJ17: 0 | EK17: 0 | EL17: 0 | EM17: 0 | EN17: 0 | EO17: 0 | EP17: 0 | EQ17: 0 | ER17: 0 | ES17: 0 | ET17: 0 | EU17: 0 | EV17: 0 | EW17: 0 | EX17: 0 | EY17: 0 | EZ17: 0 | FA17: 0 | FB17: 0 | FC17: 0 | FD17: 0 | FE17: 0 | FF17: 0 | FG17: 0 | FH17: 0 | FI17: 0 | FJ17: 0 | FK17: 0 | FL17: 0 | FM17: 0 | FN17: 0 | FO17: 0 | FP17: 0 | FQ17: 0 | FR17: 0 | FS17: 0 | FT17: 0 | FU17: 0 | FV17: 0 | FW17: 0 | FX17: 0 | FY17: 0 | FZ17: 0 | GA17: 0 | GB17: 0 | GC17: 0 | GD17: 0 | GE17: 0 | GF17: 0 | GG17: 0 | GH17: 0 | GI17: 0 | GJ17: 0 | GK17: 0 | GL17: 0 | GM17: 0 | GN17: 0 | GO17: 0 | GP17: 0 | GQ17: 0 | GR17: 0 | GS17: 0 | GT17: 0 | GU17: 0 | GV17: 0 | GW17: 0 | GX17: 0 | GY17: 0 | GZ17: 0 | HA17: 0 | HB17: 0 | HC17: 0 | HD17: 0 | HE17: 0 | HF17: 0 | HG17: 0 | HH17: 0 | HI17: 0 | HJ17: 0 | HK17: 0 | HL17: 0 | HM17: 0 | HN17: 0 | HO17: 0 | HP17: 0 | HQ17: 0 | HR17: 0 | HS17: 0 | HT17: 0 | HU17: 0 | HV17: 0 | HW17: 0 | HX17: 0 | HY17: 0 | HZ17: 0 | IA17: 0 | IB17: 0 | IC17: 0 | ID17: 0 | IE17: 0 | IF17: 0 | IG17: 0 | IH17: 0 | II17: 0 | IJ17: 0 | IK17: 0 | IL17: 0 | IM17: 0 | IN17: 0 | IO17: 0 | IP17: 0 | IQ17: 0 | IR17: 0 | IS17: 0 | IT17: 0 | IU17: 0 | IV17: 0 | IW17: 0 | IX17: 0 | IY17: 0 | IZ17: 0
A18: 0 | B18: =IF(AND(A17=0,SUM(E17:E19,G17:G19,I17:I19,K18:K19)>0),"Har du glemt arealet ?","") ->  | C18: =IF($B$45=1,Faktorer_bolig!B14,Faktorer_andre!B14) -> Etasjestd i %; | D18: =IF($B$45=1,Faktorer_bolig!C14,Faktorer_andre!C14) -> lav | E18: 0 | F18: =IF($B$45=1,Faktorer_bolig!E14,Faktorer_andre!E14) -> enkel | G18: 0 | H18: =IF($B$45=1,Faktorer_bolig!G14,Faktorer_andre!G14) -> bra | I18: 0 | J18: =IF($B$45=1,Faktorer_bolig!I14,Faktorer_andre!I14) -> god | K18: 0 | L18: =IF(areal_2>0,100-SUM(E18:K18),0) -> 0 | M18: 0
A19: 0 | C19: =IF($B$45=1,Faktorer_bolig!B15,Faktorer_andre!B15) -> Tilst/egnethet; | D19: =IF($B$45=1,Faktorer_bolig!C15,Faktorer_andre!C15) -> slitt/dårl | E19: 0 | F19: =IF($B$45=1,Faktorer_bolig!E15,Faktorer_andre!E15) -> brukbar | G19: 0 | H19: =IF($B$45=1,Faktorer_bolig!G15,Faktorer_andre!G15) -> bra | I19: 0 | J19: =IF($B$45=1,Faktorer_bolig!I15,Faktorer_andre!I15) -> svært god | K19: 0 | L19: =IF(areal_2>0,100-SUM(E19:K19),0) -> 0 | M19: 0
A20: Mesanin/kjørebro | B20: 0 | C20: =IF($B$45=1,Faktorer_bolig!B16,Faktorer_andre!B16) -> Arealbruk i %; | D20: =IF($B$45=1,Faktorer_bolig!C16,Faktorer_andre!C16) -> svak/uegnet | E20: 0 | F20: =IF($B$45=1,Faktorer_bolig!E16,Faktorer_andre!E16) -> lettlager | G20: 0 | H20: =IF($B$45=1,Faktorer_bolig!G16,Faktorer_andre!G16) -> vanl. bruksareal | I20: 0 | J20: =IF($B$45=1,Faktorer_bolig!I16,Faktorer_andre!I16) -> 0 | K20: 0 | L20: 0 | M20: 0
A21: 0 | C21: =IF($B$45=1,Faktorer_bolig!B17,Faktorer_andre!B17) -> Etasjestd i %; | D21: =IF($B$45=1,Faktorer_bolig!C17,Faktorer_andre!C17) -> lav | E21: 0 | F21: =IF($B$45=1,Faktorer_bolig!E17,Faktorer_andre!E17) -> enkel | G21: 0 | H21: =IF($B$45=1,Faktorer_bolig!G17,Faktorer_andre!G17) -> bra | I21: 0 | J21: =IF($B$45=1,Faktorer_bolig!I17,Faktorer_andre!I17) -> god | K21: 0 | L21: 0 | M21: 0
A22: 0 | C22: =IF($B$45=1,Faktorer_bolig!B18,Faktorer_andre!B18) -> Tilst/egnethet; | D22: =IF($B$45=1,Faktorer_bolig!C18,Faktorer_andre!C18) -> slitt/dårl | E22: 0 | F22: =IF($B$45=1,Faktorer_bolig!E18,Faktorer_andre!E18) -> brukbar | G22: 0 | H22: =IF($B$45=1,Faktorer_bolig!G18,Faktorer_andre!G18) -> bra | I22: 0 | J22: =IF($B$45=1,Faktorer_bolig!I18,Faktorer_andre!I18) -> svært god | K22: 0 | L22: 0 | M22: 0
A23: =Faktorer_bolig!A19 -> Enkel bolig | B23: 0 | C23: =Faktorer_bolig!A19 -> Enkel bolig | D23: =Faktorer_bolig!C19 -> svak/uinnr. | E23: 0 | F23: =Faktorer_bolig!E19 -> enkel | G23: 0 | H23: =Faktorer_bolig!G19 -> vanlig | I23: 0 | J23: =Faktorer_bolig!I19 -> 0 | K23: 0 | L23: =IF($B$23>0,100-SUM(E23:K23),0) -> 0 | M23: =IF(L23>0," % mangler","") -> 
A24: =Faktorer_bolig!A20 -> Enkel bolig | C24: =Faktorer_bolig!B20 -> Etasjestd %; | D24: =Faktorer_bolig!C20 -> lav | E24: 0 | F24: =Faktorer_bolig!E20 -> bra | G24: 0 | H24: =Faktorer_bolig!G20 -> god | I24: 0 | J24: =Faktorer_bolig!I20 -> topp | K24: 0 | L24: =IF($B$23>0,100-SUM(E24:K24),0) -> 0 | M24: =IF(L24>0," % mangler","") -> 
A25: =Faktorer_bolig!A21 -> Enkel bolig | C25: =Faktorer_bolig!B21 -> Tilst/egn; | D25: =Faktorer_bolig!C21 -> slitt/dårl | E25: 0 | F25: =Faktorer_bolig!E21 -> brukbar | G25: 0 | H25: =Faktorer_bolig!G21 -> bra | I25: 0 | J25: =Faktorer_bolig!I21 -> sv. god | K25: 0 | L25: =IF($B$23>0,100-SUM(E25:K25),0) -> 0 | M25: =IF(L25>0," % mangler","") -> 
A29: Tomt | B29: =VLOOKUP(A1,'Priser nybygg'!B3:G26,6) -> 0 | C29: Verdi for opparbeidet gårdstun og hage | J29: 0 | K29: 0
A30: Tomt | C30: Tomt, | D30: =Registreringsskjema!B23 -> Vann; | E30: =Registreringsskjema!C23 -> Svært god = 4, god = 3, middels = 2, dårlig = 1 | J30: 0
A31: Tomt | C31: vann og | D31: =Registreringsskjema!B24 -> Avløp; | E31: =Registreringsskjema!C24 -> Svært god = 4, god = 3, middels = 2, dårlig = 1 | J31: 0
A32: Tomt | C32: avløp | D32: =Registreringsskjema!B25 -> Have/tun; | E32: =Registreringsskjema!C25 -> velholdt have/tun = 8, funksjonell beplantet have= 5, alminnelig bra = 3, enkel = 1 | J32: 0 | K32: =J30+J31+J32 -> 0
A33: Tomt | D33: =Registreringsskjema!B26 -> 0 | E33: =Registreringsskjema!C26 -> 0 | F33: =Registreringsskjema!D26 -> 0 | G33: =Registreringsskjema!E26 -> 0 | H33: =Registreringsskjema!F26 -> 0 | I33: =Registreringsskjema!G26 -> 0 | J33: Ukorrigert verdi | K33: 0
A43: =CONCATENATE("Verdiberegning ",'Bygg 7'!A1) -> Verdiberegning X
A45: Valgt faktor_ark | B45: =VLOOKUP(A1,'Priser nybygg'!B3:G26,3,FALSE) -> 2 | C45: =IF($B$45=1,"Faktorer_bolig","Faktorer_andre") -> Faktorer_andre
A47: Hustype | B47: Etasje | D47: Faktor_1 | E47: Andel % | F47: Faktor_2 | G47: Andel % | H47: Faktor_3 | I47: Andel % | J47: Faktor_4 | K47: Andel % | L47: Beregnet faktor
A48: =$A$1 -> X | B48: Kjeller | C48: Arealtype %; | D48: =IF($B$45=1,Faktorer_bolig!D4,Faktorer_andre!D4) -> 0.1 | E48: ='Bygg 7'!E8 -> 0 | F48: =IF($B$45=1,Faktorer_bolig!F4,Faktorer_andre!F4) -> 0.2 | G48: ='Bygg 7'!G8 -> 0 | H48: =IF($B$45=1,Faktorer_bolig!H4,Faktorer_andre!H4) -> 0.3 | I48: ='Bygg 7'!I8 -> 0 | J48: =IF($B$45=1,Faktorer_bolig!J4,Faktorer_andre!J4) -> 0 | L48: =K48*J48+I48*H48+G48*F48+E48*D48 -> 0
B49: Kjeller | C49: Etasjestd %; | D49: =IF($B$45=1,Faktorer_bolig!D5,Faktorer_andre!D5) -> 0.4 | E49: ='Bygg 7'!E9 -> 0 | F49: =IF($B$45=1,Faktorer_bolig!F5,Faktorer_andre!F5) -> 0.6 | G49: ='Bygg 7'!G9 -> 0 | H49: =IF($B$45=1,Faktorer_bolig!H5,Faktorer_andre!H5) -> 0.8 | I49: ='Bygg 7'!I9 -> 0 | J49: =IF($B$45=1,Faktorer_bolig!J5,Faktorer_andre!J5) -> 1 | K49: ='Bygg 7'!K9 -> 0 | L49: 0
B50: Kjeller | C50: Tilst/egn; | D50: =IF($B$45=1,Faktorer_bolig!D6,Faktorer_andre!D6) -> 0.4 | E50: ='Bygg 7'!E10 -> 0 | F50: =IF($B$45=1,Faktorer_bolig!F6,Faktorer_andre!F6) -> 0.6 | G50: ='Bygg 7'!G10 -> 0 | H50: =IF($B$45=1,Faktorer_bolig!H6,Faktorer_andre!H6) -> 0.8 | I50: ='Bygg 7'!I10 -> 0 | J50: =IF($B$45=1,Faktorer_bolig!J6,Faktorer_andre!J6) -> 1 | K50: ='Bygg 7'!K10 -> 0 | L50: 0
B51: Underetasje | C51: Arealtype %; | D51: =IF($B$45=1,Faktorer_bolig!D7,Faktorer_andre!D7) -> 0.2 | E51: ='Bygg 7'!E11 -> 0 | F51: =IF($B$45=1,Faktorer_bolig!F7,Faktorer_andre!F7) -> 0.35 | G51: ='Bygg 7'!G11 -> 0 | H51: =IF($B$45=1,Faktorer_bolig!H7,Faktorer_andre!H7) -> 0.5 | I51: ='Bygg 7'!I11 -> 0 | J51: =IF($B$45=1,Faktorer_bolig!J7,Faktorer_andre!J7) -> 0 | L51: 0
B52: Underetasje | C52: Etasjestd %; | D52: =IF($B$45=1,Faktorer_bolig!D8,Faktorer_andre!D8) -> 0.56 | E52: ='Bygg 7'!E12 -> 0 | F52: =IF($B$45=1,Faktorer_bolig!F8,Faktorer_andre!F8) -> 0.75 | G52: ='Bygg 7'!G12 -> 0 | H52: =IF($B$45=1,Faktorer_bolig!H8,Faktorer_andre!H8) -> 0.87 | I52: ='Bygg 7'!I12 -> 0 | J52: =IF($B$45=1,Faktorer_bolig!J8,Faktorer_andre!J8) -> 1 | K52: ='Bygg 7'!K12 -> 0 | L52: 0
B53: Underetasje | C53: Tilst/egn; | D53: =IF($B$45=1,Faktorer_bolig!D9,Faktorer_andre!D9) -> 0.5 | E53: ='Bygg 7'!E13 -> 0 | F53: =IF($B$45=1,Faktorer_bolig!F9,Faktorer_andre!F9) -> 0.65 | G53: ='Bygg 7'!G13 -> 0 | H53: =IF($B$45=1,Faktorer_bolig!H9,Faktorer_andre!H9) -> 0.8 | I53: ='Bygg 7'!I13 -> 0 | J53: =IF($B$45=1,Faktorer_bolig!J9,Faktorer_andre!J9) -> 1 | K53: ='Bygg 7'!K13 -> 0 | L53: 0
B54: 1. etg | C54: Arealtype %; | D54: =IF($B$45=1,Faktorer_bolig!D10,Faktorer_andre!D10) -> 0.4 | E54: ='Bygg 7'!E14 -> 0 | F54: =IF($B$45=1,Faktorer_bolig!F10,Faktorer_andre!F10) -> 0.7 | G54: ='Bygg 7'!G14 -> 0 | H54: =IF($B$45=1,Faktorer_bolig!H10,Faktorer_andre!H10) -> 1 | I54: ='Bygg 7'!I14 -> 0 | J54: =IF($B$45=1,Faktorer_bolig!J10,Faktorer_andre!J10) -> 0 | L54: 0
B55: 1. etg | C55: Etasjestd %; | D55: =IF($B$45=1,Faktorer_bolig!D11,Faktorer_andre!D11) -> 0.56 | E55: ='Bygg 7'!E15 -> 0 | F55: =IF($B$45=1,Faktorer_bolig!F11,Faktorer_andre!F11) -> 0.75 | G55: ='Bygg 7'!G15 -> 0 | H55: =IF($B$45=1,Faktorer_bolig!H11,Faktorer_andre!H11) -> 0.87 | I55: ='Bygg 7'!I15 -> 0 | J55: =IF($B$45=1,Faktorer_bolig!J11,Faktorer_andre!J11) -> 1 | K55: ='Bygg 7'!K15 -> 0 | L55: 0
B56: 1. etg | C56: Tilst/egn; | D56: =IF($B$45=1,Faktorer_bolig!D12,Faktorer_andre!D12) -> 0.5 | E56: ='Bygg 7'!E16 -> 0 | F56: =IF($B$45=1,Faktorer_bolig!F12,Faktorer_andre!F12) -> 0.65 | G56: ='Bygg 7'!G16 -> 0 | H56: =IF($B$45=1,Faktorer_bolig!H12,Faktorer_andre!H12) -> 0.8 | I56: ='Bygg 7'!I16 -> 0 | J56: =IF($B$45=1,Faktorer_bolig!J12,Faktorer_andre!J12) -> 1 | K56: ='Bygg 7'!K16 -> 0 | L56: 0
B57: 2.etg | C57: Arealtype %; | D57: =IF($B$45=1,Faktorer_bolig!D13,Faktorer_andre!D13) -> 0.2 | E57: ='Bygg 7'!E17 -> 0 | F57: =IF($B$45=1,Faktorer_bolig!F13,Faktorer_andre!F13) -> 0.4 | G57: ='Bygg 7'!G17 -> 0 | H57: =IF($B$45=1,Faktorer_bolig!H13,Faktorer_andre!H13) -> 0.6 | I57: ='Bygg 7'!I17 -> 0 | J57: =IF($B$45=1,Faktorer_bolig!J13,Faktorer_andre!J13) -> 0 | L57: =I57*H57+G57*F57+E57*D57 -> 0
B58: 2.etg | C58: Etasjestd %; | D58: =IF($B$45=1,Faktorer_bolig!D14,Faktorer_andre!D14) -> 0.56 | E58: ='Bygg 7'!E18 -> 0 | F58: =IF($B$45=1,Faktorer_bolig!F14,Faktorer_andre!F14) -> 0.75 | G58: ='Bygg 7'!G18 -> 0 | H58: =IF($B$45=1,Faktorer_bolig!H14,Faktorer_andre!H14) -> 0.87 | I58: ='Bygg 7'!I18 -> 0 | J58: =IF($B$45=1,Faktorer_bolig!J14,Faktorer_andre!J14) -> 1 | K58: ='Bygg 7'!K18 -> 0 | L58: =K58*J58+I58*H58+G58*F58+E58*D58 -> 0
B59: 2.etg | C59: Tilst/egn; | D59: =IF($B$45=1,Faktorer_bolig!D15,Faktorer_andre!D15) -> 0.5 | E59: ='Bygg 7'!E19 -> 0 | F59: =IF($B$45=1,Faktorer_bolig!F15,Faktorer_andre!F15) -> 0.65 | G59: ='Bygg 7'!G19 -> 0 | H59: =IF($B$45=1,Faktorer_bolig!H15,Faktorer_andre!H15) -> 0.8 | I59: ='Bygg 7'!I19 -> 0 | J59: =IF($B$45=1,Faktorer_bolig!J15,Faktorer_andre!J15) -> 1 | K59: ='Bygg 7'!K19 -> 0 | L59: =K59*J59+I59*H59+G59*F59+E59*D59 -> 0
B60: Mesanin/kjørebro | C60: =IF(ISTEXT(B60),C57,"") -> Arealtype %; | D60: =IF($B$45=1,Faktorer_bolig!D16,Faktorer_andre!D16) -> 0.1 | E60: ='Bygg 7'!E20 -> 0 | F60: =IF($B$45=1,Faktorer_bolig!F16,Faktorer_andre!F16) -> 0.2 | G60: ='Bygg 7'!G20 -> 0 | H60: =IF($B$45=1,Faktorer_bolig!H16,Faktorer_andre!H16) -> 0.3 | I60: ='Bygg 7'!I20 -> 0 | J60: =IF($B$45=1,Faktorer_bolig!J16,Faktorer_andre!J16) -> 0 | L60: =I60*H60+G60*F60+E60*D60 -> 0
B61: Mesanin/kjørebro | C61: Etasjestd %; | D61: =IF($B$45=1,Faktorer_bolig!D17,Faktorer_andre!D17) -> 0.4 | E61: ='Bygg 7'!E21 -> 0 | F61: =IF($B$45=1,Faktorer_bolig!F17,Faktorer_andre!F17) -> 0.6 | G61: ='Bygg 7'!G21 -> 0 | H61: =IF($B$45=1,Faktorer_bolig!H17,Faktorer_andre!H17) -> 0.8 | I61: ='Bygg 7'!I21 -> 0 | J61: =IF($B$45=1,Faktorer_bolig!J17,Faktorer_andre!J17) -> 1 | K61: ='Bygg 7'!K21 -> 0 | L61: =K61*J61+I61*H61+G61*F61+E61*D61 -> 0
B62: Mesanin/kjørebro | C62: Tilst/egn; | D62: =IF($B$45=1,Faktorer_bolig!D18,Faktorer_andre!D18) -> 0.4 | E62: ='Bygg 7'!E22 -> 0 | F62: =IF($B$45=1,Faktorer_bolig!F18,Faktorer_andre!F18) -> 0.6 | G62: ='Bygg 7'!G22 -> 0 | H62: =IF($B$45=1,Faktorer_bolig!H18,Faktorer_andre!H18) -> 0.8 | I62: ='Bygg 7'!I22 -> 0 | J62: =IF($B$45=1,Faktorer_bolig!J18,Faktorer_andre!J18) -> 1 | K62: ='Bygg 7'!K22 -> 0 | L62: =K62*J62+I62*H62+G62*F62+E62*D62 -> 0
